Workbook

Sheet PI vs x
A1: Measurement | B1: Hall
A2: Type | B2: Off-axis
A4: Project | B4: ='10 y=-0.2'!B5 -> 504314
A5: PS serial no | B5: ='10 y=-0.2'!B7 -> 2410102
A7: Measurement date | B7: =LEFT('10 y=-0.2'!B4,10) -> 26-09-2024
C11: Nominal gap [mm] | D11: Encoder [counts] | E11: Encoder [mm] | F11: PI [T^2mm^3] | G11: y [mm] | H11: Encoder value at 10 mm gap:
B12: ='PI vs x'!$C$12 & "mm gap" -> 10mm gap | C12: ='10 y=-0.2'!B48 -> 10 | D12: ='10 y=-0.2'!$B$50 -> 19.7631 | E12: =D12-$H$12+10 -> 10 | F12: ='10 y=-0.2'!$K$3 -> 10600.11874 | G12: -0.2 | H12: 19.7631
C13: =C12 -> 10 | D13: ='10 y=-0.1'!$B$50 -> 19.7631 | E13: =D13-$H$12+10 -> 10 | F13: ='10 y=-0.1'!$K$3 -> 10598.39993 | G13: -0.1
C14: =C13 -> 10 | D14: ='10 y=0'!$B$50 -> 19.7631 | E14: 10 | F14: ='10 y=0'!$K$3 -> 10596.71491 | G14: 0
C15: 10 | D15: ='10 y=0.1'!$B$50 -> 19.7631 | E15: 10 | F15: ='10 y=0.1'!$K$3 -> 10599.18009 | G15: 0.1
C16: 10 | D16: ='10 y=0.2'!$B$50 -> 19.7631 | E16: 10 | F16: ='10 y=0.2'!$K$3 -> 10599.75369 | G16: 0.2
B17: ='PI vs x'!$C$17 & "mm gap" -> mm gap

Sheet 10 y=-0.2
A1: =IF('DF raw data'!A1="","",'DF raw data'!A1) -> Number of header lines | B1: =IF('DF raw data'!B1="","",'DF raw data'!B1) -> 54 | C1: =IF('DF raw data'!C1="","",'DF raw data'!C1) ->  | D1: =IF('DF raw data'!D1="","",'DF raw data'!D1) ->  | F1: T_coeff | G1: -0.001 | H1: /degC | J1: IBy total | K1: =J1262*1000 -> 6.566016602 | L1: muTm | M1: =L1262*1000 -> 48.06693696 | R1: DF ref | S1: 1
A2: =IF('DF raw data'!A2="","",'DF raw data'!A2) -> Measured by | B2: =IF('DF raw data'!B2="","",'DF raw data'!B2) -> Danfysik | C2: =IF('DF raw data'!C2="","",'DF raw data'!C2) ->  | D2: =IF('DF raw data'!D2="","",'DF raw data'!D2) ->  | F2: Tcorr | G2: 20 | H2: degC | J2: JBy total | K2: =K1262 -> -2.004452282 | L2: muTm^2 | M2: =M1262 -> 20.07604241
A3: =IF('DF raw data'!A3="","",'DF raw data'!A3) -> Operator | B3: =IF('DF raw data'!B3="","",'DF raw data'!B3) -> PMHA | C3: =IF('DF raw data'!C3="","",'DF raw data'!C3) ->  | D3: =IF('DF raw data'!D3="","",'DF raw data'!D3) ->  | F3: Step | G3: =A63-A62 -> 0.5 | H3: mm | J3: PI total | K3: =N1262 -> 10600.11874 | L3: T^2mm^3
A4: =IF('DF raw data'!A4="","",'DF raw data'!A4) -> Data-time | B4: =IF('DF raw data'!B4="","",'DF raw data'!B4) -> 26-09-2024, 09:51:05 | C4: =IF('DF raw data'!C4="","",'DF raw data'!C4) ->  | D4: =IF('DF raw data'!D4="","",'DF raw data'!D4) -> 
A5: =IF('DF raw data'!A5="","",'DF raw data'!A5) -> Project | B5: =IF('DF raw data'!B5="","",'DF raw data'!B5) -> 504314 | C5: =IF('DF raw data'!C5="","",'DF raw data'!C5) ->  | D5: =IF('DF raw data'!D5="","",'DF raw data'!D5) -> 
A6: =IF('DF raw data'!A6="","",'DF raw data'!A6) -> Magnet type | B6: =IF('DF raw data'!B6="","",'DF raw data'!B6) -> Dipole | C6: =IF('DF raw data'!C6="","",'DF raw data'!C6) ->  | D6: =IF('DF raw data'!D6="","",'DF raw data'!D6) -> 
A7: =IF('DF raw data'!A7="","",'DF raw data'!A7) -> Magnet nr. | B7: =IF('DF raw data'!B7="","",'DF raw data'!B7) -> 2410102 | C7: =IF('DF raw data'!C7="","",'DF raw data'!C7) ->  | D7: =IF('DF raw data'!D7="","",'DF raw data'!D7) -> 
A8: =IF('DF raw data'!A8="","",'DF raw data'!A8) -> Meas. number | B8: =IF('DF raw data'!B8="","",'DF raw data'!B8) -> 698 | C8: =IF('DF raw data'!C8="","",'DF raw data'!C8) ->  | D8: =IF('DF raw data'!D8="","",'DF raw data'!D8) -> 
A9: =IF('DF raw data'!A9="","",'DF raw data'!A9) -> Add. info | B9: =IF('DF raw data'!B9="","",'DF raw data'!B9) -> Y-alignment scan 1) | C9: =IF('DF raw data'!C9="","",'DF raw data'!C9) ->  | D9: =IF('DF raw data'!D9="","",'DF raw data'!D9) -> 
A10: =IF('DF raw data'!A10="","",'DF raw data'!A10) -> Device | B10: =IF('DF raw data'!B10="","",'DF raw data'!B10) -> (HAL) HALL-PROBE | C10: =IF('DF raw data'!C10="","",'DF raw data'!C10) ->  | D10: =IF('DF raw data'!D10="","",'DF raw data'!D10) -> 
A11: =IF('DF raw data'!A11="","",'DF raw data'!A11) -> Goal | B11: =IF('DF raw data'!B11="","",'DF raw data'!B11) -> (AXI) AXis Integral (Line, EFB) | C11: =IF('DF raw data'!C11="","",'DF raw data'!C11) ->  | D11: =IF('DF raw data'!D11="","",'DF raw data'!D11) -> 
A12: =IF('DF raw data'!A12="","",'DF raw data'!A12) -> Power supply mode | B12: =IF('DF raw data'!B12="","",'DF raw data'!B12) -> (PM) Permanent Magnet (no MPS in use) | C12: =IF('DF raw data'!C12="","",'DF raw data'!C12) ->  | D12: =IF('DF raw data'!D12="","",'DF raw data'!D12) -> 
A13: =IF('DF raw data'!A13="","",'DF raw data'!A13) -> Data format | B13: =IF('DF raw data'!B13="","",'DF raw data'!B13) -> Raw data text file | C13: =IF('DF raw data'!C13="","",'DF raw data'!C13) ->  | D13: =IF('DF raw data'!D13="","",'DF raw data'!D13) -> 
A14: =IF('DF raw data'!A14="","",'DF raw data'!A14) -> Direction of the pos. x-axis | B14: =IF('DF raw data'!B14="","",'DF raw data'!B14) -> See test program | C14: =IF('DF raw data'!C14="","",'DF raw data'!C14) ->  | D14: =IF('DF raw data'!D14="","",'DF raw data'!D14) -> 
A15: =IF('DF raw data'!A15="","",'DF raw data'!A15) -> Direction of the pos. y-axis | B15: =IF('DF raw data'!B15="","",'DF raw data'!B15) -> Vertical up | C15: =IF('DF raw data'!C15="","",'DF raw data'!C15) ->  | D15: =IF('DF raw data'!D15="","",'DF raw data'!D15) -> 
A16: =IF('DF raw data'!A16="","",'DF raw data'!A16) -> Direction of the pos. z-axis | B16: =IF('DF raw data'!B16="","",'DF raw data'!B16) -> See test program | C16: =IF('DF raw data'!C16="","",'DF raw data'!C16) ->  | D16: =IF('DF raw data'!D16="","",'DF raw data'!D16) -> 
A17: =IF('DF raw data'!A17="","",'DF raw data'!A17) -> Mapper type | B17: =IF('DF raw data'!B17="","",'DF raw data'!B17) -> Precision Hall Mapper | C17: =IF('DF raw data'!C17="","",'DF raw data'!C17) ->  | D17: =IF('DF raw data'!D17="","",'DF raw data'!D17) -> 
A18: =IF('DF raw data'!A18="","",'DF raw data'!A18) -> Mapper Danfysik Reg. Number | B18: =IF('DF raw data'!B18="","",'DF raw data'!B18) -> 2033-D (mapper 1) | C18: =IF('DF raw data'!C18="","",'DF raw data'!C18) ->  | D18: =IF('DF raw data'!D18="","",'DF raw data'!D18) -> 
A19: =IF('DF raw data'!A19="","",'DF raw data'!A19) -> Measurement consept | B19: =IF('DF raw data'!B19="","",'DF raw data'!B19) -> Square line grid | C19: =IF('DF raw data'!C19="","",'DF raw data'!C19) ->  | D19: =IF('DF raw data'!D19="","",'DF raw data'!D19) -> 
A20: =IF('DF raw data'!A20="","",'DF raw data'!A20) -> Mode | B20: =IF('DF raw data'!B20="","",'DF raw data'!B20) -> On-the-fly measurement | C20: =IF('DF raw data'!C20="","",'DF raw data'!C20) ->  | D20: =IF('DF raw data'!D20="","",'DF raw data'!D20) -> 
A21: =IF('DF raw data'!A21="","",'DF raw data'!A21) ->  | B21: =IF('DF raw data'!B21="","",'DF raw data'!B21) ->  | C21: =IF('DF raw data'!C21="","",'DF raw data'!C21) ->  | D21: =IF('DF raw data'!D21="","",'DF raw data'!D21) -> 
A22: =IF('DF raw data'!A22="","",'DF raw data'!A22) -> Probe Name | B22: =IF('DF raw data'!B22="","",'DF raw data'!B22) -> ID12_By | C22: =IF('DF raw data'!C22="","",'DF raw data'!C22) ->  | D22: =IF('DF raw data'!D22="","",'DF raw data'!D22) -> 
A23: =IF('DF raw data'!A23="","",'DF raw data'!A23) -> Probe Type | B23: =IF('DF raw data'!B23="","",'DF raw data'!B23) -> DF_ID_3D_Bxyz | C23: =IF('DF raw data'!C23="","",'DF raw data'!C23) ->  | D23: =IF('DF raw data'!D23="","",'DF raw data'!D23) -> 
A24: =IF('DF raw data'!A24="","",'DF raw data'!A24) -> Probe Danfysik Reg. Number | B24: =IF('DF raw data'!B24="","",'DF raw data'!B24) -> 2277 | C24: =IF('DF raw data'!C24="","",'DF raw data'!C24) ->  | D24: =IF('DF raw data'!D24="","",'DF raw data'!D24) -> 
A25: =IF('DF raw data'!A25="","",'DF raw data'!A25) -> Probe Axis | B25: =IF('DF raw data'!B25="","",'DF raw data'!B25) -> By | C25: =IF('DF raw data'!C25="","",'DF raw data'!C25) ->  | D25: =IF('DF raw data'!D25="","",'DF raw data'!D25) -> 
A26: =IF('DF raw data'!A26="","",'DF raw data'!A26) -> Probe Current Supply | B26: =IF('DF raw data'!B26="","",'DF raw data'!B26) -> 1825-D | C26: =IF('DF raw data'!C26="","",'DF raw data'!C26) ->  | D26: =IF('DF raw data'!D26="","",'DF raw data'!D26) -> 
A27: =IF('DF raw data'!A27="","",'DF raw data'!A27) -> Probe Gain Correction | B27: =IF('DF raw data'!B27="","",'DF raw data'!B27) -> 0.99599 | C27: =IF('DF raw data'!C27="","",'DF raw data'!C27) ->  | D27: =IF('DF raw data'!D27="","",'DF raw data'!D27) -> 
A28: =IF('DF raw data'!A28="","",'DF raw data'!A28) -> Probe Offset Correction | B28: =IF('DF raw data'!B28="","",'DF raw data'!B28) -> 0.0027595 | C28: =IF('DF raw data'!C28="","",'DF raw data'!C28) ->  | D28: =IF('DF raw data'!D28="","",'DF raw data'!D28) -> 
A29: =IF('DF raw data'!A29="","",'DF raw data'!A29) -> DVM Number | B29: =IF('DF raw data'!B29="","",'DF raw data'!B29) -> 2 | C29: =IF('DF raw data'!C29="","",'DF raw data'!C29) ->  | D29: =IF('DF raw data'!D29="","",'DF raw data'!D29) -> 
A30: =IF('DF raw data'!A30="","",'DF raw data'!A30) -> DVM Type | B30: =IF('DF raw data'!B30="","",'DF raw data'!B30) -> K2701 | C30: =IF('DF raw data'!C30="","",'DF raw data'!C30) ->  | D30: =IF('DF raw data'!D30="","",'DF raw data'!D30) -> 
A31: =IF('DF raw data'!A31="","",'DF raw data'!A31) -> DVM Danfysik Reg. Number | B31: =IF('DF raw data'!B31="","",'DF raw data'!B31) -> 1743-D | C31: =IF('DF raw data'!C31="","",'DF raw data'!C31) ->  | D31: =IF('DF raw data'!D31="","",'DF raw data'!D31) -> 
A32: =IF('DF raw data'!A32="","",'DF raw data'!A32) -> Probe Name | B32: =IF('DF raw data'!B32="","",'DF raw data'!B32) -> ID12_Bx | C32: =IF('DF raw data'!C32="","",'DF raw data'!C32) ->  | D32: =IF('DF raw data'!D32="","",'DF raw data'!D32) -> 
A33: =IF('DF raw data'!A33="","",'DF raw data'!A33) -> Probe Type | B33: =IF('DF raw data'!B33="","",'DF raw data'!B33) -> DF_ID_3D_Bxyz | C33: =IF('DF raw data'!C33="","",'DF raw data'!C33) ->  | D33: =IF('DF raw data'!D33="","",'DF raw data'!D33) -> 
A34: =IF('DF raw data'!A34="","",'DF raw data'!A34) -> Probe Danfysik Reg. Number | B34: =IF('DF raw data'!B34="","",'DF raw data'!B34) -> 2277 | C34: =IF('DF raw data'!C34="","",'DF raw data'!C34) ->  | D34: =IF('DF raw data'!D34="","",'DF raw data'!D34) -> 
A35: =IF('DF raw data'!A35="","",'DF raw data'!A35) -> Probe Axis | B35: =IF('DF raw data'!B35="","",'DF raw data'!B35) -> Bx | C35: =IF('DF raw data'!C35="","",'DF raw data'!C35) ->  | D35: =IF('DF raw data'!D35="","",'DF raw data'!D35) -> 
A36: =IF('DF raw data'!A36="","",'DF raw data'!A36) -> Probe Current Supply | B36: =IF('DF raw data'!B36="","",'DF raw data'!B36) -> 1825-D | C36: =IF('DF raw data'!C36="","",'DF raw data'!C36) ->  | D36: =IF('DF raw data'!D36="","",'DF raw data'!D36) -> 
A37: =IF('DF raw data'!A37="","",'DF raw data'!A37) -> Probe Gain Correction | B37: =IF('DF raw data'!B37="","",'DF raw data'!B37) -> 1 | C37: =IF('DF raw data'!C37="","",'DF raw data'!C37) ->  | D37: =IF('DF raw data'!D37="","",'DF raw data'!D37) -> 
A38: =IF('DF raw data'!A38="","",'DF raw data'!A38) -> Probe Offset Correction | B38: =IF('DF raw data'!B38="","",'DF raw data'!B38) -> -0.17537 | C38: =IF('DF raw data'!C38="","",'DF raw data'!C38) ->  | D38: =IF('DF raw data'!D38="","",'DF raw data'!D38) -> 
A39: =IF('DF raw data'!A39="","",'DF raw data'!A39) -> DVM Number | B39: =IF('DF raw data'!B39="","",'DF raw data'!B39) -> 3 | C39: =IF('DF raw data'!C39="","",'DF raw data'!C39) ->  | D39: =IF('DF raw data'!D39="","",'DF raw data'!D39) -> 
A40: =IF('DF raw data'!A40="","",'DF raw data'!A40) -> DVM Type | B40: =IF('DF raw data'!B40="","",'DF raw data'!B40) -> K2701 | C40: =IF('DF raw data'!C40="","",'DF raw data'!C40) ->  | D40: =IF('DF raw data'!D40="","",'DF raw data'!D40) -> 
A41: =IF('DF raw data'!A41="","",'DF raw data'!A41) -> DVM Danfysik Reg. Number | B41: =IF('DF raw data'!B41="","",'DF raw data'!B41) -> 1744-D | C41: =IF('DF raw data'!C41="","",'DF raw data'!C41) ->  | D41: =IF('DF raw data'!D41="","",'DF raw data'!D41) -> 
A42: =IF('DF raw data'!A42="","",'DF raw data'!A42) -> Probe Name | B42: =IF('DF raw data'!B42="","",'DF raw data'!B42) -> ID12_Bz | C42: =IF('DF raw data'!C42="","",'DF raw data'!C42) ->  | D42: =IF('DF raw data'!D42="","",'DF raw data'!D42) -> 
A43: =IF('DF raw data'!A43="","",'DF raw data'!A43) -> Probe Type | B43: =IF('DF raw data'!B43="","",'DF raw data'!B43) -> DF_ID_3D_Bxyz | C43: =IF('DF raw data'!C43="","",'DF raw data'!C43) ->  | D43: =IF('DF raw data'!D43="","",'DF raw data'!D43) -> 
A44: =IF('DF raw data'!A44="","",'DF raw data'!A44) -> Probe Danfysik Reg. Number | B44: =IF('DF raw data'!B44="","",'DF raw data'!B44) -> 2277 | C44: =IF('DF raw data'!C44="","",'DF raw data'!C44) ->  | D44: =IF('DF raw data'!D44="","",'DF raw data'!D44) -> 
A45: =IF('DF raw data'!A45="","",'DF raw data'!A45) -> Probe Axis | B45: =IF('DF raw data'!B45="","",'DF raw data'!B45) -> Bz | C45: =IF('DF raw data'!C45="","",'DF raw data'!C45) ->  | D45: =IF('DF raw data'!D45="","",'DF raw data'!D45) -> 
A46: =IF('DF raw data'!A46="","",'DF raw data'!A46) -> Probe Current Supply | B46: =IF('DF raw data'!B46="","",'DF raw data'!B46) -> 1825-D | C46: =IF('DF raw data'!C46="","",'DF raw data'!C46) ->  | D46: =IF('DF raw data'!D46="","",'DF raw data'!D46) -> 
A47: =IF('DF raw data'!A47="","",'DF raw data'!A47) -> Probe Gain Correction | B47: =IF('DF raw data'!B47="","",'DF raw data'!B47) -> 1 | C47: =IF('DF raw data'!C47="","",'DF raw data'!C47) ->  | D47: =IF('DF raw data'!D47="","",'DF raw data'!D47) -> 
A48: =IF('DF raw data'!A53="","",'DF raw data'!A53) -> PS-Gap: | B48: =IF('DF raw data'!B53="","",'DF raw data'!B53) -> 10 | C48: =IF('DF raw data'!C53="","",'DF raw data'!C53) ->  | D48: =IF('DF raw data'!D53="","",'DF raw data'!D53) -> 
A49: =IF('DF raw data'!A54="","",'DF raw data'!A54) -> PS-Temperature: | B49: =IF('DF raw data'!B54="","",'DF raw data'!B54) -> 24 | C49: =IF('DF raw data'!C54="","",'DF raw data'!C54) ->  | D49: =IF('DF raw data'!D54="","",'DF raw data'!D54) -> 
A50: =IF('DF raw data'!A55="","",'DF raw data'!A55) -> PS-Encoder: | B50: =IF('DF raw data'!B55="","",'DF raw data'!B55) -> 19.7631 | C50: =IF('DF raw data'!C55="","",'DF raw data'!C55) ->  | D50: =IF('DF raw data'!D55="","",'DF raw data'!D55) -> 
A51: =IF('DF raw data'!A56="","",'DF raw data'!A56) ->  | B51: =IF('DF raw data'!B56="","",'DF raw data'!B56) ->  | C51: =IF('DF raw data'!C56="","",'DF raw data'!C56) ->  | D51: =IF('DF raw data'!D56="","",'DF raw data'!D56) -> 
A52: =IF('DF raw data'!A57="","",'DF raw data'!A57) -> Monitor-Index | B52: =IF('DF raw data'!B57="","",'DF raw data'!B57) -> [1,1,4] | C52: =IF('DF raw data'!C57="","",'DF raw data'!C57) ->  | D52: =IF('DF raw data'!D57="","",'DF raw data'!D57) -> 
A53: =IF('DF raw data'!A58="","",'DF raw data'!A58) ->  | B53: =IF('DF raw data'!B58="","",'DF raw data'!B58) ->  | C53: =IF('DF raw data'!C58="","",'DF raw data'!C58) ->  | D53: =IF('DF raw data'!D58="","",'DF raw data'!D58) -> 
A54: =IF('DF raw data'!A59="","",'DF raw data'!A59) -> Time [s] | B54: =IF('DF raw data'!B59="","",'DF raw data'!B59) -> Y [mm] | C54: =IF('DF raw data'!C59="","",'DF raw data'!C59) -> X [mm] | D54: =IF('DF raw data'!D59="","",'DF raw data'!D59) -> Nominal current [A]
A55: =IF('DF raw data'!A60="","",'DF raw data'!A60) ->  | B55: =IF('DF raw data'!B60="","",'DF raw data'!B60) ->  | C55: =IF('DF raw data'!C60="","",'DF raw data'!C60) ->  | D55: =IF('DF raw data'!D60="","",'DF raw data'!D60) -> 
A56: =IF('DF raw data'!A61="","",'DF raw data'!A61) -> 207.8 | B56: =IF('DF raw data'!B61="","",'DF raw data'!B61) -> 31.45 | C56: =IF('DF raw data'!C61="","",'DF raw data'!C61) -> 302.55 | D56: =IF('DF raw data'!D61="","",'DF raw data'!D61) -> 0
A57: =IF('DF raw data'!A62="","",'DF raw data'!A62) ->  | B57: =IF('DF raw data'!B62="","",'DF raw data'!B62) ->  | C57: =IF('DF raw data'!C62="","",'DF raw data'!C62) ->  | D57: =IF('DF raw data'!D62="","",'DF raw data'!D62) -> 
A58: =IF('DF raw data'!A63="","",'DF raw data'!A63) -> Measurement-Index | B58: =IF('DF raw data'!B63="","",'DF raw data'!B63) -> [1,1,1201,2] | C58: =IF('DF raw data'!C63="","",'DF raw data'!C63) ->  | D58: =IF('DF raw data'!D63="","",'DF raw data'!D63) -> 
A59: =IF('DF raw data'!A64="","",'DF raw data'!A64) ->  | B59: =IF('DF raw data'!B64="","",'DF raw data'!B64) ->  | C59: =IF('DF raw data'!C64="","",'DF raw data'!C64) ->  | D59: =IF('DF raw data'!D64="","",'DF raw data'!D64) -> 
A60: =IF('DF raw data'!A65="","",'DF raw data'!A65) -> Z [mm] | B60: =IF('DF raw data'!B65="","",'DF raw data'!B65) -> By [T] | C60: =IF('DF raw data'!C65="","",'DF raw data'!C65) -> Bx [T] | D60: =IF('DF raw data'!D65="","",'DF raw data'!D65) -> Bz [T] | F60: By_corr | G60: Bx_corr | H60: Bz_corr | J60: Iy | K60: Jy | L60: Ix | M60: Jx | N60: PI
A62: =IF('DF raw data'!A67="","",'DF raw data'!A67) -> -300 | B62: =IF('DF raw data'!B67="","",'DF raw data'!B67) -> -6.05844e-06 | C62: =IF('DF raw data'!C67="","",'DF raw data'!C67) -> 0.000156852 | D62: =IF('DF raw data'!D67="","",'DF raw data'!D67) -> -2.13441e-05 | F62: =(1-$G$1*($B$49))*B62 -> -6.20384256e-06 | G62: =(1-$G$1*($B$49-$G$2))*C62 -> 0.000157479408 | H62: =(1-$G$1*($B$49-$G$2))*D62 -> -2.14294764e-05 | J62: =F62*$G$3 -> -3.10192128e-06 | K62: =J62*$G$3 -> -1.55096064e-06 | L62: =G62*$G$3 -> 7.8739704e-05 | M62: =L62*$G$3 -> 3.9369852e-05 | N62: =(J62^2+L62^2)*$G$3 -> 3.104781451e-09
A63: =IF('DF raw data'!A68="","",'DF raw data'!A68) -> -299.5 | B63: =IF('DF raw data'!B68="","",'DF raw data'!B68) -> -5.16169e-06 | C63: =IF('DF raw data'!C68="","",'DF raw data'!C68) -> 0.000160124 | D63: =IF('DF raw data'!D68="","",'DF raw data'!D68) -> -2.12702e-05 | F63: =(1-$G$1*($B$49-$G$2))*B63 -> -5.18233676e-06 | G63: =(1-$G$1*($B$49-$G$2))*C63 -> 0.000160764496 | H63: -2.13552808e-05 | J63: =F63*$G$3+J62 -> -5.69308966e-06 | K63: =J63*$G$3+K62 -> -4.39750547e-06 | L63: =G63*$G$3+L62 -> 0.000159121952 | M63: =L63*$G$3+M62 -> 0.000118930828 | N63: =(J63^2+L63^2)*$G$3+N62 -> 1.578088489e-08
A64: =IF('DF raw data'!A69="","",'DF raw data'!A69) -> -299 | B64: =IF('DF raw data'!B69="","",'DF raw data'!B69) -> -2.37998e-05 | C64: =IF('DF raw data'!C69="","",'DF raw data'!C69) -> 0.000166849 | D64: =IF('DF raw data'!D69="","",'DF raw data'!D69) -> -2.02791e-05 | F64: =(1-$G$1*($B$49-$G$2))*B64 -> -2.38949992e-05 | G64: 0.000167516396 | H64: -2.03602164e-05 | J64: =F64*$G$3+J63 -> -1.764058926e-05 | K64: =J64*$G$3+K63 -> -1.32178001e-05 | L64: =G64*$G$3+L63 -> 0.00024288015 | M64: =L64*$G$3+M63 -> 0.000240370903 | N64: =(J64^2+L64^2)*$G$3+N63 -> 4.543186372e-08
A65: =IF('DF raw data'!A70="","",'DF raw data'!A70) -> -298.5 | B65: =IF('DF raw data'!B70="","",'DF raw data'!B70) -> -1.7204e-05 | C65: =IF('DF raw data'!C70="","",'DF raw data'!C70) -> 0.000163484 | D65: =IF('DF raw data'!D70="","",'DF raw data'!D70) -> -1.87379e-05 | F65: -1.7272816e-05 | G65: 0.000164137936 | H65: -1.88128516e-05 | J65: -2.627699726e-05 | K65: -2.635629873e-05 | L65: 0.000324949118 | M65: 0.000402845462 | N65: 9.857306865e-08
A66: =IF('DF raw data'!A71="","",'DF raw data'!A71) -> -298 | B66: =IF('DF raw data'!B71="","",'DF raw data'!B71) -> -6.25235e-06 | C66: =IF('DF raw data'!C71="","",'DF raw data'!C71) -> 0.000166313 | D66: =IF('DF raw data'!D71="","",'DF raw data'!D71) -> -1.84975e-05 | F66: -6.2773594e-06 | G66: 0.000166978252 | H66: -1.857149e-05 | J66: -2.941567696e-05 | K66: -4.106413721e-05 | L66: 0.000408438244 | M66: 0.000607064584 | N66: 1.824166093e-07
A67: =IF('DF raw data'!A72="","",'DF raw data'!A72) -> -297.5 | B67: =IF('DF raw data'!B72="","",'DF raw data'!B72) -> -8.71674e-07 | C67: =IF('DF raw data'!C72="","",'DF raw data'!C72) -> 0.000171562 | D67: =IF('DF raw data'!D72="","",'DF raw data'!D72) -> -1.97025e-05 | F67: -8.75160696e-07 | G67: 0.000172248248 | H67: -1.978131e-05 | J67: -2.985325731e-05 | K67: -5.599076586e-05 | L67: 0.000494562368 | M67: 0.000854345768 | N67: 3.051581857e-07
A68: =IF('DF raw data'!A73="","",'DF raw data'!A73) -> -297 | B68: =IF('DF raw data'!B73="","",'DF raw data'!B73) -> -1.06062e-05 | C68: =IF('DF raw data'!C73="","",'DF raw data'!C73) -> 0.000171139 | D68: =IF('DF raw data'!D73="","",'DF raw data'!D73) -> -2.05297e-05 | F68: -1.06486248e-05 | G68: 0.000171823556 | H68: -2.06118188e-05 | J68: -3.517756971e-05 | K68: -7.357955072e-05 | L68: 0.000580474146 | M68: 0.001144582841 | N68: 4.742520335e-07
A69: =IF('DF raw data'!A74="","",'DF raw data'!A74) -> -296.5 | B69: =IF('DF raw data'!B74="","",'DF raw data'!B74) -> -1.19512e-05 | C69: =IF('DF raw data'!C74="","",'DF raw data'!C74) -> 0.000168619 | D69: =IF('DF raw data'!D74="","",'DF raw data'!D74) -> -2.02265e-05 | F69: -1.19990048e-05 | G69: 0.000169293476 | H69: -2.0307406e-05 | J69: -4.117707211e-05 | K69: -9.416808677e-05 | L69: 0.000665120884 | M69: 0.001477143283 | N69: 6.962927043e-07
A70: =IF('DF raw data'!A75="","",'DF raw data'!A75) -> -296 | B70: =IF('DF raw data'!B75="","",'DF raw data'!B75) -> -1.3489e-05 | C70: =IF('DF raw data'!C75="","",'DF raw data'!C75) -> 0.000173829 | D70: =IF('DF raw data'!D75="","",'DF raw data'!D75) -> -1.95136e-05 | F70: -1.3542956e-05 | G70: 0.000174524316 | H70: -1.95916544e-05 | J70: -4.794855011e-05 | K70: -0.0001181423618 | L70: 0.000752383042 | M70: 0.001853334804 | N70: 9.804823569e-07
A71: =IF('DF raw data'!A76="","",'DF raw data'!A76) -> -295.5 | B71: =IF('DF raw data'!B76="","",'DF raw data'!B76) -> -8.55744e-06 | C71: =IF('DF raw data'!C76="","",'DF raw data'!C76) -> 0.000171768 | D71: =IF('DF raw data'!D76="","",'DF raw data'!D76) -> -1.92107e-05 | F71: -8.59166976e-06 | G71: 0.000172455072 | H71: -1.92875428e-05 | J71: -5.224438499e-05 | K71: -0.0001442645543 | L71: 0.000838610578 | M71: 0.002272640093 | N71: 1.333480946e-06
A72: =IF('DF raw data'!A77="","",'DF raw data'!A77) -> -295 | B72: =IF('DF raw data'!B77="","",'DF raw data'!B77) -> -7.08424e-06 | C72: =IF('DF raw data'!C77="","",'DF raw data'!C77) -> 0.000167576 | D72: =IF('DF raw data'!D77="","",'DF raw data'!D77) -> -1.93345e-05 | F72: -7.11257696e-06 | G72: 0.000168246304 | H72: -1.9411838e-05 | J72: -5.580067347e-05 | K72: -0.0001721648911 | L72: 0.00092273373 | M72: 0.002734006958 | N72: 1.760756571e-06
A73: =IF('DF raw data'!A78="","",'DF raw data'!A78) -> -294.5 | B73: =IF('DF raw data'!B78="","",'DF raw data'!B78) -> -7.53247e-06 | C73: =IF('DF raw data'!C78="","",'DF raw data'!C78) -> 0.000168883 | D73: =IF('DF raw data'!D78="","",'DF raw data'!D78) -> -1.96295e-05 | F73: -7.56259988e-06 | G73: 0.000169558532 | H73: -1.9708018e-05 | J73: -5.958197341e-05 | K73: -0.0002019558778 | L73: 0.001007512996 | M73: 0.003237763456 | N73: 2.270072796e-06
A74: =IF('DF raw data'!A79="","",'DF raw data'!A79) -> -294 | B74: =IF('DF raw data'!B79="","",'DF raw data'!B79) -> -4.26597e-06 | C74: =IF('DF raw data'!C79="","",'DF raw data'!C79) -> 0.000166073 | D74: =IF('DF raw data'!D79="","",'DF raw data'!D79) -> -1.99071e-05 | F74: -4.28303388e-06 | G74: 0.000166737292 | H74: -1.99867284e-05 | J74: -6.172349035e-05 | K74: -0.0002328176229 | L74: 0.001090881642 | M74: 0.003783204277 | N74: 2.866989069e-06
A75: =IF('DF raw data'!A80="","",'DF raw data'!A80) -> -293.5 | B75: =IF('DF raw data'!B80="","",'DF raw data'!B80) -> -9.77399e-06 | C75: =IF('DF raw data'!C80="","",'DF raw data'!C80) -> 0.000164178 | D75: =IF('DF raw data'!D80="","",'DF raw data'!D80) -> -1.9819e-05 | F75: -9.81308596e-06 | G75: 0.000164834712 | H75: -1.9898276e-05 | J75: -6.663003333e-05 | K75: -0.0002661326396 | L75: 0.001173298998 | M75: 0.004369853776 | N75: 3.557524119e-06
A76: =IF('DF raw data'!A81="","",'DF raw data'!A81) -> -293 | B76: =IF('DF raw data'!B81="","",'DF raw data'!B81) -> -7.98102e-06 | C76: =IF('DF raw data'!C81="","",'DF raw data'!C81) -> 0.000158504 | D76: =IF('DF raw data'!D81="","",'DF raw data'!D81) -> -1.94747e-05 | F76: -8.01294408e-06 | G76: 0.000159138016 | H76: -1.95525988e-05 | J76: -7.063650537e-05 | K76: -0.0003014508923 | L76: 0.001252868006 | M76: 0.004996287779 | N76: 4.344857997e-06
A77: =IF('DF raw data'!A82="","",'DF raw data'!A82) -> -292.5 | B77: =IF('DF raw data'!B82="","",'DF raw data'!B82) -> -5.61128e-06 | C77: =IF('DF raw data'!C82="","",'DF raw data'!C82) -> 0.000160946 | D77: =IF('DF raw data'!D82="","",'DF raw data'!D82) -> -1.94654e-05 | F77: -5.63372512e-06 | G77: 0.000161589784 | H77: -1.95432616e-05 | J77: -7.345336793e-05 | K77: -0.0003381775762 | L77: 0.001333662898 | M77: 0.005663119228 | N77: 5.236884058e-06
A78: =IF('DF raw data'!A83="","",'DF raw data'!A83) -> -292 | B78: =IF('DF raw data'!B83="","",'DF raw data'!B83) -> -9.99807e-07 | C78: =IF('DF raw data'!C83="","",'DF raw data'!C83) -> 0.000155581 | D78: =IF('DF raw data'!D83="","",'DF raw data'!D83) -> -1.96344e-05 | F78: -1.003806228e-06 | G78: 0.000156203324 | H78: -1.97129376e-05 | J78: -7.395527104e-05 | K78: -0.0003751552118 | L78: 0.00141176456 | M78: 0.006369001508 | N78: 6.236158336e-06
A79: =IF('DF raw data'!A84="","",'DF raw data'!A84) -> -291.5 | B79: =IF('DF raw data'!B84="","",'DF raw data'!B84) -> -1.14367e-05 | C79: =IF('DF raw data'!C84="","",'DF raw data'!C84) -> 0.000152773 | D79: =IF('DF raw data'!D84="","",'DF raw data'!D84) -> -2.3564e-05 | F79: -1.14824468e-05 | G79: 0.000153384092 | H79: -2.3658256e-05 | J79: -7.969649444e-05 | K79: -0.000415003459 | L79: 0.001488456606 | M79: 0.007113229811 | N79: 7.347085635e-06
A80: =IF('DF raw data'!A85="","",'DF raw data'!A85) -> -291 | B80: =IF('DF raw data'!B85="","",'DF raw data'!B85) -> -8.67946e-07 | C80: =IF('DF raw data'!C85="","",'DF raw data'!C85) -> 0.000160233 | D80: =IF('DF raw data'!D85="","",'DF raw data'!D85) -> -2.54535e-05 | F80: -8.71417784e-07 | G80: 0.000160873932 | H80: -2.5555314e-05 | J80: -8.013220333e-05 | K80: -0.0004550695607 | L80: 0.001568893572 | M80: 0.007897676597 | N80: 8.581009741e-06
A81: =IF('DF raw data'!A86="","",'DF raw data'!A86) -> -290.5 | B81: =IF('DF raw data'!B86="","",'DF raw data'!B86) -> 7.19837e-06 | C81: =IF('DF raw data'!C86="","",'DF raw data'!C86) -> 0.000166193 | D81: =IF('DF raw data'!D86="","",'DF raw data'!D86) -> -1.98271e-05 | F81: 7.22716348e-06 | G81: 0.000166857772 | H81: -1.99064084e-05 | J81: -7.651862159e-05 | K81: -0.0004933288714 | L81: 0.001652322458 | M81: 0.008723837826 | N81: 9.949022043e-06
A82: =IF('DF raw data'!A87="","",'DF raw data'!A87) -> -290 | B82: =IF('DF raw data'!B87="","",'DF raw data'!B87) -> -1.38733e-05 | C82: =IF('DF raw data'!C87="","",'DF raw data'!C87) -> 0.000163414 | D82: =IF('DF raw data'!D87="","",'DF raw data'!D87) -> -1.94457e-05 | F82: -1.39287932e-05 | G82: 0.000164067656 | H82: -1.95234828e-05 | J82: -8.348301819e-05 | K82: -0.0005350703805 | L82: 0.001734356286 | M82: 0.009591015969 | N82: 1.145650261e-05
A83: =IF('DF raw data'!A88="","",'DF raw data'!A88) -> -289.5 | B83: =IF('DF raw data'!B88="","",'DF raw data'!B88) -> -6.05689e-06 | C83: =IF('DF raw data'!C88="","",'DF raw data'!C88) -> 0.000166763 | D83: =IF('DF raw data'!D88="","",'DF raw data'!D88) -> -2.34206e-05 | F83: -6.08111756e-06 | G83: 0.000167430052 | H83: -2.35142824e-05 | J83: -8.652357697e-05 | K83: -0.000578332169 | L83: 0.001818071312 | M83: 0.01050005163 | N83: 1.311293743e-05
A84: =IF('DF raw data'!A89="","",'DF raw data'!A89) -> -289 | B84: =IF('DF raw data'!B89="","",'DF raw data'!B89) -> -2.89178e-05 | C84: =IF('DF raw data'!C89="","",'DF raw data'!C89) -> 0.000162319 | D84: =IF('DF raw data'!D89="","",'DF raw data'!D89) -> -2.92042e-05 | F84: -2.90334712e-05 | G84: 0.000162968276 | H84: -2.93210168e-05 | J84: -0.0001010403126 | K84: -0.0006288523253 | L84: 0.00189955545 | M84: 0.01144982935 | N84: 1.492219745e-05
A85: =IF('DF raw data'!A90="","",'DF raw data'!A90) -> -288.5 | B85: =IF('DF raw data'!B90="","",'DF raw data'!B90) -> -1.84247e-05 | C85: =IF('DF raw data'!C90="","",'DF raw data'!C90) -> 0.000161994 | D85: =IF('DF raw data'!D90="","",'DF raw data'!D90) -> -1.29495e-05 | F85: -1.84983988e-05 | G85: 0.000162641976 | H85: -1.3001298e-05 | J85: -0.000110289512 | K85: -0.0006839970813 | L85: 0.001980876438 | M85: 0.01244026757 | N85: 1.689021507e-05
A86: =IF('DF raw data'!A91="","",'DF raw data'!A91) -> -288 | B86: =IF('DF raw data'!B91="","",'DF raw data'!B91) -> -1.34849e-05 | C86: =IF('DF raw data'!C91="","",'DF raw data'!C91) -> 0.000169571 | D86: =IF('DF raw data'!D91="","",'DF raw data'!D91) -> -2.58683e-05 | F86: -1.35388396e-05 | G86: 0.000170249284 | H86: -2.59717732e-05 | J86: -0.0001170589318 | K86: -0.0007425265472 | L86: 0.00206600108 | M86: 0.01347326811 | N86: 1.90312467e-05
A87: =IF('DF raw data'!A92="","",'DF raw data'!A92) -> -287.5 | B87: =IF('DF raw data'!B92="","",'DF raw data'!B92) -> -1.63043e-05 | C87: =IF('DF raw data'!C92="","",'DF raw data'!C92) -> 0.000162459 | D87: =IF('DF raw data'!D92="","",'DF raw data'!D92) -> -2.33855e-05 | F87: -1.63695172e-05 | G87: 0.000163108836 | H87: -2.3479042e-05 | J87: -0.0001252436904 | K87: -0.0008051483924 | L87: 0.002147555498 | M87: 0.01454704586 | N87: 2.1345087e-05
A88: =IF('DF raw data'!A93="","",'DF raw data'!A93) -> -287 | B88: =IF('DF raw data'!B93="","",'DF raw data'!B93) -> -1.32333e-05 | C88: =IF('DF raw data'!C93="","",'DF raw data'!C93) -> 0.000154036 | D88: =IF('DF raw data'!D93="","",'DF raw data'!D93) -> -1.88223e-05 | F88: -1.32862332e-05 | G88: 0.000154652144 | H88: -1.88975892e-05 | J88: -0.000131886807 | K88: -0.0008710917959 | L88: 0.00222488157 | M88: 0.01565948664 | N88: 2.382883306e-05
A89: =IF('DF raw data'!A94="","",'DF raw data'!A94) -> -286.5 | B89: =IF('DF raw data'!B94="","",'DF raw data'!B94) -> -3.17148e-06 | C89: =IF('DF raw data'!C94="","",'DF raw data'!C94) -> 0.000162463 | D89: =IF('DF raw data'!D94="","",'DF raw data'!D94) -> -2.85597e-05 | F89: -3.18416592e-06 | G89: 0.000163112852 | H89: -2.86739388e-05 | J89: -0.0001334788899 | K89: -0.0009378312408 | L89: 0.002306437996 | M89: 0.01681270564 | N89: 2.649756949e-05
A90: =IF('DF raw data'!A95="","",'DF raw data'!A95) -> -286 | B90: =IF('DF raw data'!B95="","",'DF raw data'!B95) -> -1.96338e-05 | C90: =IF('DF raw data'!C95="","",'DF raw data'!C95) -> 0.000168511 | D90: =IF('DF raw data'!D95="","",'DF raw data'!D95) -> -2.49889e-05 | F90: -1.97123352e-05 | G90: 0.000169185044 | H90: -2.50888556e-05 | J90: -0.0001433350575 | K90: -0.00100949877 | L90: 0.002391030518 | M90: 0.0180082209 | N90: 2.936635542e-05
A91: =IF('DF raw data'!A96="","",'DF raw data'!A96) -> -285.5 | B91: =IF('DF raw data'!B96="","",'DF raw data'!B96) -> 7.58426e-06 | C91: =IF('DF raw data'!C96="","",'DF raw data'!C96) -> 0.000168876 | D91: =IF('DF raw data'!D96="","",'DF raw data'!D96) -> -2.23405e-05 | F91: 7.61459704e-06 | G91: 0.000169551504 | H91: -2.2429862e-05 | J91: -0.000139527759 | K91: -0.001079262649 | L91: 0.00247580627 | M91: 0.01924612403 | N91: 3.244089777e-05
A92: =IF('DF raw data'!A97="","",'DF raw data'!A97) -> -285 | B92: =IF('DF raw data'!B97="","",'DF raw data'!B97) -> -2.37988e-05 | C92: =IF('DF raw data'!C97="","",'DF raw data'!C97) -> 0.000171577 | D92: =IF('DF raw data'!D97="","",'DF raw data'!D97) -> -2.18429e-05 | F92: -2.38939952e-05 | G92: 0.000172263308 | H92: -2.19302716e-05 | J92: -0.0001514747566 | K92: -0.001155000027 | L92: 0.002561937924 | M92: 0.020527093 | N92: 3.573413303e-05
A93: =IF('DF raw data'!A98="","",'DF raw data'!A98) -> -284.5 | B93: =IF('DF raw data'!B98="","",'DF raw data'!B98) -> -2.1944e-05 | C93: =IF('DF raw data'!C98="","",'DF raw data'!C98) -> 0.000168809 | D93: =IF('DF raw data'!D98="","",'DF raw data'!D98) -> -1.78575e-05 | F93: -2.2031776e-05 | G93: 0.000169484236 | H93: -1.792893e-05 | J93: -0.0001624906446 | K93: -0.00123624535 | L93: 0.002646680042 | M93: 0.02185043302 | N93: 3.924979226e-05
A94: =IF('DF raw data'!A99="","",'DF raw data'!A99) -> -284 | B94: =IF('DF raw data'!B99="","",'DF raw data'!B99) -> -1.97038e-05 | C94: =IF('DF raw data'!C99="","",'DF raw data'!C99) -> 0.000171818 | D94: =IF('DF raw data'!D99="","",'DF raw data'!D99) -> -1.56984e-05 | F94: -1.97826152e-05 | G94: 0.000172505272 | H94: -1.57611936e-05 | J94: -0.0001723819522 | K94: -0.001322436326 | L94: 0.002732932678 | M94: 0.02321689936 | N94: 4.299911054e-05
A95: =IF('DF raw data'!A100="","",'DF raw data'!A100) -> -283.5 | B95: =IF('DF raw data'!B100="","",'DF raw data'!B100) -> -1.71386e-05 | C95: =IF('DF raw data'!C100="","",'DF raw data'!C100) -> 0.000166358 | D95: =IF('DF raw data'!D100="","",'DF raw data'!D100) -> -2.09163e-05 | F95: -1.72071544e-05 | G95: 0.000167023432 | H95: -2.09999652e-05 | J95: -0.0001809855294 | K95: -0.001412929091 | L95: 0.002816444394 | M95: 0.02462512155 | N95: 4.698166793e-05
A96: =IF('DF raw data'!A101="","",'DF raw data'!A101) -> -283 | B96: =IF('DF raw data'!B101="","",'DF raw data'!B101) -> -1.32916e-05 | C96: =IF('DF raw data'!C101="","",'DF raw data'!C101) -> 0.000166826 | D96: =IF('DF raw data'!D101="","",'DF raw data'!D101) -> -2.74139e-05 | F96: -1.33447664e-05 | G96: 0.000167493304 | H96: -2.75235556e-05 | J96: -0.0001876579126 | K96: -0.001506758047 | L96: 0.002900191046 | M96: 0.02607521708 | N96: 5.120482973e-05
A97: =IF('DF raw data'!A102="","",'DF raw data'!A102) -> -282.5 | B97: =IF('DF raw data'!B102="","",'DF raw data'!B102) -> -1.12418e-05 | C97: =IF('DF raw data'!C102="","",'DF raw data'!C102) -> 0.000164252 | D97: =IF('DF raw data'!D102="","",'DF raw data'!D102) -> -2.80394e-05 | F97: -1.12867672e-05 | G97: 0.000164909008 | H97: -2.81515576e-05 | J97: -0.0001933012962 | K97: -0.001603408695 | L97: 0.00298264555 | M97: 0.02756653985 | N97: 5.567159966e-05
A98: =IF('DF raw data'!A103="","",'DF raw data'!A103) -> -282 | B98: =IF('DF raw data'!B103="","",'DF raw data'!B103) -> -1.73311e-05 | C98: =IF('DF raw data'!C103="","",'DF raw data'!C103) -> 0.000163097 | D98: =IF('DF raw data'!D103="","",'DF raw data'!D103) -> -2.03215e-05 | F98: -1.74004244e-05 | G98: 0.000163749388 | H98: -2.0402786e-05 | J98: -0.0002020015084 | K98: -0.001704409449 | L98: 0.003064520244 | M98: 0.02909879997 | N98: 6.038764413e-05
A99: =IF('DF raw data'!A104="","",'DF raw data'!A104) -> -281.5 | B99: =IF('DF raw data'!B104="","",'DF raw data'!B104) -> -5.93215e-06 | C99: =IF('DF raw data'!C104="","",'DF raw data'!C104) -> 0.000160946 | D99: =IF('DF raw data'!D104="","",'DF raw data'!D104) -> -1.82546e-05 | F99: -5.9558786e-06 | G99: 0.000161589784 | H99: -1.83276184e-05 | J99: -0.0002049794477 | K99: -0.001806899173 | L99: 0.003145315136 | M99: 0.03067145754 | N99: 6.535515607e-05
A100: =IF('DF raw data'!A105="","",'DF raw data'!A105) -> -281 | B100: =IF('DF raw data'!B105="","",'DF raw data'!B105) -> -1.70776e-05 | C100: =IF('DF raw data'!C105="","",'DF raw data'!C105) -> 0.000164386 | D100: =IF('DF raw data'!D105="","",'DF raw data'!D105) -> -1.61543e-05 | F100: -1.71459104e-05 | G100: 0.000165043544 | H100: -1.62189172e-05 | J100: -0.0002135524029 | K100: -0.001913675374 | L100: 0.003227836908 | M100: 0.032285376 | N100: 7.058742394e-05
A101: =IF('DF raw data'!A106="","",'DF raw data'!A106) -> -280.5 | B101: =IF('DF raw data'!B106="","",'DF raw data'!B106) -> -1.40039e-05 | C101: =IF('DF raw data'!C106="","",'DF raw data'!C106) -> 0.000164816 | D101: =IF('DF raw data'!D106="","",'DF raw data'!D106) -> -1.55031e-05 | F101: -1.40599156e-05 | G101: 0.000165475264 | H101: -1.55651124e-05 | J101: -0.0002205823607 | K101: -0.002023966555 | L101: 0.00331057454 | M101: 0.03394066327 | N101: 7.609170412e-05
A102: =IF('DF raw data'!A107="","",'DF raw data'!A107) -> -280 | B102: =IF('DF raw data'!B107="","",'DF raw data'!B107) -> -1.30452e-05 | C102: =IF('DF raw data'!C107="","",'DF raw data'!C107) -> 0.000159616 | D102: =IF('DF raw data'!D107="","",'DF raw data'!D107) -> -1.235e-05 | F102: -1.30973808e-05 | G102: 0.000160254464 | H102: -1.23994e-05 | J102: -0.0002271310511 | K102: -0.00213753208 | L102: 0.003390701772 | M102: 0.03563601415 | N102: 8.186592763e-05
A103: =IF('DF raw data'!A108="","",'DF raw data'!A108) -> -279.5 | B103: =IF('DF raw data'!B108="","",'DF raw data'!B108) -> -1.34254e-05 | C103: =IF('DF raw data'!C108="","",'DF raw data'!C108) -> 0.000165474 | D103: =IF('DF raw data'!D108="","",'DF raw data'!D108) -> -1.85813e-05 | F103: -1.34791016e-05 | G103: 0.000166135896 | H103: -1.86556252e-05 | J103: -0.0002338706019 | K103: -0.002254467381 | L103: 0.00347376972 | M103: 0.03737289901 | N103: 8.792681339e-05
A104: =IF('DF raw data'!A109="","",'DF raw data'!A109) -> -279 | B104: =IF('DF raw data'!B109="","",'DF raw data'!B109) -> -1.63078e-05 | C104: =IF('DF raw data'!C109="","",'DF raw data'!C109) -> 0.000164941 | D104: =IF('DF raw data'!D109="","",'DF raw data'!D109) -> -1.81423e-05 | F104: -1.63730312e-05 | G104: 0.000165600764 | H104: -1.82148692e-05 | J104: -0.0002420571175 | K104: -0.00237549594 | L104: 0.003556570102 | M104: 0.03915118406 | N104: 9.428070466e-05
A105: =IF('DF raw data'!A110="","",'DF raw data'!A110) -> -278.5 | B105: =IF('DF raw data'!B110="","",'DF raw data'!B110) -> -2.27079e-05 | C105: =IF('DF raw data'!C110="","",'DF raw data'!C110) -> 0.00016789 | D105: =IF('DF raw data'!D110="","",'DF raw data'!D110) -> -2.4949e-05 | F105: -2.27987316e-05 | G105: 0.00016856156 | H105: -2.5048796e-05 | J105: -0.0002534564833 | K105: -0.002502224182 | L105: 0.003640850882 | M105: 0.0409716095 | N105: 0.0001009407223
A106: =IF('DF raw data'!A111="","",'DF raw data'!A111) -> -278 | B106: =IF('DF raw data'!B111="","",'DF raw data'!B111) -> -1.99589e-05 | C106: =IF('DF raw data'!C111="","",'DF raw data'!C111) -> 0.000169522 | D106: =IF('DF raw data'!D111="","",'DF raw data'!D111) -> -1.72945e-05 | F106: -2.00387356e-05 | G106: 0.000170200088 | H106: -1.7363678e-05 | J106: -0.0002634758511 | K106: -0.002633962107 | L106: 0.003725950926 | M106: 0.04283458497 | N106: 0.0001079167872
A107: =IF('DF raw data'!A112="","",'DF raw data'!A112) -> -277.5 | B107: =IF('DF raw data'!B112="","",'DF raw data'!B112) -> -1.47653e-05 | C107: =IF('DF raw data'!C112="","",'DF raw data'!C112) -> 0.000167979 | D107: =IF('DF raw data'!D112="","",'DF raw data'!D112) -> -2.64594e-05 | F107: -1.48243612e-05 | G107: 0.000168650916 | H107: -2.65652376e-05 | J107: -0.0002708880317 | K107: -0.002769406123 | L107: 0.003810276384 | M107: 0.04473972316 | N107: 0.0001152125805
A108: =IF('DF raw data'!A113="","",'DF raw data'!A113) -> -277 | B108: =IF('DF raw data'!B113="","",'DF raw data'!B113) -> -1.30428e-05 | C108: =IF('DF raw data'!C113="","",'DF raw data'!C113) -> 0.000172322 | D108: =IF('DF raw data'!D113="","",'DF raw data'!D113) -> -1.60703e-05 | F108: -1.30949712e-05 | G108: 0.000173011288 | H108: -1.61345812e-05 | J108: -0.0002774355173 | K108: -0.002908123882 | L108: 0.003896782028 | M108: 0.04668811417 | N108: 0.0001228435208
A109: =IF('DF raw data'!A114="","",'DF raw data'!A114) -> -276.5 | B109: =IF('DF raw data'!B114="","",'DF raw data'!B114) -> -8.88427e-06 | C109: =IF('DF raw data'!C114="","",'DF raw data'!C114) -> 0.000168089 | D109: =IF('DF raw data'!D114="","",'DF raw data'!D114) -> -9.21754e-06 | F109: -8.91980708e-06 | G109: 0.000168761356 | H109: -9.25441016e-06 | J109: -0.0002818954209 | K109: -0.003049071592 | L109: 0.003981162706 | M109: 0.04867869553 | N109: 0.0001308080815
A110: =IF('DF raw data'!A115="","",'DF raw data'!A115) -> -276 | B110: =IF('DF raw data'!B115="","",'DF raw data'!B115) -> -1.02216e-05 | C110: =IF('DF raw data'!C115="","",'DF raw data'!C115) -> 0.000168068 | D110: =IF('DF raw data'!D115="","",'DF raw data'!D115) -> -2.0688e-05 | F110: -1.02624864e-05 | G110: 0.000168740272 | H110: -2.0770752e-05 | J110: -0.0002870266641 | K110: -0.003192584924 | L110: 0.004065532842 | M110: 0.05071146195 | N110: 0.0001391135523
A111: =IF('DF raw data'!A116="","",'DF raw data'!A116) -> -275.5 | B111: =IF('DF raw data'!B116="","",'DF raw data'!B116) -> -7.78714e-06 | C111: =IF('DF raw data'!C116="","",'DF raw data'!C116) -> 0.000169037 | D111: =IF('DF raw data'!D116="","",'DF raw data'!D116) -> -2.19592e-05 | F111: -7.81828856e-06 | G111: 0.000169713148 | H111: -2.20470368e-05 | J111: -0.0002909358083 | K111: -0.003338052828 | L111: 0.004150389416 | M111: 0.05278665666 | N111: 0.0001477687403
A112: =IF('DF raw data'!A117="","",'DF raw data'!A117) -> -275 | B112: =IF('DF raw data'!B117="","",'DF raw data'!B117) -> -1.65056e-05 | C112: =IF('DF raw data'!C117="","",'DF raw data'!C117) -> 0.000167161 | D112: =IF('DF raw data'!D117="","",'DF raw data'!D117) -> -9.50761e-06 | F112: -1.65716224e-05 | G112: 0.000167829644 | H112: -9.54564044e-06 | J112: -0.0002992216195 | K112: -0.003487663638 | L112: 0.004234304238 | M112: 0.05490380877 | N112: 0.0001567781733
A113: =IF('DF raw data'!A118="","",'DF raw data'!A118) -> -274.5 | B113: =IF('DF raw data'!B118="","",'DF raw data'!B118) -> -8.17192e-06 | C113: =IF('DF raw data'!C118="","",'DF raw data'!C118) -> 0.000165917 | D113: =IF('DF raw data'!D118="","",'DF raw data'!D118) -> -2.11559e-05 | F113: -8.20460768e-06 | G113: 0.000166580668 | H113: -2.12405236e-05 | J113: -0.0003033239234 | K113: -0.0036393256 | L113: 0.004317594572 | M113: 0.05706260606 | N113: 0.0001661449874
A114: =IF('DF raw data'!A119="","",'DF raw data'!A119) -> -274 | B114: =IF('DF raw data'!B119="","",'DF raw data'!B119) -> -5.09575e-06 | C114: =IF('DF raw data'!C119="","",'DF raw data'!C119) -> 0.000171664 | D114: =IF('DF raw data'!D119="","",'DF raw data'!D119) -> -2.43904e-05 | F114: -5.116133e-06 | G114: 0.000172350656 | H114: -2.44879616e-05 | J114: -0.0003058819899 | K114: -0.003792266595 | L114: 0.0044037699 | M114: 0.05926449101 | N114: 0.000175888364
A115: =IF('DF raw data'!A120="","",'DF raw data'!A120) -> -273.5 | B115: =IF('DF raw data'!B120="","",'DF raw data'!B120) -> -1.2269e-05 | C115: =IF('DF raw data'!C120="","",'DF raw data'!C120) -> 0.000168909 | D115: =IF('DF raw data'!D120="","",'DF raw data'!D120) -> -2.40855e-05 | F115: -1.2318076e-05 | G115: 0.000169584636 | H115: -2.4181842e-05 | J115: -0.0003120410279 | K115: -0.003948287109 | L115: 0.004488562218 | M115: 0.06150877212 | N115: 0.0001860106442
A116: =IF('DF raw data'!A121="","",'DF raw data'!A121) -> -273 | B116: =IF('DF raw data'!B121="","",'DF raw data'!B121) -> -1.22604e-05 | C116: =IF('DF raw data'!C121="","",'DF raw data'!C121) -> 0.000167465 | D116: =IF('DF raw data'!D121="","",'DF raw data'!D121) -> -3.74064e-05 | F116: -1.23094416e-05 | G116: 0.00016813486 | H116: -3.75560256e-05 | J116: -0.0003181957487 | K116: -0.004107384983 | L116: 0.004572629648 | M116: 0.06379508694 | N116: 0.0001965157394
A117: =IF('DF raw data'!A122="","",'DF raw data'!A122) -> -272.5 | B117: =IF('DF raw data'!B122="","",'DF raw data'!B122) -> -4.33145e-06 | C117: =IF('DF raw data'!C122="","",'DF raw data'!C122) -> 0.000173861 | D117: =IF('DF raw data'!D122="","",'DF raw data'!D122) -> -1.74698e-05 | F117: -4.3487758e-06 | G117: 0.000174556444 | H117: -1.75396792e-05 | J117: -0.0003203701366 | K117: -0.004267570051 | L117: 0.00465990787 | M117: 0.06612504088 | N117: 0.0002074244286
A118: =IF('DF raw data'!A123="","",'DF raw data'!A123) -> -272 | B118: =IF('DF raw data'!B123="","",'DF raw data'!B123) -> -6.83473e-06 | C118: =IF('DF raw data'!C123="","",'DF raw data'!C123) -> 0.000175419 | D118: =IF('DF raw data'!D123="","",'DF raw data'!D123) -> -9.06789e-06 | F118: -6.86206892e-06 | G118: 0.000176120676 | H118: -9.10416156e-06 | J118: -0.000323801171 | K118: -0.004429470637 | L118: 0.004747968208 | M118: 0.06849902498 | N118: 0.0002187484533
A119: =IF('DF raw data'!A124="","",'DF raw data'!A124) -> -271.5 | B119: =IF('DF raw data'!B124="","",'DF raw data'!B124) -> -4.13894e-06 | C119: =IF('DF raw data'!C124="","",'DF raw data'!C124) -> 0.000175086 | D119: =IF('DF raw data'!D124="","",'DF raw data'!D124) -> -1.82615e-05 | F119: -4.15549576e-06 | G119: 0.000175786344 | H119: -1.8334546e-05 | J119: -0.0003258789189 | K119: -0.004592410096 | L119: 0.00483586138 | M119: 0.07091695567 | N119: 0.0002304943294
A120: =IF('DF raw data'!A125="","",'DF raw data'!A125) -> -271 | B120: =IF('DF raw data'!B125="","",'DF raw data'!B125) -> -4.07045e-06 | C120: =IF('DF raw data'!C125="","",'DF raw data'!C125) -> 0.000174057 | D120: =IF('DF raw data'!D125="","",'DF raw data'!D125) -> -2.49305e-05 | F120: -4.0867318e-06 | G120: 0.000174753228 | H120: -2.5030222e-05 | J120: -0.0003279222848 | K120: -0.004756371239 | L120: 0.004923237994 | M120: 0.07337857467 | N120: 0.0002426672321
A121: =IF('DF raw data'!A126="","",'DF raw data'!A126) -> -270.5 | B121: =IF('DF raw data'!B126="","",'DF raw data'!B126) -> 7.29919e-07 | C121: =IF('DF raw data'!C126="","",'DF raw data'!C126) -> 0.000160109 | D121: =IF('DF raw data'!D126="","",'DF raw data'!D126) -> -2.02922e-05 | F121: 7.32838676e-07 | G121: 0.000160749436 | H121: -2.03733688e-05 | J121: -0.0003275558655 | K121: -0.004920149172 | L121: 0.005003612712 | M121: 0.07588038102 | N121: 0.0002552389486
A122: =IF('DF raw data'!A127="","",'DF raw data'!A127) -> -270 | B122: =IF('DF raw data'!B127="","",'DF raw data'!B127) -> -1.5094e-05 | C122: =IF('DF raw data'!C127="","",'DF raw data'!C127) -> 0.000154258 | D122: =IF('DF raw data'!D127="","",'DF raw data'!D127) -> -1.32134e-05 | F122: -1.5154376e-05 | G122: 0.000154875032 | H122: -1.32662536e-05 | J122: -0.0003351330535 | K122: -0.005087715698 | L122: 0.005081050228 | M122: 0.07842090614 | N122: 0.0002682036414
A123: =IF('DF raw data'!A128="","",'DF raw data'!A128) -> -269.5 | B123: =IF('DF raw data'!B128="","",'DF raw data'!B128) -> -1.71411e-05 | C123: =IF('DF raw data'!C128="","",'DF raw data'!C128) -> 0.000170829 | D123: =IF('DF raw data'!D128="","",'DF raw data'!D128) -> -1.71865e-05 | F123: -1.72096644e-05 | G123: 0.000171512316 | H123: -1.7255246e-05 | J123: -0.0003437378857 | K123: -0.005259584641 | L123: 0.005166806386 | M123: 0.08100430933 | N123: 0.0002816106634
A124: =IF('DF raw data'!A129="","",'DF raw data'!A129) -> -269 | B124: =IF('DF raw data'!B129="","",'DF raw data'!B129) -> -7.52841e-06 | C124: =IF('DF raw data'!C129="","",'DF raw data'!C129) -> 0.000171918 | D124: =IF('DF raw data'!D129="","",'DF raw data'!D129) -> -2.59118e-05 | F124: -7.55852364e-06 | G124: 0.000172605672 | H124: -2.60154472e-05 | J124: -0.0003475171475 | K124: -0.005433343215 | L124: 0.005253109222 | M124: 0.08363086394 | N124: 0.0002954686257
A125: =IF('DF raw data'!A130="","",'DF raw data'!A130) -> -268.5 | B125: =IF('DF raw data'!B130="","",'DF raw data'!B130) -> -2.32284e-05 | C125: =IF('DF raw data'!C130="","",'DF raw data'!C130) -> 0.000168456 | D125: =IF('DF raw data'!D130="","",'DF raw data'!D130) -> -1.2329e-05 | F125: -2.33213136e-05 | G125: 0.000169129824 | H125: -1.2378316e-05 | J125: -0.0003591778043 | K125: -0.005612932117 | L125: 0.005337674134 | M125: 0.08629970101 | N125: 0.0003097785127
A126: =IF('DF raw data'!A131="","",'DF raw data'!A131) -> -268 | B126: =IF('DF raw data'!B131="","",'DF raw data'!B131) -> 7.33328e-07 | C126: =IF('DF raw data'!C131="","",'DF raw data'!C131) -> 0.000162451 | D126: =IF('DF raw data'!D131="","",'DF raw data'!D131) -> -2.55474e-05 | F126: 7.36261312e-07 | G126: 0.000163100804 | H126: -2.56495896e-05 | J126: -0.0003588096736 | K126: -0.005792336954 | L126: 0.005419224536 | M126: 0.08900931328 | N126: 0.0003245268821
A127: =IF('DF raw data'!A132="","",'DF raw data'!A132) -> -267.5 | B127: =IF('DF raw data'!B132="","",'DF raw data'!B132) -> -9.45251e-06 | C127: =IF('DF raw data'!C132="","",'DF raw data'!C132) -> 0.000158701 | D127: =IF('DF raw data'!D132="","",'DF raw data'!D132) -> -2.15624e-05 | F127: -9.49032004e-06 | G127: 0.000159335804 | H127: -2.16486496e-05 | J127: -0.0003635548337 | K127: -0.005974114371 | L127: 0.005498892438 | M127: 0.0917587595 | N127: 0.0003397118772
A128: =IF('DF raw data'!A133="","",'DF raw data'!A133) -> -267 | B128: =IF('DF raw data'!B133="","",'DF raw data'!B133) -> -1.52133e-05 | C128: =IF('DF raw data'!C133="","",'DF raw data'!C133) -> 0.000164204 | D128: =IF('DF raw data'!D133="","",'DF raw data'!D133) -> -2.67102e-05 | F128: =(1-$G$1*($B$49-$G$2))*B128 -> -1.52741532e-05 | G128: 0.000164860816 | H128: -2.68170408e-05 | J128: =F128*$G$3+J127 -> -0.0003711919103 | K128: =J128*$G$3+K127 -> -0.006159710326 | L128: =G128*$G$3+L127 -> 0.005581322846 | M128: =L128*$G$3+M127 -> 0.09454942092 | N128: =(J128^2+L128^2)*$G$3+N127 -> 0.0003553563513
A129: =IF('DF raw data'!A134="","",'DF raw data'!A134) -> -266.5 | B129: =IF('DF raw data'!B134="","",'DF raw data'!B134) -> -7.33923e-06 | C129: =IF('DF raw data'!C134="","",'DF raw data'!C134) -> 0.000170993 | D129: =IF('DF raw data'!D134="","",'DF raw data'!D134) -> -2.11416e-05 | F129: -7.36858692e-06 | G129: 0.000171676972 | H129: -2.12261664e-05 | J129: -0.0003748762037 | K129: -0.006347148428 | L129: 0.005667161332 | M129: 0.09738300159 | N129: 0.0003714849762
A130: =IF('DF raw data'!A135="","",'DF raw data'!A135) -> -266 | B130: =IF('DF raw data'!B135="","",'DF raw data'!B135) -> -7.71937e-06 | C130: =IF('DF raw data'!C135="","",'DF raw data'!C135) -> 0.000174712 | D130: =IF('DF raw data'!D135="","",'DF raw data'!D135) -> -2.79133e-05 | F130: -7.75024748e-06 | G130: 0.000175410848 | H130: -2.80249532e-05 | J130: -0.0003787513275 | K130: -0.006536524091 | L130: 0.005754866756 | M130: 0.100260435 | N130: 0.0003881159481
A131: =IF('DF raw data'!A136="","",'DF raw data'!A136) -> -265.5 | B131: =IF('DF raw data'!B136="","",'DF raw data'!B136) -> -4.64688e-06 | C131: =IF('DF raw data'!C136="","",'DF raw data'!C136) -> 0.000182868 | D131: =IF('DF raw data'!D136="","",'DF raw data'!D136) -> -2.50514e-05 | F131: -4.66546752e-06 | G131: 0.000183599472 | H131: -2.51516056e-05 | J131: -0.0003810840612 | K131: -0.006727066122 | L131: 0.005846666492 | M131: 0.1031837682 | N131: 0.0004052803152
A132: =IF('DF raw data'!A137="","",'DF raw data'!A137) -> -265 | B132: =IF('DF raw data'!B137="","",'DF raw data'!B137) -> -5.87002e-06 | C132: =IF('DF raw data'!C137="","",'DF raw data'!C137) -> 0.000174395 | D132: =IF('DF raw data'!D137="","",'DF raw data'!D137) -> -1.55274e-05 | F132: -5.89350008e-06 | G132: 0.00017509258 | H132: -1.55895096e-05 | J132: -0.0003840308113 | K132: -0.006919081528 | L132: 0.005934212782 | M132: 0.1061508746 | N132: 0.0004229614957
A133: =IF('DF raw data'!A138="","",'DF raw data'!A138) -> -264.5 | B133: =IF('DF raw data'!B138="","",'DF raw data'!B138) -> -1.81672e-05 | C133: =IF('DF raw data'!C138="","",'DF raw data'!C138) -> 0.000170212 | D133: =IF('DF raw data'!D138="","",'DF raw data'!D138) -> -1.49932e-05 | F133: -1.82398688e-05 | G133: 0.000170892848 | H133: -1.50531728e-05 | J133: -0.0003931507457 | K133: -0.0071156569 | L133: 0.006019659206 | M133: 0.1091607042 | N133: 0.0004411569279
A134: =IF('DF raw data'!A139="","",'DF raw data'!A139) -> -264 | B134: =IF('DF raw data'!B139="","",'DF raw data'!B139) -> -2.92414e-05 | C134: =IF('DF raw data'!C139="","",'DF raw data'!C139) -> 0.000166655 | D134: =IF('DF raw data'!D139="","",'DF raw data'!D139) -> -2.41266e-05 | F134: -2.93583656e-05 | G134: 0.00016732162 | H134: -2.42231064e-05 | J134: -0.0004078299285 | K134: -0.007319571865 | L134: 0.006103320016 | M134: 0.1122123642 | N134: 0.0004598653482
A135: =IF('DF raw data'!A140="","",'DF raw data'!A140) -> -263.5 | B135: =IF('DF raw data'!B140="","",'DF raw data'!B140) -> -1.15024e-05 | C135: =IF('DF raw data'!C140="","",'DF raw data'!C140) -> 0.000168635 | D135: =IF('DF raw data'!D140="","",'DF raw data'!D140) -> -2.11974e-05 | F135: -1.15484096e-05 | G135: 0.00016930954 | H135: -2.12821896e-05 | J135: -0.0004136041333 | K135: -0.007526373931 | L135: 0.006187974786 | M135: 0.1153063516 | N135: 0.0004790963983
A136: =IF('DF raw data'!A141="","",'DF raw data'!A141) -> -263 | B136: =IF('DF raw data'!B141="","",'DF raw data'!B141) -> -1.57799e-06 | C136: =IF('DF raw data'!C141="","",'DF raw data'!C141) -> 0.000170934 | D136: =IF('DF raw data'!D141="","",'DF raw data'!D141) -> -1.66604e-05 | F136: -1.58430196e-06 | G136: 0.000171617736 | H136: -1.67270416e-05 | J136: -0.0004143962842 | K136: -0.007733572073 | L136: 0.006273783654 | M136: 0.1184432434 | N136: 0.0004988624411
A137: =IF('DF raw data'!A142="","",'DF raw data'!A142) -> -262.5 | B137: =IF('DF raw data'!B142="","",'DF raw data'!B142) -> -5.03106e-06 | C137: =IF('DF raw data'!C142="","",'DF raw data'!C142) -> 0.000175637 | D137: =IF('DF raw data'!D142="","",'DF raw data'!D142) -> -2.51761e-05 | F137: -5.05118424e-06 | G137: 0.000176339548 | H137: -2.52768044e-05 | J137: -0.0004169218764 | K137: -0.007942033012 | L137: 0.006361953428 | M137: 0.1216242201 | N137: 0.0005191865788
A138: =IF('DF raw data'!A143="","",'DF raw data'!A143) -> -262 | B138: =IF('DF raw data'!B143="","",'DF raw data'!B143) -> -1.29131e-05 | C138: =IF('DF raw data'!C143="","",'DF raw data'!C143) -> 0.000171051 | D138: =IF('DF raw data'!D143="","",'DF raw data'!D143) -> -1.85499e-05 | F138: -1.29647524e-05 | G138: 0.000171735204 | H138: -1.86240996e-05 | J138: -0.0004234042526 | K138: -0.008153735138 | L138: 0.00644782103 | M138: 0.1248481307 | N138: 0.0005400634124
A139: =IF('DF raw data'!A144="","",'DF raw data'!A144) -> -261.5 | B139: =IF('DF raw data'!B144="","",'DF raw data'!B144) -> -1.06691e-05 | C139: =IF('DF raw data'!C144="","",'DF raw data'!C144) -> 0.000166682 | D139: =IF('DF raw data'!D144="","",'DF raw data'!D144) -> -2.20665e-05 | F139: -1.07117764e-05 | G139: 0.000167348728 | H139: -2.2154766e-05 | J139: -0.0004287601408 | K139: -0.008368115208 | L139: 0.006531495394 | M139: 0.1281138784 | N139: 0.000561485546
A140: =IF('DF raw data'!A145="","",'DF raw data'!A145) -> -261 | B140: =IF('DF raw data'!B145="","",'DF raw data'!B145) -> -1.66275e-05 | C140: =IF('DF raw data'!C145="","",'DF raw data'!C145) -> 0.000166585 | D140: =IF('DF raw data'!D145="","",'DF raw data'!D145) -> -1.91426e-05 | F140: -1.669401e-05 | G140: 0.00016725134 | H140: -1.92191704e-05 | J140: -0.0004371071458 | K140: -0.008586668781 | L140: 0.006615121064 | M140: 0.1314214389 | N140: 0.0005834609907
A141: =IF('DF raw data'!A146="","",'DF raw data'!A146) -> -260.5 | B141: =IF('DF raw data'!B146="","",'DF raw data'!B146) -> -1.7458e-05 | C141: =IF('DF raw data'!C146="","",'DF raw data'!C146) -> 0.000165315 | D141: =IF('DF raw data'!D146="","",'DF raw data'!D146) -> -2.19889e-05 | F141: -1.7527832e-05 | G141: 0.00016597626 | H141: -2.20768556e-05 | J141: -0.0004458710618 | K141: -0.008809604312 | L141: 0.006698109194 | M141: 0.1347704935 | N141: 0.0006059927246
A142: =IF('DF raw data'!A147="","",'DF raw data'!A147) -> -260 | B142: =IF('DF raw data'!B147="","",'DF raw data'!B147) -> -1.0676e-05 | C142: =IF('DF raw data'!C147="","",'DF raw data'!C147) -> 0.00016905 | D142: =IF('DF raw data'!D147="","",'DF raw data'!D147) -> -1.14819e-05 | F142: -1.0718704e-05 | G142: 0.0001697262 | H142: -1.15278276e-05 | J142: -0.0004512304138 | K142: -0.009035219519 | L142: 0.006782972294 | M142: 0.1381619796 | N142: 0.0006290988856
A143: =IF('DF raw data'!A148="","",'DF raw data'!A148) -> -259.5 | B143: =IF('DF raw data'!B148="","",'DF raw data'!B148) -> -1.2791e-05 | C143: =IF('DF raw data'!C148="","",'DF raw data'!C148) -> 0.000167418 | D143: =IF('DF raw data'!D148="","",'DF raw data'!D148) -> -9.20431e-06 | F143: -1.2842164e-05 | G143: 0.000168087672 | H143: -9.24112724e-06 | J143: -0.0004576514958 | K143: -0.009264045267 | L143: 0.00686701613 | M143: 0.1415954877 | N143: 0.0006527815633
A144: =IF('DF raw data'!A149="","",'DF raw data'!A149) -> -259 | B144: =IF('DF raw data'!B149="","",'DF raw data'!B149) -> -8.99769e-06 | C144: =IF('DF raw data'!C149="","",'DF raw data'!C149) -> 0.000167014 | D144: =IF('DF raw data'!D149="","",'DF raw data'!D149) -> -3.18459e-05 | F144: -9.03368076e-06 | G144: 0.000167682056 | H144: -3.19732836e-05 | J144: -0.0004621683361 | K144: -0.009495129435 | L144: 0.006950857158 | M144: 0.1450709163 | N144: 0.0006770455707
A145: =IF('DF raw data'!A150="","",'DF raw data'!A150) -> -258.5 | B145: =IF('DF raw data'!B150="","",'DF raw data'!B150) -> -1.272e-05 | C145: =IF('DF raw data'!C150="","",'DF raw data'!C150) -> 0.000168318 | D145: =IF('DF raw data'!D150="","",'DF raw data'!D150) -> -1.97633e-05 | F145: -1.277088e-05 | G145: 0.000168991272 | H145: -1.98423532e-05 | J145: -0.0004685537761 | K145: -0.009729406323 | L145: 0.007035352794 | M145: 0.1485885927 | N145: 0.0007019034365
A146: =IF('DF raw data'!A151="","",'DF raw data'!A151) -> -258 | B146: =IF('DF raw data'!B151="","",'DF raw data'!B151) -> -2.34755e-05 | C146: =IF('DF raw data'!C151="","",'DF raw data'!C151) -> 0.000156632 | D146: =IF('DF raw data'!D151="","",'DF raw data'!D151) -> -2.64018e-05 | F146: -2.3569402e-05 | G146: 0.000157258528 | H146: -2.65074072e-05 | J146: -0.0004803384771 | K146: -0.009969575561 | L146: 0.007113982058 | M146: 0.1521455837 | N146: 0.0007273231694
A147: =IF('DF raw data'!A152="","",'DF raw data'!A152) -> -257.5 | B147: =IF('DF raw data'!B152="","",'DF raw data'!B152) -> -2.05314e-05 | C147: =IF('DF raw data'!C152="","",'DF raw data'!C152) -> 0.000154207 | D147: =IF('DF raw data'!D152="","",'DF raw data'!D152) -> -2.35115e-05 | F147: -2.06135256e-05 | G147: 0.000154823828 | H147: -2.3605546e-05 | J147: -0.0004906452399 | K147: -0.01021489818 | L147: 0.007191393972 | M147: 0.1557412807 | N147: 0.0007533016094
A148: =IF('DF raw data'!A153="","",'DF raw data'!A153) -> -257 | B148: =IF('DF raw data'!B153="","",'DF raw data'!B153) -> -1.61159e-05 | C148: =IF('DF raw data'!C153="","",'DF raw data'!C153) -> 0.000154079 | D148: =IF('DF raw data'!D153="","",'DF raw data'!D153) -> -1.789e-05 | F148: -1.61803636e-05 | G148: 0.000154695316 | H148: -1.796156e-05 | J148: -0.0004987354217 | K148: -0.01046426589 | L148: 0.00726874163 | M148: 0.1593756515 | N148: 0.0007798432804
A149: =IF('DF raw data'!A154="","",'DF raw data'!A154) -> -256.5 | B149: =IF('DF raw data'!B154="","",'DF raw data'!B154) -> -1.83563e-05 | C149: =IF('DF raw data'!C154="","",'DF raw data'!C154) -> 0.000168917 | D149: =IF('DF raw data'!D154="","",'DF raw data'!D154) -> -1.94819e-05 | F149: -1.84297252e-05 | G149: 0.000169592668 | H149: -1.95598276e-05 | J149: -0.0005079502843 | K149: -0.01071824103 | L149: 0.007353537964 | M149: 0.1630524205 | N149: 0.0008070095474
A150: =IF('DF raw data'!A155="","",'DF raw data'!A155) -> -256 | B150: =IF('DF raw data'!B155="","",'DF raw data'!B155) -> -2.07224e-05 | C150: =IF('DF raw data'!C155="","",'DF raw data'!C155) -> 0.000172093 | D150: =IF('DF raw data'!D155="","",'DF raw data'!D155) -> -2.51359e-05 | F150: -2.08052896e-05 | G150: 0.000172781372 | H150: -2.52364436e-05 | J150: -0.0005183529291 | K150: -0.0109774175 | L150: 0.00743992865 | M150: 0.1667723848 | N150: 0.0008348201614
A151: =IF('DF raw data'!A156="","",'DF raw data'!A156) -> -255.5 | B151: =IF('DF raw data'!B156="","",'DF raw data'!B156) -> -1.2398e-05 | C151: =IF('DF raw data'!C156="","",'DF raw data'!C156) -> 0.000163975 | D151: =IF('DF raw data'!D156="","",'DF raw data'!D156) -> -2.27288e-05 | F151: -1.2447592e-05 | G151: 0.0001646309 | H151: -2.28197152e-05 | J151: -0.0005245767251 | K151: -0.01123970586 | L151: 0.0075222441 | M151: 0.1705335069 | N151: 0.00086324983
A152: =IF('DF raw data'!A157="","",'DF raw data'!A157) -> -255 | B152: =IF('DF raw data'!B157="","",'DF raw data'!B157) -> -1.38714e-05 | C152: =IF('DF raw data'!C157="","",'DF raw data'!C157) -> 0.000164686 | D152: =IF('DF raw data'!D157="","",'DF raw data'!D157) -> -2.23704e-05 | F152: -1.39268856e-05 | G152: 0.000165344744 | H152: -2.24598816e-05 | J152: -0.0005315401679 | K152: -0.01150547595 | L152: 0.007604916472 | M152: 0.1743359651 | N152: 0.0008923084747
A153: =IF('DF raw data'!A158="","",'DF raw data'!A158) -> -254.5 | B153: =IF('DF raw data'!B158="","",'DF raw data'!B158) -> -9.58655e-06 | C153: =IF('DF raw data'!C158="","",'DF raw data'!C158) -> 0.000160066 | D153: =IF('DF raw data'!D158="","",'DF raw data'!D158) -> -1.23956e-05 | F153: -9.6248962e-06 | G153: 0.000160706264 | H153: -1.24451824e-05 | J153: -0.000536352616 | K153: -0.01177365225 | L153: 0.007685269604 | M153: 0.1781785999 | N153: 0.0009219839962
A154: =IF('DF raw data'!A159="","",'DF raw data'!A159) -> -254 | B154: =IF('DF raw data'!B159="","",'DF raw data'!B159) -> -9.57962e-06 | C154: =IF('DF raw data'!C159="","",'DF raw data'!C159) -> 0.000157927 | D154: =IF('DF raw data'!D159="","",'DF raw data'!D159) -> -2.31044e-05 | F154: -9.61793848e-06 | G154: 0.000158558708 | H154: -2.31968176e-05 | J154: -0.0005411615853 | K154: -0.01204423305 | L154: 0.007764548958 | M154: 0.1820608744 | N154: 0.0009522745344
A155: =IF('DF raw data'!A160="","",'DF raw data'!A160) -> -253.5 | B155: =IF('DF raw data'!B160="","",'DF raw data'!B160) -> -1.82397e-05 | C155: =IF('DF raw data'!C160="","",'DF raw data'!C160) -> 0.000166093 | D155: =IF('DF raw data'!D160="","",'DF raw data'!D160) -> -1.72495e-06 | F155: -1.83126588e-05 | G155: 0.000166757372 | H155: -1.7318498e-06 | J155: -0.0005503179147 | K155: -0.012319392 | L155: 0.007847927644 | M155: 0.1859848382 | N155: 0.0009832209435
A156: =IF('DF raw data'!A161="","",'DF raw data'!A161) -> -253 | B156: =IF('DF raw data'!B161="","",'DF raw data'!B161) -> -1.99642e-05 | C156: =IF('DF raw data'!C161="","",'DF raw data'!C161) -> 0.000169376 | D156: =IF('DF raw data'!D161="","",'DF raw data'!D161) -> -9.10403e-06 | F156: -2.00440568e-05 | G156: 0.000170053504 | H156: -9.14044612e-06 | J156: -0.0005603399431 | K156: -0.01259956198 | L156: 0.007932954396 | M156: 0.1899513154 | N156: 0.001014843817
A157: =IF('DF raw data'!A162="","",'DF raw data'!A162) -> -252.5 | B157: =IF('DF raw data'!B162="","",'DF raw data'!B162) -> -1.44496e-05 | C157: =IF('DF raw data'!C162="","",'DF raw data'!C162) -> 0.000162043 | D157: =IF('DF raw data'!D162="","",'DF raw data'!D162) -> -1.93093e-05 | F157: -1.45073984e-05 | G157: 0.000162691172 | H157: -1.93865372e-05 | J157: -0.0005675936423 | K157: -0.0128833588 | L157: 0.008014299982 | M157: 0.1939584654 | N157: 0.0010471194
A158: =IF('DF raw data'!A163="","",'DF raw data'!A163) -> -252 | B158: =IF('DF raw data'!B163="","",'DF raw data'!B163) -> -1.59909e-05 | C158: =IF('DF raw data'!C163="","",'DF raw data'!C163) -> 0.000155434 | D158: =IF('DF raw data'!D163="","",'DF raw data'!D163) -> -1.32543e-05 | F158: -1.60548636e-05 | G158: 0.000156055736 | H158: -1.33073172e-05 | J158: -0.0005756210741 | K158: -0.01317116933 | L158: 0.00809232785 | M158: 0.1980046293 | N158: 0.001080027955
A159: =IF('DF raw data'!A164="","",'DF raw data'!A164) -> -251.5 | B159: =IF('DF raw data'!B164="","",'DF raw data'!B164) -> -2.06622e-05 | C159: =IF('DF raw data'!C164="","",'DF raw data'!C164) -> 0.000149378 | D159: =IF('DF raw data'!D164="","",'DF raw data'!D164) -> -1.93045e-05 | F159: -2.07448488e-05 | G159: 0.000149975512 | H159: -1.9381718e-05 | J159: -0.0005859934985 | K159: -0.01346416608 | L159: 0.008167315606 | M159: 0.2020882871 | N159: 0.001113552171
A160: =IF('DF raw data'!A165="","",'DF raw data'!A165) -> -251 | B160: =IF('DF raw data'!B165="","",'DF raw data'!B165) -> -1.68151e-05 | C160: =IF('DF raw data'!C165="","",'DF raw data'!C165) -> 0.000163844 | D160: =IF('DF raw data'!D165="","",'DF raw data'!D165) -> -2.59359e-05 | F160: -1.68823604e-05 | G160: 0.000164499376 | H160: -2.60396436e-05 | J160: -0.0005944346787 | K160: -0.01376138342 | L160: 0.008249565294 | M160: 0.2062130698 | N160: 0.001147756511
A161: =IF('DF raw data'!A166="","",'DF raw data'!A166) -> -250.5 | B161: =IF('DF raw data'!B166="","",'DF raw data'!B166) -> -1.97674e-05 | C161: =IF('DF raw data'!C166="","",'DF raw data'!C166) -> 0.00016664 | D161: =IF('DF raw data'!D166="","",'DF raw data'!D166) -> -1.65364e-05 | F161: -1.98464696e-05 | G161: 0.00016730656 | H161: -1.66025456e-05 | J161: -0.0006043579135 | K161: -0.01406356238 | L161: 0.008333218574 | M161: 0.2103796791 | N161: 0.001182660401
A162: =IF('DF raw data'!A167="","",'DF raw data'!A167) -> -250 | B162: =IF('DF raw data'!B167="","",'DF raw data'!B167) -> -2.04698e-05 | C162: =IF('DF raw data'!C167="","",'DF raw data'!C167) -> 0.000166045 | D162: =IF('DF raw data'!D167="","",'DF raw data'!D167) -> -1.95458e-05 | F162: -2.05516792e-05 | G162: 0.00016670918 | H162: -1.96239832e-05 | J162: -0.0006146337531 | K162: -0.01437087926 | L162: 0.008416573164 | M162: 0.2145879656 | N162: 0.001218268641
A163: =IF('DF raw data'!A168="","",'DF raw data'!A168) -> -249.5 | B163: =IF('DF raw data'!B168="","",'DF raw data'!B168) -> -1.41948e-05 | C163: =IF('DF raw data'!C168="","",'DF raw data'!C168) -> 0.000169311 | D163: =IF('DF raw data'!D168="","",'DF raw data'!D168) -> -1.7265e-05 | F163: -1.42515792e-05 | G163: 0.000169988244 | H163: -1.733406e-05 | J163: -0.0006217595427 | K163: -0.01468175903 | L163: 0.008501567286 | M163: 0.2188387493 | N163: 0.001254600256
A164: =IF('DF raw data'!A169="","",'DF raw data'!A169) -> -249 | B164: =IF('DF raw data'!B169="","",'DF raw data'!B169) -> -1.22104e-05 | C164: =IF('DF raw data'!C169="","",'DF raw data'!C169) -> 0.000170268 | D164: =IF('DF raw data'!D169="","",'DF raw data'!D169) -> -1.56598e-05 | F164: -1.22592416e-05 | G164: 0.000170949072 | H164: -1.57224392e-05 | J164: -0.0006278891635 | K164: -0.01499570361 | L164: 0.008587041822 | M164: 0.2231322702 | N164: 0.001291666022
A165: =IF('DF raw data'!A170="","",'DF raw data'!A170) -> -248.5 | B165: =IF('DF raw data'!B170="","",'DF raw data'!B170) -> -7.98673e-06 | C165: =IF('DF raw data'!C170="","",'DF raw data'!C170) -> 0.000166549 | D165: =IF('DF raw data'!D170="","",'DF raw data'!D170) -> -1.06586e-05 | F165: -8.01867692e-06 | G165: 0.000167215196 | H165: -1.07012344e-05 | J165: -0.0006318985019 | K165: -0.01531165286 | L165: 0.00867064942 | M165: 0.2274675949 | N165: 0.001329455751
A166: =IF('DF raw data'!A171="","",'DF raw data'!A171) -> -248 | B166: =IF('DF raw data'!B171="","",'DF raw data'!B171) -> -9.96455e-06 | C166: =IF('DF raw data'!C171="","",'DF raw data'!C171) -> 0.000171006 | D166: =IF('DF raw data'!D171="","",'DF raw data'!D171) -> -2.20758e-05 | F166: -1.00044082e-05 | G166: 0.000171690024 | H166: -2.21641032e-05 | J166: -0.000636900706 | K166: -0.01563010321 | L166: 0.008756494432 | M166: 0.2318458421 | N166: 0.001367996669
A167: =IF('DF raw data'!A172="","",'DF raw data'!A172) -> -247.5 | B167: =IF('DF raw data'!B172="","",'DF raw data'!B172) -> -9.13655e-06 | C167: =IF('DF raw data'!C172="","",'DF raw data'!C172) -> 0.000167944 | D167: =IF('DF raw data'!D172="","",'DF raw data'!D172) -> -1.52173e-05 | F167: -9.1730962e-06 | G167: 0.000168615776 | H167: -1.52781692e-05 | J167: -0.0006414872541 | K167: -0.01595084684 | L167: 0.00884080232 | M167: 0.2362662433 | N167: 0.001407282315
A168: =IF('DF raw data'!A173="","",'DF raw data'!A173) -> -247 | B168: =IF('DF raw data'!B173="","",'DF raw data'!B173) -> -2.73112e-06 | C168: =IF('DF raw data'!C173="","",'DF raw data'!C173) -> 0.00016048 | D168: =IF('DF raw data'!D173="","",'DF raw data'!D173) -> -1.65327e-05 | F168: -2.74204448e-06 | G168: 0.00016112192 | H168: -1.65988308e-05 | J168: -0.0006428582764 | K168: -0.01627227598 | L168: 0.00892136328 | M168: 0.2407269249 | N168: 0.00144728431
A169: =IF('DF raw data'!A174="","",'DF raw data'!A174) -> -246.5 | B169: =IF('DF raw data'!B174="","",'DF raw data'!B174) -> -7.79474e-06 | C169: =IF('DF raw data'!C174="","",'DF raw data'!C174) -> 0.000161201 | D169: =IF('DF raw data'!D174="","",'DF raw data'!D174) -> -1.0233e-05 | F169: -7.82591896e-06 | G169: 0.000161845804 | H169: -1.0273932e-05 | J169: -0.0006467712359 | K169: -0.0165956616 | L169: 0.009002286182 | M169: 0.245228068 | N169: 0.001488014045
A170: =IF('DF raw data'!A175="","",'DF raw data'!A175) -> -246 | B170: =IF('DF raw data'!B175="","",'DF raw data'!B175) -> -1.52172e-05 | C170: =IF('DF raw data'!C175="","",'DF raw data'!C175) -> 0.000162927 | D170: =IF('DF raw data'!D175="","",'DF raw data'!D175) -> -2.0755e-05 | F170: -1.52780688e-05 | G170: 0.000163578708 | H170: -2.083802e-05 | J170: -0.0006544102703 | K170: -0.01692286673 | L170: 0.009084075536 | M170: 0.2497701058 | N170: 0.001529488385
A171: =IF('DF raw data'!A176="","",'DF raw data'!A176) -> -245.5 | B171: =IF('DF raw data'!B176="","",'DF raw data'!B176) -> -1.90667e-05 | C171: =IF('DF raw data'!C176="","",'DF raw data'!C176) -> 0.000157615 | D171: =IF('DF raw data'!D176="","",'DF raw data'!D176) -> -1.04864e-05 | F171: -1.91429668e-05 | G171: 0.00015824546 | H171: -1.05283456e-05 | J171: -0.0006639817537 | K171: -0.01725485761 | L171: 0.009163198266 | M171: 0.2543517049 | N171: 0.001571690922
A172: =IF('DF raw data'!A177="","",'DF raw data'!A177) -> -245 | B172: =IF('DF raw data'!B177="","",'DF raw data'!B177) -> -1.97664e-05 | C172: =IF('DF raw data'!C177="","",'DF raw data'!C177) -> 0.000170622 | D172: =IF('DF raw data'!D177="","",'DF raw data'!D177) -> -1.81429e-05 | F172: -1.98454656e-05 | G172: 0.000171304488 | H172: -1.82154716e-05 | J172: -0.0006739044865 | K172: -0.01759180985 | L172: 0.00924885051 | M172: 0.2589761302 | N172: 0.001614688614
A173: =IF('DF raw data'!A178="","",'DF raw data'!A178) -> -244.5 | B173: =IF('DF raw data'!B178="","",'DF raw data'!B178) -> -2.62367e-05 | C173: =IF('DF raw data'!C178="","",'DF raw data'!C178) -> 0.000161066 | D173: =IF('DF raw data'!D178="","",'DF raw data'!D178) -> -1.52836e-05 | F173: -2.63416468e-05 | G173: 0.000161710264 | H173: -1.53447344e-05 | J173: -0.0006870753099 | K173: -0.01793534751 | L173: 0.009329705642 | M173: 0.263640983 | N173: 0.001658446354
A174: =IF('DF raw data'!A179="","",'DF raw data'!A179) -> -244 | B174: =IF('DF raw data'!B179="","",'DF raw data'!B179) -> -2.30347e-05 | C174: =IF('DF raw data'!C179="","",'DF raw data'!C179) -> 0.000154757 | D174: =IF('DF raw data'!D179="","",'DF raw data'!D179) -> -1.50363e-05 | F174: -2.31268388e-05 | G174: 0.000155376028 | H174: -1.50964452e-05 | J174: -0.0006986387293 | K174: -0.01828466687 | L174: 0.009407393656 | M174: 0.2683446798 | N174: 0.00170293993
A175: =IF('DF raw data'!A180="","",'DF raw data'!A180) -> -243.5 | B175: =IF('DF raw data'!B180="","",'DF raw data'!B180) -> -1.55354e-05 | C175: =IF('DF raw data'!C180="","",'DF raw data'!C180) -> 0.000166783 | D175: =IF('DF raw data'!D180="","",'DF raw data'!D180) -> -2.40543e-05 | F175: -1.55975416e-05 | G175: 0.000167450132 | H175: -2.41505172e-05 | J175: -0.0007064375001 | K175: -0.01863788562 | L175: 0.009491118722 | M175: 0.2730902392 | N175: 0.001748230124
A176: =IF('DF raw data'!A181="","",'DF raw data'!A181) -> -243 | B176: =IF('DF raw data'!B181="","",'DF raw data'!B181) -> -2.42415e-05 | C176: =IF('DF raw data'!C181="","",'DF raw data'!C181) -> 0.000166804 | D176: =IF('DF raw data'!D181="","",'DF raw data'!D181) -> -3.06774e-05 | F176: -2.4338466e-05 | G176: 0.000167471216 | H176: -3.08001096e-05 | J176: -0.0007186067331 | K176: -0.01899718899 | L176: 0.00957485433 | M176: 0.2778776663 | N176: 0.001794327239
A177: =IF('DF raw data'!A182="","",'DF raw data'!A182) -> -242.5 | B177: =IF('DF raw data'!B182="","",'DF raw data'!B182) -> -1.87375e-05 | C177: =IF('DF raw data'!C182="","",'DF raw data'!C182) -> 0.00016118 | D177: =IF('DF raw data'!D182="","",'DF raw data'!D182) -> -2.45186e-05 | F177: -1.881245e-05 | G177: 0.00016182472 | H177: -2.46166744e-05 | J177: -0.0007280129581 | K177: -0.01936119547 | L177: 0.00965576669 | M177: 0.2827055497 | N177: 0.001841209156
A178: =IF('DF raw data'!A183="","",'DF raw data'!A183) -> -242 | B178: =IF('DF raw data'!B183="","",'DF raw data'!B183) -> -1.12459e-05 | C178: =IF('DF raw data'!C183="","",'DF raw data'!C183) -> 0.000156161 | D178: =IF('DF raw data'!D183="","",'DF raw data'!D183) -> -2.16925e-05 | F178: -1.12908836e-05 | G178: 0.000156785644 | H178: -2.177927e-05 | J178: -0.0007336583999 | K178: -0.01972802467 | L178: 0.009734159512 | M178: 0.2875726294 | N178: 0.001888855214
A179: =IF('DF raw data'!A184="","",'DF raw data'!A184) -> -241.5 | B179: =IF('DF raw data'!B184="","",'DF raw data'!B184) -> -1.01643e-05 | C179: =IF('DF raw data'!C184="","",'DF raw data'!C184) -> 0.000162079 | D179: =IF('DF raw data'!D184="","",'DF raw data'!D184) -> -1.04627e-05 | F179: -1.02049572e-05 | G179: 0.000162727316 | H179: -1.05045508e-05 | J179: -0.0007387608785 | K179: -0.0200974051 | L179: 0.00981552317 | M179: 0.292480391 | N179: 0.001937300345
A180: =IF('DF raw data'!A185="","",'DF raw data'!A185) -> -241 | B180: =IF('DF raw data'!B185="","",'DF raw data'!B185) -> -1.57243e-05 | C180: =IF('DF raw data'!C185="","",'DF raw data'!C185) -> 0.000167318 | D180: =IF('DF raw data'!D185="","",'DF raw data'!D185) -> -2.92286e-05 | F180: -1.57871972e-05 | G180: 0.000167987272 | H180: -2.93455144e-05 | J180: -0.0007466544771 | K180: -0.02047073234 | L180: 0.009899516806 | M180: 0.2974301494 | N180: 0.001986579308
A181: =IF('DF raw data'!A186="","",'DF raw data'!A186) -> -240.5 | B181: =IF('DF raw data'!B186="","",'DF raw data'!B186) -> -1.82255e-05 | C181: =IF('DF raw data'!C186="","",'DF raw data'!C186) -> 0.00016929 | D181: =IF('DF raw data'!D186="","",'DF raw data'!D186) -> -2.36867e-05 | F181: -1.8298402e-05 | G181: 0.00016996716 | H181: -2.37814468e-05 | J181: -0.0007558036781 | K181: -0.02084863418 | L181: 0.009984500386 | M181: 0.3024223996 | N181: 0.002036710052
A182: =IF('DF raw data'!A187="","",'DF raw data'!A187) -> -240 | B182: =IF('DF raw data'!B187="","",'DF raw data'!B187) -> -8.87916e-06 | C182: =IF('DF raw data'!C187="","",'DF raw data'!C187) -> 0.000165554 | D182: =IF('DF raw data'!D187="","",'DF raw data'!D187) -> -1.71062e-05 | F182: -8.91467664e-06 | G182: 0.000166216216 | H182: -1.71746248e-05 | J182: -0.0007602610164 | K182: -0.02122876469 | L182: 0.01006760849 | M182: 0.3074562039 | N182: 0.002087677421
A183: =IF('DF raw data'!A188="","",'DF raw data'!A188) -> -239.5 | B183: =IF('DF raw data'!B188="","",'DF raw data'!B188) -> -8.11107e-06 | C183: =IF('DF raw data'!C188="","",'DF raw data'!C188) -> 0.000156861 | D183: =IF('DF raw data'!D188="","",'DF raw data'!D188) -> -1.64318e-05 | F183: -8.14351428e-06 | G183: 0.000157488444 | H183: -1.64975272e-05 | J183: -0.0007643327735 | K183: -0.02161093108 | L183: 0.01014635272 | M183: 0.3125293802 | N183: 0.00213944376
A184: =IF('DF raw data'!A189="","",'DF raw data'!A189) -> -239 | B184: =IF('DF raw data'!B189="","",'DF raw data'!B189) -> -2.42536e-05 | C184: =IF('DF raw data'!C189="","",'DF raw data'!C189) -> 0.0001543 | D184: =IF('DF raw data'!D189="","",'DF raw data'!D189) -> -1.2117e-05 | F184: -2.43506144e-05 | G184: 0.0001549172 | H184: -1.2165468e-05 | J184: -0.0007765080807 | K184: -0.02199918512 | L184: 0.01022381132 | M184: 0.3176412859 | N184: 0.002192008401
A185: =IF('DF raw data'!A190="","",'DF raw data'!A190) -> -238.5 | B185: =IF('DF raw data'!B190="","",'DF raw data'!B190) -> -1.59822e-05 | C185: =IF('DF raw data'!C190="","",'DF raw data'!C190) -> 0.000168048 | D185: =IF('DF raw data'!D190="","",'DF raw data'!D190) -> -2.66014e-05 | F185: -1.60461288e-05 | G185: 0.000168720192 | H185: -2.67078056e-05 | J185: -0.0007845311451 | K185: -0.02239145069 | L185: 0.01030817141 | M185: 0.3227953716 | N185: 0.002245445345
A186: =IF('DF raw data'!A191="","",'DF raw data'!A191) -> -238 | B186: =IF('DF raw data'!B191="","",'DF raw data'!B191) -> -2.33462e-05 | C186: =IF('DF raw data'!C191="","",'DF raw data'!C191) -> 0.000164899 | D186: =IF('DF raw data'!D191="","",'DF raw data'!D191) -> -2.83481e-05 | F186: -2.34395848e-05 | G186: 0.000165558596 | H186: -2.84614924e-05 | J186: -0.0007962509375 | K186: -0.02278957616 | L186: 0.01039095071 | M186: 0.3279908469 | N186: 0.002299748281
A187: =IF('DF raw data'!A192="","",'DF raw data'!A192) -> -237.5 | B187: =IF('DF raw data'!B192="","",'DF raw data'!B192) -> -9.52005e-06 | C187: =IF('DF raw data'!C192="","",'DF raw data'!C192) -> 0.000165278 | D187: =IF('DF raw data'!D192="","",'DF raw data'!D192) -> -1.63892e-05 | F187: -9.5581302e-06 | G187: 0.000165939112 | H187: -1.64547568e-05 | J187: -0.0008010300026 | K187: -0.02319009116 | L187: 0.01047392027 | M187: 0.3332278071 | N187: 0.002354920608
A188: =IF('DF raw data'!A193="","",'DF raw data'!A193) -> -237 | B188: =IF('DF raw data'!B193="","",'DF raw data'!B193) -> -1.34919e-05 | C188: =IF('DF raw data'!C193="","",'DF raw data'!C193) -> 0.000162934 | D188: =IF('DF raw data'!D193="","",'DF raw data'!D193) -> -1.49688e-05 | F188: -1.35458676e-05 | G188: 0.000163585736 | H188: -1.50286752e-05 | J188: -0.0008078029364 | K188: -0.02359399263 | L188: 0.01055571313 | M188: 0.3385056636 | N188: 0.002410958421
A189: =IF('DF raw data'!A194="","",'DF raw data'!A194) -> -236.5 | B189: =IF('DF raw data'!B194="","",'DF raw data'!B194) -> -1.41231e-05 | C189: =IF('DF raw data'!C194="","",'DF raw data'!C194) -> 0.000170377 | D189: =IF('DF raw data'!D194="","",'DF raw data'!D194) -> -2.91698e-05 | F189: -1.41795924e-05 | G189: 0.000171058508 | H189: -2.92864792e-05 | J189: -0.0008148927326 | K189: -0.02400143899 | L189: 0.01064124239 | M189: 0.3438262848 | N189: 0.002467908466
A190: =IF('DF raw data'!A195="","",'DF raw data'!A195) -> -236 | B190: =IF('DF raw data'!B195="","",'DF raw data'!B195) -> -1.57243e-05 | C190: =IF('DF raw data'!C195="","",'DF raw data'!C195) -> 0.000178376 | D190: =IF('DF raw data'!D195="","",'DF raw data'!D195) -> -2.92529e-05 | F190: -1.57871972e-05 | G190: 0.000179089504 | H190: -2.93699116e-05 | J190: -0.0008227863312 | K190: -0.02441283216 | L190: 0.01073078714 | M190: 0.3491916784 | N190: 0.002525821851
A191: =IF('DF raw data'!A196="","",'DF raw data'!A196) -> -235.5 | B191: =IF('DF raw data'!B196="","",'DF raw data'!B196) -> -1.67598e-05 | C191: =IF('DF raw data'!C196="","",'DF raw data'!C196) -> 0.000166071 | D191: =IF('DF raw data'!D196="","",'DF raw data'!D196) -> -1.25537e-05 | F191: -1.68268392e-05 | G191: 0.000166735284 | H191: -1.26039148e-05 | J191: -0.0008311997508 | K191: -0.02482843204 | L191: 0.01081415478 | M191: 0.3545987558 | N191: 0.002584640269
A192: =IF('DF raw data'!A197="","",'DF raw data'!A197) -> -235 | B192: =IF('DF raw data'!B197="","",'DF raw data'!B197) -> -2.09839e-05 | C192: =IF('DF raw data'!C197="","",'DF raw data'!C197) -> 0.000158903 | D192: =IF('DF raw data'!D197="","",'DF raw data'!D197) -> -1.68431e-05 | F192: =(1-$G$1*($B$49-$G$2))*B192 -> -2.10678356e-05 | G192: 0.000159538612 | H192: -1.69104724e-05 | J192: =F192*$G$3+J191 -> -0.0008417336686 | K192: =J192*$G$3+K191 -> -0.02524929887 | L192: =G192*$G$3+L191 -> 0.01089392409 | M192: =L192*$G$3+M191 -> 0.3600457178 | N192: =(J192^2+L192^2)*$G$3+N191 -> 0.002644333318
A193: =IF('DF raw data'!A198="","",'DF raw data'!A198) -> -234.5 | B193: =IF('DF raw data'!B198="","",'DF raw data'!B198) -> -2.33515e-05 | C193: =IF('DF raw data'!C198="","",'DF raw data'!C198) -> 0.000160375 | D193: =IF('DF raw data'!D198="","",'DF raw data'!D198) -> -2.00381e-05 | F193: -2.3444906e-05 | G193: 0.0001610165 | H193: -2.01182524e-05 | J193: -0.0008534561216 | K193: -0.02567602693 | L193: 0.01097443234 | M193: 0.365532934 | N193: 0.002704916594
A194: =IF('DF raw data'!A199="","",'DF raw data'!A199) -> -234 | B194: =IF('DF raw data'!B199="","",'DF raw data'!B199) -> -2.02812e-05 | C194: =IF('DF raw data'!C199="","",'DF raw data'!C199) -> 0.0001657 | D194: =IF('DF raw data'!D199="","",'DF raw data'!D199) -> -1.43455e-05 | F194: -2.03623248e-05 | G194: 0.0001663628 | H194: -1.4402882e-05 | J194: -0.000863637284 | K194: -0.02610784557 | L194: 0.01105761374 | M194: 0.3710617409 | N194: 0.002766424939
A195: =IF('DF raw data'!A200="","",'DF raw data'!A200) -> -233.5 | B195: =IF('DF raw data'!B200="","",'DF raw data'!B200) -> -1.7399e-05 | C195: =IF('DF raw data'!C200="","",'DF raw data'!C200) -> 0.00016343 | D195: =IF('DF raw data'!D200="","",'DF raw data'!D200) -> -1.44643e-05 | F195: -1.7468596e-05 | G195: 0.00016408372 | H195: -1.45221572e-05 | J195: -0.000872371582 | K195: -0.02654403136 | L195: 0.0111396556 | M195: 0.3766315687 | N195: 0.002828851419
A196: =IF('DF raw data'!A201="","",'DF raw data'!A201) -> -233 | B196: =IF('DF raw data'!B201="","",'DF raw data'!B201) -> -1.47651e-05 | C196: =IF('DF raw data'!C201="","",'DF raw data'!C201) -> 0.000160441 | D196: =IF('DF raw data'!D201="","",'DF raw data'!D201) -> -2.67713e-05 | F196: -1.48241604e-05 | G196: 0.000161082764 | H196: -2.68783852e-05 | J196: -0.0008797836622 | K196: -0.0269839232 | L196: 0.01122019698 | M196: 0.3822416672 | N196: 0.002892184839
A197: =IF('DF raw data'!A202="","",'DF raw data'!A202) -> -232.5 | B197: =IF('DF raw data'!B202="","",'DF raw data'!B202) -> -2.51466e-05 | C197: =IF('DF raw data'!C202="","",'DF raw data'!C202) -> 0.000159337 | D197: =IF('DF raw data'!D202="","",'DF raw data'!D202) -> -1.74519e-05 | F197: -2.52471864e-05 | G197: 0.000159974348 | H197: -1.75217076e-05 | J197: -0.0008924072554 | K197: -0.02743012682 | L197: 0.01130018415 | M197: 0.3878917592 | N197: 0.002956430115
A198: =IF('DF raw data'!A203="","",'DF raw data'!A203) -> -232 | B198: =IF('DF raw data'!B203="","",'DF raw data'!B203) -> -1.43263e-05 | C198: =IF('DF raw data'!C203="","",'DF raw data'!C203) -> 0.000157216 | D198: =IF('DF raw data'!D203="","",'DF raw data'!D203) -> -1.19325e-05 | F198: -1.43836052e-05 | G198: 0.000157844864 | H198: -1.198023e-05 | J198: -0.000899599058 | K198: -0.02787992635 | L198: 0.01137910659 | M198: 0.3935813125 | N198: 0.003021576788
A199: =IF('DF raw data'!A204="","",'DF raw data'!A204) -> -231.5 | B199: =IF('DF raw data'!B204="","",'DF raw data'!B204) -> -1.80976e-05 | C199: =IF('DF raw data'!C204="","",'DF raw data'!C204) -> 0.000160416 | D199: =IF('DF raw data'!D204="","",'DF raw data'!D204) -> -2.32202e-05 | F199: -1.81699904e-05 | G199: 0.000161057664 | H199: -2.33130808e-05 | J199: -0.0009086840532 | K199: -0.02833426838 | L199: 0.01145963542 | M199: 0.3993111302 | N199: 0.003087651263
A200: =IF('DF raw data'!A205="","",'DF raw data'!A205) -> -231 | B200: =IF('DF raw data'!B205="","",'DF raw data'!B205) -> -2.34142e-05 | C200: =IF('DF raw data'!C205="","",'DF raw data'!C205) -> 0.000161822 | D200: =IF('DF raw data'!D205="","",'DF raw data'!D205) -> -2.25805e-05 | F200: -2.35078568e-05 | G200: 0.000162469288 | H200: -2.2670822e-05 | J200: -0.0009204379816 | K200: -0.02879448737 | L200: 0.01154087006 | M200: 0.4050815653 | N200: 0.003154670707
A201: =IF('DF raw data'!A206="","",'DF raw data'!A206) -> -230.5 | B201: =IF('DF raw data'!B206="","",'DF raw data'!B206) -> -1.96289e-05 | C201: =IF('DF raw data'!C206="","",'DF raw data'!C206) -> 0.000167006 | D201: =IF('DF raw data'!D206="","",'DF raw data'!D206) -> -3.24544e-05 | F201: -1.97074156e-05 | G201: 0.000167674024 | H201: -3.25842176e-05 | J201: -0.0009302916894 | K201: -0.02925963321 | L201: 0.01162470707 | M201: 0.4108939188 | N201: 0.003222670335
... 1061 more rows

Sheet 10 y=-0.1
A1: =IF('DF raw data'!E1="","",'DF raw data'!E1) -> Number of header lines | B1: =IF('DF raw data'!F1="","",'DF raw data'!F1) -> 54 | C1: =IF('DF raw data'!G1="","",'DF raw data'!G1) ->  | D1: =IF('DF raw data'!H1="","",'DF raw data'!H1) ->  | F1: T_coeff | G1: -0.001 | H1: /degC | J1: IBy total | K1: =J1262*1000 -> 9.168341498 | L1: muTm | M1: =L1262*1000 -> 50.12801844 | R1: DF ref | S1: ='10 y=-0.2'!S1 -> 1
A2: =IF('DF raw data'!E2="","",'DF raw data'!E2) -> Measured by | B2: =IF('DF raw data'!F2="","",'DF raw data'!F2) -> Danfysik | C2: =IF('DF raw data'!G2="","",'DF raw data'!G2) ->  | D2: =IF('DF raw data'!H2="","",'DF raw data'!H2) ->  | F2: Tcorr | G2: 20 | H2: degC | J2: JBy total | K2: =K1262 -> -1.542003804 | L2: muTm^2 | M2: =M1262 -> 16.25140228
A3: =IF('DF raw data'!E3="","",'DF raw data'!E3) -> Operator | B3: =IF('DF raw data'!F3="","",'DF raw data'!F3) -> PMHA | C3: =IF('DF raw data'!G3="","",'DF raw data'!G3) ->  | D3: =IF('DF raw data'!H3="","",'DF raw data'!H3) ->  | F3: Step | G3: =A63-A62 -> 0.5 | H3: mm | J3: PI total | K3: =N1262 -> 10598.39993 | L3: T^2mm^3
A4: =IF('DF raw data'!E4="","",'DF raw data'!E4) -> Data-time | B4: =IF('DF raw data'!F4="","",'DF raw data'!F4) -> 26-09-2024, 09:54:33 | C4: =IF('DF raw data'!G4="","",'DF raw data'!G4) ->  | D4: =IF('DF raw data'!H4="","",'DF raw data'!H4) -> 
A5: =IF('DF raw data'!E5="","",'DF raw data'!E5) -> Project | B5: =IF('DF raw data'!F5="","",'DF raw data'!F5) -> 504314 | C5: =IF('DF raw data'!G5="","",'DF raw data'!G5) ->  | D5: =IF('DF raw data'!H5="","",'DF raw data'!H5) -> 
A6: =IF('DF raw data'!E6="","",'DF raw data'!E6) -> Magnet type | B6: =IF('DF raw data'!F6="","",'DF raw data'!F6) -> Dipole | C6: =IF('DF raw data'!G6="","",'DF raw data'!G6) ->  | D6: =IF('DF raw data'!H6="","",'DF raw data'!H6) -> 
A7: =IF('DF raw data'!E7="","",'DF raw data'!E7) -> Magnet nr. | B7: =IF('DF raw data'!F7="","",'DF raw data'!F7) -> 2410102 | C7: =IF('DF raw data'!G7="","",'DF raw data'!G7) ->  | D7: =IF('DF raw data'!H7="","",'DF raw data'!H7) -> 
A8: =IF('DF raw data'!E8="","",'DF raw data'!E8) -> Meas. number | B8: =IF('DF raw data'!F8="","",'DF raw data'!F8) -> 699 | C8: =IF('DF raw data'!G8="","",'DF raw data'!G8) ->  | D8: =IF('DF raw data'!H8="","",'DF raw data'!H8) -> 
A9: =IF('DF raw data'!E9="","",'DF raw data'!E9) -> Add. info | B9: =IF('DF raw data'!F9="","",'DF raw data'!F9) -> Y-alignment scan 2) | C9: =IF('DF raw data'!G9="","",'DF raw data'!G9) ->  | D9: =IF('DF raw data'!H9="","",'DF raw data'!H9) -> 
A10: =IF('DF raw data'!E10="","",'DF raw data'!E10) -> Device | B10: =IF('DF raw data'!F10="","",'DF raw data'!F10) -> (HAL) HALL-PROBE | C10: =IF('DF raw data'!G10="","",'DF raw data'!G10) ->  | D10: =IF('DF raw data'!H10="","",'DF raw data'!H10) -> 
A11: =IF('DF raw data'!E11="","",'DF raw data'!E11) -> Goal | B11: =IF('DF raw data'!F11="","",'DF raw data'!F11) -> (AXI) AXis Integral (Line, EFB) | C11: =IF('DF raw data'!G11="","",'DF raw data'!G11) ->  | D11: =IF('DF raw data'!H11="","",'DF raw data'!H11) -> 
A12: =IF('DF raw data'!E12="","",'DF raw data'!E12) -> Power supply mode | B12: =IF('DF raw data'!F12="","",'DF raw data'!F12) -> (PM) Permanent Magnet (no MPS in use) | C12: =IF('DF raw data'!G12="","",'DF raw data'!G12) ->  | D12: =IF('DF raw data'!H12="","",'DF raw data'!H12) -> 
A13: =IF('DF raw data'!E13="","",'DF raw data'!E13) -> Data format | B13: =IF('DF raw data'!F13="","",'DF raw data'!F13) -> Raw data text file | C13: =IF('DF raw data'!G13="","",'DF raw data'!G13) ->  | D13: =IF('DF raw data'!H13="","",'DF raw data'!H13) -> 
A14: =IF('DF raw data'!E14="","",'DF raw data'!E14) -> Direction of the pos. x-axis | B14: =IF('DF raw data'!F14="","",'DF raw data'!F14) -> See test program | C14: =IF('DF raw data'!G14="","",'DF raw data'!G14) ->  | D14: =IF('DF raw data'!H14="","",'DF raw data'!H14) -> 
A15: =IF('DF raw data'!E15="","",'DF raw data'!E15) -> Direction of the pos. y-axis | B15: =IF('DF raw data'!F15="","",'DF raw data'!F15) -> Vertical up | C15: =IF('DF raw data'!G15="","",'DF raw data'!G15) ->  | D15: =IF('DF raw data'!H15="","",'DF raw data'!H15) -> 
A16: =IF('DF raw data'!E16="","",'DF raw data'!E16) -> Direction of the pos. z-axis | B16: =IF('DF raw data'!F16="","",'DF raw data'!F16) -> See test program | C16: =IF('DF raw data'!G16="","",'DF raw data'!G16) ->  | D16: =IF('DF raw data'!H16="","",'DF raw data'!H16) -> 
A17: =IF('DF raw data'!E17="","",'DF raw data'!E17) -> Mapper type | B17: =IF('DF raw data'!F17="","",'DF raw data'!F17) -> Precision Hall Mapper | C17: =IF('DF raw data'!G17="","",'DF raw data'!G17) ->  | D17: =IF('DF raw data'!H17="","",'DF raw data'!H17) -> 
A18: =IF('DF raw data'!E18="","",'DF raw data'!E18) -> Mapper Danfysik Reg. Number | B18: =IF('DF raw data'!F18="","",'DF raw data'!F18) -> 2033-D (mapper 1) | C18: =IF('DF raw data'!G18="","",'DF raw data'!G18) ->  | D18: =IF('DF raw data'!H18="","",'DF raw data'!H18) -> 
A19: =IF('DF raw data'!E19="","",'DF raw data'!E19) -> Measurement consept | B19: =IF('DF raw data'!F19="","",'DF raw data'!F19) -> Square line grid | C19: =IF('DF raw data'!G19="","",'DF raw data'!G19) ->  | D19: =IF('DF raw data'!H19="","",'DF raw data'!H19) -> 
A20: =IF('DF raw data'!E20="","",'DF raw data'!E20) -> Mode | B20: =IF('DF raw data'!F20="","",'DF raw data'!F20) -> On-the-fly measurement | C20: =IF('DF raw data'!G20="","",'DF raw data'!G20) ->  | D20: =IF('DF raw data'!H20="","",'DF raw data'!H20) -> 
A21: =IF('DF raw data'!E21="","",'DF raw data'!E21) ->  | B21: =IF('DF raw data'!F21="","",'DF raw data'!F21) ->  | C21: =IF('DF raw data'!G21="","",'DF raw data'!G21) ->  | D21: =IF('DF raw data'!H21="","",'DF raw data'!H21) -> 
A22: =IF('DF raw data'!E22="","",'DF raw data'!E22) -> Probe Name | B22: =IF('DF raw data'!F22="","",'DF raw data'!F22) -> ID12_By | C22: =IF('DF raw data'!G22="","",'DF raw data'!G22) ->  | D22: =IF('DF raw data'!H22="","",'DF raw data'!H22) -> 
A23: =IF('DF raw data'!E23="","",'DF raw data'!E23) -> Probe Type | B23: =IF('DF raw data'!F23="","",'DF raw data'!F23) -> DF_ID_3D_Bxyz | C23: =IF('DF raw data'!G23="","",'DF raw data'!G23) ->  | D23: =IF('DF raw data'!H23="","",'DF raw data'!H23) -> 
A24: =IF('DF raw data'!E24="","",'DF raw data'!E24) -> Probe Danfysik Reg. Number | B24: =IF('DF raw data'!F24="","",'DF raw data'!F24) -> 2277 | C24: =IF('DF raw data'!G24="","",'DF raw data'!G24) ->  | D24: =IF('DF raw data'!H24="","",'DF raw data'!H24) -> 
A25: =IF('DF raw data'!E25="","",'DF raw data'!E25) -> Probe Axis | B25: =IF('DF raw data'!F25="","",'DF raw data'!F25) -> By | C25: =IF('DF raw data'!G25="","",'DF raw data'!G25) ->  | D25: =IF('DF raw data'!H25="","",'DF raw data'!H25) -> 
A26: =IF('DF raw data'!E26="","",'DF raw data'!E26) -> Probe Current Supply | B26: =IF('DF raw data'!F26="","",'DF raw data'!F26) -> 1825-D | C26: =IF('DF raw data'!G26="","",'DF raw data'!G26) ->  | D26: =IF('DF raw data'!H26="","",'DF raw data'!H26) -> 
A27: =IF('DF raw data'!E27="","",'DF raw data'!E27) -> Probe Gain Correction | B27: =IF('DF raw data'!F27="","",'DF raw data'!F27) -> 0.99599 | C27: =IF('DF raw data'!G27="","",'DF raw data'!G27) ->  | D27: =IF('DF raw data'!H27="","",'DF raw data'!H27) -> 
A28: =IF('DF raw data'!E28="","",'DF raw data'!E28) -> Probe Offset Correction | B28: =IF('DF raw data'!F28="","",'DF raw data'!F28) -> 0.0027595 | C28: =IF('DF raw data'!G28="","",'DF raw data'!G28) ->  | D28: =IF('DF raw data'!H28="","",'DF raw data'!H28) -> 
A29: =IF('DF raw data'!E29="","",'DF raw data'!E29) -> DVM Number | B29: =IF('DF raw data'!F29="","",'DF raw data'!F29) -> 2 | C29: =IF('DF raw data'!G29="","",'DF raw data'!G29) ->  | D29: =IF('DF raw data'!H29="","",'DF raw data'!H29) -> 
A30: =IF('DF raw data'!E30="","",'DF raw data'!E30) -> DVM Type | B30: =IF('DF raw data'!F30="","",'DF raw data'!F30) -> K2701 | C30: =IF('DF raw data'!G30="","",'DF raw data'!G30) ->  | D30: =IF('DF raw data'!H30="","",'DF raw data'!H30) -> 
A31: =IF('DF raw data'!E31="","",'DF raw data'!E31) -> DVM Danfysik Reg. Number | B31: =IF('DF raw data'!F31="","",'DF raw data'!F31) -> 1743-D | C31: =IF('DF raw data'!G31="","",'DF raw data'!G31) ->  | D31: =IF('DF raw data'!H31="","",'DF raw data'!H31) -> 
A32: =IF('DF raw data'!E32="","",'DF raw data'!E32) -> Probe Name | B32: =IF('DF raw data'!F32="","",'DF raw data'!F32) -> ID12_Bx | C32: =IF('DF raw data'!G32="","",'DF raw data'!G32) ->  | D32: =IF('DF raw data'!H32="","",'DF raw data'!H32) -> 
A33: =IF('DF raw data'!E33="","",'DF raw data'!E33) -> Probe Type | B33: =IF('DF raw data'!F33="","",'DF raw data'!F33) -> DF_ID_3D_Bxyz | C33: =IF('DF raw data'!G33="","",'DF raw data'!G33) ->  | D33: =IF('DF raw data'!H33="","",'DF raw data'!H33) -> 
A34: =IF('DF raw data'!E34="","",'DF raw data'!E34) -> Probe Danfysik Reg. Number | B34: =IF('DF raw data'!F34="","",'DF raw data'!F34) -> 2277 | C34: =IF('DF raw data'!G34="","",'DF raw data'!G34) ->  | D34: =IF('DF raw data'!H34="","",'DF raw data'!H34) -> 
A35: =IF('DF raw data'!E35="","",'DF raw data'!E35) -> Probe Axis | B35: =IF('DF raw data'!F35="","",'DF raw data'!F35) -> Bx | C35: =IF('DF raw data'!G35="","",'DF raw data'!G35) ->  | D35: =IF('DF raw data'!H35="","",'DF raw data'!H35) -> 
A36: =IF('DF raw data'!E36="","",'DF raw data'!E36) -> Probe Current Supply | B36: =IF('DF raw data'!F36="","",'DF raw data'!F36) -> 1825-D | C36: =IF('DF raw data'!G36="","",'DF raw data'!G36) ->  | D36: =IF('DF raw data'!H36="","",'DF raw data'!H36) -> 
A37: =IF('DF raw data'!E37="","",'DF raw data'!E37) -> Probe Gain Correction | B37: =IF('DF raw data'!F37="","",'DF raw data'!F37) -> 1 | C37: =IF('DF raw data'!G37="","",'DF raw data'!G37) ->  | D37: =IF('DF raw data'!H37="","",'DF raw data'!H37) -> 
A38: =IF('DF raw data'!E38="","",'DF raw data'!E38) -> Probe Offset Correction | B38: =IF('DF raw data'!F38="","",'DF raw data'!F38) -> -0.17537 | C38: =IF('DF raw data'!G38="","",'DF raw data'!G38) ->  | D38: =IF('DF raw data'!H38="","",'DF raw data'!H38) -> 
A39: =IF('DF raw data'!E39="","",'DF raw data'!E39) -> DVM Number | B39: =IF('DF raw data'!F39="","",'DF raw data'!F39) -> 3 | C39: =IF('DF raw data'!G39="","",'DF raw data'!G39) ->  | D39: =IF('DF raw data'!H39="","",'DF raw data'!H39) -> 
A40: =IF('DF raw data'!E40="","",'DF raw data'!E40) -> DVM Type | B40: =IF('DF raw data'!F40="","",'DF raw data'!F40) -> K2701 | C40: =IF('DF raw data'!G40="","",'DF raw data'!G40) ->  | D40: =IF('DF raw data'!H40="","",'DF raw data'!H40) -> 
A41: =IF('DF raw data'!E41="","",'DF raw data'!E41) -> DVM Danfysik Reg. Number | B41: =IF('DF raw data'!F41="","",'DF raw data'!F41) -> 1744-D | C41: =IF('DF raw data'!G41="","",'DF raw data'!G41) ->  | D41: =IF('DF raw data'!H41="","",'DF raw data'!H41) -> 
A42: =IF('DF raw data'!E42="","",'DF raw data'!E42) -> Probe Name | B42: =IF('DF raw data'!F42="","",'DF raw data'!F42) -> ID12_Bz | C42: =IF('DF raw data'!G42="","",'DF raw data'!G42) ->  | D42: =IF('DF raw data'!H42="","",'DF raw data'!H42) -> 
A43: =IF('DF raw data'!E43="","",'DF raw data'!E43) -> Probe Type | B43: =IF('DF raw data'!F43="","",'DF raw data'!F43) -> DF_ID_3D_Bxyz | C43: =IF('DF raw data'!G43="","",'DF raw data'!G43) ->  | D43: =IF('DF raw data'!H43="","",'DF raw data'!H43) -> 
A44: =IF('DF raw data'!E44="","",'DF raw data'!E44) -> Probe Danfysik Reg. Number | B44: =IF('DF raw data'!F44="","",'DF raw data'!F44) -> 2277 | C44: =IF('DF raw data'!G44="","",'DF raw data'!G44) ->  | D44: =IF('DF raw data'!H44="","",'DF raw data'!H44) -> 
A45: =IF('DF raw data'!E45="","",'DF raw data'!E45) -> Probe Axis | B45: =IF('DF raw data'!F45="","",'DF raw data'!F45) -> Bz | C45: =IF('DF raw data'!G45="","",'DF raw data'!G45) ->  | D45: =IF('DF raw data'!H45="","",'DF raw data'!H45) -> 
A46: =IF('DF raw data'!E46="","",'DF raw data'!E46) -> Probe Current Supply | B46: =IF('DF raw data'!F46="","",'DF raw data'!F46) -> 1825-D | C46: =IF('DF raw data'!G46="","",'DF raw data'!G46) ->  | D46: =IF('DF raw data'!H46="","",'DF raw data'!H46) -> 
A47: =IF('DF raw data'!E47="","",'DF raw data'!E47) -> Probe Gain Correction | B47: =IF('DF raw data'!F47="","",'DF raw data'!F47) -> 1 | C47: =IF('DF raw data'!G47="","",'DF raw data'!G47) ->  | D47: =IF('DF raw data'!H47="","",'DF raw data'!H47) -> 
A48: =IF('DF raw data'!E53="","",'DF raw data'!E53) -> PS-Gap: | B48: =IF('DF raw data'!F53="","",'DF raw data'!F53) -> 10 | C48: =IF('DF raw data'!G53="","",'DF raw data'!G53) ->  | D48: =IF('DF raw data'!H53="","",'DF raw data'!H53) -> 
A49: =IF('DF raw data'!E54="","",'DF raw data'!E54) -> PS-Temperature: | B49: =IF('DF raw data'!F54="","",'DF raw data'!F54) -> 24 | C49: =IF('DF raw data'!G54="","",'DF raw data'!G54) ->  | D49: =IF('DF raw data'!H54="","",'DF raw data'!H54) -> 
A50: =IF('DF raw data'!E55="","",'DF raw data'!E55) -> PS-Encoder: | B50: =IF('DF raw data'!F55="","",'DF raw data'!F55) -> 19.7631 | C50: =IF('DF raw data'!G55="","",'DF raw data'!G55) ->  | D50: =IF('DF raw data'!H55="","",'DF raw data'!H55) -> 
A51: =IF('DF raw data'!E56="","",'DF raw data'!E56) ->  | B51: =IF('DF raw data'!F56="","",'DF raw data'!F56) ->  | C51: =IF('DF raw data'!G56="","",'DF raw data'!G56) ->  | D51: =IF('DF raw data'!H56="","",'DF raw data'!H56) -> 
A52: =IF('DF raw data'!E57="","",'DF raw data'!E57) -> Monitor-Index | B52: =IF('DF raw data'!F57="","",'DF raw data'!F57) -> [1,1,4] | C52: =IF('DF raw data'!G57="","",'DF raw data'!G57) ->  | D52: =IF('DF raw data'!H57="","",'DF raw data'!H57) -> 
A53: =IF('DF raw data'!E58="","",'DF raw data'!E58) ->  | B53: =IF('DF raw data'!F58="","",'DF raw data'!F58) ->  | C53: =IF('DF raw data'!G58="","",'DF raw data'!G58) ->  | D53: =IF('DF raw data'!H58="","",'DF raw data'!H58) -> 
A54: =IF('DF raw data'!E59="","",'DF raw data'!E59) -> Time [s] | B54: =IF('DF raw data'!F59="","",'DF raw data'!F59) -> Y [mm] | C54: =IF('DF raw data'!G59="","",'DF raw data'!G59) -> X [mm] | D54: =IF('DF raw data'!H59="","",'DF raw data'!H59) -> Nominal current [A]
A55: =IF('DF raw data'!E60="","",'DF raw data'!E60) ->  | B55: =IF('DF raw data'!F60="","",'DF raw data'!F60) ->  | C55: =IF('DF raw data'!G60="","",'DF raw data'!G60) ->  | D55: =IF('DF raw data'!H60="","",'DF raw data'!H60) -> 
A56: =IF('DF raw data'!E61="","",'DF raw data'!E61) -> 208.1 | B56: =IF('DF raw data'!F61="","",'DF raw data'!F61) -> 31.55 | C56: =IF('DF raw data'!G61="","",'DF raw data'!G61) -> 302.55 | D56: =IF('DF raw data'!H61="","",'DF raw data'!H61) -> 0
A57: =IF('DF raw data'!E62="","",'DF raw data'!E62) ->  | B57: =IF('DF raw data'!F62="","",'DF raw data'!F62) ->  | C57: =IF('DF raw data'!G62="","",'DF raw data'!G62) ->  | D57: =IF('DF raw data'!H62="","",'DF raw data'!H62) -> 
A58: =IF('DF raw data'!E63="","",'DF raw data'!E63) -> Measurement-Index | B58: =IF('DF raw data'!F63="","",'DF raw data'!F63) -> [1,1,1201,2] | C58: =IF('DF raw data'!G63="","",'DF raw data'!G63) ->  | D58: =IF('DF raw data'!H63="","",'DF raw data'!H63) -> 
A59: =IF('DF raw data'!E64="","",'DF raw data'!E64) ->  | B59: =IF('DF raw data'!F64="","",'DF raw data'!F64) ->  | C59: =IF('DF raw data'!G64="","",'DF raw data'!G64) ->  | D59: =IF('DF raw data'!H64="","",'DF raw data'!H64) -> 
A60: =IF('DF raw data'!E65="","",'DF raw data'!E65) -> Z [mm] | B60: By [T] | C60: Bx [T] | D60: Bz [T] | F60: By_corr | G60: Bx_corr | H60: Bz_corr | J60: Iy | K60: Jy | L60: Ix | M60: Jx | N60: PI
A62: =IF('DF raw data'!E67="","",'DF raw data'!E67) -> -300 | B62: =IF('DF raw data'!F67="","",'DF raw data'!F67) -> -6.41795e-06 | C62: =IF('DF raw data'!G67="","",'DF raw data'!G67) -> 0.000111054 | D62: =IF('DF raw data'!H67="","",'DF raw data'!H67) -> -2.8751e-05 | F62: =(1-$G$1*($B$49))*B62 -> -6.5719808e-06 | G62: =(1-$G$1*($B$49-$G$2))*C62 -> 0.000111498216 | H62: =(1-$G$1*($B$49-$G$2))*D62 -> -2.8866004e-05 | J62: =F62*$G$3 -> -3.2859904e-06 | K62: =J62*$G$3 -> -1.6429952e-06 | L62: =G62*$G$3 -> 5.5749108e-05 | M62: =L62*$G$3 -> 2.7874554e-05 | N62: =(J62^2+L62^2)*$G$3 -> 1.559380388e-09
A63: =IF('DF raw data'!E68="","",'DF raw data'!E68) -> -299.5 | B63: =IF('DF raw data'!F68="","",'DF raw data'!F68) -> -9.87661e-06 | C63: =IF('DF raw data'!G68="","",'DF raw data'!G68) -> 0.000119314 | D63: =IF('DF raw data'!H68="","",'DF raw data'!H68) -> -2.81829e-05 | F63: =(1-$G$1*($B$49-$G$2))*B63 -> -9.91611644e-06 | G63: =(1-$G$1*($B$49-$G$2))*C63 -> 0.000119791256 | H63: -2.82956316e-05 | J63: =F63*$G$3+J62 -> -8.24404862e-06 | K63: =J63*$G$3+K62 -> -5.76501951e-06 | L63: =G63*$G$3+L62 -> 0.000115644736 | M63: =L63*$G$3+M62 -> 8.5696922e-05 | N63: =(J63^2+L63^2)*$G$3+N62 -> 8.280215039e-09
A64: =IF('DF raw data'!E69="","",'DF raw data'!E69) -> -299 | B64: =IF('DF raw data'!F69="","",'DF raw data'!F69) -> -1.71152e-05 | C64: =IF('DF raw data'!G69="","",'DF raw data'!G69) -> 0.000125326 | D64: =IF('DF raw data'!H69="","",'DF raw data'!H69) -> -2.71802e-05 | F64: =(1-$G$1*($B$49-$G$2))*B64 -> -1.71836608e-05 | G64: 0.000125827304 | H64: -2.72889208e-05 | J64: =F64*$G$3+J63 -> -1.683587902e-05 | K64: =J64*$G$3+K63 -> -1.418295902e-05 | L64: =G64*$G$3+L63 -> 0.000178558388 | M64: =L64*$G$3+M63 -> 0.000174976116 | N64: =(J64^2+L64^2)*$G$3+N63 -> 2.436348741e-08
A65: =IF('DF raw data'!E70="","",'DF raw data'!E70) -> -298.5 | B65: =IF('DF raw data'!F70="","",'DF raw data'!F70) -> 1.84355e-06 | C65: =IF('DF raw data'!G70="","",'DF raw data'!G70) -> 0.000125616 | D65: =IF('DF raw data'!H70="","",'DF raw data'!H70) -> -2.69385e-05 | F65: 1.8509242e-06 | G65: 0.000126118464 | H65: -2.7046254e-05 | J65: -1.591041692e-05 | K65: -2.213816748e-05 | L65: 0.00024161762 | M65: 0.000295784926 | N65: 5.367959524e-08
A66: =IF('DF raw data'!E71="","",'DF raw data'!E71) -> -298 | B66: =IF('DF raw data'!F71="","",'DF raw data'!F71) -> -9.68511e-06 | C66: =IF('DF raw data'!G71="","",'DF raw data'!G71) -> 0.000126044 | D66: =IF('DF raw data'!H71="","",'DF raw data'!H71) -> -2.73838e-05 | F66: -9.72385044e-06 | G66: 0.000126548176 | H66: -2.74933352e-05 | J66: -2.077234214e-05 | K66: -3.252433855e-05 | L66: 0.000304891708 | M66: 0.00044823078 | N66: 1.003748171e-07
A67: =IF('DF raw data'!E72="","",'DF raw data'!E72) -> -297.5 | B67: =IF('DF raw data'!F72="","",'DF raw data'!F72) -> 6.91496e-07 | C67: =IF('DF raw data'!G72="","",'DF raw data'!G72) -> 0.000127117 | D67: =IF('DF raw data'!H72="","",'DF raw data'!H72) -> -2.81688e-05 | F67: 6.94261984e-07 | G67: 0.000127625468 | H67: -2.82814752e-05 | J67: -2.042521115e-05 | K67: -4.273694412e-05 | L67: 0.000368704442 | M67: 0.000632583001 | N67: 1.685548945e-07
A68: =IF('DF raw data'!E73="","",'DF raw data'!E73) -> -297 | B68: =IF('DF raw data'!F73="","",'DF raw data'!F73) -> -6.73789e-06 | C68: =IF('DF raw data'!G73="","",'DF raw data'!G73) -> 0.000120591 | D68: =IF('DF raw data'!H73="","",'DF raw data'!H73) -> -2.86521e-05 | F68: -6.76484156e-06 | G68: 0.000121073364 | H68: -2.87667084e-05 | J68: -2.380763193e-05 | K68: -5.464076009e-05 | L68: 0.000429241124 | M68: 0.000847203563 | N68: 2.609622675e-07
A69: =IF('DF raw data'!E74="","",'DF raw data'!E74) -> -296.5 | B69: =IF('DF raw data'!F74="","",'DF raw data'!F74) -> -1.43601e-05 | C69: =IF('DF raw data'!G74="","",'DF raw data'!G74) -> 0.000124441 | D69: =IF('DF raw data'!H74="","",'DF raw data'!H74) -> -2.84525e-05 | F69: -1.44175404e-05 | G69: 0.000124938764 | H69: -2.856631e-05 | J69: -3.101640213e-05 | K69: -7.014896115e-05 | L69: 0.000491710506 | M69: 0.001093058816 | N69: 3.823328869e-07
A70: =IF('DF raw data'!E75="","",'DF raw data'!E75) -> -296 | B70: =IF('DF raw data'!F75="","",'DF raw data'!F75) -> -1.05814e-05 | C70: =IF('DF raw data'!G75="","",'DF raw data'!G75) -> 0.000133151 | D70: =IF('DF raw data'!H75="","",'DF raw data'!H75) -> -2.78734e-05 | F70: -1.06237256e-05 | G70: 0.000133683604 | H70: -2.79848936e-05 | J70: -3.632826493e-05 | K70: -8.831309362e-05 | L70: 0.000558552308 | M70: 0.00137233497 | N70: 5.389830987e-07
A71: =IF('DF raw data'!E76="","",'DF raw data'!E76) -> -295.5 | B71: =IF('DF raw data'!F76="","",'DF raw data'!F76) -> -1.32079e-05 | C71: =IF('DF raw data'!G76="","",'DF raw data'!G76) -> 0.00013778 | D71: =IF('DF raw data'!H76="","",'DF raw data'!H76) -> -2.74425e-05 | F71: -1.32607316e-05 | G71: 0.00013833112 | H71: -2.755227e-05 | J71: -4.295863073e-05 | K71: -0.000109792409 | L71: 0.000627717868 | M71: 0.001686193904 | N71: 7.369206816e-07
A72: =IF('DF raw data'!E77="","",'DF raw data'!E77) -> -295 | B72: =IF('DF raw data'!F77="","",'DF raw data'!F77) -> -1.12863e-05 | C72: =IF('DF raw data'!G77="","",'DF raw data'!G77) -> 0.000130797 | D72: =IF('DF raw data'!H77="","",'DF raw data'!H77) -> -2.7625e-05 | F72: -1.13314452e-05 | G72: 0.000131320188 | H72: -2.77355e-05 | J72: -4.862435333e-05 | K72: -0.0001341045856 | L72: 0.000693377962 | M72: 0.002032882885 | N72: 9.784893446e-07
A73: =IF('DF raw data'!E78="","",'DF raw data'!E78) -> -294.5 | B73: =IF('DF raw data'!F78="","",'DF raw data'!F78) -> -4.56058e-06 | C73: =IF('DF raw data'!G78="","",'DF raw data'!G78) -> 0.000132024 | D73: =IF('DF raw data'!H78="","",'DF raw data'!H78) -> -2.83406e-05 | F73: -4.57882232e-06 | G73: 0.000132552096 | H73: -2.84539624e-05 | J73: -5.091376449e-05 | K73: -0.0001595614679 | L73: 0.00075965401 | M73: 0.00241270989 | N73: 1.268322558e-06
A74: =IF('DF raw data'!E79="","",'DF raw data'!E79) -> -294 | B74: =IF('DF raw data'!F79="","",'DF raw data'!F79) -> -1.80749e-05 | C74: =IF('DF raw data'!G79="","",'DF raw data'!G79) -> 0.000129634 | D74: =IF('DF raw data'!H79="","",'DF raw data'!H79) -> -2.82843e-05 | F74: -1.81471996e-05 | G74: 0.000130152536 | H74: -2.83974372e-05 | J74: -5.998736429e-05 | K74: -0.00018955515 | L74: 0.000824730278 | M74: 0.002825075029 | N74: 1.610211815e-06
A75: =IF('DF raw data'!E80="","",'DF raw data'!E80) -> -293.5 | B75: =IF('DF raw data'!F80="","",'DF raw data'!F80) -> -2.08303e-05 | C75: =IF('DF raw data'!G80="","",'DF raw data'!G80) -> 0.000125887 | D75: =IF('DF raw data'!H80="","",'DF raw data'!H80) -> -2.70566e-05 | F75: -2.09136212e-05 | G75: 0.000126390548 | H75: -2.71648264e-05 | J75: -7.044417489e-05 | K75: -0.0002247772375 | L75: 0.000887925552 | M75: 0.003269037805 | N75: 2.006898899e-06
A76: =IF('DF raw data'!E81="","",'DF raw data'!E81) -> -293 | B76: =IF('DF raw data'!F81="","",'DF raw data'!F81) -> -8.40485e-06 | C76: =IF('DF raw data'!G81="","",'DF raw data'!G81) -> 0.000126265 | D76: =IF('DF raw data'!H81="","",'DF raw data'!H81) -> -2.62492e-05 | F76: -8.4384694e-06 | G76: 0.00012677006 | H76: -2.63541968e-05 | J76: -7.466340959e-05 | K76: -0.0002621089423 | L76: 0.000951310582 | M76: 0.003744693096 | N76: 2.462182123e-06
A77: =IF('DF raw data'!E82="","",'DF raw data'!E82) -> -292.5 | B77: =IF('DF raw data'!F82="","",'DF raw data'!F82) -> -4.24117e-06 | C77: =IF('DF raw data'!G82="","",'DF raw data'!G82) -> 0.000134764 | D77: =IF('DF raw data'!H82="","",'DF raw data'!H82) -> -2.68557e-05 | F77: -4.25813468e-06 | G77: 0.000135303056 | H77: -2.69631228e-05 | J77: -7.679247693e-05 | K77: -0.0003005051807 | L77: 0.00101896211 | M77: 0.004254174151 | N77: 2.984272556e-06
A78: =IF('DF raw data'!E83="","",'DF raw data'!E83) -> -292 | B78: =IF('DF raw data'!F83="","",'DF raw data'!F83) -> -5.89676e-07 | C78: =IF('DF raw data'!G83="","",'DF raw data'!G83) -> 0.000132924 | D78: =IF('DF raw data'!H83="","",'DF raw data'!H83) -> -2.78072e-05 | F78: -5.92034704e-07 | G78: 0.000133455696 | H78: -2.79184288e-05 | J78: -7.708849428e-05 | K78: -0.0003390494279 | L78: 0.001085689958 | M78: 0.00479701913 | N78: 3.576605217e-06
A79: =IF('DF raw data'!E84="","",'DF raw data'!E84) -> -291.5 | B79: =IF('DF raw data'!F84="","",'DF raw data'!F84) -> -1.3018e-05 | C79: =IF('DF raw data'!G84="","",'DF raw data'!G84) -> 0.000125208 | D79: =IF('DF raw data'!H84="","",'DF raw data'!H84) -> -2.42888e-05 | F79: -1.3070072e-05 | G79: 0.000125708832 | H79: -2.43859552e-05 | J79: -8.362353028e-05 | K79: -0.000380861193 | L79: 0.001148544374 | M79: 0.005371291317 | N79: 4.239678754e-06
A80: =IF('DF raw data'!E85="","",'DF raw data'!E85) -> -291 | B80: =IF('DF raw data'!F85="","",'DF raw data'!F85) -> -2.96193e-06 | C80: =IF('DF raw data'!G85="","",'DF raw data'!G85) -> 0.000118659 | D80: =IF('DF raw data'!H85="","",'DF raw data'!H85) -> -2.40837e-05 | F80: -2.97377772e-06 | G80: 0.000119133636 | H80: -2.41800348e-05 | J80: -8.511041914e-05 | K80: -0.0004234164026 | L80: 0.001208111192 | M80: 0.005975346913 | N80: 4.973066972e-06
A81: =IF('DF raw data'!E86="","",'DF raw data'!E86) -> -290.5 | B81: =IF('DF raw data'!F86="","",'DF raw data'!F86) -> -6.73709e-06 | C81: =IF('DF raw data'!G86="","",'DF raw data'!G86) -> 0.000119684 | D81: =IF('DF raw data'!H86="","",'DF raw data'!H86) -> -3.00546e-05 | F81: -6.76403836e-06 | G81: 0.000120162736 | H81: -3.01748184e-05 | J81: -8.849243832e-05 | K81: -0.0004676626217 | L81: 0.00126819256 | M81: 0.006609443193 | N81: 5.781138612e-06
A82: =IF('DF raw data'!E87="","",'DF raw data'!E87) -> -290 | B82: =IF('DF raw data'!F87="","",'DF raw data'!F87) -> -8.59297e-06 | C82: =IF('DF raw data'!G87="","",'DF raw data'!G87) -> 0.000130025 | D82: =IF('DF raw data'!H87="","",'DF raw data'!H87) -> -3.23075e-05 | F82: -8.62734188e-06 | G82: 0.0001305451 | H82: -3.243673e-05 | J82: -9.280610926e-05 | K82: -0.0005140656764 | L82: 0.00133346511 | M82: 0.007276175748 | N82: 6.674509699e-06
A83: =IF('DF raw data'!E88="","",'DF raw data'!E88) -> -289.5 | B83: =IF('DF raw data'!F88="","",'DF raw data'!F88) -> -1.51327e-05 | C83: =IF('DF raw data'!G88="","",'DF raw data'!G88) -> 0.000118889 | D83: =IF('DF raw data'!H88="","",'DF raw data'!H88) -> -2.27893e-05 | F83: -1.51932308e-05 | G83: 0.000119364556 | H83: -2.28804572e-05 | J83: -0.0001004027247 | K83: -0.0005642670387 | L83: 0.001393147388 | M83: 0.007972749442 | N83: 7.649979875e-06
A84: =IF('DF raw data'!E89="","",'DF raw data'!E89) -> -289 | B84: =IF('DF raw data'!F89="","",'DF raw data'!F89) -> -6.41652e-06 | C84: =IF('DF raw data'!G89="","",'DF raw data'!G89) -> 0.000111495 | D84: =IF('DF raw data'!H89="","",'DF raw data'!H89) -> -3.05293e-05 | F84: -6.44218608e-06 | G84: 0.00011194098 | H84: -3.06514172e-05 | J84: -0.0001036238177 | K84: -0.0006160789476 | L84: 0.001449117878 | M84: 0.008697308381 | N84: 8.705320135e-06
A85: =IF('DF raw data'!E90="","",'DF raw data'!E90) -> -288.5 | B85: =IF('DF raw data'!F90="","",'DF raw data'!F90) -> -1.74413e-05 | C85: =IF('DF raw data'!G90="","",'DF raw data'!G90) -> 0.000117082 | D85: =IF('DF raw data'!H90="","",'DF raw data'!H90) -> -1.84981e-05 | F85: -1.75110652e-05 | G85: 0.000117550328 | H85: -1.85720924e-05 | J85: -0.0001123793503 | K85: -0.0006722686227 | L85: 0.001507893042 | M85: 0.009451254902 | N85: 9.848505407e-06
A86: =IF('DF raw data'!E91="","",'DF raw data'!E91) -> -288 | B86: =IF('DF raw data'!F91="","",'DF raw data'!F91) -> -1.00095e-05 | C86: =IF('DF raw data'!G91="","",'DF raw data'!G91) -> 0.000119618 | D86: =IF('DF raw data'!H91="","",'DF raw data'!H91) -> -2.1032e-05 | F86: -1.0049538e-05 | G86: 0.000120096472 | H86: -2.1116128e-05 | J86: -0.0001174041193 | K86: -0.0007309706824 | L86: 0.001567941278 | M86: 0.01023522554 | N86: 1.10846172e-05
A87: =IF('DF raw data'!E92="","",'DF raw data'!E92) -> -287.5 | B87: =IF('DF raw data'!F92="","",'DF raw data'!F92) -> -2.14007e-07 | C87: =IF('DF raw data'!G92="","",'DF raw data'!G92) -> 0.000120253 | D87: =IF('DF raw data'!H92="","",'DF raw data'!H92) -> -1.45416e-05 | F87: -2.14863028e-07 | G87: 0.000120734012 | H87: -1.45997664e-05 | J87: -0.0001175115508 | K87: -0.0007897264578 | L87: 0.001628308284 | M87: 0.01104937968 | N87: 1.241721561e-05
A88: =IF('DF raw data'!E93="","",'DF raw data'!E93) -> -287 | B88: =IF('DF raw data'!F93="","",'DF raw data'!F93) -> -1.67936e-05 | C88: =IF('DF raw data'!G93="","",'DF raw data'!G93) -> 0.000120303 | D88: =IF('DF raw data'!H93="","",'DF raw data'!H93) -> -2.88211e-05 | F88: -1.68607744e-05 | G88: 0.000120784212 | H88: -2.89363844e-05 | J88: -0.000125941938 | K88: -0.0008526974268 | L88: 0.00168870039 | M88: 0.01189372988 | N88: 1.38510008e-05
A89: =IF('DF raw data'!E94="","",'DF raw data'!E94) -> -286.5 | B89: =IF('DF raw data'!F94="","",'DF raw data'!F94) -> -4.36965e-06 | C89: =IF('DF raw data'!G94="","",'DF raw data'!G94) -> 0.00011566 | D89: =IF('DF raw data'!H94="","",'DF raw data'!H94) -> -2.6281e-05 | F89: -4.3871286e-06 | G89: 0.00011612264 | H89: -2.6386124e-05 | J89: -0.0001281355023 | K89: -0.0009167651779 | L89: 0.00174676171 | M89: 0.01276711073 | N89: 1.538479839e-05
A90: =IF('DF raw data'!E95="","",'DF raw data'!E95) -> -286 | B90: =IF('DF raw data'!F95="","",'DF raw data'!F95) -> -1.07141e-05 | C90: =IF('DF raw data'!G95="","",'DF raw data'!G95) -> 0.000111891 | D90: =IF('DF raw data'!H95="","",'DF raw data'!H95) -> -2.06536e-05 | F90: -1.07569564e-05 | G90: 0.000112338564 | H90: -2.07362144e-05 | J90: -0.0001335139805 | K90: -0.0009835221682 | L90: 0.001802930992 | M90: 0.01366857623 | N90: 1.701899146e-05
A91: =IF('DF raw data'!E96="","",'DF raw data'!E96) -> -285.5 | B91: =IF('DF raw data'!F96="","",'DF raw data'!F96) -> -1.39105e-05 | C91: =IF('DF raw data'!G96="","",'DF raw data'!G96) -> 0.000114925 | D91: =IF('DF raw data'!H96="","",'DF raw data'!H96) -> -3.09599e-05 | F91: -1.3966142e-05 | G91: 0.0001153847 | H91: -3.10837396e-05 | J91: -0.0001404970515 | K91: -0.001053770694 | L91: 0.001860623342 | M91: 0.0145988879 | N91: 1.875982078e-05
A92: =IF('DF raw data'!E97="","",'DF raw data'!E97) -> -285 | B92: =IF('DF raw data'!F97="","",'DF raw data'!F97) -> -1.65386e-05 | C92: =IF('DF raw data'!G97="","",'DF raw data'!G97) -> 0.00011365 | D92: =IF('DF raw data'!H97="","",'DF raw data'!H97) -> -2.69016e-05 | F92: -1.66047544e-05 | G92: 0.0001141046 | H92: -2.70092064e-05 | J92: -0.0001487994287 | K92: -0.001128170408 | L92: 0.001917675642 | M92: 0.01555772572 | N92: 2.060963135e-05
A93: =IF('DF raw data'!E98="","",'DF raw data'!E98) -> -284.5 | B93: =IF('DF raw data'!F98="","",'DF raw data'!F98) -> -2.08276e-05 | C93: =IF('DF raw data'!G98="","",'DF raw data'!G98) -> 0.000117689 | D93: =IF('DF raw data'!H98="","",'DF raw data'!H98) -> -3.14106e-05 | F93: -2.09109104e-05 | G93: 0.000118159756 | H93: -3.15362424e-05 | J93: -0.0001592548839 | K93: -0.00120779785 | L93: 0.00197675552 | M93: 0.01654610348 | N93: 2.257609361e-05
A94: =IF('DF raw data'!E99="","",'DF raw data'!E99) -> -284 | B94: =IF('DF raw data'!F99="","",'DF raw data'!F99) -> -1.46257e-05 | C94: =IF('DF raw data'!G99="","",'DF raw data'!G99) -> 0.000117834 | D94: =IF('DF raw data'!H99="","",'DF raw data'!H99) -> -1.34859e-05 | F94: -1.46842028e-05 | G94: 0.000118305336 | H94: -1.35398436e-05 | J94: -0.0001665969853 | K94: -0.001291096343 | L94: 0.002035908188 | M94: 0.01756405757 | N94: 2.466243196e-05
A95: =IF('DF raw data'!E100="","",'DF raw data'!E100) -> -283.5 | B95: =IF('DF raw data'!F100="","",'DF raw data'!F100) -> -8.66922e-06 | C95: =IF('DF raw data'!G100="","",'DF raw data'!G100) -> 0.000117427 | D95: =IF('DF raw data'!H100="","",'DF raw data'!H100) -> -1.40413e-05 | F95: -8.70389688e-06 | G95: 0.000117896708 | H95: -1.40974652e-05 | J95: -0.0001709489338 | K95: -0.00137657081 | L95: 0.002094856542 | M95: 0.01861148585 | N95: 2.687125569e-05
A96: =IF('DF raw data'!E101="","",'DF raw data'!E101) -> -283 | B96: =IF('DF raw data'!F101="","",'DF raw data'!F101) -> -1.21258e-05 | C96: =IF('DF raw data'!G101="","",'DF raw data'!G101) -> 0.000120639 | D96: =IF('DF raw data'!H101="","",'DF raw data'!H101) -> -1.65866e-05 | F96: -1.21743032e-05 | G96: 0.000121121556 | H96: -1.66529464e-05 | J96: -0.0001770360854 | K96: -0.001465088852 | L96: 0.00215541732 | M96: 0.01968919451 | N96: 2.920983849e-05
A97: =IF('DF raw data'!E102="","",'DF raw data'!E102) -> -282.5 | B97: =IF('DF raw data'!F102="","",'DF raw data'!F102) -> 4.30709e-07 | C97: =IF('DF raw data'!G102="","",'DF raw data'!G102) -> 0.000127504 | D97: =IF('DF raw data'!H102="","",'DF raw data'!H102) -> -2.10728e-05 | F97: 4.32431836e-07 | G97: 0.000128014016 | H97: -2.11570912e-05 | J97: -0.0001768198694 | K97: -0.001553498787 | L97: 0.002219424328 | M97: 0.02079890667 | N97: 3.16883933e-05
A98: =IF('DF raw data'!E103="","",'DF raw data'!E103) -> -282 | B98: =IF('DF raw data'!F103="","",'DF raw data'!F103) -> -1.48727e-05 | C98: =IF('DF raw data'!G103="","",'DF raw data'!G103) -> 0.000119243 | D98: =IF('DF raw data'!H103="","",'DF raw data'!H103) -> -2.80276e-05 | F98: -1.49321908e-05 | G98: 0.000119719972 | H98: -2.81397104e-05 | J98: -0.0001842859648 | K98: -0.00164564177 | L98: 0.002279284314 | M98: 0.02193854883 | N98: 3.430294245e-05
A99: =IF('DF raw data'!E104="","",'DF raw data'!E104) -> -281.5 | B99: =IF('DF raw data'!F104="","",'DF raw data'!F104) -> -4.75465e-06 | C99: =IF('DF raw data'!G104="","",'DF raw data'!G104) -> 0.000122275 | D99: =IF('DF raw data'!H104="","",'DF raw data'!H104) -> -2.51771e-05 | F99: -4.7736686e-06 | G99: 0.0001227641 | H99: -2.52778084e-05 | J99: -0.0001866727991 | K99: -0.001738978169 | L99: 0.002340666364 | M99: 0.02310888201 | N99: 3.705972533e-05
A100: =IF('DF raw data'!E105="","",'DF raw data'!E105) -> -281 | B100: =IF('DF raw data'!F105="","",'DF raw data'!F105) -> -1.26306e-05 | C100: =IF('DF raw data'!G105="","",'DF raw data'!G105) -> 0.000122406 | D100: =IF('DF raw data'!H105="","",'DF raw data'!H105) -> -2.85656e-05 | F100: -1.26811224e-05 | G100: 0.000122895624 | H100: -2.86798624e-05 | J100: -0.0001930133603 | K100: -0.001835484849 | L100: 0.002402114176 | M100: 0.0243099391 | N100: 3.996342867e-05
A101: =IF('DF raw data'!E106="","",'DF raw data'!E106) -> -280.5 | B101: =IF('DF raw data'!F106="","",'DF raw data'!F106) -> -9.17579e-06 | C101: =IF('DF raw data'!G106="","",'DF raw data'!G106) -> 0.000110529 | D101: =IF('DF raw data'!H106="","",'DF raw data'!H106) -> -2.29665e-05 | F101: -9.21249316e-06 | G101: 0.000110971116 | H101: -2.3058366e-05 | J101: -0.0001976196069 | K101: -0.001934294653 | L101: 0.002457599734 | M101: 0.02553873896 | N101: 4.300285365e-05
A102: =IF('DF raw data'!E107="","",'DF raw data'!E107) -> -280 | B102: =IF('DF raw data'!F107="","",'DF raw data'!F107) -> -2.38416e-06 | C102: =IF('DF raw data'!G107="","",'DF raw data'!G107) -> 0.000118715 | D102: =IF('DF raw data'!H107="","",'DF raw data'!H107) -> -2.59797e-05 | F102: -2.39369664e-06 | G102: 0.00011918986 | H102: -2.60836188e-05 | J102: -0.0001988164552 | K102: -0.00203370288 | L102: 0.002517194664 | M102: 0.0267973363 | N102: 4.619075213e-05
A103: =IF('DF raw data'!E108="","",'DF raw data'!E108) -> -279.5 | B103: =IF('DF raw data'!F108="","",'DF raw data'!F108) -> -2.30707e-05 | C103: =IF('DF raw data'!G108="","",'DF raw data'!G108) -> 0.000124518 | D103: =IF('DF raw data'!H108="","",'DF raw data'!H108) -> -2.92349e-05 | F103: -2.31629828e-05 | G103: 0.000125016072 | H103: -2.93518396e-05 | J103: -0.0002103979466 | K103: -0.002138901854 | L103: 0.0025797027 | M103: 0.02808718765 | N103: 4.954031879e-05
A104: =IF('DF raw data'!E109="","",'DF raw data'!E109) -> -279 | B104: =IF('DF raw data'!F109="","",'DF raw data'!F109) -> -2.32126e-06 | C104: =IF('DF raw data'!G109="","",'DF raw data'!G109) -> 0.000130576 | D104: =IF('DF raw data'!H109="","",'DF raw data'!H109) -> -2.44189e-05 | F104: -2.33054504e-06 | G104: 0.000131098304 | H104: -2.45165756e-05 | J104: -0.0002115632192 | K104: -0.002244683463 | L104: 0.002645251852 | M104: 0.02940981357 | N104: 5.306137696e-05
A105: =IF('DF raw data'!E110="","",'DF raw data'!E110) -> -278.5 | B105: =IF('DF raw data'!F110="","",'DF raw data'!F110) -> -1.09648e-05 | C105: =IF('DF raw data'!G110="","",'DF raw data'!G110) -> 0.000133976 | D105: =IF('DF raw data'!H110="","",'DF raw data'!H110) -> -2.9644e-05 | F105: -1.10086592e-05 | G105: 0.000134511904 | H105: -2.9762576e-05 | J105: -0.0002170675488 | K105: -0.002353217238 | L105: 0.002712507804 | M105: 0.03076606747 | N105: 5.676378542e-05
A106: =IF('DF raw data'!E111="","",'DF raw data'!E111) -> -278 | B106: =IF('DF raw data'!F111="","",'DF raw data'!F111) -> -1.21184e-05 | C106: =IF('DF raw data'!G111="","",'DF raw data'!G111) -> 0.000131485 | D106: =IF('DF raw data'!H111="","",'DF raw data'!H111) -> -2.81108e-05 | F106: -1.21668736e-05 | G106: 0.00013201094 | H106: -2.82232432e-05 | J106: -0.0002231509856 | K106: -0.00246479273 | L106: 0.002778513274 | M106: 0.03215532411 | N106: 6.064875161e-05
A107: =IF('DF raw data'!E112="","",'DF raw data'!E112) -> -277.5 | B107: =IF('DF raw data'!F112="","",'DF raw data'!F112) -> -1.07204e-05 | C107: =IF('DF raw data'!G112="","",'DF raw data'!G112) -> 0.000124421 | D107: =IF('DF raw data'!H112="","",'DF raw data'!H112) -> -1.13166e-05 | F107: -1.07632816e-05 | G107: 0.000124918684 | H107: -1.13618664e-05 | J107: -0.0002285326264 | K107: -0.002579059044 | L107: 0.002840972616 | M107: 0.03357581042 | N107: 6.471042789e-05
A108: =IF('DF raw data'!E113="","",'DF raw data'!E113) -> -277 | B108: =IF('DF raw data'!F113="","",'DF raw data'!F113) -> -1.53899e-05 | C108: =IF('DF raw data'!G113="","",'DF raw data'!G113) -> 0.000115058 | D108: =IF('DF raw data'!H113="","",'DF raw data'!H113) -> -2.07814e-05 | F108: -1.54514596e-05 | G108: 0.000115518232 | H108: -2.08645256e-05 | J108: -0.0002362583562 | K108: -0.002697188222 | L108: 0.002898731732 | M108: 0.03502517629 | N108: 6.893965972e-05
A109: =IF('DF raw data'!E114="","",'DF raw data'!E114) -> -276.5 | B109: =IF('DF raw data'!F114="","",'DF raw data'!F114) -> -8.46203e-08 | C109: =IF('DF raw data'!G114="","",'DF raw data'!G114) -> 0.000114012 | D109: =IF('DF raw data'!H114="","",'DF raw data'!H114) -> -1.65306e-05 | F109: -8.49587812e-08 | G109: 0.000114468048 | H109: -1.65967224e-05 | J109: -0.0002363008355 | K109: -0.002815338639 | L109: 0.002955965756 | M109: 0.03650315916 | N109: 7.333644554e-05
A110: =IF('DF raw data'!E115="","",'DF raw data'!E115) -> -276 | B110: =IF('DF raw data'!F115="","",'DF raw data'!F115) -> -9.11295e-06 | C110: =IF('DF raw data'!G115="","",'DF raw data'!G115) -> 0.000110814 | D110: =IF('DF raw data'!H115="","",'DF raw data'!H115) -> -2.06035e-05 | F110: -9.1494018e-06 | G110: 0.000111257256 | H110: -2.0685914e-05 | J110: -0.0002408755364 | K110: -0.002935776408 | L110: 0.003011594384 | M110: 0.03800895636 | N110: 7.790030642e-05
A111: =IF('DF raw data'!E116="","",'DF raw data'!E116) -> -275.5 | B111: =IF('DF raw data'!F116="","",'DF raw data'!F116) -> -2.27498e-05 | C111: =IF('DF raw data'!G116="","",'DF raw data'!G116) -> 0.000116577 | D111: =IF('DF raw data'!H116="","",'DF raw data'!H116) -> -3.03053e-05 | F111: -2.28407992e-05 | G111: 0.000117043308 | H111: -3.04265212e-05 | J111: -0.000252295936 | K111: -0.003061924376 | L111: 0.003070116038 | M111: 0.03954401437 | N111: 8.264493928e-05
A112: =IF('DF raw data'!E117="","",'DF raw data'!E117) -> -275 | B112: =IF('DF raw data'!F117="","",'DF raw data'!F117) -> -1.48779e-05 | C112: =IF('DF raw data'!G117="","",'DF raw data'!G117) -> 0.00011327 | D112: =IF('DF raw data'!H117="","",'DF raw data'!H117) -> -2.01962e-05 | F112: -1.49374116e-05 | G112: 0.00011372308 | H112: -2.02769848e-05 | J112: -0.0002597646418 | K112: -0.003191806697 | L112: 0.003126977578 | M112: 0.04110750316 | N112: 8.75676725e-05
A113: =IF('DF raw data'!E118="","",'DF raw data'!E118) -> -274.5 | B113: =IF('DF raw data'!F118="","",'DF raw data'!F118) -> -1.1932e-05 | C113: =IF('DF raw data'!G118="","",'DF raw data'!G118) -> 0.000114625 | D113: =IF('DF raw data'!H118="","",'DF raw data'!H118) -> -1.97597e-05 | F113: -1.1979728e-05 | G113: 0.0001150835 | H113: -1.98387388e-05 | J113: -0.0002657545058 | K113: -0.00332468395 | L113: 0.003184519328 | M113: 0.04269976283 | N113: 9.267356691e-05
A114: =IF('DF raw data'!E119="","",'DF raw data'!E119) -> -274 | B114: =IF('DF raw data'!F119="","",'DF raw data'!F119) -> -1.52586e-05 | C114: =IF('DF raw data'!G119="","",'DF raw data'!G119) -> 0.000120258 | D114: =IF('DF raw data'!H119="","",'DF raw data'!H119) -> -2.57163e-05 | F114: -1.53196344e-05 | G114: 0.000120739032 | H114: -2.58191652e-05 | J114: -0.000273414323 | K114: -0.003461391111 | L114: 0.003244888844 | M114: 0.04432220725 | N114: 9.797559641e-05
A115: =IF('DF raw data'!E120="","",'DF raw data'!E120) -> -273.5 | B115: =IF('DF raw data'!F120="","",'DF raw data'!F120) -> -1.21881e-05 | C115: =IF('DF raw data'!G120="","",'DF raw data'!G120) -> 0.00012173 | D115: =IF('DF raw data'!H120="","",'DF raw data'!H120) -> -1.99529e-05 | F115: -1.22368524e-05 | G115: 0.00012221692 | H115: -2.00327116e-05 | J115: -0.0002795327492 | K115: -0.003601157486 | L115: 0.003305997304 | M115: 0.0459752059 | N115: 0.0001034794748
A116: =IF('DF raw data'!E121="","",'DF raw data'!E121) -> -273 | B116: =IF('DF raw data'!F121="","",'DF raw data'!F121) -> -1.99444e-05 | C116: =IF('DF raw data'!G121="","",'DF raw data'!G121) -> 0.00012237 | D116: =IF('DF raw data'!H121="","",'DF raw data'!H121) -> -9.84489e-06 | F116: -2.00241776e-05 | G116: 0.00012285948 | H116: -9.88426956e-06 | J116: -0.000289544838 | K116: -0.003745929905 | L116: 0.003367427044 | M116: 0.04765891942 | N116: 0.0001091911753
A117: =IF('DF raw data'!E122="","",'DF raw data'!E122) -> -272.5 | B117: =IF('DF raw data'!F122="","",'DF raw data'!F122) -> -1.69895e-05 | C117: =IF('DF raw data'!G122="","",'DF raw data'!G122) -> 0.000115612 | D117: =IF('DF raw data'!H122="","",'DF raw data'!H122) -> -2.33543e-05 | F117: -1.7057458e-05 | G117: 0.000116074448 | H117: -2.34477172e-05 | J117: -0.000298073567 | K117: -0.003894966688 | L117: 0.003425464268 | M117: 0.04937165156 | N117: 0.000115102502
A118: =IF('DF raw data'!E123="","",'DF raw data'!E123) -> -272 | B118: =IF('DF raw data'!F123="","",'DF raw data'!F123) -> -1.41664e-05 | C118: =IF('DF raw data'!G123="","",'DF raw data'!G123) -> 0.000109773 | D118: =IF('DF raw data'!H123="","",'DF raw data'!H123) -> -3.07188e-05 | F118: -1.42230656e-05 | G118: 0.000110212092 | H118: -3.08416752e-05 | J118: -0.0003051850998 | K118: -0.004047559238 | L118: 0.003480570314 | M118: 0.05111193671 | N118: 0.0001212062558
A119: =IF('DF raw data'!E124="","",'DF raw data'!E124) -> -271.5 | B119: =IF('DF raw data'!F124="","",'DF raw data'!F124) -> -2.24309e-05 | C119: =IF('DF raw data'!G124="","",'DF raw data'!G124) -> 0.000111854 | D119: =IF('DF raw data'!H124="","",'DF raw data'!H124) -> -2.8329e-05 | F119: -2.25206236e-05 | G119: 0.000112301416 | H119: -2.8442316e-05 | J119: -0.0003164454116 | K119: -0.004205781944 | L119: 0.003536721022 | M119: 0.05288029723 | N119: 0.0001275105224
A120: =IF('DF raw data'!E125="","",'DF raw data'!E125) -> -271 | B120: =IF('DF raw data'!F125="","",'DF raw data'!F125) -> -1.22488e-05 | C120: =IF('DF raw data'!G125="","",'DF raw data'!G125) -> 0.000114696 | D120: =IF('DF raw data'!H125="","",'DF raw data'!H125) -> -2.44729e-05 | F120: -1.22977952e-05 | G120: 0.000115154784 | H120: -2.45707916e-05 | J120: -0.0003225943092 | K120: -0.004367079099 | L120: 0.003594298414 | M120: 0.05467744643 | N120: 0.0001340220465
A121: =IF('DF raw data'!E126="","",'DF raw data'!E126) -> -270.5 | B121: =IF('DF raw data'!F126="","",'DF raw data'!F126) -> -2.01265e-05 | C121: =IF('DF raw data'!G126="","",'DF raw data'!G126) -> 0.000117605 | D121: =IF('DF raw data'!H126="","",'DF raw data'!H126) -> -2.62698e-05 | F121: -2.0207006e-05 | G121: 0.00011807542 | H121: -2.63748792e-05 | J121: -0.0003326978122 | K121: -0.004533428005 | L121: 0.003653336124 | M121: 0.05650411449 | N121: 0.0001407508229
A122: =IF('DF raw data'!E127="","",'DF raw data'!E127) -> -270 | B122: =IF('DF raw data'!F127="","",'DF raw data'!F127) -> -1.54543e-05 | C122: =IF('DF raw data'!G127="","",'DF raw data'!G127) -> 0.000127071 | D122: =IF('DF raw data'!H127="","",'DF raw data'!H127) -> -1.9883e-05 | F122: -1.55161172e-05 | G122: 0.000127579284 | H122: -1.9962532e-05 | J122: -0.0003404558708 | K122: -0.00470365594 | L122: 0.003717125766 | M122: 0.05836267738 | N122: 0.00014771729
A123: =IF('DF raw data'!E128="","",'DF raw data'!E128) -> -269.5 | B123: =IF('DF raw data'!F128="","",'DF raw data'!F128) -> -1.39056e-05 | C123: =IF('DF raw data'!G128="","",'DF raw data'!G128) -> 0.000125279 | D123: =IF('DF raw data'!H128="","",'DF raw data'!H128) -> -3.8322e-05 | F123: -1.39612224e-05 | G123: 0.000125780116 | H123: -3.8475288e-05 | J123: -0.000347436482 | K123: -0.004877374181 | L123: 0.003780015824 | M123: 0.06025268529 | N123: 0.0001549219058
A124: =IF('DF raw data'!E129="","",'DF raw data'!E129) -> -269 | B124: =IF('DF raw data'!F129="","",'DF raw data'!F129) -> -2.52539e-05 | C124: =IF('DF raw data'!G129="","",'DF raw data'!G129) -> 0.000118138 | D124: =IF('DF raw data'!H129="","",'DF raw data'!H129) -> -2.01495e-05 | F124: -2.53549156e-05 | G124: 0.000118610552 | H124: -2.0230098e-05 | J124: -0.0003601139398 | K124: -0.005057431151 | L124: 0.0038393211 | M124: 0.06217234584 | N124: 0.0001623569401
A125: =IF('DF raw data'!E130="","",'DF raw data'!E130) -> -268.5 | B125: =IF('DF raw data'!F130="","",'DF raw data'!F130) -> -2.33352e-05 | C125: =IF('DF raw data'!G130="","",'DF raw data'!G130) -> 0.000114203 | D125: =IF('DF raw data'!H130="","",'DF raw data'!H130) -> -1.6512e-05 | F125: -2.34285408e-05 | G125: 0.000114659812 | H125: -1.6578048e-05 | J125: -0.0003718282102 | K125: -0.005243345256 | L125: 0.003896651006 | M125: 0.06412067134 | N125: 0.0001700180127
A126: =IF('DF raw data'!E131="","",'DF raw data'!E131) -> -268 | B126: =IF('DF raw data'!F131="","",'DF raw data'!F131) -> -1.71794e-05 | C126: =IF('DF raw data'!G131="","",'DF raw data'!G131) -> 0.000121431 | D126: =IF('DF raw data'!H131="","",'DF raw data'!H131) -> -2.65263e-05 | F126: -1.72481176e-05 | G126: 0.000121916724 | H126: -2.66324052e-05 | J126: -0.000380452269 | K126: -0.005433571391 | L126: 0.003957609368 | M126: 0.06609947603 | N126: 0.0001779217207
A127: =IF('DF raw data'!E132="","",'DF raw data'!E132) -> -267.5 | B127: =IF('DF raw data'!F132="","",'DF raw data'!F132) -> -8.14962e-06 | C127: =IF('DF raw data'!G132="","",'DF raw data'!G132) -> 0.000125313 | D127: =IF('DF raw data'!H132="","",'DF raw data'!H132) -> -2.50902e-05 | F127: -8.18221848e-06 | G127: 0.000125814252 | H127: -2.51905608e-05 | J127: -0.0003845433783 | K127: -0.00562584308 | L127: 0.004020516494 | M127: 0.06810973427 | N127: 0.0001860779339
A128: =IF('DF raw data'!E133="","",'DF raw data'!E133) -> -267 | B128: =IF('DF raw data'!F133="","",'DF raw data'!F133) -> -1.65368e-05 | C128: =IF('DF raw data'!G133="","",'DF raw data'!G133) -> 0.000122354 | D128: =IF('DF raw data'!H133="","",'DF raw data'!H133) -> -2.98629e-05 | F128: =(1-$G$1*($B$49-$G$2))*B128 -> -1.66029472e-05 | G128: 0.000122843416 | H128: -2.99823516e-05 | J128: =F128*$G$3+J127 -> -0.0003928448519 | K128: =J128*$G$3+K127 -> -0.005822265506 | L128: =G128*$G$3+L127 -> 0.004081938202 | M128: =L128*$G$3+M127 -> 0.07015070337 | N128: =(J128^2+L128^2)*$G$3+N127 -> 0.0001944862072
A129: =IF('DF raw data'!E134="","",'DF raw data'!E134) -> -266.5 | B129: =IF('DF raw data'!F134="","",'DF raw data'!F134) -> -2.58314e-05 | C129: =IF('DF raw data'!G134="","",'DF raw data'!G134) -> 0.000123445 | D129: =IF('DF raw data'!H134="","",'DF raw data'!H134) -> -1.9186e-05 | F129: -2.59347256e-05 | G129: 0.00012393878 | H129: -1.9262744e-05 | J129: -0.0004058122147 | K129: -0.006025171613 | L129: 0.004143907592 | M129: 0.07222265717 | N129: 0.000203154534
A130: =IF('DF raw data'!E135="","",'DF raw data'!E135) -> -266 | B130: =IF('DF raw data'!F135="","",'DF raw data'!F135) -> -2.21782e-05 | C130: =IF('DF raw data'!G135="","",'DF raw data'!G135) -> 0.000125653 | D130: =IF('DF raw data'!H135="","",'DF raw data'!H135) -> -2.22014e-05 | F130: -2.22669128e-05 | G130: 0.000126155612 | H130: -2.22902056e-05 | J130: -0.0004169456711 | K130: -0.006233644449 | L130: 0.004206985398 | M130: 0.07432614987 | N130: 0.0002120908189
A131: =IF('DF raw data'!E136="","",'DF raw data'!E136) -> -265.5 | B131: =IF('DF raw data'!F136="","",'DF raw data'!F136) -> -2.29515e-05 | C131: =IF('DF raw data'!G136="","",'DF raw data'!G136) -> 0.000124745 | D131: =IF('DF raw data'!H136="","",'DF raw data'!H136) -> -1.55344e-05 | F131: -2.3043306e-05 | G131: 0.00012524398 | H131: -1.55965376e-05 | J131: -0.0004284673241 | K131: -0.006447878111 | L131: 0.004269607388 | M131: 0.07646095356 | N131: 0.0002212973847
A132: =IF('DF raw data'!E137="","",'DF raw data'!E137) -> -265 | B132: =IF('DF raw data'!F137="","",'DF raw data'!F137) -> -2.01878e-05 | C132: =IF('DF raw data'!G137="","",'DF raw data'!G137) -> 0.000122179 | D132: =IF('DF raw data'!H137="","",'DF raw data'!H137) -> -2.95954e-05 | F132: -2.02685512e-05 | G132: 0.000122667716 | H132: -2.97137816e-05 | J132: -0.0004386015997 | K132: -0.006667178911 | L132: 0.004330941246 | M132: 0.07862642419 | N132: 0.0002307720964
A133: =IF('DF raw data'!E138="","",'DF raw data'!E138) -> -264.5 | B133: =IF('DF raw data'!F138="","",'DF raw data'!F138) -> -1.14794e-05 | C133: =IF('DF raw data'!G138="","",'DF raw data'!G138) -> 0.000130022 | D133: =IF('DF raw data'!H138="","",'DF raw data'!H138) -> -2.60771e-05 | F133: -1.15253176e-05 | G133: 0.000130542088 | H133: -2.61814084e-05 | J133: -0.0004443642585 | K133: -0.00688936104 | L133: 0.00439621229 | M133: 0.08082453033 | N133: 0.0002405341675
A134: =IF('DF raw data'!E139="","",'DF raw data'!E139) -> -264 | B134: =IF('DF raw data'!F139="","",'DF raw data'!F139) -> -1.44947e-05 | C134: =IF('DF raw data'!G139="","",'DF raw data'!G139) -> 0.00013661 | D134: =IF('DF raw data'!H139="","",'DF raw data'!H139) -> -1.81869e-05 | F134: -1.45526788e-05 | G134: 0.00013715644 | H134: -1.82596476e-05 | J134: -0.0004516405979 | K134: -0.007115181339 | L134: 0.00446479051 | M134: 0.08305692559 | N134: 0.0002506033342
A135: =IF('DF raw data'!E140="","",'DF raw data'!E140) -> -263.5 | B135: =IF('DF raw data'!F140="","",'DF raw data'!F140) -> -2.14046e-05 | C135: =IF('DF raw data'!G140="","",'DF raw data'!G140) -> 0.000132929 | D135: =IF('DF raw data'!H140="","",'DF raw data'!H140) -> -3.04016e-05 | F135: -2.14902184e-05 | G135: 0.000133460716 | H135: -3.05232064e-05 | J135: -0.0004623857071 | K135: -0.007346374192 | L135: 0.004531520868 | M135: 0.08532268602 | N135: 0.0002609775752
A136: =IF('DF raw data'!E141="","",'DF raw data'!E141) -> -263 | B136: =IF('DF raw data'!F141="","",'DF raw data'!F141) -> -1.67994e-05 | C136: =IF('DF raw data'!G141="","",'DF raw data'!G141) -> 0.000129657 | D136: =IF('DF raw data'!H141="","",'DF raw data'!H141) -> -2.01789e-05 | F136: -1.68665976e-05 | G136: 0.000130175628 | H136: -2.02596156e-05 | J136: -0.0004708190059 | K136: -0.007581783695 | L136: 0.004596608682 | M136: 0.08762099036 | N136: 0.0002716528161
A137: =IF('DF raw data'!E142="","",'DF raw data'!E142) -> -262.5 | B137: =IF('DF raw data'!F142="","",'DF raw data'!F142) -> -1.05117e-05 | C137: =IF('DF raw data'!G142="","",'DF raw data'!G142) -> 0.00012978 | D137: =IF('DF raw data'!H142="","",'DF raw data'!H142) -> -3.70909e-05 | F137: -1.05537468e-05 | G137: 0.00013029912 | H137: -3.72392636e-05 | J137: -0.0004760958793 | K137: -0.007819831635 | L137: 0.004661758242 | M137: 0.08995186948 | N137: 0.0002826321447
A138: =IF('DF raw data'!E143="","",'DF raw data'!E143) -> -262 | B138: =IF('DF raw data'!F143="","",'DF raw data'!F143) -> -1.96125e-05 | C138: =IF('DF raw data'!G143="","",'DF raw data'!G143) -> 0.000123785 | D138: =IF('DF raw data'!H143="","",'DF raw data'!H143) -> -2.81746e-05 | F138: -1.969095e-05 | G138: 0.00012428014 | H138: -2.82872984e-05 | J138: -0.0004859413543 | K138: -0.008062802312 | L138: 0.004723898312 | M138: 0.09231381864 | N138: 0.0002939078219
A139: =IF('DF raw data'!E144="","",'DF raw data'!E144) -> -261.5 | B139: =IF('DF raw data'!F144="","",'DF raw data'!F144) -> -8.91296e-06 | C139: =IF('DF raw data'!G144="","",'DF raw data'!G144) -> 0.000125952 | D139: =IF('DF raw data'!H144="","",'DF raw data'!H144) -> -3.30703e-05 | F139: -8.94861184e-06 | G139: 0.000126455808 | H139: -3.32025812e-05 | J139: -0.0004904156602 | K139: -0.008308010142 | L139: 0.004787126216 | M139: 0.09470738175 | N139: 0.0003054863643
A140: =IF('DF raw data'!E145="","",'DF raw data'!E145) -> -261 | B140: =IF('DF raw data'!F145="","",'DF raw data'!F145) -> -3.03113e-05 | C140: =IF('DF raw data'!G145="","",'DF raw data'!G145) -> 0.000125957 | D140: =IF('DF raw data'!H145="","",'DF raw data'!H145) -> -2.43509e-05 | F140: -3.04325452e-05 | G140: 0.000126460828 | H140: -2.44483036e-05 | J140: -0.0005056319328 | K140: -0.008560826109 | L140: 0.00485035663 | M140: 0.09713256006 | N140: 0.0003173771759
A141: =IF('DF raw data'!E146="","",'DF raw data'!E146) -> -260.5 | B141: =IF('DF raw data'!F146="","",'DF raw data'!F146) -> -2.69155e-05 | C141: =IF('DF raw data'!G146="","",'DF raw data'!G146) -> 0.000127448 | D141: =IF('DF raw data'!H146="","",'DF raw data'!H146) -> -2.65396e-05 | F141: -2.7023162e-05 | G141: 0.000127957792 | H141: -2.66457584e-05 | J141: -0.0005191435138 | K141: -0.008820397866 | L141: 0.004914335526 | M141: 0.09958972782 | N141: 0.0003295872777
A142: =IF('DF raw data'!E147="","",'DF raw data'!E147) -> -260 | B142: =IF('DF raw data'!F147="","",'DF raw data'!F147) -> -3.00595e-05 | C142: =IF('DF raw data'!G147="","",'DF raw data'!G147) -> 0.000127244 | D142: =IF('DF raw data'!H147="","",'DF raw data'!H147) -> -1.75084e-05 | F142: -3.0179738e-05 | G142: 0.000127752976 | H142: -1.75784336e-05 | J142: -0.0005342333828 | K142: -0.009087514557 | L142: 0.004978212014 | M142: 0.1020788338 | N142: 0.0003421212778
A143: =IF('DF raw data'!E148="","",'DF raw data'!E148) -> -259.5 | B143: =IF('DF raw data'!F148="","",'DF raw data'!F148) -> -2.96727e-05 | C143: =IF('DF raw data'!G148="","",'DF raw data'!G148) -> 0.000133462 | D143: =IF('DF raw data'!H148="","",'DF raw data'!H148) -> -2.18696e-05 | F143: -2.97913908e-05 | G143: 0.000133995848 | H143: -2.19570784e-05 | J143: -0.0005491290782 | K143: -0.009362079096 | L143: 0.005045209938 | M143: 0.1046014388 | N143: 0.0003549991208
A144: =IF('DF raw data'!E149="","",'DF raw data'!E149) -> -259 | B144: =IF('DF raw data'!F149="","",'DF raw data'!F149) -> -1.35315e-05 | C144: =IF('DF raw data'!G149="","",'DF raw data'!G149) -> 0.000126369 | D144: =IF('DF raw data'!H149="","",'DF raw data'!H149) -> -2.23542e-05 | F144: -1.3585626e-05 | G144: 0.000126874476 | H144: -2.24436168e-05 | J144: -0.0005559218912 | K144: -0.009640040042 | L144: 0.005108647176 | M144: 0.1071557624 | N144: 0.0003682027834
A145: =IF('DF raw data'!E150="","",'DF raw data'!E150) -> -258.5 | B145: =IF('DF raw data'!F150="","",'DF raw data'!F150) -> -1.78846e-05 | C145: =IF('DF raw data'!G150="","",'DF raw data'!G150) -> 0.000120267 | D145: =IF('DF raw data'!H150="","",'DF raw data'!H150) -> -2.61495e-05 | F145: -1.79561384e-05 | G145: 0.000120748068 | H145: -2.6254098e-05 | J145: -0.0005648999604 | K145: -0.009922490022 | L145: 0.00516902121 | M145: 0.109740273 | N145: 0.0003817217295
A146: =IF('DF raw data'!E151="","",'DF raw data'!E151) -> -258 | B146: =IF('DF raw data'!F151="","",'DF raw data'!F151) -> -1.24485e-05 | C146: =IF('DF raw data'!G151="","",'DF raw data'!G151) -> 0.000118567 | D146: =IF('DF raw data'!H151="","",'DF raw data'!H151) -> -1.30843e-05 | F146: -1.2498294e-05 | G146: 0.000119041268 | H146: -1.31366372e-05 | J146: -0.0005711491074 | K146: -0.01020806458 | L146: 0.005228541844 | M146: 0.1123545439 | N146: 0.00039555366
A147: =IF('DF raw data'!E152="","",'DF raw data'!E152) -> -257.5 | B147: =IF('DF raw data'!F152="","",'DF raw data'!F152) -> -1.16068e-05 | C147: =IF('DF raw data'!G152="","",'DF raw data'!G152) -> 0.000117462 | D147: =IF('DF raw data'!H152="","",'DF raw data'!H152) -> -2.72148e-05 | F147: -1.16532272e-05 | G147: 0.000117931848 | H147: -2.73236592e-05 | J147: -0.000576975721 | K147: -0.01049655244 | L147: 0.005287507768 | M147: 0.1149982978 | N147: 0.0004096989797
A148: =IF('DF raw data'!E153="","",'DF raw data'!E153) -> -257 | B148: =IF('DF raw data'!F153="","",'DF raw data'!F153) -> -1.00112e-05 | C148: =IF('DF raw data'!G153="","",'DF raw data'!G153) -> 0.000125424 | D148: =IF('DF raw data'!H153="","",'DF raw data'!H153) -> -1.85799e-05 | F148: -1.00512448e-05 | G148: 0.000125925696 | H148: -1.86542196e-05 | J148: -0.0005820013434 | K148: -0.01078755311 | L148: 0.005350470616 | M148: 0.1176735331 | N148: 0.0004241821104
A149: =IF('DF raw data'!E154="","",'DF raw data'!E154) -> -256.5 | B149: =IF('DF raw data'!F154="","",'DF raw data'!F154) -> -1.24455e-05 | C149: =IF('DF raw data'!G154="","",'DF raw data'!G154) -> 0.000131865 | D149: =IF('DF raw data'!H154="","",'DF raw data'!H154) -> -1.80433e-05 | F149: -1.2495282e-05 | G149: 0.00013239246 | H149: -1.81154732e-05 | J149: -0.0005882489844 | K149: -0.0110816776 | L149: 0.005416666846 | M149: 0.1203818665 | N149: 0.0004390252687
A150: =IF('DF raw data'!E155="","",'DF raw data'!E155) -> -256 | B150: =IF('DF raw data'!F155="","",'DF raw data'!F155) -> -1.94865e-05 | C150: =IF('DF raw data'!G155="","",'DF raw data'!G155) -> 0.000133138 | D150: =IF('DF raw data'!H155="","",'DF raw data'!H155) -> -2.48945e-05 | F150: -1.9564446e-05 | G150: 0.000133670552 | H150: -2.4994078e-05 | J150: -0.0005980312074 | K150: -0.0113806932 | L150: 0.005483502122 | M150: 0.1231236176 | N150: 0.0004542384871
A151: =IF('DF raw data'!E156="","",'DF raw data'!E156) -> -255.5 | B151: =IF('DF raw data'!F156="","",'DF raw data'!F156) -> -1.43604e-05 | C151: =IF('DF raw data'!G156="","",'DF raw data'!G156) -> 0.000130082 | D151: =IF('DF raw data'!H156="","",'DF raw data'!H156) -> -2.81104e-05 | F151: -1.44178416e-05 | G151: 0.000130602328 | H151: -2.82228416e-05 | J151: -0.0006052401282 | K151: -0.01168331327 | L151: 0.005548803286 | M151: 0.1258980192 | N151: 0.0004698162539
A152: =IF('DF raw data'!E157="","",'DF raw data'!E157) -> -255 | B152: =IF('DF raw data'!F157="","",'DF raw data'!F157) -> -1.12826e-05 | C152: =IF('DF raw data'!G157="","",'DF raw data'!G157) -> 0.000121819 | D152: =IF('DF raw data'!H157="","",'DF raw data'!H157) -> -3.32105e-05 | F152: -1.13277304e-05 | G152: 0.000122306276 | H152: -3.3343342e-05 | J152: -0.0006109039934 | K152: -0.01198876526 | L152: 0.005609956424 | M152: 0.1287029974 | N152: 0.0004857386613
A153: =IF('DF raw data'!E158="","",'DF raw data'!E158) -> -254.5 | B153: =IF('DF raw data'!F158="","",'DF raw data'!F158) -> -3.01179e-05 | C153: =IF('DF raw data'!G158="","",'DF raw data'!G158) -> 0.000118304 | D153: =IF('DF raw data'!H158="","",'DF raw data'!H158) -> -2.69381e-05 | F153: -3.02383716e-05 | G153: 0.000118777216 | H153: -2.70458524e-05 | J153: -0.0006260231792 | K153: -0.01230177685 | L153: 0.005669345032 | M153: 0.13153767 | N153: 0.0005020053503
A154: =IF('DF raw data'!E159="","",'DF raw data'!E159) -> -254 | B154: =IF('DF raw data'!F159="","",'DF raw data'!F159) -> -1.62151e-05 | C154: =IF('DF raw data'!G159="","",'DF raw data'!G159) -> 0.000133192 | D154: =IF('DF raw data'!H159="","",'DF raw data'!H159) -> -3.20612e-05 | F154: -1.62799604e-05 | G154: 0.000133724768 | H154: -3.21894448e-05 | J154: -0.0006341631594 | K154: -0.01261885843 | L154: 0.005736207416 | M154: 0.1344057737 | N154: 0.0005186584696
A155: =IF('DF raw data'!E160="","",'DF raw data'!E160) -> -253.5 | B155: =IF('DF raw data'!F160="","",'DF raw data'!F160) -> -1.19904e-05 | C155: =IF('DF raw data'!G160="","",'DF raw data'!G160) -> 0.000128592 | D155: =IF('DF raw data'!H160="","",'DF raw data'!H160) -> -2.82104e-05 | F155: -1.20383616e-05 | G155: 0.000129106368 | H155: -2.83232416e-05 | J155: -0.0006401823402 | K155: -0.0129389496 | L155: 0.0058007606 | M155: 0.137306154 | N155: 0.000535687798
A156: =IF('DF raw data'!E161="","",'DF raw data'!E161) -> -253 | B156: =IF('DF raw data'!F161="","",'DF raw data'!F161) -> -2.40956e-05 | C156: =IF('DF raw data'!G161="","",'DF raw data'!G161) -> 0.000118851 | D156: =IF('DF raw data'!H161="","",'DF raw data'!H161) -> -2.84028e-05 | F156: -2.41919824e-05 | G156: 0.000119326404 | H156: -2.85164112e-05 | J156: -0.0006522783314 | K156: -0.01326508877 | L156: 0.005860423802 | M156: 0.1402363659 | N156: 0.0005530728151
A157: =IF('DF raw data'!E162="","",'DF raw data'!E162) -> -252.5 | B157: =IF('DF raw data'!F162="","",'DF raw data'!F162) -> -1.62226e-05 | C157: =IF('DF raw data'!G162="","",'DF raw data'!G162) -> 0.000117545 | D157: =IF('DF raw data'!H162="","",'DF raw data'!H162) -> -2.08226e-05 | F157: -1.62874904e-05 | G157: 0.00011801518 | H157: -2.09058904e-05 | J157: -0.0006604220766 | K157: -0.01359529981 | L157: 0.005919431392 | M157: 0.1431960816 | N157: 0.0005708107278
A158: =IF('DF raw data'!E163="","",'DF raw data'!E163) -> -252 | B158: =IF('DF raw data'!F163="","",'DF raw data'!F163) -> -1.72494e-05 | C158: =IF('DF raw data'!G163="","",'DF raw data'!G163) -> 0.000124454 | D158: =IF('DF raw data'!H163="","",'DF raw data'!H163) -> -1.78017e-05 | F158: -1.73183976e-05 | G158: 0.000124951816 | H158: -1.78729068e-05 | J158: -0.0006690812754 | K158: -0.01392984045 | L158: 0.0059819073 | M158: 0.1461870352 | N158: 0.0005889261701
A159: =IF('DF raw data'!E164="","",'DF raw data'!E164) -> -251.5 | B159: =IF('DF raw data'!F164="","",'DF raw data'!F164) -> -1.36548e-05 | C159: =IF('DF raw data'!G164="","",'DF raw data'!G164) -> 0.00011954 | D159: =IF('DF raw data'!H164="","",'DF raw data'!H164) -> -2.98906e-05 | F159: -1.37094192e-05 | G159: 0.00012001816 | H159: -3.00101624e-05 | J159: -0.000675935985 | K159: -0.01426780844 | L159: 0.00604191638 | M159: 0.1492079934 | N159: 0.0006074069916
A160: =IF('DF raw data'!E165="","",'DF raw data'!E165) -> -251 | B160: =IF('DF raw data'!F165="","",'DF raw data'!F165) -> -1.9677e-05 | C160: =IF('DF raw data'!G165="","",'DF raw data'!G165) -> 0.000118874 | D160: =IF('DF raw data'!H165="","",'DF raw data'!H165) -> -2.7373e-05 | F160: -1.9755708e-05 | G160: 0.000119349496 | H160: -2.7482492e-05 | J160: -0.000685813839 | K160: -0.01461071536 | L160: 0.006101591128 | M160: 0.152258789 | N160: 0.0006262568691
A161: =IF('DF raw data'!E166="","",'DF raw data'!E166) -> -250.5 | B161: =IF('DF raw data'!F166="","",'DF raw data'!F166) -> -1.75643e-05 | C161: =IF('DF raw data'!G166="","",'DF raw data'!G166) -> 0.00012067 | D161: =IF('DF raw data'!H166="","",'DF raw data'!H166) -> -2.61113e-05 | F161: -1.76345572e-05 | G161: 0.00012115268 | H161: -2.62157452e-05 | J161: -0.0006946311176 | K161: -0.01495803092 | L161: 0.006162167468 | M161: 0.1553398727 | N161: 0.0006454842792
A162: =IF('DF raw data'!E167="","",'DF raw data'!E167) -> -250 | B162: =IF('DF raw data'!F167="","",'DF raw data'!F167) -> -1.53322e-05 | C162: =IF('DF raw data'!G167="","",'DF raw data'!G167) -> 0.00012346 | D162: =IF('DF raw data'!H167="","",'DF raw data'!H167) -> -1.0994e-05 | F162: -1.53935288e-05 | G162: 0.00012395384 | H162: -1.1037976e-05 | J162: -0.000702327882 | K162: -0.01530919486 | L162: 0.006224144388 | M162: 0.1584519449 | N162: 0.0006651008981
A163: =IF('DF raw data'!E168="","",'DF raw data'!E168) -> -249.5 | B163: =IF('DF raw data'!F168="","",'DF raw data'!F168) -> -8.79384e-06 | C163: =IF('DF raw data'!G168="","",'DF raw data'!G168) -> 0.00012583 | D163: =IF('DF raw data'!H168="","",'DF raw data'!H168) -> -1.92498e-05 | F163: -8.82901536e-06 | G163: 0.00012633332 | H163: -1.93267992e-05 | J163: -0.0007067423897 | K163: -0.01566256605 | L163: 0.006287311048 | M163: 0.1615956004 | N163: 0.0006851157807
A164: =IF('DF raw data'!E169="","",'DF raw data'!E169) -> -249 | B164: =IF('DF raw data'!F169="","",'DF raw data'!F169) -> -1.71234e-05 | C164: =IF('DF raw data'!G169="","",'DF raw data'!G169) -> 0.000131531 | D164: =IF('DF raw data'!H169="","",'DF raw data'!H169) -> -1.46504e-05 | F164: -1.71918936e-05 | G164: 0.000132057124 | H164: -1.47090016e-05 | J164: -0.0007153383365 | K164: -0.01602023522 | L164: 0.00635333961 | M164: 0.1647722702 | N164: 0.0007055540972
A165: =IF('DF raw data'!E170="","",'DF raw data'!E170) -> -248.5 | B165: =IF('DF raw data'!F170="","",'DF raw data'!F170) -> -1.84665e-05 | C165: =IF('DF raw data'!G170="","",'DF raw data'!G170) -> 0.00013437 | D165: =IF('DF raw data'!H170="","",'DF raw data'!H170) -> -1.75009e-05 | F165: -1.8540366e-05 | G165: 0.00013490748 | H165: -1.75709036e-05 | J165: -0.0007246085195 | K165: -0.01638253948 | L165: 0.00642079335 | M165: 0.1679826669 | N165: 0.0007264299196
A166: =IF('DF raw data'!E171="","",'DF raw data'!E171) -> -248 | B166: =IF('DF raw data'!F171="","",'DF raw data'!F171) -> -7.89646e-06 | C166: =IF('DF raw data'!G171="","",'DF raw data'!G171) -> 0.000118712 | D166: =IF('DF raw data'!H171="","",'DF raw data'!H171) -> -2.0263e-05 | F166: -7.92804584e-06 | G166: 0.000119186848 | H166: -2.0344052e-05 | J166: -0.0007285725424 | K166: -0.01674682575 | L166: 0.006480386774 | M166: 0.1712228603 | N166: 0.0007476930349
A167: =IF('DF raw data'!E172="","",'DF raw data'!E172) -> -247.5 | B167: =IF('DF raw data'!F172="","",'DF raw data'!F172) -> -1.36566e-05 | C167: =IF('DF raw data'!G172="","",'DF raw data'!G172) -> 0.00012234 | D167: =IF('DF raw data'!H172="","",'DF raw data'!H172) -> -2.7038e-05 | F167: -1.37112264e-05 | G167: 0.00012282936 | H167: -2.7146152e-05 | J167: -0.0007354281556 | K167: -0.01711453983 | L167: 0.006541801454 | M167: 0.174493761 | N167: 0.0007693610454
A168: =IF('DF raw data'!E173="","",'DF raw data'!E173) -> -247 | B168: =IF('DF raw data'!F173="","",'DF raw data'!F173) -> -1.67415e-05 | C168: =IF('DF raw data'!G173="","",'DF raw data'!G173) -> 0.000124568 | D168: =IF('DF raw data'!H173="","",'DF raw data'!H173) -> -1.05061e-05 | F168: -1.6808466e-05 | G168: 0.000125066272 | H168: -1.05481244e-05 | J168: -0.0007438323886 | K168: -0.01748645602 | L168: 0.00660433459 | M168: 0.1777959283 | N168: 0.0007914463064
A169: =IF('DF raw data'!E174="","",'DF raw data'!E174) -> -246.5 | B169: =IF('DF raw data'!F174="","",'DF raw data'!F174) -> -1.79002e-05 | C169: =IF('DF raw data'!G174="","",'DF raw data'!G174) -> 0.000119606 | D169: =IF('DF raw data'!H174="","",'DF raw data'!H174) -> -2.10582e-06 | F169: -1.79718008e-05 | G169: 0.000120084424 | H169: -2.11424328e-06 | J169: -0.000752818289 | K169: -0.01786286517 | L169: 0.006664376802 | M169: 0.1811281167 | N169: 0.0008139366331
A170: =IF('DF raw data'!E175="","",'DF raw data'!E175) -> -246 | B170: =IF('DF raw data'!F175="","",'DF raw data'!F175) -> -8.34426e-06 | C170: =IF('DF raw data'!G175="","",'DF raw data'!G175) -> 0.000121551 | D170: =IF('DF raw data'!H175="","",'DF raw data'!H175) -> -2.08872e-05 | F170: -8.37763704e-06 | G170: 0.000122037204 | H170: -2.09707488e-05 | J170: -0.0007570071075 | K170: -0.01824136872 | L170: 0.006725395404 | M170: 0.1844908144 | N170: 0.0008368386347
A171: =IF('DF raw data'!E176="","",'DF raw data'!E176) -> -245.5 | B171: =IF('DF raw data'!F176="","",'DF raw data'!F176) -> -1.60245e-05 | C171: =IF('DF raw data'!G176="","",'DF raw data'!G176) -> 0.000126131 | D171: =IF('DF raw data'!H176="","",'DF raw data'!H176) -> -3.0162e-05 | F171: -1.6088598e-05 | G171: 0.000126635524 | H171: -3.0282648e-05 | J171: -0.0007650514065 | K171: -0.01862389443 | L171: 0.006788713166 | M171: 0.187885171 | N171: 0.0008601745997
A172: =IF('DF raw data'!E177="","",'DF raw data'!E177) -> -245 | B172: =IF('DF raw data'!F177="","",'DF raw data'!F177) -> -1.37286e-05 | C172: =IF('DF raw data'!G177="","",'DF raw data'!G177) -> 0.000120147 | D172: =IF('DF raw data'!H177="","",'DF raw data'!H177) -> -1.4562e-05 | F172: -1.37835144e-05 | G172: 0.000120627588 | H172: -1.4620248e-05 | J172: -0.0007719431637 | K172: -0.01900986601 | L172: 0.00684902696 | M172: 0.1913096845 | N172: 0.000883927133
A173: =IF('DF raw data'!E178="","",'DF raw data'!E178) -> -244.5 | B173: =IF('DF raw data'!F178="","",'DF raw data'!F178) -> -2.06434e-05 | C173: =IF('DF raw data'!G178="","",'DF raw data'!G178) -> 0.000121902 | D173: =IF('DF raw data'!H178="","",'DF raw data'!H178) -> -1.8993e-05 | F173: -2.07259736e-05 | G173: 0.000122389608 | H173: -1.9068972e-05 | J173: -0.0007823061505 | K173: -0.01940101908 | L173: 0.006910221764 | M173: 0.1947647954 | N173: 0.0009081087169
A174: =IF('DF raw data'!E179="","",'DF raw data'!E179) -> -244 | B174: =IF('DF raw data'!F179="","",'DF raw data'!F179) -> -1.03346e-05 | C174: =IF('DF raw data'!G179="","",'DF raw data'!G179) -> 0.000123214 | D174: =IF('DF raw data'!H179="","",'DF raw data'!H179) -> -1.35683e-05 | F174: -1.03759384e-05 | G174: 0.000123706856 | H174: -1.36225732e-05 | J174: -0.0007874941197 | K174: -0.01979476614 | L174: 0.006972075192 | M174: 0.198250833 | N174: 0.0009327237066
A175: =IF('DF raw data'!E180="","",'DF raw data'!E180) -> -243.5 | B175: =IF('DF raw data'!F180="","",'DF raw data'!F180) -> -1.18051e-05 | C175: =IF('DF raw data'!G180="","",'DF raw data'!G180) -> 0.000121818 | D175: =IF('DF raw data'!H180="","",'DF raw data'!H180) -> -1.78754e-05 | F175: -1.18523204e-05 | G175: 0.000122305272 | H175: -1.79469016e-05 | J175: -0.0007934202799 | K175: -0.02019147628 | L175: 0.007033227828 | M175: 0.2017674469 | N175: 0.0009577716113
A176: =IF('DF raw data'!E181="","",'DF raw data'!E181) -> -243 | B176: =IF('DF raw data'!F181="","",'DF raw data'!F181) -> -2.10877e-05 | C176: =IF('DF raw data'!G181="","",'DF raw data'!G181) -> 0.000117768 | D176: =IF('DF raw data'!H181="","",'DF raw data'!H181) -> -2.48274e-05 | F176: -2.11720508e-05 | G176: 0.000118239072 | H176: -2.49267096e-05 | J176: -0.0008040063053 | K176: -0.02059347943 | L176: 0.007092347364 | M176: 0.2053136206 | N176: 0.00098324552
A177: =IF('DF raw data'!E182="","",'DF raw data'!E182) -> -242.5 | B177: =IF('DF raw data'!F182="","",'DF raw data'!F182) -> -2.40946e-05 | C177: =IF('DF raw data'!G182="","",'DF raw data'!G182) -> 0.000108542 | D177: =IF('DF raw data'!H182="","",'DF raw data'!H182) -> -3.03861e-05 | F177: -2.41909784e-05 | G177: 0.000108976168 | H177: -3.05076444e-05 | J177: -0.0008161017945 | K177: -0.02100153033 | L177: 0.007146835448 | M177: 0.2088870383 | N177: 0.001009117159
A178: =IF('DF raw data'!E183="","",'DF raw data'!E183) -> -242 | B178: =IF('DF raw data'!F183="","",'DF raw data'!F183) -> -1.42353e-05 | C178: =IF('DF raw data'!G183="","",'DF raw data'!G183) -> 0.000114656 | D178: =IF('DF raw data'!H183="","",'DF raw data'!H183) -> -2.32644e-05 | F178: -1.42922412e-05 | G178: 0.000115114624 | H178: -2.33574576e-05 | J178: -0.0008232479151 | K178: -0.02141315429 | L178: 0.00720439276 | M178: 0.2124892347 | N178: 0.001035407666
A179: =IF('DF raw data'!E184="","",'DF raw data'!E184) -> -241.5 | B179: =IF('DF raw data'!F184="","",'DF raw data'!F184) -> -1.70621e-05 | C179: =IF('DF raw data'!G184="","",'DF raw data'!G184) -> 0.000117076 | D179: =IF('DF raw data'!H184="","",'DF raw data'!H184) -> -1.04127e-05 | F179: -1.71303484e-05 | G179: 0.000117544304 | H179: -1.04543508e-05 | J179: -0.0008318130893 | K179: -0.02182906083 | L179: 0.007263164912 | M179: 0.2161208171 | N179: 0.001062130404
A180: =IF('DF raw data'!E185="","",'DF raw data'!E185) -> -241 | B180: =IF('DF raw data'!F185="","",'DF raw data'!F185) -> -7.57643e-06 | C180: =IF('DF raw data'!G185="","",'DF raw data'!G185) -> 0.000117332 | D180: =IF('DF raw data'!H185="","",'DF raw data'!H185) -> -1.9748e-05 | F180: -7.60673572e-06 | G180: 0.000117801328 | H180: -1.9826992e-05 | J180: -0.0008356164572 | K180: -0.02224686906 | L180: 0.007322065576 | M180: 0.2197818499 | N180: 0.001089285854
A181: =IF('DF raw data'!E186="","",'DF raw data'!E186) -> -240.5 | B181: =IF('DF raw data'!F186="","",'DF raw data'!F186) -> -1.22547e-05 | C181: =IF('DF raw data'!G186="","",'DF raw data'!G186) -> 0.00012187 | D181: =IF('DF raw data'!H186="","",'DF raw data'!H186) -> -1.57378e-05 | F181: -1.23037188e-05 | G181: 0.00012235748 | H181: -1.58007512e-05 | J181: -0.0008417683166 | K181: -0.02266775322 | L181: 0.007383244316 | M181: 0.2234734721 | N181: 0.001116896289
A182: =IF('DF raw data'!E187="","",'DF raw data'!E187) -> -240 | B182: =IF('DF raw data'!F187="","",'DF raw data'!F187) -> -1.30789e-05 | C182: =IF('DF raw data'!G187="","",'DF raw data'!G187) -> 0.000128984 | D182: =IF('DF raw data'!H187="","",'DF raw data'!H187) -> -2.87376e-05 | F182: -1.31312156e-05 | G182: 0.000129499936 | H182: -2.88525504e-05 | J182: -0.0008483339244 | K182: -0.02309192018 | L182: 0.007447994284 | M182: 0.2271974692 | N182: 0.001144992434
A183: =IF('DF raw data'!E188="","",'DF raw data'!E188) -> -239.5 | B183: =IF('DF raw data'!F188="","",'DF raw data'!F188) -> -1.55895e-05 | C183: =IF('DF raw data'!G188="","",'DF raw data'!G188) -> 0.000125596 | D183: =IF('DF raw data'!H188="","",'DF raw data'!H188) -> -9.48244e-06 | F183: -1.5651858e-05 | G183: 0.000126098384 | H183: -9.52036976e-06 | J183: -0.0008561598534 | K183: -0.02352000011 | L183: 0.007511043476 | M183: 0.2309529909 | N183: 0.001173566826
A184: =IF('DF raw data'!E189="","",'DF raw data'!E189) -> -239 | B184: =IF('DF raw data'!F189="","",'DF raw data'!F189) -> -9.30104e-06 | C184: =IF('DF raw data'!G189="","",'DF raw data'!G189) -> 0.000125987 | D184: =IF('DF raw data'!H189="","",'DF raw data'!H189) -> -2.71151e-05 | F184: -9.33824416e-06 | G184: 0.000126490948 | H184: -2.72235604e-05 | J184: -0.0008608289755 | K184: -0.0239504146 | L184: 0.00757428895 | M184: 0.2347401354 | N184: 0.001202622266
A185: =IF('DF raw data'!E190="","",'DF raw data'!E190) -> -238.5 | B185: =IF('DF raw data'!F190="","",'DF raw data'!F190) -> -8.98087e-06 | C185: =IF('DF raw data'!G190="","",'DF raw data'!G190) -> 0.000122469 | D185: =IF('DF raw data'!H190="","",'DF raw data'!H190) -> -2.69282e-05 | F185: -9.01679348e-06 | G185: 0.000122958876 | H185: -2.70359128e-05 | J185: -0.0008653373722 | K185: -0.02438308328 | L185: 0.007635768388 | M185: 0.2385580196 | N185: 0.001232149149
A186: =IF('DF raw data'!E191="","",'DF raw data'!E191) -> -238 | B186: =IF('DF raw data'!F191="","",'DF raw data'!F191) -> -1.2503e-05 | C186: =IF('DF raw data'!G191="","",'DF raw data'!G191) -> 0.000121279 | D186: =IF('DF raw data'!H191="","",'DF raw data'!H191) -> -2.81859e-05 | F186: -1.2553012e-05 | G186: 0.000121764116 | H186: -2.82986436e-05 | J186: -0.0008716138782 | K186: -0.02481889022 | L186: 0.007696650446 | M186: 0.2424063448 | N186: 0.001262148219
A187: =IF('DF raw data'!E192="","",'DF raw data'!E192) -> -237.5 | B187: =IF('DF raw data'!F192="","",'DF raw data'!F192) -> -2.51211e-05 | C187: =IF('DF raw data'!G192="","",'DF raw data'!G192) -> 0.000126196 | D187: =IF('DF raw data'!H192="","",'DF raw data'!H192) -> -2.81915e-05 | F187: -2.52215844e-05 | G187: 0.000126700784 | H187: -2.8304266e-05 | J187: -0.0008842246704 | K187: -0.02526100256 | L187: 0.007760000838 | M187: 0.2462863452 | N187: 0.001292647952
A188: =IF('DF raw data'!E193="","",'DF raw data'!E193) -> -237 | B188: =IF('DF raw data'!F193="","",'DF raw data'!F193) -> -2.13396e-05 | C188: =IF('DF raw data'!G193="","",'DF raw data'!G193) -> 0.000114435 | D188: =IF('DF raw data'!H193="","",'DF raw data'!H193) -> -3.14705e-05 | F188: -2.14249584e-05 | G188: 0.00011489274 | H188: -3.1596382e-05 | J188: -0.0008949371496 | K188: -0.02570847113 | L188: 0.007817447208 | M188: 0.2501950689 | N188: 0.001323604649
A189: =IF('DF raw data'!E194="","",'DF raw data'!E194) -> -236.5 | B189: =IF('DF raw data'!F194="","",'DF raw data'!F194) -> -9.88168e-06 | C189: =IF('DF raw data'!G194="","",'DF raw data'!G194) -> 0.000108316 | D189: =IF('DF raw data'!H194="","",'DF raw data'!H194) -> -2.05322e-05 | F189: -9.92120672e-06 | G189: 0.000108749264 | H189: -2.06143288e-05 | J189: -0.000899897753 | K189: -0.02615842001 | L189: 0.00787182184 | M189: 0.2541309798 | N189: 0.001354992346
A190: =IF('DF raw data'!E195="","",'DF raw data'!E195) -> -236 | B190: =IF('DF raw data'!F195="","",'DF raw data'!F195) -> -2.5574e-05 | C190: =IF('DF raw data'!G195="","",'DF raw data'!G195) -> 0.000112952 | D190: =IF('DF raw data'!H195="","",'DF raw data'!H195) -> -2.06393e-05 | F190: -2.5676296e-05 | G190: 0.000113403808 | H190: -2.07218572e-05 | J190: -0.000912735901 | K190: -0.02661478796 | L190: 0.007928523744 | M190: 0.2580952416 | N190: 0.001386839634
A191: =IF('DF raw data'!E196="","",'DF raw data'!E196) -> -235.5 | B191: =IF('DF raw data'!F196="","",'DF raw data'!F196) -> -2.89726e-05 | C191: =IF('DF raw data'!G196="","",'DF raw data'!G196) -> 0.000111504 | D191: =IF('DF raw data'!H196="","",'DF raw data'!H196) -> -1.51657e-05 | F191: -2.90884904e-05 | G191: 0.000111950016 | H191: -1.52263628e-05 | J191: -0.0009272801462 | K191: -0.02707842803 | L191: 0.007984498752 | M191: 0.262087491 | N191: 0.001419145668
A192: =IF('DF raw data'!E197="","",'DF raw data'!E197) -> -235 | B192: =IF('DF raw data'!F197="","",'DF raw data'!F197) -> -2.10919e-05 | C192: =IF('DF raw data'!G197="","",'DF raw data'!G197) -> 0.00012178 | D192: =IF('DF raw data'!H197="","",'DF raw data'!H197) -> -1.83744e-05 | F192: =(1-$G$1*($B$49-$G$2))*B192 -> -2.11762676e-05 | G192: 0.00012226712 | H192: -1.84478976e-05 | J192: =F192*$G$3+J191 -> -0.00093786828 | K192: =J192*$G$3+K191 -> -0.02754736217 | L192: =G192*$G$3+L191 -> 0.008045632312 | M192: =L192*$G$3+M191 -> 0.2661103072 | N192: =(J192^2+L192^2)*$G$3+N191 -> 0.001451951566
A193: =IF('DF raw data'!E198="","",'DF raw data'!E198) -> -234.5 | B193: =IF('DF raw data'!F198="","",'DF raw data'!F198) -> -7.24876e-06 | C193: =IF('DF raw data'!G198="","",'DF raw data'!G198) -> 0.000122424 | D193: =IF('DF raw data'!H198="","",'DF raw data'!H198) -> -3.10619e-05 | F193: -7.27775504e-06 | G193: 0.000122913696 | H193: -3.11861476e-05 | J193: -0.0009415071575 | K193: -0.02801811575 | L193: 0.00810708916 | M193: 0.2701638518 | N193: 0.001485257232
A194: =IF('DF raw data'!E199="","",'DF raw data'!E199) -> -234 | B194: =IF('DF raw data'!F199="","",'DF raw data'!F199) -> -1.86601e-05 | C194: =IF('DF raw data'!G199="","",'DF raw data'!G199) -> 0.000119896 | D194: =IF('DF raw data'!H199="","",'DF raw data'!H199) -> -1.52783e-05 | F194: -1.87347404e-05 | G194: 0.000120375584 | H194: -1.53394132e-05 | J194: -0.0009508745277 | K194: -0.02849355302 | L194: 0.008167276952 | M194: 0.2742474902 | N194: 0.001519061519
A195: =IF('DF raw data'!E200="","",'DF raw data'!E200) -> -233.5 | B195: =IF('DF raw data'!F200="","",'DF raw data'!F200) -> -2.15327e-05 | C195: =IF('DF raw data'!G200="","",'DF raw data'!G200) -> 0.000122685 | D195: =IF('DF raw data'!H200="","",'DF raw data'!H200) -> -3.03811e-05 | F195: -2.16188308e-05 | G195: 0.00012317574 | H195: -3.05026244e-05 | J195: -0.0009616839431 | K195: -0.02897439499 | L195: 0.008228864822 | M195: 0.2783619226 | N195: 0.001553381045
A196: =IF('DF raw data'!E201="","",'DF raw data'!E201) -> -233 | B196: =IF('DF raw data'!F201="","",'DF raw data'!F201) -> -3.47797e-06 | C196: =IF('DF raw data'!G201="","",'DF raw data'!G201) -> 0.000111894 | D196: =IF('DF raw data'!H201="","",'DF raw data'!H201) -> -1.85062e-05 | F196: -3.49188188e-06 | G196: 0.000112341576 | H196: -1.85802248e-05 | J196: -0.000963429884 | K196: -0.02945610993 | L196: 0.00828503561 | M196: 0.2825044404 | N196: 0.001588166051
A197: =IF('DF raw data'!E202="","",'DF raw data'!E202) -> -232.5 | B197: =IF('DF raw data'!F202="","",'DF raw data'!F202) -> -1.34666e-05 | C197: =IF('DF raw data'!G202="","",'DF raw data'!G202) -> 0.00010924 | D197: =IF('DF raw data'!H202="","",'DF raw data'!H202) -> -2.35182e-05 | F197: -1.35204664e-05 | G197: 0.00010967696 | H197: -2.36122728e-05 | J197: -0.0009701901172 | K197: -0.02994120499 | L197: 0.00833987409 | M197: 0.2866743775 | N197: 0.001623413436
A198: =IF('DF raw data'!E203="","",'DF raw data'!E203) -> -232 | B198: =IF('DF raw data'!F203="","",'DF raw data'!F203) -> -2.74318e-05 | C198: =IF('DF raw data'!G203="","",'DF raw data'!G203) -> 0.000111495 | D198: =IF('DF raw data'!H203="","",'DF raw data'!H203) -> -2.01887e-05 | F198: -2.75415272e-05 | G198: 0.00011194098 | H198: -2.02694548e-05 | J198: -0.0009839608808 | K198: -0.03043318543 | L198: 0.00839584458 | M198: 0.2908722998 | N198: 0.001659142628
A199: =IF('DF raw data'!E204="","",'DF raw data'!E204) -> -231.5 | B199: =IF('DF raw data'!F204="","",'DF raw data'!F204) -> -2.13384e-05 | C199: =IF('DF raw data'!G204="","",'DF raw data'!G204) -> 0.000117272 | D199: =IF('DF raw data'!H204="","",'DF raw data'!H204) -> -3.3424e-05 | F199: -2.14237536e-05 | G199: 0.000117741088 | H199: -3.3557696e-05 | J199: -0.0009946727576 | K199: -0.03093052181 | L199: 0.008454715124 | M199: 0.2950996573 | N199: 0.001695378419
A200: =IF('DF raw data'!E205="","",'DF raw data'!E205) -> -231 | B200: =IF('DF raw data'!F205="","",'DF raw data'!F205) -> -8.92374e-06 | C200: =IF('DF raw data'!G205="","",'DF raw data'!G205) -> 0.000120566 | D200: =IF('DF raw data'!H205="","",'DF raw data'!H205) -> -1.64089e-05 | F200: -8.95943496e-06 | G200: 0.000121048264 | H200: -1.64745356e-05 | J200: -0.0009991524751 | K200: -0.03143009804 | L200: 0.008515239256 | M200: 0.299357277 | N200: 0.001732132222
A201: =IF('DF raw data'!E206="","",'DF raw data'!E206) -> -230.5 | B201: =IF('DF raw data'!F206="","",'DF raw data'!F206) -> -2.26905e-05 | C201: =IF('DF raw data'!G206="","",'DF raw data'!G206) -> 0.000114271 | D201: =IF('DF raw data'!H206="","",'DF raw data'!H206) -> -2.27809e-05 | F201: -2.2781262e-05 | G201: 0.000114728084 | H201: -2.28720236e-05 | J201: -0.001010543106 | K201: -0.0319353696 | L201: 0.008572603298 | M201: 0.3036435786 | N201: 0.001769387584
... 1061 more rows

Sheet 10 y=0
A1: =IF('DF raw data'!I1="","",'DF raw data'!I1) -> Number of header lines | B1: =IF('DF raw data'!J1="","",'DF raw data'!J1) -> 54 | C1: =IF('DF raw data'!K1="","",'DF raw data'!K1) ->  | D1: =IF('DF raw data'!L1="","",'DF raw data'!L1) ->  | F1: T_coeff | G1: -0.001 | H1: /degC | J1: IBy total | K1: =J1262*1000 -> 8.32440982 | L1: muTm | M1: =L1262*1000 -> 40.02476191 | R1: DF ref | S1: ='10 y=-0.2'!S1 -> 1
A2: =IF('DF raw data'!I2="","",'DF raw data'!I2) -> Measured by | B2: =IF('DF raw data'!J2="","",'DF raw data'!J2) -> Danfysik | C2: =IF('DF raw data'!K2="","",'DF raw data'!K2) ->  | D2: =IF('DF raw data'!L2="","",'DF raw data'!L2) ->  | F2: Tcorr | G2: 20 | H2: degC | J2: JBy total | K2: =K1262 -> -1.75235079 | L2: muTm^2 | M2: =M1262 -> 14.15709771
A3: =IF('DF raw data'!I3="","",'DF raw data'!I3) -> Operator | B3: =IF('DF raw data'!J3="","",'DF raw data'!J3) -> PMHA | C3: =IF('DF raw data'!K3="","",'DF raw data'!K3) ->  | D3: =IF('DF raw data'!L3="","",'DF raw data'!L3) ->  | F3: Step | G3: =A63-A62 -> 0.5 | H3: mm | J3: PI total | K3: =N1262 -> 10596.71491 | L3: T^2mm^3
A4: =IF('DF raw data'!I4="","",'DF raw data'!I4) -> Data-time | B4: =IF('DF raw data'!J4="","",'DF raw data'!J4) -> 26-09-2024, 09:58:01 | C4: =IF('DF raw data'!K4="","",'DF raw data'!K4) ->  | D4: =IF('DF raw data'!L4="","",'DF raw data'!L4) -> 
A5: =IF('DF raw data'!I5="","",'DF raw data'!I5) -> Project | B5: =IF('DF raw data'!J5="","",'DF raw data'!J5) -> 504314 | C5: =IF('DF raw data'!K5="","",'DF raw data'!K5) ->  | D5: =IF('DF raw data'!L5="","",'DF raw data'!L5) -> 
A6: =IF('DF raw data'!I6="","",'DF raw data'!I6) -> Magnet type | B6: =IF('DF raw data'!J6="","",'DF raw data'!J6) -> Dipole | C6: =IF('DF raw data'!K6="","",'DF raw data'!K6) ->  | D6: =IF('DF raw data'!L6="","",'DF raw data'!L6) -> 
A7: =IF('DF raw data'!I7="","",'DF raw data'!I7) -> Magnet nr. | B7: =IF('DF raw data'!J7="","",'DF raw data'!J7) -> 2410102 | C7: =IF('DF raw data'!K7="","",'DF raw data'!K7) ->  | D7: =IF('DF raw data'!L7="","",'DF raw data'!L7) -> 
A8: =IF('DF raw data'!I8="","",'DF raw data'!I8) -> Meas. number | B8: =IF('DF raw data'!J8="","",'DF raw data'!J8) -> 700 | C8: =IF('DF raw data'!K8="","",'DF raw data'!K8) ->  | D8: =IF('DF raw data'!L8="","",'DF raw data'!L8) -> 
A9: =IF('DF raw data'!I9="","",'DF raw data'!I9) -> Add. info | B9: =IF('DF raw data'!J9="","",'DF raw data'!J9) -> Y-alignment scan 3) | C9: =IF('DF raw data'!K9="","",'DF raw data'!K9) ->  | D9: =IF('DF raw data'!L9="","",'DF raw data'!L9) -> 
A10: =IF('DF raw data'!I10="","",'DF raw data'!I10) -> Device | B10: =IF('DF raw data'!J10="","",'DF raw data'!J10) -> (HAL) HALL-PROBE | C10: =IF('DF raw data'!K10="","",'DF raw data'!K10) ->  | D10: =IF('DF raw data'!L10="","",'DF raw data'!L10) -> 
A11: =IF('DF raw data'!I11="","",'DF raw data'!I11) -> Goal | B11: =IF('DF raw data'!J11="","",'DF raw data'!J11) -> (AXI) AXis Integral (Line, EFB) | C11: =IF('DF raw data'!K11="","",'DF raw data'!K11) ->  | D11: =IF('DF raw data'!L11="","",'DF raw data'!L11) -> 
A12: =IF('DF raw data'!I12="","",'DF raw data'!I12) -> Power supply mode | B12: =IF('DF raw data'!J12="","",'DF raw data'!J12) -> (PM) Permanent Magnet (no MPS in use) | C12: =IF('DF raw data'!K12="","",'DF raw data'!K12) ->  | D12: =IF('DF raw data'!L12="","",'DF raw data'!L12) -> 
A13: =IF('DF raw data'!I13="","",'DF raw data'!I13) -> Data format | B13: =IF('DF raw data'!J13="","",'DF raw data'!J13) -> Raw data text file | C13: =IF('DF raw data'!K13="","",'DF raw data'!K13) ->  | D13: =IF('DF raw data'!L13="","",'DF raw data'!L13) -> 
A14: =IF('DF raw data'!I14="","",'DF raw data'!I14) -> Direction of the pos. x-axis | B14: =IF('DF raw data'!J14="","",'DF raw data'!J14) -> See test program | C14: =IF('DF raw data'!K14="","",'DF raw data'!K14) ->  | D14: =IF('DF raw data'!L14="","",'DF raw data'!L14) -> 
A15: =IF('DF raw data'!I15="","",'DF raw data'!I15) -> Direction of the pos. y-axis | B15: =IF('DF raw data'!J15="","",'DF raw data'!J15) -> Vertical up | C15: =IF('DF raw data'!K15="","",'DF raw data'!K15) ->  | D15: =IF('DF raw data'!L15="","",'DF raw data'!L15) -> 
A16: =IF('DF raw data'!I16="","",'DF raw data'!I16) -> Direction of the pos. z-axis | B16: =IF('DF raw data'!J16="","",'DF raw data'!J16) -> See test program | C16: =IF('DF raw data'!K16="","",'DF raw data'!K16) ->  | D16: =IF('DF raw data'!L16="","",'DF raw data'!L16) -> 
A17: =IF('DF raw data'!I17="","",'DF raw data'!I17) -> Mapper type | B17: =IF('DF raw data'!J17="","",'DF raw data'!J17) -> Precision Hall Mapper | C17: =IF('DF raw data'!K17="","",'DF raw data'!K17) ->  | D17: =IF('DF raw data'!L17="","",'DF raw data'!L17) -> 
A18: =IF('DF raw data'!I18="","",'DF raw data'!I18) -> Mapper Danfysik Reg. Number | B18: =IF('DF raw data'!J18="","",'DF raw data'!J18) -> 2033-D (mapper 1) | C18: =IF('DF raw data'!K18="","",'DF raw data'!K18) ->  | D18: =IF('DF raw data'!L18="","",'DF raw data'!L18) -> 
A19: =IF('DF raw data'!I19="","",'DF raw data'!I19) -> Measurement consept | B19: =IF('DF raw data'!J19="","",'DF raw data'!J19) -> Square line grid | C19: =IF('DF raw data'!K19="","",'DF raw data'!K19) ->  | D19: =IF('DF raw data'!L19="","",'DF raw data'!L19) -> 
A20: =IF('DF raw data'!I20="","",'DF raw data'!I20) -> Mode | B20: =IF('DF raw data'!J20="","",'DF raw data'!J20) -> On-the-fly measurement | C20: =IF('DF raw data'!K20="","",'DF raw data'!K20) ->  | D20: =IF('DF raw data'!L20="","",'DF raw data'!L20) -> 
A21: =IF('DF raw data'!I21="","",'DF raw data'!I21) ->  | B21: =IF('DF raw data'!J21="","",'DF raw data'!J21) ->  | C21: =IF('DF raw data'!K21="","",'DF raw data'!K21) ->  | D21: =IF('DF raw data'!L21="","",'DF raw data'!L21) -> 
A22: =IF('DF raw data'!I22="","",'DF raw data'!I22) -> Probe Name | B22: =IF('DF raw data'!J22="","",'DF raw data'!J22) -> ID12_By | C22: =IF('DF raw data'!K22="","",'DF raw data'!K22) ->  | D22: =IF('DF raw data'!L22="","",'DF raw data'!L22) -> 
A23: =IF('DF raw data'!I23="","",'DF raw data'!I23) -> Probe Type | B23: =IF('DF raw data'!J23="","",'DF raw data'!J23) -> DF_ID_3D_Bxyz | C23: =IF('DF raw data'!K23="","",'DF raw data'!K23) ->  | D23: =IF('DF raw data'!L23="","",'DF raw data'!L23) -> 
A24: =IF('DF raw data'!I24="","",'DF raw data'!I24) -> Probe Danfysik Reg. Number | B24: =IF('DF raw data'!J24="","",'DF raw data'!J24) -> 2277 | C24: =IF('DF raw data'!K24="","",'DF raw data'!K24) ->  | D24: =IF('DF raw data'!L24="","",'DF raw data'!L24) -> 
A25: =IF('DF raw data'!I25="","",'DF raw data'!I25) -> Probe Axis | B25: =IF('DF raw data'!J25="","",'DF raw data'!J25) -> By | C25: =IF('DF raw data'!K25="","",'DF raw data'!K25) ->  | D25: =IF('DF raw data'!L25="","",'DF raw data'!L25) -> 
A26: =IF('DF raw data'!I26="","",'DF raw data'!I26) -> Probe Current Supply | B26: =IF('DF raw data'!J26="","",'DF raw data'!J26) -> 1825-D | C26: =IF('DF raw data'!K26="","",'DF raw data'!K26) ->  | D26: =IF('DF raw data'!L26="","",'DF raw data'!L26) -> 
A27: =IF('DF raw data'!I27="","",'DF raw data'!I27) -> Probe Gain Correction | B27: =IF('DF raw data'!J27="","",'DF raw data'!J27) -> 0.99599 | C27: =IF('DF raw data'!K27="","",'DF raw data'!K27) ->  | D27: =IF('DF raw data'!L27="","",'DF raw data'!L27) -> 
A28: =IF('DF raw data'!I28="","",'DF raw data'!I28) -> Probe Offset Correction | B28: =IF('DF raw data'!J28="","",'DF raw data'!J28) -> 0.0027595 | C28: =IF('DF raw data'!K28="","",'DF raw data'!K28) ->  | D28: =IF('DF raw data'!L28="","",'DF raw data'!L28) -> 
A29: =IF('DF raw data'!I29="","",'DF raw data'!I29) -> DVM Number | B29: =IF('DF raw data'!J29="","",'DF raw data'!J29) -> 2 | C29: =IF('DF raw data'!K29="","",'DF raw data'!K29) ->  | D29: =IF('DF raw data'!L29="","",'DF raw data'!L29) -> 
A30: =IF('DF raw data'!I30="","",'DF raw data'!I30) -> DVM Type | B30: =IF('DF raw data'!J30="","",'DF raw data'!J30) -> K2701 | C30: =IF('DF raw data'!K30="","",'DF raw data'!K30) ->  | D30: =IF('DF raw data'!L30="","",'DF raw data'!L30) -> 
A31: =IF('DF raw data'!I31="","",'DF raw data'!I31) -> DVM Danfysik Reg. Number | B31: =IF('DF raw data'!J31="","",'DF raw data'!J31) -> 1743-D | C31: =IF('DF raw data'!K31="","",'DF raw data'!K31) ->  | D31: =IF('DF raw data'!L31="","",'DF raw data'!L31) -> 
A32: =IF('DF raw data'!I32="","",'DF raw data'!I32) -> Probe Name | B32: =IF('DF raw data'!J32="","",'DF raw data'!J32) -> ID12_Bx | C32: =IF('DF raw data'!K32="","",'DF raw data'!K32) ->  | D32: =IF('DF raw data'!L32="","",'DF raw data'!L32) -> 
A33: =IF('DF raw data'!I33="","",'DF raw data'!I33) -> Probe Type | B33: =IF('DF raw data'!J33="","",'DF raw data'!J33) -> DF_ID_3D_Bxyz | C33: =IF('DF raw data'!K33="","",'DF raw data'!K33) ->  | D33: =IF('DF raw data'!L33="","",'DF raw data'!L33) -> 
A34: =IF('DF raw data'!I34="","",'DF raw data'!I34) -> Probe Danfysik Reg. Number | B34: =IF('DF raw data'!J34="","",'DF raw data'!J34) -> 2277 | C34: =IF('DF raw data'!K34="","",'DF raw data'!K34) ->  | D34: =IF('DF raw data'!L34="","",'DF raw data'!L34) -> 
A35: =IF('DF raw data'!I35="","",'DF raw data'!I35) -> Probe Axis | B35: =IF('DF raw data'!J35="","",'DF raw data'!J35) -> Bx | C35: =IF('DF raw data'!K35="","",'DF raw data'!K35) ->  | D35: =IF('DF raw data'!L35="","",'DF raw data'!L35) -> 
A36: =IF('DF raw data'!I36="","",'DF raw data'!I36) -> Probe Current Supply | B36: =IF('DF raw data'!J36="","",'DF raw data'!J36) -> 1825-D | C36: =IF('DF raw data'!K36="","",'DF raw data'!K36) ->  | D36: =IF('DF raw data'!L36="","",'DF raw data'!L36) -> 
A37: =IF('DF raw data'!I37="","",'DF raw data'!I37) -> Probe Gain Correction | B37: =IF('DF raw data'!J37="","",'DF raw data'!J37) -> 1 | C37: =IF('DF raw data'!K37="","",'DF raw data'!K37) ->  | D37: =IF('DF raw data'!L37="","",'DF raw data'!L37) -> 
A38: =IF('DF raw data'!I38="","",'DF raw data'!I38) -> Probe Offset Correction | B38: =IF('DF raw data'!J38="","",'DF raw data'!J38) -> -0.17537 | C38: =IF('DF raw data'!K38="","",'DF raw data'!K38) ->  | D38: =IF('DF raw data'!L38="","",'DF raw data'!L38) -> 
A39: =IF('DF raw data'!I39="","",'DF raw data'!I39) -> DVM Number | B39: =IF('DF raw data'!J39="","",'DF raw data'!J39) -> 3 | C39: =IF('DF raw data'!K39="","",'DF raw data'!K39) ->  | D39: =IF('DF raw data'!L39="","",'DF raw data'!L39) -> 
A40: =IF('DF raw data'!I40="","",'DF raw data'!I40) -> DVM Type | B40: =IF('DF raw data'!J40="","",'DF raw data'!J40) -> K2701 | C40: =IF('DF raw data'!K40="","",'DF raw data'!K40) ->  | D40: =IF('DF raw data'!L40="","",'DF raw data'!L40) -> 
A41: =IF('DF raw data'!I41="","",'DF raw data'!I41) -> DVM Danfysik Reg. Number | B41: =IF('DF raw data'!J41="","",'DF raw data'!J41) -> 1744-D | C41: =IF('DF raw data'!K41="","",'DF raw data'!K41) ->  | D41: =IF('DF raw data'!L41="","",'DF raw data'!L41) -> 
A42: =IF('DF raw data'!I42="","",'DF raw data'!I42) -> Probe Name | B42: =IF('DF raw data'!J42="","",'DF raw data'!J42) -> ID12_Bz | C42: =IF('DF raw data'!K42="","",'DF raw data'!K42) ->  | D42: =IF('DF raw data'!L42="","",'DF raw data'!L42) -> 
A43: =IF('DF raw data'!I43="","",'DF raw data'!I43) -> Probe Type | B43: =IF('DF raw data'!J43="","",'DF raw data'!J43) -> DF_ID_3D_Bxyz | C43: =IF('DF raw data'!K43="","",'DF raw data'!K43) ->  | D43: =IF('DF raw data'!L43="","",'DF raw data'!L43) -> 
A44: =IF('DF raw data'!I44="","",'DF raw data'!I44) -> Probe Danfysik Reg. Number | B44: =IF('DF raw data'!J44="","",'DF raw data'!J44) -> 2277 | C44: =IF('DF raw data'!K44="","",'DF raw data'!K44) ->  | D44: =IF('DF raw data'!L44="","",'DF raw data'!L44) -> 
A45: =IF('DF raw data'!I45="","",'DF raw data'!I45) -> Probe Axis | B45: =IF('DF raw data'!J45="","",'DF raw data'!J45) -> Bz | C45: =IF('DF raw data'!K45="","",'DF raw data'!K45) ->  | D45: =IF('DF raw data'!L45="","",'DF raw data'!L45) -> 
A46: =IF('DF raw data'!I46="","",'DF raw data'!I46) -> Probe Current Supply | B46: =IF('DF raw data'!J46="","",'DF raw data'!J46) -> 1825-D | C46: =IF('DF raw data'!K46="","",'DF raw data'!K46) ->  | D46: =IF('DF raw data'!L46="","",'DF raw data'!L46) -> 
A47: =IF('DF raw data'!I47="","",'DF raw data'!I47) -> Probe Gain Correction | B47: =IF('DF raw data'!J47="","",'DF raw data'!J47) -> 1 | C47: =IF('DF raw data'!K47="","",'DF raw data'!K47) ->  | D47: =IF('DF raw data'!L47="","",'DF raw data'!L47) -> 
A48: =IF('DF raw data'!I53="","",'DF raw data'!I53) -> PS-Gap: | B48: =IF('DF raw data'!J53="","",'DF raw data'!J53) -> 10 | C48: =IF('DF raw data'!K53="","",'DF raw data'!K53) ->  | D48: =IF('DF raw data'!L53="","",'DF raw data'!L53) -> 
A49: =IF('DF raw data'!I54="","",'DF raw data'!I54) -> PS-Temperature: | B49: =IF('DF raw data'!J54="","",'DF raw data'!J54) -> 24 | C49: =IF('DF raw data'!K54="","",'DF raw data'!K54) ->  | D49: =IF('DF raw data'!L54="","",'DF raw data'!L54) -> 
A50: =IF('DF raw data'!I55="","",'DF raw data'!I55) -> PS-Encoder: | B50: =IF('DF raw data'!J55="","",'DF raw data'!J55) -> 19.7631 | C50: =IF('DF raw data'!K55="","",'DF raw data'!K55) ->  | D50: =IF('DF raw data'!L55="","",'DF raw data'!L55) -> 
A51: =IF('DF raw data'!I56="","",'DF raw data'!I56) ->  | B51: =IF('DF raw data'!J56="","",'DF raw data'!J56) ->  | C51: =IF('DF raw data'!K56="","",'DF raw data'!K56) ->  | D51: =IF('DF raw data'!L56="","",'DF raw data'!L56) -> 
A52: =IF('DF raw data'!I57="","",'DF raw data'!I57) -> Monitor-Index | B52: =IF('DF raw data'!J57="","",'DF raw data'!J57) -> [1,1,4] | C52: =IF('DF raw data'!K57="","",'DF raw data'!K57) ->  | D52: =IF('DF raw data'!L57="","",'DF raw data'!L57) -> 
A53: =IF('DF raw data'!I58="","",'DF raw data'!I58) ->  | B53: =IF('DF raw data'!J58="","",'DF raw data'!J58) ->  | C53: =IF('DF raw data'!K58="","",'DF raw data'!K58) ->  | D53: =IF('DF raw data'!L58="","",'DF raw data'!L58) -> 
A54: =IF('DF raw data'!I59="","",'DF raw data'!I59) -> Time [s] | B54: =IF('DF raw data'!J59="","",'DF raw data'!J59) -> Y [mm] | C54: =IF('DF raw data'!K59="","",'DF raw data'!K59) -> X [mm] | D54: =IF('DF raw data'!L59="","",'DF raw data'!L59) -> Nominal current [A]
A55: =IF('DF raw data'!I60="","",'DF raw data'!I60) ->  | B55: =IF('DF raw data'!J60="","",'DF raw data'!J60) ->  | C55: =IF('DF raw data'!K60="","",'DF raw data'!K60) ->  | D55: =IF('DF raw data'!L60="","",'DF raw data'!L60) -> 
A56: =IF('DF raw data'!I61="","",'DF raw data'!I61) -> 207.7 | B56: =IF('DF raw data'!J61="","",'DF raw data'!J61) -> 31.65 | C56: =IF('DF raw data'!K61="","",'DF raw data'!K61) -> 302.55 | D56: =IF('DF raw data'!L61="","",'DF raw data'!L61) -> 0
A57: =IF('DF raw data'!I62="","",'DF raw data'!I62) ->  | B57: =IF('DF raw data'!J62="","",'DF raw data'!J62) ->  | C57: =IF('DF raw data'!K62="","",'DF raw data'!K62) ->  | D57: =IF('DF raw data'!L62="","",'DF raw data'!L62) -> 
A58: =IF('DF raw data'!I63="","",'DF raw data'!I63) -> Measurement-Index | B58: =IF('DF raw data'!J63="","",'DF raw data'!J63) -> [1,1,1201,2] | C58: =IF('DF raw data'!K63="","",'DF raw data'!K63) ->  | D58: =IF('DF raw data'!L63="","",'DF raw data'!L63) -> 
A59: =IF('DF raw data'!I64="","",'DF raw data'!I64) ->  | B59: =IF('DF raw data'!J64="","",'DF raw data'!J64) ->  | C59: =IF('DF raw data'!K64="","",'DF raw data'!K64) ->  | D59: =IF('DF raw data'!L64="","",'DF raw data'!L64) -> 
A60: =IF('DF raw data'!I65="","",'DF raw data'!I65) -> Z [mm] | B60: By [T] | C60: Bx [T] | D60: Bz [T] | F60: By_corr | G60: Bx_corr | H60: Bz_corr | J60: Iy | K60: Jy | L60: Ix | M60: Jx | N60: PI
A62: =IF('DF raw data'!I67="","",'DF raw data'!I67) -> -300 | B62: =IF('DF raw data'!J67="","",'DF raw data'!J67) -> -1.13712e-05 | C62: =IF('DF raw data'!K67="","",'DF raw data'!K67) -> 0.000119416 | D62: =IF('DF raw data'!L67="","",'DF raw data'!L67) -> -3.17105e-05 | F62: =(1-$G$1*($B$49))*B62 -> -1.16441088e-05 | G62: =(1-$G$1*($B$49-$G$2))*C62 -> 0.000119893664 | H62: =(1-$G$1*($B$49-$G$2))*D62 -> -3.1837342e-05 | J62: =F62*$G$3 -> -5.8220544e-06 | K62: =J62*$G$3 -> -2.9110272e-06 | L62: =G62*$G$3 -> 5.9946832e-05 | M62: =L62*$G$3 -> 2.9973416e-05 | N62: =(J62^2+L62^2)*$G$3 -> 1.813759492e-09
A63: =IF('DF raw data'!I68="","",'DF raw data'!I68) -> -299.5 | B63: =IF('DF raw data'!J68="","",'DF raw data'!J68) -> 6.06419e-07 | C63: =IF('DF raw data'!K68="","",'DF raw data'!K68) -> 0.000123054 | D63: =IF('DF raw data'!L68="","",'DF raw data'!L68) -> -3.22512e-05 | F63: =(1-$G$1*($B$49-$G$2))*B63 -> 6.08844676e-07 | G63: =(1-$G$1*($B$49-$G$2))*C63 -> 0.000123546216 | H63: -3.23802048e-05 | J63: =F63*$G$3+J62 -> -5.517632062e-06 | K63: =J63*$G$3+K62 -> -5.669843231e-06 | L63: =G63*$G$3+L62 -> 0.00012171994 | M63: =L63*$G$3+M62 -> 9.0833386e-05 | N63: =(J63^2+L63^2)*$G$3+N62 -> 9.236853521e-09
A64: =IF('DF raw data'!I69="","",'DF raw data'!I69) -> -299 | B64: =IF('DF raw data'!J69="","",'DF raw data'!J69) -> -2.41793e-05 | C64: =IF('DF raw data'!K69="","",'DF raw data'!K69) -> 0.000126866 | D64: =IF('DF raw data'!L69="","",'DF raw data'!L69) -> -3.23093e-05 | F64: =(1-$G$1*($B$49-$G$2))*B64 -> -2.42760172e-05 | G64: 0.000127373464 | H64: -3.24385372e-05 | J64: =F64*$G$3+J63 -> -1.765564066e-05 | K64: =J64*$G$3+K63 -> -1.449766356e-05 | L64: =G64*$G$3+L63 -> 0.000185406672 | M64: =L64*$G$3+M63 -> 0.000183536722 | N64: =(J64^2+L64^2)*$G$3+N63 -> 2.658053136e-08
A65: =IF('DF raw data'!I70="","",'DF raw data'!I70) -> -298.5 | B65: =IF('DF raw data'!J70="","",'DF raw data'!J70) -> -1.45745e-05 | C65: =IF('DF raw data'!K70="","",'DF raw data'!K70) -> 0.000129428 | D65: =IF('DF raw data'!L70="","",'DF raw data'!L70) -> -3.15344e-05 | F65: -1.4632798e-05 | G65: 0.000129945712 | H65: -3.16605376e-05 | J65: -2.497203966e-05 | K65: -2.698368339e-05 | L65: 0.000250379528 | M65: 0.000308726486 | N65: 5.823728676e-08
A66: =IF('DF raw data'!I71="","",'DF raw data'!I71) -> -298 | B66: =IF('DF raw data'!J71="","",'DF raw data'!J71) -> -8.74466e-06 | C66: =IF('DF raw data'!K71="","",'DF raw data'!K71) -> 0.000123854 | D66: =IF('DF raw data'!L71="","",'DF raw data'!L71) -> -3.13754e-05 | F66: -8.77963864e-06 | G66: 0.000124349416 | H66: -3.15009016e-05 | J66: -2.936185898e-05 | K66: -4.166461288e-05 | L66: 0.000312554236 | M66: 0.000465003604 | N66: 1.075134214e-07
A67: =IF('DF raw data'!I72="","",'DF raw data'!I72) -> -297.5 | B67: =IF('DF raw data'!J72="","",'DF raw data'!J72) -> -1.05391e-05 | C67: =IF('DF raw data'!K72="","",'DF raw data'!K72) -> 0.000130076 | D67: =IF('DF raw data'!L72="","",'DF raw data'!L72) -> -3.16758e-05 | F67: -1.05812564e-05 | G67: 0.000130596304 | H67: -3.18025032e-05 | J67: -3.465248718e-05 | K67: -5.899085648e-05 | L67: 0.000377852388 | M67: 0.000653929798 | N67: 1.795000324e-07
A68: =IF('DF raw data'!I73="","",'DF raw data'!I73) -> -297 | B68: =IF('DF raw data'!J73="","",'DF raw data'!J73) -> -1.65584e-05 | C68: =IF('DF raw data'!K73="","",'DF raw data'!K73) -> 0.000128672 | D68: =IF('DF raw data'!L73="","",'DF raw data'!L73) -> -3.14251e-05 | F68: -1.66246336e-05 | G68: 0.000129186688 | H68: -3.15508004e-05 | J68: -4.296480398e-05 | K68: -8.047325847e-05 | L68: 0.000442445732 | M68: 0.000875152664 | N68: 2.783021324e-07
A69: =IF('DF raw data'!I74="","",'DF raw data'!I74) -> -296.5 | B69: =IF('DF raw data'!J74="","",'DF raw data'!J74) -> -5.03087e-06 | C69: =IF('DF raw data'!K74="","",'DF raw data'!K74) -> 0.0001214 | D69: =IF('DF raw data'!L74="","",'DF raw data'!L74) -> -3.12091e-05 | F69: -5.05099348e-06 | G69: 0.0001218856 | H69: -3.13339364e-05 | J69: -4.549030072e-05 | K69: -0.0001032184088 | L69: 0.000503388532 | M69: 0.00112684693 | N69: 4.060368232e-07
A70: =IF('DF raw data'!I75="","",'DF raw data'!I75) -> -296 | B70: =IF('DF raw data'!J75="","",'DF raw data'!J75) -> -8.68071e-06 | C70: =IF('DF raw data'!K75="","",'DF raw data'!K75) -> 0.000125195 | D70: =IF('DF raw data'!L75="","",'DF raw data'!L75) -> -3.15083e-05 | F70: -8.71543284e-06 | G70: 0.00012569578 | H70: -3.16343332e-05 | J70: -4.984801714e-05 | K70: -0.0001281424174 | L70: 0.000566236422 | M70: 0.001409965141 | N70: 5.675910784e-07
A71: =IF('DF raw data'!I76="","",'DF raw data'!I76) -> -295.5 | B71: =IF('DF raw data'!J76="","",'DF raw data'!J76) -> -4.7099e-06 | C71: =IF('DF raw data'!K76="","",'DF raw data'!K76) -> 0.000131134 | D71: =IF('DF raw data'!L76="","",'DF raw data'!L76) -> -3.20807e-05 | F71: -4.7287396e-06 | G71: 0.000131658536 | H71: -3.22090228e-05 | J71: -5.221238694e-05 | K71: -0.0001542486109 | L71: 0.00063206569 | M71: 0.001725997986 | N71: 7.687076633e-07
A72: =IF('DF raw data'!I77="","",'DF raw data'!I77) -> -295 | B72: =IF('DF raw data'!J77="","",'DF raw data'!J77) -> -8.74409e-06 | C72: =IF('DF raw data'!K77="","",'DF raw data'!K77) -> 0.000128159 | D72: =IF('DF raw data'!L77="","",'DF raw data'!L77) -> -3.23104e-05 | F72: -8.77906636e-06 | G72: 0.000128671636 | H72: -3.24396416e-05 | J72: -5.660192012e-05 | K72: -0.0001825495709 | L72: 0.000696401508 | M72: 0.00207419874 | N72: 1.012797082e-06
A73: =IF('DF raw data'!I78="","",'DF raw data'!I78) -> -294.5 | B73: =IF('DF raw data'!J78="","",'DF raw data'!J78) -> -1.15638e-05 | C73: =IF('DF raw data'!K78="","",'DF raw data'!K78) -> 0.000128394 | D73: =IF('DF raw data'!L78="","",'DF raw data'!L78) -> -3.18047e-05 | F73: -1.16100552e-05 | G73: 0.000128907576 | H73: -3.19319188e-05 | J73: -6.240694772e-05 | K73: -0.0002137530448 | L73: 0.000760855296 | M73: 0.002454626388 | N73: 1.304194786e-06
A74: =IF('DF raw data'!I79="","",'DF raw data'!I79) -> -294 | B74: =IF('DF raw data'!J79="","",'DF raw data'!J79) -> -1.39327e-05 | C74: =IF('DF raw data'!K79="","",'DF raw data'!K79) -> 0.000120327 | D74: =IF('DF raw data'!L79="","",'DF raw data'!L79) -> -3.12155e-05 | F74: -1.39884308e-05 | G74: 0.000120808308 | H74: -3.1340362e-05 | J74: -6.940116312e-05 | K74: -0.0002484536264 | L74: 0.00082125945 | M74: 0.002865256113 | N74: 1.643836589e-06
A75: =IF('DF raw data'!I80="","",'DF raw data'!I80) -> -293.5 | B75: =IF('DF raw data'!J80="","",'DF raw data'!J80) -> 2.33571e-06 | C75: =IF('DF raw data'!K80="","",'DF raw data'!K80) -> 0.000124525 | D75: =IF('DF raw data'!L80="","",'DF raw data'!L80) -> -3.18642e-05 | F75: 2.34505284e-06 | G75: 0.0001250231 | H75: -3.19916568e-05 | J75: -6.82286367e-05 | K75: -0.0002825679447 | L75: 0.000883771 | M75: 0.003307141613 | N75: 2.036689753e-06
A76: =IF('DF raw data'!I81="","",'DF raw data'!I81) -> -293 | B76: =IF('DF raw data'!J81="","",'DF raw data'!J81) -> -9.44805e-06 | C76: =IF('DF raw data'!K81="","",'DF raw data'!K81) -> 0.000115957 | D76: =IF('DF raw data'!L81="","",'DF raw data'!L81) -> -3.32721e-05 | F76: -9.4858422e-06 | G76: 0.000116420828 | H76: -3.34051884e-05 | J76: -7.29715578e-05 | K76: -0.0003190537236 | L76: 0.000941981414 | M76: 0.00377813232 | N76: 2.483016669e-06
A77: =IF('DF raw data'!I82="","",'DF raw data'!I82) -> -292.5 | B77: =IF('DF raw data'!J82="","",'DF raw data'!J82) -> -1.2075e-05 | C77: =IF('DF raw data'!K82="","",'DF raw data'!K82) -> 0.000105293 | D77: =IF('DF raw data'!L82="","",'DF raw data'!L82) -> -3.37317e-05 | F77: -1.21233e-05 | G77: 0.000105714172 | H77: -3.38666268e-05 | J77: -7.90332078e-05 | K77: -0.0003585703275 | L77: 0.0009948385 | M77: 0.00427555157 | N77: 2.980991614e-06
A78: =IF('DF raw data'!I83="","",'DF raw data'!I83) -> -292 | B78: =IF('DF raw data'!J83="","",'DF raw data'!J83) -> -2.92389e-05 | C78: =IF('DF raw data'!K83="","",'DF raw data'!K83) -> 0.000125354 | D78: =IF('DF raw data'!L83="","",'DF raw data'!L83) -> -3.23199e-05 | F78: -2.93558556e-05 | G78: 0.000125855416 | H78: -3.24491796e-05 | J78: -9.37111356e-05 | K78: -0.0004054258953 | L78: 0.001057766208 | M78: 0.004804434674 | N78: 3.544817178e-06
A79: =IF('DF raw data'!I84="","",'DF raw data'!I84) -> -291.5 | B79: =IF('DF raw data'!J84="","",'DF raw data'!J84) -> -2.20143e-05 | C79: =IF('DF raw data'!K84="","",'DF raw data'!K84) -> 0.000128473 | D79: =IF('DF raw data'!L84="","",'DF raw data'!L84) -> -1.65675e-05 | F79: -2.21023572e-05 | G79: 0.000128986892 | H79: -1.663377e-05 | J79: -0.0001047623142 | K79: -0.0004578070524 | L79: 0.001122259654 | M79: 0.005365564501 | N79: 4.180038114e-06
A80: =IF('DF raw data'!I85="","",'DF raw data'!I85) -> -291 | B80: =IF('DF raw data'!J85="","",'DF raw data'!J85) -> -7.85387e-06 | C80: =IF('DF raw data'!K85="","",'DF raw data'!K85) -> 0.000128912 | D80: =IF('DF raw data'!L85="","",'DF raw data'!L85) -> -2.2445e-05 | F80: -7.88528548e-06 | G80: 0.000129427648 | H80: -2.253478e-05 | J80: -0.0001087049569 | K80: -0.0005121595309 | L80: 0.001186973478 | M80: 0.00595905124 | N80: 4.890399517e-06
A81: =IF('DF raw data'!I86="","",'DF raw data'!I86) -> -290.5 | B81: =IF('DF raw data'!J86="","",'DF raw data'!J86) -> -9.64819e-06 | C81: =IF('DF raw data'!K86="","",'DF raw data'!K86) -> 0.000132958 | D81: =IF('DF raw data'!L86="","",'DF raw data'!L86) -> -2.23867e-05 | F81: -9.68678276e-06 | G81: 0.000133489832 | H81: -2.24762468e-05 | J81: -0.0001135483483 | K81: -0.000568933705 | L81: 0.001253718394 | M81: 0.006585910437 | N81: 5.682751036e-06
A82: =IF('DF raw data'!I87="","",'DF raw data'!I87) -> -290 | B82: =IF('DF raw data'!J87="","",'DF raw data'!J87) -> -2.36081e-05 | C82: =IF('DF raw data'!K87="","",'DF raw data'!K87) -> 0.000124275 | D82: =IF('DF raw data'!L87="","",'DF raw data'!L87) -> -2.41503e-05 | F82: -2.37025324e-05 | G82: 0.0001247721 | H82: -2.42469012e-05 | J82: -0.0001253996145 | K82: -0.0006316335123 | L82: 0.001316104444 | M82: 0.007243962659 | N82: 6.556679022e-06
A83: =IF('DF raw data'!I88="","",'DF raw data'!I88) -> -289.5 | B83: =IF('DF raw data'!J88="","",'DF raw data'!J88) -> -1.44414e-05 | C83: =IF('DF raw data'!K88="","",'DF raw data'!K88) -> 0.000119779 | D83: =IF('DF raw data'!L88="","",'DF raw data'!L88) -> -3.92641e-05 | F83: -1.44991656e-05 | G83: 0.000120258116 | H83: -3.94211564e-05 | J83: -0.0001326491973 | K83: -0.000697958111 | L83: 0.001376233502 | M83: 0.00793207941 | N83: 7.512486253e-06
A84: =IF('DF raw data'!I89="","",'DF raw data'!I89) -> -289 | B84: =IF('DF raw data'!J89="","",'DF raw data'!J89) -> -5.09698e-06 | C84: =IF('DF raw data'!K89="","",'DF raw data'!K89) -> 0.000122413 | D84: =IF('DF raw data'!L89="","",'DF raw data'!L89) -> -2.69521e-05 | F84: -5.11736792e-06 | G84: 0.000122902652 | H84: -2.70599084e-05 | J84: -0.0001352078813 | K84: -0.0007655620516 | L84: 0.001437684828 | M84: 0.008650921824 | N84: 8.55509567e-06
A85: =IF('DF raw data'!I90="","",'DF raw data'!I90) -> -288.5 | B85: =IF('DF raw data'!J90="","",'DF raw data'!J90) -> -2.08592e-05 | C85: =IF('DF raw data'!K90="","",'DF raw data'!K90) -> 0.000112474 | D85: =IF('DF raw data'!L90="","",'DF raw data'!L90) -> -1.99009e-05 | F85: -2.09426368e-05 | G85: 0.000112923896 | H85: -1.99805036e-05 | J85: -0.0001456791997 | K85: -0.0008384016514 | L85: 0.001494146776 | M85: 0.009397995212 | N85: 9.681944179e-06
A86: =IF('DF raw data'!I91="","",'DF raw data'!I91) -> -288 | B86: =IF('DF raw data'!J91="","",'DF raw data'!J91) -> -3.24597e-06 | C86: =IF('DF raw data'!K91="","",'DF raw data'!K91) -> 0.000113428 | D86: =IF('DF raw data'!L91="","",'DF raw data'!L91) -> -1.71164e-05 | F86: -3.25895388e-06 | G86: 0.000113881712 | H86: -1.71848656e-05 | J86: -0.0001473086766 | K86: -0.0009120559898 | L86: 0.001551087632 | M86: 0.01017353903 | N86: 1.089573052e-05
A87: =IF('DF raw data'!I92="","",'DF raw data'!I92) -> -287.5 | B87: =IF('DF raw data'!J92="","",'DF raw data'!J92) -> -1.49599e-05 | C87: =IF('DF raw data'!K92="","",'DF raw data'!K92) -> 0.000122593 | D87: =IF('DF raw data'!L92="","",'DF raw data'!L92) -> -2.98937e-05 | F87: -1.50197396e-05 | G87: 0.000123083372 | H87: -3.00132748e-05 | J87: -0.0001548185464 | K87: -0.000989465263 | L87: 0.001612629318 | M87: 0.01097985369 | N87: 1.220800157e-05
A88: =IF('DF raw data'!I93="","",'DF raw data'!I93) -> -287 | B88: =IF('DF raw data'!J93="","",'DF raw data'!J93) -> -1.47104e-05 | C88: =IF('DF raw data'!K93="","",'DF raw data'!K93) -> 0.00012414 | D88: =IF('DF raw data'!L93="","",'DF raw data'!L93) -> -1.7022e-05 | F88: -1.47692416e-05 | G88: 0.00012463656 | H88: -1.7090088e-05 | J88: -0.0001622031672 | K88: -0.001070566847 | L88: 0.001674947598 | M88: 0.01181732749 | N88: 1.362388123e-05
A89: =IF('DF raw data'!I94="","",'DF raw data'!I94) -> -286.5 | B89: =IF('DF raw data'!J94="","",'DF raw data'!J94) -> -1.74568e-05 | C89: =IF('DF raw data'!K94="","",'DF raw data'!K94) -> 0.000122069 | D89: =IF('DF raw data'!L94="","",'DF raw data'!L94) -> -3.16508e-05 | F89: -1.75266272e-05 | G89: 0.000122557276 | H89: -3.17774032e-05 | J89: -0.0001709664808 | K89: -0.001156050087 | L89: 0.001736226236 | M89: 0.0126854406 | N89: 1.514573678e-05
A90: =IF('DF raw data'!I95="","",'DF raw data'!I95) -> -286 | B90: =IF('DF raw data'!J95="","",'DF raw data'!J95) -> -2.32207e-05 | C90: =IF('DF raw data'!K95="","",'DF raw data'!K95) -> 0.000124216 | D90: =IF('DF raw data'!L95="","",'DF raw data'!L95) -> -2.89958e-05 | F90: -2.33135828e-05 | G90: 0.000124712864 | H90: -2.91117832e-05 | J90: -0.0001826232722 | K90: -0.001247361723 | L90: 0.001798582668 | M90: 0.01358473194 | N90: 1.677986221e-05
A91: =IF('DF raw data'!I96="","",'DF raw data'!I96) -> -285.5 | B91: =IF('DF raw data'!J96="","",'DF raw data'!J96) -> -1.88072e-05 | C91: =IF('DF raw data'!K96="","",'DF raw data'!K96) -> 0.000121959 | D91: =IF('DF raw data'!L96="","",'DF raw data'!L96) -> -2.36926e-05 | F91: -1.88824288e-05 | G91: 0.000122446836 | H91: -2.37873704e-05 | J91: -0.0001920644866 | K91: -0.001343393966 | L91: 0.001859806086 | M91: 0.01451463498 | N91: 1.852774593e-05
A92: =IF('DF raw data'!I97="","",'DF raw data'!I97) -> -285 | B92: =IF('DF raw data'!J97="","",'DF raw data'!J97) -> -1.29789e-05 | C92: =IF('DF raw data'!K97="","",'DF raw data'!K97) -> 0.000113898 | D92: =IF('DF raw data'!L97="","",'DF raw data'!L97) -> -2.04871e-05 | F92: -1.30308156e-05 | G92: 0.000114353592 | H92: -2.05690484e-05 | J92: -0.0001985798944 | K92: -0.001442683914 | L92: 0.001916982882 | M92: 0.01547312642 | N92: 2.038487461e-05
A93: =IF('DF raw data'!I98="","",'DF raw data'!I98) -> -284.5 | B93: =IF('DF raw data'!J98="","",'DF raw data'!J98) -> -1.52152e-05 | C93: =IF('DF raw data'!K98="","",'DF raw data'!K98) -> 0.000121435 | D93: =IF('DF raw data'!L98="","",'DF raw data'!L98) -> -3.12519e-05 | F93: -1.52760608e-05 | G93: 0.00012192074 | H93: -3.13769076e-05 | J93: -0.0002062179248 | K93: -0.001545792876 | L93: 0.001977943252 | M93: 0.01646209805 | N93: 2.236226728e-05
A94: =IF('DF raw data'!I99="","",'DF raw data'!I99) -> -284 | B94: =IF('DF raw data'!J99="","",'DF raw data'!J99) -> -1.95093e-05 | C94: =IF('DF raw data'!K99="","",'DF raw data'!K99) -> 0.000126886 | D94: =IF('DF raw data'!L99="","",'DF raw data'!L99) -> -2.39173e-05 | F94: -1.95873372e-05 | G94: 0.000127393544 | H94: -2.40129692e-05 | J94: -0.0002160115934 | K94: -0.001653798673 | L94: 0.002041640024 | M94: 0.01748291806 | N94: 2.446974477e-05
A95: =IF('DF raw data'!I100="","",'DF raw data'!I100) -> -283.5 | B95: =IF('DF raw data'!J100="","",'DF raw data'!J100) -> -1.3175e-05 | C95: =IF('DF raw data'!K100="","",'DF raw data'!K100) -> 0.000132549 | D95: =IF('DF raw data'!L100="","",'DF raw data'!L100) -> -1.66778e-05 | F95: -1.32277e-05 | G95: 0.000133079196 | H95: -1.67445112e-05 | J95: -0.0002226254434 | K95: -0.001765111394 | L95: 0.002108179622 | M95: 0.01853700787 | N95: 2.671673648e-05
A96: =IF('DF raw data'!I101="","",'DF raw data'!I101) -> -283 | B96: =IF('DF raw data'!J101="","",'DF raw data'!J101) -> -1.71374e-05 | C96: =IF('DF raw data'!K101="","",'DF raw data'!K101) -> 0.000117922 | D96: =IF('DF raw data'!L101="","",'DF raw data'!L101) -> -2.71865e-05 | F96: -1.72059496e-05 | G96: 0.000118393688 | H96: -2.7295246e-05 | J96: -0.0002312284182 | K96: -0.001880725604 | L96: 0.002167376466 | M96: 0.0196206961 | N96: 2.909223014e-05
A97: =IF('DF raw data'!I102="","",'DF raw data'!I102) -> -282.5 | B97: =IF('DF raw data'!J102="","",'DF raw data'!J102) -> -2.37971e-05 | C97: =IF('DF raw data'!K102="","",'DF raw data'!K102) -> 0.0001184 | D97: =IF('DF raw data'!L102="","",'DF raw data'!L102) -> -3.2747e-05 | F97: -2.38922884e-05 | G97: 0.0001188736 | H97: -3.2877988e-05 | J97: -0.0002431745624 | K97: -0.002002312885 | L97: 0.002226813266 | M97: 0.02073410274 | N97: 3.160114574e-05
A98: =IF('DF raw data'!I103="","",'DF raw data'!I103) -> -282 | B98: =IF('DF raw data'!J103="","",'DF raw data'!J103) -> -1.42621e-05 | C98: =IF('DF raw data'!K103="","",'DF raw data'!K103) -> 0.000123807 | D98: =IF('DF raw data'!L103="","",'DF raw data'!L103) -> -1.68768e-05 | F98: -1.43191484e-05 | G98: 0.000124302228 | H98: -1.69443072e-05 | J98: -0.0002503341366 | K98: -0.002127479953 | L98: 0.00228896438 | M98: 0.02187858493 | N98: 3.425215829e-05
A99: =IF('DF raw data'!I104="","",'DF raw data'!I104) -> -281.5 | B99: =IF('DF raw data'!J104="","",'DF raw data'!J104) -> -1.40734e-05 | C99: =IF('DF raw data'!K104="","",'DF raw data'!K104) -> 0.000120303 | D99: =IF('DF raw data'!L104="","",'DF raw data'!L104) -> -1.39996e-05 | F99: -1.41296936e-05 | G99: 0.000120784212 | H99: -1.40555984e-05 | J99: -0.0002573989834 | K99: -0.002256179445 | L99: 0.002349356486 | M99: 0.02305326317 | N99: 3.704502336e-05
A100: =IF('DF raw data'!I105="","",'DF raw data'!I105) -> -281 | B100: =IF('DF raw data'!J105="","",'DF raw data'!J105) -> -1.35482e-05 | C100: =IF('DF raw data'!K105="","",'DF raw data'!K105) -> 0.000125187 | D100: =IF('DF raw data'!L105="","",'DF raw data'!L105) -> -3.16922e-05 | F100: -1.36023928e-05 | G100: 0.000125687748 | H100: -3.18189688e-05 | J100: -0.0002642001798 | K100: -0.002388279535 | L100: 0.00241220036 | M100: 0.02425936335 | N100: 3.998927952e-05
A101: =IF('DF raw data'!I106="","",'DF raw data'!I106) -> -280.5 | B101: =IF('DF raw data'!J106="","",'DF raw data'!J106) -> -1.57278e-05 | C101: =IF('DF raw data'!K106="","",'DF raw data'!K106) -> 0.000133057 | D101: =IF('DF raw data'!L106="","",'DF raw data'!L106) -> -3.08151e-05 | F101: -1.57907112e-05 | G101: 0.000133589228 | H101: -3.09383604e-05 | J101: -0.0002720955354 | K101: -0.002524327302 | L101: 0.002478994974 | M101: 0.02549886084 | N101: 4.309900555e-05
A102: =IF('DF raw data'!I107="","",'DF raw data'!I107) -> -280 | B102: =IF('DF raw data'!J107="","",'DF raw data'!J107) -> -1.68818e-05 | C102: =IF('DF raw data'!K107="","",'DF raw data'!K107) -> 0.00012673 | D102: =IF('DF raw data'!L107="","",'DF raw data'!L107) -> -2.66687e-05 | F102: -1.69493272e-05 | G102: 0.00012723692 | H102: -2.67753748e-05 | J102: -0.000280570199 | K102: -0.002664612402 | L102: 0.002542613434 | M102: 0.02677016755 | N102: 4.63708069e-05
A103: =IF('DF raw data'!I108="","",'DF raw data'!I108) -> -279.5 | B103: =IF('DF raw data'!J108="","",'DF raw data'!J108) -> -1.22102e-05 | C103: =IF('DF raw data'!K108="","",'DF raw data'!K108) -> 0.000123216 | D103: =IF('DF raw data'!L108="","",'DF raw data'!L108) -> -2.26031e-05 | F103: -1.22590408e-05 | G103: 0.000123708864 | H103: -2.26935124e-05 | J103: -0.0002866997194 | K103: -0.002807962262 | L103: 0.002604467866 | M103: 0.02807240149 | N103: 4.98035317e-05
A104: =IF('DF raw data'!I109="","",'DF raw data'!I109) -> -279 | B104: =IF('DF raw data'!J109="","",'DF raw data'!J109) -> -2.19375e-05 | C104: =IF('DF raw data'!K109="","",'DF raw data'!K109) -> 0.00012407 | D104: =IF('DF raw data'!L109="","",'DF raw data'!L109) -> -3.31662e-05 | F104: -2.202525e-05 | G104: 0.00012456628 | H104: -3.32988648e-05 | J104: -0.0002977123444 | K104: -0.002956818434 | L104: 0.002666751006 | M104: 0.02940577699 | N104: 5.340362848e-05
A105: =IF('DF raw data'!I110="","",'DF raw data'!I110) -> -278.5 | B105: =IF('DF raw data'!J110="","",'DF raw data'!J110) -> -6.95143e-06 | C105: =IF('DF raw data'!K110="","",'DF raw data'!K110) -> 0.000120944 | D105: =IF('DF raw data'!L110="","",'DF raw data'!L110) -> -3.24877e-05 | F105: -6.97923572e-06 | G105: 0.000121427776 | H105: -3.26176508e-05 | J105: -0.0003012019623 | K105: -0.003107419415 | L105: 0.002727464894 | M105: 0.03076950944 | N105: 5.716852217e-05
A106: =IF('DF raw data'!I111="","",'DF raw data'!I111) -> -278 | B106: =IF('DF raw data'!J111="","",'DF raw data'!J111) -> -1.27865e-05 | C106: =IF('DF raw data'!K111="","",'DF raw data'!K111) -> 0.000120251 | D106: =IF('DF raw data'!L111="","",'DF raw data'!L111) -> -2.10683e-05 | F106: -1.2837646e-05 | G106: 0.000120732004 | H106: -2.11525732e-05 | J106: -0.0003076207853 | K106: -0.003261229808 | L106: 0.002787830896 | M106: 0.03216342488 | N106: 6.110183799e-05
A107: =IF('DF raw data'!I112="","",'DF raw data'!I112) -> -277.5 | B107: =IF('DF raw data'!J112="","",'DF raw data'!J112) -> -5.67094e-06 | C107: =IF('DF raw data'!K112="","",'DF raw data'!K112) -> 0.000120617 | D107: =IF('DF raw data'!L112="","",'DF raw data'!L112) -> -3.16924e-05 | F107: -5.69362376e-06 | G107: 0.000121099468 | H107: -3.18191696e-05 | J107: -0.0003104675972 | K107: -0.003416463606 | L107: 0.00284838063 | M107: 0.0335876152 | N107: 6.520666917e-05
A108: =IF('DF raw data'!I113="","",'DF raw data'!I113) -> -277 | B108: =IF('DF raw data'!J113="","",'DF raw data'!J113) -> -2.05964e-05 | C108: =IF('DF raw data'!K113="","",'DF raw data'!K113) -> 0.000130273 | D108: =IF('DF raw data'!L113="","",'DF raw data'!L113) -> -2.73138e-05 | F108: -2.06787856e-05 | G108: 0.000130794092 | H108: -2.74230552e-05 | J108: -0.00032080699 | K108: -0.003576867101 | L108: 0.002913777676 | M108: 0.03504450404 | N108: 6.95031779e-05
A109: =IF('DF raw data'!I114="","",'DF raw data'!I114) -> -276.5 | B109: =IF('DF raw data'!J114="","",'DF raw data'!J114) -> -2.15008e-05 | C109: =IF('DF raw data'!K114="","",'DF raw data'!K114) -> 0.000126897 | D109: =IF('DF raw data'!L114="","",'DF raw data'!L114) -> -1.75304e-05 | F109: -2.15868032e-05 | G109: 0.000127404588 | H109: -1.76005216e-05 | J109: -0.0003316003916 | K109: -0.003742667297 | L109: 0.00297747997 | M109: 0.03653324402 | N109: 7.39908508e-05
A110: =IF('DF raw data'!I115="","",'DF raw data'!I115) -> -276 | B110: =IF('DF raw data'!J115="","",'DF raw data'!J115) -> -6.7679e-06 | C110: =IF('DF raw data'!K115="","",'DF raw data'!K115) -> 0.000122839 | D110: =IF('DF raw data'!L115="","",'DF raw data'!L115) -> -1.82493e-05 | F110: -6.7949716e-06 | G110: 0.000123330356 | H110: -1.83222972e-05 | J110: -0.0003349978774 | K110: -0.003910166236 | L110: 0.003039145148 | M110: 0.0380528166 | N110: 7.86651642e-05
A111: =IF('DF raw data'!I116="","",'DF raw data'!I116) -> -275.5 | B111: =IF('DF raw data'!J116="","",'DF raw data'!J116) -> -1.34946e-05 | C111: =IF('DF raw data'!K116="","",'DF raw data'!K116) -> 0.00011997 | D111: =IF('DF raw data'!L116="","",'DF raw data'!L116) -> -1.70144e-05 | F111: -1.35485784e-05 | G111: 0.00012044988 | H111: -1.70824576e-05 | J111: -0.0003417721666 | K111: -0.004081052319 | L111: 0.003099370088 | M111: 0.03960250164 | N111: 8.352661578e-05
A112: =IF('DF raw data'!I117="","",'DF raw data'!I117) -> -275 | B112: =IF('DF raw data'!J117="","",'DF raw data'!J117) -> -1.42644e-05 | C112: =IF('DF raw data'!K117="","",'DF raw data'!K117) -> 0.000120019 | D112: =IF('DF raw data'!L117="","",'DF raw data'!L117) -> -1.38034e-05 | F112: -1.43214576e-05 | G112: 0.000120499076 | H112: -1.38586136e-05 | J112: -0.0003489328954 | K112: -0.004255518767 | L112: 0.003159619626 | M112: 0.04118231145 | N112: 8.857909095e-05
A113: =IF('DF raw data'!I118="","",'DF raw data'!I118) -> -274.5 | B113: =IF('DF raw data'!J118="","",'DF raw data'!J118) -> -1.41283e-05 | C113: =IF('DF raw data'!K118="","",'DF raw data'!K118) -> 0.000125898 | D113: =IF('DF raw data'!L118="","",'DF raw data'!L118) -> -2.74691e-05 | F113: -1.41848132e-05 | G113: 0.000126401592 | H113: -2.75789764e-05 | J113: -0.000356025302 | K113: -0.004433531418 | L113: 0.003222820422 | M113: 0.04279372166 | N113: 9.38357537e-05
A114: =IF('DF raw data'!I119="","",'DF raw data'!I119) -> -274 | B114: =IF('DF raw data'!J119="","",'DF raw data'!J119) -> -1.06064e-05 | C114: =IF('DF raw data'!K119="","",'DF raw data'!K119) -> 0.000125714 | D114: =IF('DF raw data'!L119="","",'DF raw data'!L119) -> -2.50749e-05 | F114: -1.06488256e-05 | G114: 0.000126216856 | H114: -2.51751996e-05 | J114: -0.0003613497148 | K114: -0.004614206275 | L114: 0.00328592885 | M114: 0.04443668609 | N114: 9.929970471e-05
A115: =IF('DF raw data'!I120="","",'DF raw data'!I120) -> -273.5 | B115: =IF('DF raw data'!J120="","",'DF raw data'!J120) -> -8.23207e-06 | C115: =IF('DF raw data'!K120="","",'DF raw data'!K120) -> 0.000125389 | D115: =IF('DF raw data'!L120="","",'DF raw data'!L120) -> -3.28927e-05 | F115: -8.26499828e-06 | G115: 0.000125890556 | H115: -3.30242708e-05 | J115: -0.0003654822139 | K115: -0.004796947382 | L115: 0.003348874128 | M115: 0.04611112315 | N115: 0.0001049739723
A116: =IF('DF raw data'!I121="","",'DF raw data'!I121) -> -273 | B116: =IF('DF raw data'!J121="","",'DF raw data'!J121) -> -3.30655e-06 | C116: =IF('DF raw data'!K121="","",'DF raw data'!K121) -> 0.000129316 | D116: =IF('DF raw data'!L121="","",'DF raw data'!L121) -> -2.28044e-05 | F116: -3.3197762e-06 | G116: 0.000129833264 | H116: -2.28956176e-05 | J116: -0.000367142102 | K116: -0.004980518433 | L116: 0.00341379076 | M116: 0.04781801853 | N116: 0.0001108683526
A117: =IF('DF raw data'!I122="","",'DF raw data'!I122) -> -272.5 | B117: =IF('DF raw data'!J122="","",'DF raw data'!J122) -> -9.38842e-06 | C117: =IF('DF raw data'!K122="","",'DF raw data'!K122) -> 0.000125809 | D117: =IF('DF raw data'!L122="","",'DF raw data'!L122) -> -2.75665e-05 | F117: -9.42597368e-06 | G117: 0.000126312236 | H117: -2.7676766e-05 | J117: -0.0003718550888 | K117: -0.005166445977 | L117: 0.003476946878 | M117: 0.04955649197 | N117: 0.0001169820705
A118: =IF('DF raw data'!I123="","",'DF raw data'!I123) -> -272 | B118: =IF('DF raw data'!J123="","",'DF raw data'!J123) -> -1.14402e-05 | C118: =IF('DF raw data'!K123="","",'DF raw data'!K123) -> 0.000127898 | D118: =IF('DF raw data'!L123="","",'DF raw data'!L123) -> -2.34064e-05 | F118: -1.14859608e-05 | G118: 0.000128409592 | H118: -2.35000256e-05 | J118: -0.0003775980692 | K118: -0.005355245012 | L118: 0.003541151674 | M118: 0.05132706781 | N118: 0.0001233232383
A119: =IF('DF raw data'!I124="","",'DF raw data'!I124) -> -271.5 | B119: =IF('DF raw data'!J124="","",'DF raw data'!J124) -> -9.50693e-06 | C119: =IF('DF raw data'!K124="","",'DF raw data'!K124) -> 0.000133575 | D119: =IF('DF raw data'!L124="","",'DF raw data'!L124) -> -4.23469e-05 | F119: -9.54495772e-06 | G119: 0.0001341093 | H119: -4.25162876e-05 | J119: -0.0003823705481 | K119: -0.005546430286 | L119: 0.003608206324 | M119: 0.05313117097 | N119: 0.0001299059183
A120: =IF('DF raw data'!I125="","",'DF raw data'!I125) -> -271 | B120: =IF('DF raw data'!J125="","",'DF raw data'!J125) -> -1.60453e-05 | C120: =IF('DF raw data'!K125="","",'DF raw data'!K125) -> 0.000133055 | D120: =IF('DF raw data'!L125="","",'DF raw data'!L125) -> -3.32861e-05 | F120: -1.61094812e-05 | G120: 0.00013358722 | H120: -3.34192444e-05 | J120: -0.0003904252887 | K120: -0.00574164293 | L120: 0.003674999934 | M120: 0.05496867094 | N120: 0.0001367349465
A121: =IF('DF raw data'!I126="","",'DF raw data'!I126) -> -270.5 | B121: =IF('DF raw data'!J126="","",'DF raw data'!J126) -> -1.32939e-05 | C121: =IF('DF raw data'!K126="","",'DF raw data'!K126) -> 0.000139745 | D121: =IF('DF raw data'!L126="","",'DF raw data'!L126) -> -3.04429e-05 | F121: -1.33470756e-05 | G121: 0.00014030398 | H121: -3.05646716e-05 | J121: -0.0003970988265 | K121: -0.005940192344 | L121: 0.003745151924 | M121: 0.0568412469 | N121: 0.0001438268717
A122: =IF('DF raw data'!I127="","",'DF raw data'!I127) -> -270 | B122: =IF('DF raw data'!J127="","",'DF raw data'!J127) -> -1.3225e-05 | C122: =IF('DF raw data'!K127="","",'DF raw data'!K127) -> 0.000138098 | D122: =IF('DF raw data'!L127="","",'DF raw data'!L127) -> -3.64206e-05 | F122: -1.32779e-05 | G122: 0.000138650392 | H122: -3.65662824e-05 | J122: -0.0004037377765 | K122: -0.006142061232 | L122: 0.00381447712 | M122: 0.05874848546 | N122: 0.0001511834917
A123: =IF('DF raw data'!I128="","",'DF raw data'!I128) -> -269.5 | B123: =IF('DF raw data'!J128="","",'DF raw data'!J128) -> -1.20123e-05 | C123: =IF('DF raw data'!K128="","",'DF raw data'!K128) -> 0.000139695 | D123: =IF('DF raw data'!L128="","",'DF raw data'!L128) -> -3.10797e-05 | F123: -1.20603492e-05 | G123: 0.00014025378 | H123: -3.12040188e-05 | J123: -0.0004097679511 | K123: -0.006346945207 | L123: 0.00388460401 | M123: 0.06069078747 | N123: 0.0001588125207
A124: =IF('DF raw data'!I129="","",'DF raw data'!I129) -> -269 | B124: =IF('DF raw data'!J129="","",'DF raw data'!J129) -> -2.11156e-05 | C124: =IF('DF raw data'!K129="","",'DF raw data'!K129) -> 0.000145375 | D124: =IF('DF raw data'!L129="","",'DF raw data'!L129) -> -1.69033e-05 | F124: -2.12000624e-05 | G124: 0.0001459565 | H124: -1.69709132e-05 | J124: -0.0004203679823 | K124: -0.006557129199 | L124: 0.00395758226 | M124: 0.0626695786 | N124: 0.000166732104
A125: =IF('DF raw data'!I130="","",'DF raw data'!I130) -> -268.5 | B125: =IF('DF raw data'!J130="","",'DF raw data'!J130) -> -1.09983e-05 | C125: =IF('DF raw data'!K130="","",'DF raw data'!K130) -> 0.000138004 | D125: =IF('DF raw data'!L130="","",'DF raw data'!L130) -> -1.43855e-05 | F125: -1.10422932e-05 | G125: 0.000138556016 | H125: -1.4443042e-05 | J125: -0.0004258891289 | K125: -0.006770073763 | L125: 0.004026860268 | M125: 0.06468300873 | N125: 0.0001749305966
A126: =IF('DF raw data'!I131="","",'DF raw data'!I131) -> -268 | B126: =IF('DF raw data'!J131="","",'DF raw data'!J131) -> -2.07955e-05 | C126: =IF('DF raw data'!K131="","",'DF raw data'!K131) -> 0.000134857 | D126: =IF('DF raw data'!L131="","",'DF raw data'!L131) -> -1.65047e-05 | F126: -2.0878682e-05 | G126: 0.000135396428 | H126: -1.65707188e-05 | J126: -0.0004363284699 | K126: -0.006988237998 | L126: 0.004094558482 | M126: 0.06673028797 | N126: 0.0001834084925
A127: =IF('DF raw data'!I132="","",'DF raw data'!I132) -> -267.5 | B127: =IF('DF raw data'!J132="","",'DF raw data'!J132) -> -9.51809e-06 | C127: =IF('DF raw data'!K132="","",'DF raw data'!K132) -> 0.000126128 | D127: =IF('DF raw data'!L132="","",'DF raw data'!L132) -> -2.50895e-05 | F127: -9.55616236e-06 | G127: 0.000126632512 | H127: -2.5189858e-05 | J127: -0.0004411065511 | K127: -0.007208791274 | L127: 0.004157874738 | M127: 0.06880922534 | N127: 0.0001921497411
A128: =IF('DF raw data'!I133="","",'DF raw data'!I133) -> -267 | B128: =IF('DF raw data'!J133="","",'DF raw data'!J133) -> -6.95678e-06 | C128: =IF('DF raw data'!K133="","",'DF raw data'!K133) -> 0.000133378 | D128: =IF('DF raw data'!L133="","",'DF raw data'!L133) -> -2.35318e-05 | F128: =(1-$G$1*($B$49-$G$2))*B128 -> -6.98460712e-06 | G128: 0.000133911512 | H128: -2.36259272e-05 | J128: =F128*$G$3+J127 -> -0.0004445988546 | K128: =J128*$G$3+K127 -> -0.007431090701 | L128: =G128*$G$3+L127 -> 0.004224830494 | M128: =L128*$G$3+M127 -> 0.07092164059 | N128: =(J128^2+L128^2)*$G$3+N127 -> 0.0002011731715
A129: =IF('DF raw data'!I134="","",'DF raw data'!I134) -> -266.5 | B129: =IF('DF raw data'!J134="","",'DF raw data'!J134) -> -1.33014e-05 | C129: =IF('DF raw data'!K134="","",'DF raw data'!K134) -> 0.0001303 | D129: =IF('DF raw data'!L134="","",'DF raw data'!L134) -> -1.88425e-05 | F129: -1.33546056e-05 | G129: 0.0001308212 | H129: -1.891787e-05 | J129: -0.0004512761574 | K129: -0.00765672878 | L129: 0.004290241094 | M129: 0.07306676113 | N129: 0.000210478081
A130: =IF('DF raw data'!I135="","",'DF raw data'!I135) -> -266 | B130: =IF('DF raw data'!J135="","",'DF raw data'!J135) -> -1.99584e-05 | C130: =IF('DF raw data'!K135="","",'DF raw data'!K135) -> 0.000127817 | D130: =IF('DF raw data'!L135="","",'DF raw data'!L135) -> -2.38619e-05 | F130: -2.00382336e-05 | G130: 0.000128328268 | H130: -2.39573476e-05 | J130: -0.0004612952742 | K130: -0.007887376417 | L130: 0.004354405228 | M130: 0.07524396375 | N130: 0.0002200649001
A131: =IF('DF raw data'!I136="","",'DF raw data'!I136) -> -265.5 | B131: =IF('DF raw data'!J136="","",'DF raw data'!J136) -> -1.22702e-05 | C131: =IF('DF raw data'!K136="","",'DF raw data'!K136) -> 0.000126757 | D131: =IF('DF raw data'!L136="","",'DF raw data'!L136) -> -2.82925e-05 | F131: -1.23192808e-05 | G131: 0.000127264028 | H131: -2.840567e-05 | J131: -0.0004674549146 | K131: -0.008121103874 | L131: 0.004418037242 | M131: 0.07745298237 | N131: 0.0002299336836
A132: =IF('DF raw data'!I137="","",'DF raw data'!I137) -> -265 | B132: =IF('DF raw data'!J137="","",'DF raw data'!J137) -> -4.64904e-06 | C132: =IF('DF raw data'!K137="","",'DF raw data'!K137) -> 0.00012607 | D132: =IF('DF raw data'!L137="","",'DF raw data'!L137) -> -2.68744e-05 | F132: -4.66763616e-06 | G132: 0.00012657428 | H132: -2.69818976e-05 | J132: -0.0004697887327 | K132: -0.00835599824 | L132: 0.004481324382 | M132: 0.07969364456 | N132: 0.0002400851685
A133: =IF('DF raw data'!I138="","",'DF raw data'!I138) -> -264.5 | B133: =IF('DF raw data'!J138="","",'DF raw data'!J138) -> -3.0445e-06 | C133: =IF('DF raw data'!K138="","",'DF raw data'!K138) -> 0.000125843 | D133: =IF('DF raw data'!L138="","",'DF raw data'!L138) -> -3.21176e-05 | F133: -3.056678e-06 | G133: 0.000126346372 | H133: -3.22460704e-05 | J133: -0.0004713170717 | K133: -0.008591656776 | L133: 0.004544497568 | M133: 0.08196589334 | N133: 0.0002505224674
A134: =IF('DF raw data'!I139="","",'DF raw data'!I139) -> -264 | B134: =IF('DF raw data'!J139="","",'DF raw data'!J139) -> -4.18573e-07 | C134: =IF('DF raw data'!K139="","",'DF raw data'!K139) -> 0.000138219 | D134: =IF('DF raw data'!L139="","",'DF raw data'!L139) -> -3.18108e-05 | F134: -4.20247292e-07 | G134: 0.000138771876 | H134: -3.19380432e-05 | J134: -0.0004715271954 | K134: -0.008827420374 | L134: 0.004613883506 | M134: 0.0842728351 | N134: 0.0002612775969
A135: =IF('DF raw data'!I140="","",'DF raw data'!I140) -> -263.5 | B135: =IF('DF raw data'!J140="","",'DF raw data'!J140) -> 1.30797e-06 | C135: =IF('DF raw data'!K140="","",'DF raw data'!K140) -> 0.000129366 | D135: =IF('DF raw data'!L140="","",'DF raw data'!L140) -> -2.7396e-05 | F135: 1.31320188e-06 | G135: 0.000129883464 | H135: -2.7505584e-05 | J135: -0.0004708705944 | K135: -0.009062855671 | L135: 0.004678825238 | M135: 0.08661224772 | N135: 0.0002723341593
A136: =IF('DF raw data'!I141="","",'DF raw data'!I141) -> -263 | B136: =IF('DF raw data'!J141="","",'DF raw data'!J141) -> -6.824e-07 | C136: =IF('DF raw data'!K141="","",'DF raw data'!K141) -> 0.000134243 | D136: =IF('DF raw data'!L141="","",'DF raw data'!L141) -> -2.00277e-05 | F136: -6.851296e-07 | G136: 0.000134779972 | H136: -2.01078108e-05 | J136: -0.0004712131592 | K136: -0.009298462251 | L136: 0.004746215224 | M136: 0.08898535533 | N136: 0.0002837084597
A137: =IF('DF raw data'!I142="","",'DF raw data'!I142) -> -262.5 | B137: =IF('DF raw data'!J142="","",'DF raw data'!J142) -> -1.84202e-05 | C137: =IF('DF raw data'!K142="","",'DF raw data'!K142) -> 0.000134074 | D137: =IF('DF raw data'!L142="","",'DF raw data'!L142) -> -2.67198e-05 | F137: -1.84938808e-05 | G137: 0.000134610296 | H137: -2.68266792e-05 | J137: -0.0004804600996 | K137: -0.009538692301 | L137: 0.004813520372 | M137: 0.09139211551 | N137: 0.0002954088698
A138: =IF('DF raw data'!I143="","",'DF raw data'!I143) -> -262 | B138: =IF('DF raw data'!J143="","",'DF raw data'!J143) -> -1.92471e-05 | C138: =IF('DF raw data'!K143="","",'DF raw data'!K143) -> 0.0001272 | D138: =IF('DF raw data'!L143="","",'DF raw data'!L143) -> -3.46463e-05 | F138: -1.93240884e-05 | G138: 0.0001277088 | H138: -3.47848852e-05 | J138: -0.0004901221438 | K138: -0.009783753372 | L138: 0.004877374772 | M138: 0.0938308029 | N138: 0.000307423372
A139: =IF('DF raw data'!I144="","",'DF raw data'!I144) -> -261.5 | B139: =IF('DF raw data'!J144="","",'DF raw data'!J144) -> -1.25281e-05 | C139: =IF('DF raw data'!K144="","",'DF raw data'!K144) -> 0.000124259 | D139: =IF('DF raw data'!L144="","",'DF raw data'!L144) -> -2.54263e-05 | F139: -1.25782124e-05 | G139: 0.000124756036 | H139: -2.55280052e-05 | J139: -0.00049641125 | K139: -0.010031959 | L139: 0.00493975279 | M139: 0.09630067929 | N139: 0.0003197471629
A140: =IF('DF raw data'!I145="","",'DF raw data'!I145) -> -261 | B140: =IF('DF raw data'!J145="","",'DF raw data'!J145) -> -1.23934e-05 | C140: =IF('DF raw data'!K145="","",'DF raw data'!K145) -> 0.000125217 | D140: =IF('DF raw data'!L145="","",'DF raw data'!L145) -> -3.52729e-05 | F140: -1.24429736e-05 | G140: 0.000125717868 | H140: -3.54139916e-05 | J140: -0.0005026327368 | K140: -0.01028327537 | L140: 0.005002611724 | M140: 0.09880198516 | N140: 0.0003323865447
A141: =IF('DF raw data'!I146="","",'DF raw data'!I146) -> -260.5 | B141: =IF('DF raw data'!J146="","",'DF raw data'!J146) -> -2.5535e-05 | C141: =IF('DF raw data'!K146="","",'DF raw data'!K146) -> 0.000121329 | D141: =IF('DF raw data'!L146="","",'DF raw data'!L146) -> -1.80906e-05 | F141: -2.563714e-05 | G141: 0.000121814316 | H141: -1.81629624e-05 | J141: -0.0005154513068 | K141: -0.01054100102 | L141: 0.005063518882 | M141: 0.1013337446 | N141: 0.0003453390015
A142: =IF('DF raw data'!I147="","",'DF raw data'!I147) -> -260 | B142: =IF('DF raw data'!J147="","",'DF raw data'!J147) -> -3.12292e-05 | C142: =IF('DF raw data'!K147="","",'DF raw data'!K147) -> 0.000123042 | D142: =IF('DF raw data'!L147="","",'DF raw data'!L147) -> -2.72182e-05 | F142: -3.13541168e-05 | G142: 0.000123534168 | H142: -2.73270728e-05 | J142: -0.0005311283652 | K142: -0.0108065652 | L142: 0.005125285966 | M142: 0.1038963876 | N142: 0.0003586143283
A143: =IF('DF raw data'!I148="","",'DF raw data'!I148) -> -259.5 | B143: =IF('DF raw data'!J148="","",'DF raw data'!J148) -> -1.12477e-05 | C143: =IF('DF raw data'!K148="","",'DF raw data'!K148) -> 0.000128865 | D143: =IF('DF raw data'!L148="","",'DF raw data'!L148) -> -2.45252e-05 | F143: -1.12926908e-05 | G143: 0.00012938046 | H143: -2.46233008e-05 | J143: -0.0005367747106 | K143: -0.01107495256 | L143: 0.005189976196 | M143: 0.1064913757 | N143: 0.0003722263183
A144: =IF('DF raw data'!I149="","",'DF raw data'!I149) -> -259 | B144: =IF('DF raw data'!J149="","",'DF raw data'!J149) -> -1.86739e-05 | C144: =IF('DF raw data'!K149="","",'DF raw data'!K149) -> 0.0001287 | D144: =IF('DF raw data'!L149="","",'DF raw data'!L149) -> -2.99847e-05 | F144: -1.87485956e-05 | G144: 0.0001292148 | H144: -3.01046388e-05 | J144: -0.0005461490084 | K144: -0.01134802706 | L144: 0.005254583596 | M144: 0.1091186675 | N144: 0.000386180782
A145: =IF('DF raw data'!I150="","",'DF raw data'!I150) -> -258.5 | B145: =IF('DF raw data'!J150="","",'DF raw data'!J150) -> -1.56647e-05 | C145: =IF('DF raw data'!K150="","",'DF raw data'!K150) -> 0.000129218 | D145: =IF('DF raw data'!L150="","",'DF raw data'!L150) -> -2.86225e-05 | F145: -1.57273588e-05 | G145: 0.000129734872 | H145: -2.873699e-05 | J145: -0.0005540126878 | K145: -0.01162503341 | L145: 0.005319451032 | M145: 0.111778393 | N145: 0.0004004825267
A146: =IF('DF raw data'!I151="","",'DF raw data'!I151) -> -258 | B146: =IF('DF raw data'!J151="","",'DF raw data'!J151) -> -1.98261e-05 | C146: =IF('DF raw data'!K151="","",'DF raw data'!K151) -> 0.000129637 | D146: =IF('DF raw data'!L151="","",'DF raw data'!L151) -> -3.09894e-05 | F146: -1.99054044e-05 | G146: 0.000130155548 | H146: -3.11133576e-05 | J146: -0.00056396539 | K146: -0.0119070161 | L146: 0.005384528806 | M146: 0.1144706574 | N146: 0.0004151381304
A147: =IF('DF raw data'!I152="","",'DF raw data'!I152) -> -257.5 | B147: =IF('DF raw data'!J152="","",'DF raw data'!J152) -> -9.32958e-06 | C147: =IF('DF raw data'!K152="","",'DF raw data'!K152) -> 0.000124591 | D147: =IF('DF raw data'!L152="","",'DF raw data'!L152) -> -1.94128e-05 | F147: -9.36689832e-06 | G147: 0.000125089364 | H147: -1.94904512e-05 | J147: -0.0005686488392 | K147: -0.01219134052 | L147: 0.005447073488 | M147: 0.1171941941 | N147: 0.000430135116
A148: =IF('DF raw data'!I153="","",'DF raw data'!I153) -> -257 | B148: =IF('DF raw data'!J153="","",'DF raw data'!J153) -> -1.93155e-05 | C148: =IF('DF raw data'!K153="","",'DF raw data'!K153) -> 0.000133578 | D148: =IF('DF raw data'!L153="","",'DF raw data'!L153) -> -2.82388e-05 | F148: -1.9392762e-05 | G148: 0.000134112312 | H148: -2.83517552e-05 | J148: -0.0005783452202 | K148: -0.01248051313 | L148: 0.005514129644 | M148: 0.119951259 | N148: 0.0004455051704
A149: =IF('DF raw data'!I154="","",'DF raw data'!I154) -> -256.5 | B149: =IF('DF raw data'!J154="","",'DF raw data'!J154) -> -1.56061e-05 | C149: =IF('DF raw data'!K154="","",'DF raw data'!K154) -> 0.00013585 | D149: =IF('DF raw data'!L154="","",'DF raw data'!L154) -> -1.99942e-05 | F149: -1.56685244e-05 | G149: 0.0001363934 | H149: -2.00741768e-05 | J149: -0.0005861794824 | K149: -0.01277360287 | L149: 0.005582326344 | M149: 0.1227424221 | N149: 0.0004612581573
A150: =IF('DF raw data'!I155="","",'DF raw data'!I155) -> -256 | B150: =IF('DF raw data'!J155="","",'DF raw data'!J155) -> -1.44543e-05 | C150: =IF('DF raw data'!K155="","",'DF raw data'!K155) -> 0.000129274 | D150: =IF('DF raw data'!L155="","",'DF raw data'!L155) -> -1.80629e-05 | F150: -1.45121172e-05 | G150: 0.000129791096 | H150: -1.81351516e-05 | J150: -0.000593435541 | K150: -0.01307032064 | L150: 0.005647221892 | M150: 0.1255660331 | N150: 0.0004773797977
A151: =IF('DF raw data'!I156="","",'DF raw data'!I156) -> -255.5 | B151: =IF('DF raw data'!J156="","",'DF raw data'!J156) -> -1.46462e-05 | C151: =IF('DF raw data'!K156="","",'DF raw data'!K156) -> 0.000134552 | D151: =IF('DF raw data'!L156="","",'DF raw data'!L156) -> -1.8554e-05 | F151: -1.47047848e-05 | G151: 0.000135090208 | H151: -1.8628216e-05 | J151: -0.0006007879334 | K151: -0.01337071461 | L151: 0.005714766996 | M151: 0.1284234166 | N151: 0.0004938895517
A152: =IF('DF raw data'!I157="","",'DF raw data'!I157) -> -255 | B152: =IF('DF raw data'!J157="","",'DF raw data'!J157) -> -1.09881e-05 | C152: =IF('DF raw data'!K157="","",'DF raw data'!K157) -> 0.000130895 | D152: =IF('DF raw data'!L157="","",'DF raw data'!L157) -> -2.96044e-05 | F152: -1.10320524e-05 | G152: 0.00013141858 | H152: -2.97228176e-05 | J152: -0.0006063039596 | K152: -0.01367386659 | L152: 0.005780476286 | M152: 0.1313136547 | N152: 0.000510780307
A153: =IF('DF raw data'!I158="","",'DF raw data'!I158) -> -254.5 | B153: =IF('DF raw data'!J158="","",'DF raw data'!J158) -> -1.26617e-05 | C153: =IF('DF raw data'!K158="","",'DF raw data'!K158) -> 0.000132373 | D153: =IF('DF raw data'!L158="","",'DF raw data'!L158) -> -1.67712e-05 | F153: -1.27123468e-05 | G153: 0.000132902492 | H153: -1.68382848e-05 | J153: -0.000612660133 | K153: -0.01398019665 | L153: 0.005846927532 | M153: 0.1342371185 | N153: 0.000528061264
A154: =IF('DF raw data'!I159="","",'DF raw data'!I159) -> -254 | B154: =IF('DF raw data'!J159="","",'DF raw data'!J159) -> -1.77206e-05 | C154: =IF('DF raw data'!K159="","",'DF raw data'!K159) -> 0.000136691 | D154: =IF('DF raw data'!L159="","",'DF raw data'!L159) -> -1.84443e-05 | F154: -1.77914824e-05 | G154: 0.000137237764 | H154: -1.85180772e-05 | J154: -0.0006215558742 | K154: -0.01429097459 | L154: 0.005915546414 | M154: 0.1371948917 | N154: 0.0005457512745
A155: =IF('DF raw data'!I160="","",'DF raw data'!I160) -> -253.5 | B155: =IF('DF raw data'!J160="","",'DF raw data'!J160) -> -1.36195e-05 | C155: =IF('DF raw data'!K160="","",'DF raw data'!K160) -> 0.000135534 | D155: =IF('DF raw data'!L160="","",'DF raw data'!L160) -> -2.15431e-05 | F155: -1.3673978e-05 | G155: 0.000136076136 | H155: -2.16292724e-05 | J155: -0.0006283928632 | K155: -0.01460517102 | L155: 0.005983584482 | M155: 0.1401866839 | N155: 0.000563850355
A156: =IF('DF raw data'!I161="","",'DF raw data'!I161) -> -253 | B156: =IF('DF raw data'!J161="","",'DF raw data'!J161) -> -1.94497e-05 | C156: =IF('DF raw data'!K161="","",'DF raw data'!K161) -> 0.000131592 | D156: =IF('DF raw data'!L161="","",'DF raw data'!L161) -> -1.88701e-05 | F156: -1.95274988e-05 | G156: 0.000132118368 | H156: -1.89455804e-05 | J156: -0.0006381566126 | K156: -0.01492424933 | L156: 0.006049643666 | M156: 0.1432115058 | N156: 0.0005823530711
A157: =IF('DF raw data'!I162="","",'DF raw data'!I162) -> -252.5 | B157: =IF('DF raw data'!J162="","",'DF raw data'!J162) -> -2.33532e-05 | C157: =IF('DF raw data'!K162="","",'DF raw data'!K162) -> 0.000134744 | D157: =IF('DF raw data'!L162="","",'DF raw data'!L162) -> -2.45906e-05 | F157: -2.34466128e-05 | G157: 0.000135282976 | H157: -2.46889624e-05 | J157: -0.000649879919 | K157: -0.01524918929 | L157: 0.006117285154 | M157: 0.1462701483 | N157: 0.0006012748319
A158: =IF('DF raw data'!I163="","",'DF raw data'!I163) -> -252 | B158: =IF('DF raw data'!J163="","",'DF raw data'!J163) -> -1.22135e-05 | C158: =IF('DF raw data'!K163="","",'DF raw data'!K163) -> 0.000134019 | D158: =IF('DF raw data'!L163="","",'DF raw data'!L163) -> -1.66947e-05 | F158: -1.2262354e-05 | G158: 0.000134555076 | H158: -1.67614788e-05 | J158: -0.000656011096 | K158: -0.01557719484 | L158: 0.006184562692 | M158: 0.1493624297 | N158: 0.0006206144151
A159: =IF('DF raw data'!I164="","",'DF raw data'!I164) -> -251.5 | B159: =IF('DF raw data'!J164="","",'DF raw data'!J164) -> -2.80916e-05 | C159: =IF('DF raw data'!K164="","",'DF raw data'!K164) -> 0.000125437 | D159: =IF('DF raw data'!L164="","",'DF raw data'!L164) -> -2.66053e-05 | F159: -2.82039664e-05 | G159: 0.000125938748 | H159: -2.67117212e-05 | J159: -0.0006701130792 | K159: -0.01591225138 | L159: 0.006247532066 | M159: 0.1524861957 | N159: 0.0006403547693
A160: =IF('DF raw data'!I165="","",'DF raw data'!I165) -> -251 | B160: =IF('DF raw data'!J165="","",'DF raw data'!J165) -> -2.87977e-05 | C160: =IF('DF raw data'!K165="","",'DF raw data'!K165) -> 0.000121435 | D160: =IF('DF raw data'!L165="","",'DF raw data'!L165) -> -2.3719e-05 | F160: -2.89128908e-05 | G160: 0.00012192074 | H160: -2.3813876e-05 | J160: -0.0006845695246 | K160: -0.01625453614 | L160: 0.006308492436 | M160: 0.1556404419 | N160: 0.0006604876254
A161: =IF('DF raw data'!I166="","",'DF raw data'!I166) -> -250.5 | B161: =IF('DF raw data'!J166="","",'DF raw data'!J166) -> -1.50244e-05 | C161: =IF('DF raw data'!K166="","",'DF raw data'!K166) -> 0.00012328 | D161: =IF('DF raw data'!L166="","",'DF raw data'!L166) -> -2.7755e-05 | F161: -1.50844976e-05 | G161: 0.00012377312 | H161: -2.786602e-05 | J161: -0.0006921117734 | K161: -0.01660059203 | L161: 0.006370378996 | M161: 0.1588256314 | N161: 0.000681017999
A162: =IF('DF raw data'!I167="","",'DF raw data'!I167) -> -250 | B162: =IF('DF raw data'!J167="","",'DF raw data'!J167) -> -7.47773e-06 | C162: =IF('DF raw data'!K167="","",'DF raw data'!K167) -> 0.000129553 | D162: =IF('DF raw data'!L167="","",'DF raw data'!L167) -> -1.06222e-05 | F162: -7.50764092e-06 | G162: 0.000130071212 | H162: -1.06646888e-05 | J162: -0.0006958655938 | K162: -0.01694852482 | L162: 0.006435414602 | M162: 0.1620433387 | N162: 0.000701967394
A163: =IF('DF raw data'!I168="","",'DF raw data'!I168) -> -249.5 | B163: =IF('DF raw data'!J168="","",'DF raw data'!J168) -> -1.15655e-05 | C163: =IF('DF raw data'!K168="","",'DF raw data'!K168) -> 0.000134977 | D163: =IF('DF raw data'!L168="","",'DF raw data'!L168) -> -2.8381e-05 | F163: -1.1611762e-05 | G163: 0.000135516908 | H163: -2.8494524e-05 | J163: -0.0007016714748 | K163: -0.01729936056 | L163: 0.006503173056 | M163: 0.1652949253 | N163: 0.0007233591954
A164: =IF('DF raw data'!I169="","",'DF raw data'!I169) -> -249 | B164: =IF('DF raw data'!J169="","",'DF raw data'!J169) -> -1.95766e-05 | C164: =IF('DF raw data'!K169="","",'DF raw data'!K169) -> 0.000134127 | D164: =IF('DF raw data'!L169="","",'DF raw data'!L169) -> -2.08718e-05 | F164: -1.96549064e-05 | G164: 0.000134663508 | H164: -2.09552872e-05 | J164: -0.000711498928 | K164: -0.01765511002 | L164: 0.00657050481 | M164: 0.1685801777 | N164: 0.0007451980775
A165: =IF('DF raw data'!I170="","",'DF raw data'!I170) -> -248.5 | B165: =IF('DF raw data'!J170="","",'DF raw data'!J170) -> -1.82248e-05 | C165: =IF('DF raw data'!K170="","",'DF raw data'!K170) -> 0.000126567 | D165: =IF('DF raw data'!L170="","",'DF raw data'!L170) -> -3.12639e-05 | F165: -1.82976992e-05 | G165: 0.000127073268 | H165: -3.13889556e-05 | J165: -0.0007206477776 | K165: -0.01801543391 | L165: 0.006634041444 | M165: 0.1718971984 | N165: 0.000767462997
A166: =IF('DF raw data'!I171="","",'DF raw data'!I171) -> -248 | B166: =IF('DF raw data'!J171="","",'DF raw data'!J171) -> -1.95035e-05 | C166: =IF('DF raw data'!K171="","",'DF raw data'!K171) -> 0.000124072 | D166: =IF('DF raw data'!L171="","",'DF raw data'!L171) -> -3.47041e-05 | F166: -1.9581514e-05 | G166: 0.000124568288 | H166: -3.48429164e-05 | J166: -0.0007304385346 | K166: -0.01838065318 | L166: 0.006696325588 | M166: 0.1752453612 | N166: 0.0007901501554
A167: =IF('DF raw data'!I172="","",'DF raw data'!I172) -> -247.5 | B167: =IF('DF raw data'!J172="","",'DF raw data'!J172) -> -1.51528e-05 | C167: =IF('DF raw data'!K172="","",'DF raw data'!K172) -> 0.000128824 | D167: =IF('DF raw data'!L172="","",'DF raw data'!L172) -> -2.73166e-05 | F167: -1.52134112e-05 | G167: 0.000129339296 | H167: -2.74258664e-05 | J167: -0.0007380452402 | K167: -0.0187496758 | L167: 0.006760995236 | M167: 0.1786258588 | N167: 0.0008132780391
A168: =IF('DF raw data'!I173="","",'DF raw data'!I173) -> -247 | B168: =IF('DF raw data'!J173="","",'DF raw data'!J173) -> -1.88733e-05 | C168: =IF('DF raw data'!K173="","",'DF raw data'!K173) -> 0.000133593 | D168: =IF('DF raw data'!L173="","",'DF raw data'!L173) -> -1.88738e-05 | F168: -1.89487932e-05 | G168: 0.000134127372 | H168: -1.89492952e-05 | J168: -0.0007475196368 | K168: -0.01912343562 | L168: 0.006828058922 | M168: 0.1820398883 | N168: 0.0008368686262
A169: =IF('DF raw data'!I174="","",'DF raw data'!I174) -> -246.5 | B169: =IF('DF raw data'!J174="","",'DF raw data'!J174) -> -1.72794e-05 | C169: =IF('DF raw data'!K174="","",'DF raw data'!K174) -> 0.000124032 | D169: =IF('DF raw data'!L174="","",'DF raw data'!L174) -> -7.40567e-06 | F169: -1.73485176e-05 | G169: 0.000124528128 | H169: -7.43529268e-06 | J169: -0.0007561938956 | K169: -0.01950153257 | L169: 0.006890322986 | M169: 0.1854850498 | N169: 0.0008608928163
A170: =IF('DF raw data'!I175="","",'DF raw data'!I175) -> -246 | B170: =IF('DF raw data'!J175="","",'DF raw data'!J175) -> -6.39165e-06 | C170: =IF('DF raw data'!K175="","",'DF raw data'!K175) -> 0.000123317 | D170: =IF('DF raw data'!L175="","",'DF raw data'!L175) -> -6.25399e-06 | F170: -6.4172166e-06 | G170: 0.000123810268 | H170: -6.27900596e-06 | J170: -0.0007594025039 | K170: -0.01988123382 | L170: 0.00695222812 | M170: 0.1889611638 | N170: 0.0008853479003
A171: =IF('DF raw data'!I176="","",'DF raw data'!I176) -> -245.5 | B171: =IF('DF raw data'!J176="","",'DF raw data'!J176) -> -1.91335e-05 | C171: =IF('DF raw data'!K176="","",'DF raw data'!K176) -> 0.000127075 | D171: =IF('DF raw data'!L176="","",'DF raw data'!L176) -> -1.26392e-05 | F171: -1.9210034e-05 | G171: 0.0001275833 | H171: -1.26897568e-05 | J171: -0.0007690075209 | K171: -0.02026573758 | L171: 0.00701601977 | M171: 0.1924691737 | N171: 0.0009102558533
A172: =IF('DF raw data'!I177="","",'DF raw data'!I177) -> -245 | B172: =IF('DF raw data'!J177="","",'DF raw data'!J177) -> -1.63063e-05 | C172: =IF('DF raw data'!K177="","",'DF raw data'!K177) -> 0.000129979 | D172: =IF('DF raw data'!L177="","",'DF raw data'!L177) -> -2.66658e-05 | F172: -1.63715252e-05 | G172: 0.000130498916 | H172: -2.67724632e-05 | J172: -0.0007771932835 | K172: -0.02065433422 | L172: 0.007081269228 | M172: 0.1960098083 | N172: 0.0009356300549
A173: =IF('DF raw data'!I178="","",'DF raw data'!I178) -> -244.5 | B173: =IF('DF raw data'!J178="","",'DF raw data'!J178) -> -2.09772e-05 | C173: =IF('DF raw data'!K178="","",'DF raw data'!K178) -> 0.000133256 | D173: =IF('DF raw data'!L178="","",'DF raw data'!L178) -> -3.38482e-05 | F173: -2.10611088e-05 | G173: 0.000133789024 | H173: -3.39835928e-05 | J173: -0.0007877238379 | K173: -0.02104819614 | L173: 0.00714816374 | M173: 0.1995838902 | N173: 0.0009614884317
A174: =IF('DF raw data'!I179="","",'DF raw data'!I179) -> -244 | B174: =IF('DF raw data'!J179="","",'DF raw data'!J179) -> -1.84813e-05 | C174: =IF('DF raw data'!K179="","",'DF raw data'!K179) -> 0.000128123 | D174: =IF('DF raw data'!L179="","",'DF raw data'!L179) -> -3.08138e-05 | F174: -1.85552252e-05 | G174: 0.000128635492 | H174: -3.09370552e-05 | J174: -0.0007970014505 | K174: -0.02144669687 | L174: 0.007212481486 | M174: 0.2031901309 | N174: 0.000987815982
A175: =IF('DF raw data'!I180="","",'DF raw data'!I180) -> -243.5 | B175: =IF('DF raw data'!J180="","",'DF raw data'!J180) -> -1.63965e-06 | C175: =IF('DF raw data'!K180="","",'DF raw data'!K180) -> 0.000118163 | D175: =IF('DF raw data'!L180="","",'DF raw data'!L180) -> -2.51733e-05 | F175: -1.6462086e-06 | G175: 0.000118635652 | H175: -2.52739932e-05 | J175: -0.0007978245548 | K175: -0.02184560914 | L175: 0.007271799312 | M175: 0.2068260306 | N175: 0.001014573777
A176: =IF('DF raw data'!I181="","",'DF raw data'!I181) -> -243 | B176: =IF('DF raw data'!J181="","",'DF raw data'!J181) -> -2.08503e-05 | C176: =IF('DF raw data'!K181="","",'DF raw data'!K181) -> 0.000120797 | D176: =IF('DF raw data'!L181="","",'DF raw data'!L181) -> -3.21131e-05 | F176: -2.09337012e-05 | G176: 0.000121280188 | H176: -3.22415524e-05 | J176: -0.0008082914054 | K176: -0.02224975485 | L176: 0.007332439406 | M176: 0.2104922503 | N176: 0.001041782778
A177: =IF('DF raw data'!I182="","",'DF raw data'!I182) -> -242.5 | B177: =IF('DF raw data'!J182="","",'DF raw data'!J182) -> -9.84034e-06 | C177: =IF('DF raw data'!K182="","",'DF raw data'!K182) -> 0.000131512 | D177: =IF('DF raw data'!L182="","",'DF raw data'!L182) -> -2.18391e-05 | F177: -9.87970136e-06 | G177: 0.000132038048 | H177: -2.19264564e-05 | J177: -0.0008132312561 | K177: -0.02265637047 | L177: 0.00739845843 | M177: 0.2141914795 | N177: 0.001069482044
A178: =IF('DF raw data'!I183="","",'DF raw data'!I183) -> -242 | B178: =IF('DF raw data'!J183="","",'DF raw data'!J183) -> -1.98895e-05 | C178: =IF('DF raw data'!K183="","",'DF raw data'!K183) -> 0.00013166 | D178: =IF('DF raw data'!L183="","",'DF raw data'!L183) -> -3.20681e-05 | F178: -1.9969058e-05 | G178: 0.00013218664 | H178: -3.21963724e-05 | J178: -0.0008232157851 | K178: -0.02306797837 | L178: 0.00746455175 | M178: 0.2179237554 | N178: 0.001097680653
A179: =IF('DF raw data'!I184="","",'DF raw data'!I184) -> -241.5 | B179: =IF('DF raw data'!J184="","",'DF raw data'!J184) -> -1.48946e-05 | C179: =IF('DF raw data'!K184="","",'DF raw data'!K184) -> 0.000129602 | D179: =IF('DF raw data'!L184="","",'DF raw data'!L184) -> -3.04254e-05 | F179: -1.49541784e-05 | G179: 0.000130120408 | H179: -3.05471016e-05 | J179: -0.0008306928743 | K179: -0.0234833248 | L179: 0.007529611954 | M179: 0.2216885614 | N179: 0.001126373206
A180: =IF('DF raw data'!I185="","",'DF raw data'!I185) -> -241 | B180: =IF('DF raw data'!J185="","",'DF raw data'!J185) -> -8.2996e-06 | C180: =IF('DF raw data'!K185="","",'DF raw data'!K185) -> 0.000130895 | D180: =IF('DF raw data'!L185="","",'DF raw data'!L185) -> -2.74396e-05 | F180: -8.3327984e-06 | G180: 0.00013141858 | H180: -2.75493584e-05 | J180: -0.0008348592735 | K180: -0.02390075444 | L180: 0.007595321244 | M180: 0.225486222 | N180: 0.001155566153
A181: =IF('DF raw data'!I186="","",'DF raw data'!I186) -> -240.5 | B181: =IF('DF raw data'!J186="","",'DF raw data'!J186) -> -2.00885e-05 | C181: =IF('DF raw data'!K186="","",'DF raw data'!K186) -> 0.00013264 | D181: =IF('DF raw data'!L186="","",'DF raw data'!L186) -> -2.16698e-05 | F181: -2.0168854e-05 | G181: 0.00013317056 | H181: -2.17564792e-05 | J181: -0.0008449437005 | K181: -0.02432322629 | L181: 0.007661906524 | M181: 0.2293171752 | N181: 0.001185275524
A182: =IF('DF raw data'!I187="","",'DF raw data'!I187) -> -240 | B182: =IF('DF raw data'!J187="","",'DF raw data'!J187) -> -9.26246e-06 | C182: =IF('DF raw data'!K187="","",'DF raw data'!K187) -> 0.000127247 | D182: =IF('DF raw data'!L187="","",'DF raw data'!L187) -> -2.39086e-05 | F182: -9.29950984e-06 | G182: 0.000127755988 | H182: -2.40042344e-05 | J182: -0.0008495934554 | K182: -0.02474802302 | L182: 0.007725784518 | M182: 0.2331800675 | N182: 0.001215480302
A183: =IF('DF raw data'!I188="","",'DF raw data'!I188) -> -239.5 | B183: =IF('DF raw data'!J188="","",'DF raw data'!J188) -> -1.58554e-05 | C183: =IF('DF raw data'!K188="","",'DF raw data'!K188) -> 0.000122315 | D183: =IF('DF raw data'!L188="","",'DF raw data'!L188) -> -3.0547e-05 | F183: -1.59188216e-05 | G183: 0.00012280426 | H183: -3.0669188e-05 | J183: -0.0008575528662 | K183: -0.02517679945 | L183: 0.007787186648 | M183: 0.2370736608 | N183: 0.001246168138
A184: =IF('DF raw data'!I189="","",'DF raw data'!I189) -> -239 | B184: =IF('DF raw data'!J189="","",'DF raw data'!J189) -> -2.59772e-05 | C184: =IF('DF raw data'!K189="","",'DF raw data'!K189) -> 0.000123457 | D184: =IF('DF raw data'!L189="","",'DF raw data'!L189) -> -2.76507e-05 | F184: -2.60811088e-05 | G184: 0.000123950828 | H184: -2.77613028e-05 | J184: -0.0008705934206 | K184: -0.02561209616 | L184: 0.007849162062 | M184: 0.2409982419 | N184: 0.001277351777
A185: =IF('DF raw data'!I190="","",'DF raw data'!I190) -> -238.5 | B185: =IF('DF raw data'!J190="","",'DF raw data'!J190) -> -2.38013e-05 | C185: =IF('DF raw data'!K190="","",'DF raw data'!K190) -> 0.000127843 | D185: =IF('DF raw data'!L190="","",'DF raw data'!L190) -> -2.46148e-05 | F185: -2.38965052e-05 | G185: 0.000128354372 | H185: -2.47132592e-05 | J185: -0.0008825416732 | K185: -0.026053367 | L185: 0.007913339248 | M185: 0.2449549115 | N185: 0.001309051686
A186: =IF('DF raw data'!I191="","",'DF raw data'!I191) -> -238 | B186: =IF('DF raw data'!J191="","",'DF raw data'!J191) -> -1.20126e-05 | C186: =IF('DF raw data'!K191="","",'DF raw data'!K191) -> 0.000126378 | D186: =IF('DF raw data'!L191="","",'DF raw data'!L191) -> -3.00743e-05 | F186: -1.20606504e-05 | G186: 0.000126883512 | H186: -3.01945972e-05 | J186: -0.0008885719984 | K186: -0.026497653 | L186: 0.007976781004 | M186: 0.248943302 | N186: 0.001341260984
A187: =IF('DF raw data'!I192="","",'DF raw data'!I192) -> -237.5 | B187: =IF('DF raw data'!J192="","",'DF raw data'!J192) -> -1.8224e-05 | C187: =IF('DF raw data'!K192="","",'DF raw data'!K192) -> 0.000117336 | D187: =IF('DF raw data'!L192="","",'DF raw data'!L192) -> -3.24343e-05 | F187: -1.8296896e-05 | G187: 0.000117805344 | H187: -3.25640372e-05 | J187: -0.0008977204464 | K187: -0.02694651322 | L187: 0.008035683676 | M187: 0.2529611438 | N187: 0.001373950041
A188: =IF('DF raw data'!I193="","",'DF raw data'!I193) -> -237 | B188: =IF('DF raw data'!J193="","",'DF raw data'!J193) -> -1.45766e-05 | C188: =IF('DF raw data'!K193="","",'DF raw data'!K193) -> 0.000118981 | D188: =IF('DF raw data'!L193="","",'DF raw data'!L193) -> -2.71882e-05 | F188: -1.46349064e-05 | G188: 0.000119456924 | H188: -2.72969528e-05 | J188: -0.0009050378996 | K188: -0.02739903217 | L188: 0.008095412138 | M188: 0.2570088499 | N188: 0.001407127437
A189: =IF('DF raw data'!I194="","",'DF raw data'!I194) -> -236.5 | B189: =IF('DF raw data'!J194="","",'DF raw data'!J194) -> -5.30087e-06 | C189: =IF('DF raw data'!K194="","",'DF raw data'!K194) -> 0.000124658 | D189: =IF('DF raw data'!L194="","",'DF raw data'!L194) -> -9.51783e-06 | F189: -5.32207348e-06 | G189: 0.000125156632 | H189: -9.55590132e-06 | J189: -0.0009076989364 | K189: -0.02785288164 | L189: 0.008157990454 | M189: 0.2610878451 | N189: 0.001440815799
A190: =IF('DF raw data'!I195="","",'DF raw data'!I195) -> -236 | B190: =IF('DF raw data'!J195="","",'DF raw data'!J195) -> -2.0149e-05 | C190: =IF('DF raw data'!K195="","",'DF raw data'!K195) -> 0.000127895 | D190: =IF('DF raw data'!L195="","",'DF raw data'!L195) -> -2.69998e-05 | F190: -2.0229596e-05 | G190: 0.00012840658 | H190: -2.71077992e-05 | J190: -0.0009178137344 | K190: -0.02831178851 | L190: 0.008222193744 | M190: 0.265198942 | N190: 0.001475039225
A191: =IF('DF raw data'!I196="","",'DF raw data'!I196) -> -235.5 | B191: =IF('DF raw data'!J196="","",'DF raw data'!J196) -> -1.68789e-05 | C191: =IF('DF raw data'!K196="","",'DF raw data'!K196) -> 0.000129132 | D191: =IF('DF raw data'!L196="","",'DF raw data'!L196) -> -3.23837e-05 | F191: -1.69464156e-05 | G191: 0.000129648528 | H191: -3.25132348e-05 | J191: -0.0009262869422 | K191: -0.02877493198 | L191: 0.008287018008 | M191: 0.269342451 | N191: 0.001509805563
A192: =IF('DF raw data'!I197="","",'DF raw data'!I197) -> -235 | B192: =IF('DF raw data'!J197="","",'DF raw data'!J197) -> -1.70081e-05 | C192: =IF('DF raw data'!K197="","",'DF raw data'!K197) -> 0.000127974 | D192: =IF('DF raw data'!L197="","",'DF raw data'!L197) -> -3.08492e-05 | F192: =(1-$G$1*($B$49-$G$2))*B192 -> -1.70761324e-05 | G192: 0.000128485896 | H192: -3.09725968e-05 | J192: =F192*$G$3+J191 -> -0.0009348250084 | K192: =J192*$G$3+K191 -> -0.02924234448 | L192: =G192*$G$3+L191 -> 0.008351260956 | M192: =L192*$G$3+M191 -> 0.2735180815 | N192: =(J192^2+L192^2)*$G$3+N191 -> 0.001545114292
A193: =IF('DF raw data'!I198="","",'DF raw data'!I198) -> -234.5 | B193: =IF('DF raw data'!J198="","",'DF raw data'!J198) -> -2.03505e-05 | C193: =IF('DF raw data'!K198="","",'DF raw data'!K198) -> 0.000133746 | D193: =IF('DF raw data'!L198="","",'DF raw data'!L198) -> -1.27568e-05 | F193: -2.0431902e-05 | G193: 0.000134280984 | H193: -1.28078272e-05 | J193: -0.0009450409594 | K193: -0.02971486496 | L193: 0.008418401448 | M193: 0.2777272822 | N193: 0.001580995584
A194: =IF('DF raw data'!I199="","",'DF raw data'!I199) -> -234 | B194: =IF('DF raw data'!J199="","",'DF raw data'!J199) -> -1.41949e-05 | C194: =IF('DF raw data'!K199="","",'DF raw data'!K199) -> 0.000145914 | D194: =IF('DF raw data'!L199="","",'DF raw data'!L199) -> -2.32272e-05 | F194: -1.42516796e-05 | G194: 0.000146497656 | H194: -2.33201088e-05 | J194: -0.0009521667992 | K194: -0.03019094836 | L194: 0.008491650276 | M194: 0.2819731073 | N194: 0.001617502957
A195: =IF('DF raw data'!I200="","",'DF raw data'!I200) -> -233.5 | B195: =IF('DF raw data'!J200="","",'DF raw data'!J200) -> -3.03987e-05 | C195: =IF('DF raw data'!K200="","",'DF raw data'!K200) -> 0.000143867 | D195: =IF('DF raw data'!L200="","",'DF raw data'!L200) -> -2.43833e-05 | F195: -3.05202948e-05 | G195: 0.000144442468 | H195: -2.44808332e-05 | J195: -0.0009674269466 | K195: -0.03067466183 | L195: 0.00856387151 | M195: 0.2862550431 | N195: 0.001654640862
A196: =IF('DF raw data'!I201="","",'DF raw data'!I201) -> -233 | B196: =IF('DF raw data'!J201="","",'DF raw data'!J201) -> -2.27095e-05 | C196: =IF('DF raw data'!K201="","",'DF raw data'!K201) -> 0.000130011 | D196: =IF('DF raw data'!L201="","",'DF raw data'!L201) -> -2.95771e-05 | F196: -2.2800338e-05 | G196: 0.000130531044 | H196: -2.96954084e-05 | J196: -0.0009788271156 | K196: -0.03116407539 | L196: 0.008629137032 | M196: 0.2905696116 | N196: 0.001692350917
A197: =IF('DF raw data'!I202="","",'DF raw data'!I202) -> -232.5 | B197: =IF('DF raw data'!J202="","",'DF raw data'!J202) -> -1.15678e-05 | C197: =IF('DF raw data'!K202="","",'DF raw data'!K202) -> 0.000127467 | D197: =IF('DF raw data'!L202="","",'DF raw data'!L202) -> -2.4887e-05 | F197: -1.16140712e-05 | G197: 0.000127976868 | H197: -2.4986548e-05 | J197: -0.0009846341512 | K197: -0.03165639247 | L197: 0.008693125466 | M197: 0.2949161743 | N197: 0.001730620884
A198: =IF('DF raw data'!I203="","",'DF raw data'!I203) -> -232 | B198: =IF('DF raw data'!J203="","",'DF raw data'!J203) -> -1.49557e-05 | C198: =IF('DF raw data'!K203="","",'DF raw data'!K203) -> 0.000134585 | D198: =IF('DF raw data'!L203="","",'DF raw data'!L203) -> -3.52809e-05 | F198: -1.50155228e-05 | G198: 0.00013512334 | H198: -3.54220236e-05 | J198: -0.0009921419126 | K198: -0.03215246342 | L198: 0.008760687136 | M198: 0.2992965179 | N198: 0.001769487876
A199: =IF('DF raw data'!I204="","",'DF raw data'!I204) -> -231.5 | B199: =IF('DF raw data'!J204="","",'DF raw data'!J204) -> -1.42546e-05 | C199: =IF('DF raw data'!K204="","",'DF raw data'!K204) -> 0.000129004 | D199: =IF('DF raw data'!L204="","",'DF raw data'!L204) -> -2.98154e-05 | F199: -1.43116184e-05 | G199: 0.000129520016 | H199: -2.99346616e-05 | J199: -0.0009992977218 | K199: -0.03265211228 | L199: 0.008825447144 | M199: 0.3037092415 | N199: 0.001808931433
A200: =IF('DF raw data'!I205="","",'DF raw data'!I205) -> -231 | B200: =IF('DF raw data'!J205="","",'DF raw data'!J205) -> -1.39368e-05 | C200: =IF('DF raw data'!K205="","",'DF raw data'!K205) -> 0.000128178 | D200: =IF('DF raw data'!L205="","",'DF raw data'!L205) -> -2.62222e-05 | F200: -1.39925472e-05 | G200: 0.000128690712 | H200: -2.63270888e-05 | J200: -0.001006293995 | K200: -0.03315525928 | L200: 0.0088897925 | M200: 0.3081541377 | N200: 0.001848951952
A201: =IF('DF raw data'!I206="","",'DF raw data'!I206) -> -230.5 | B201: =IF('DF raw data'!J206="","",'DF raw data'!J206) -> -1.32325e-05 | C201: =IF('DF raw data'!K206="","",'DF raw data'!K206) -> 0.00013039 | D201: =IF('DF raw data'!L206="","",'DF raw data'!L206) -> -2.57283e-05 | F201: -1.328543e-05 | G201: 0.00013091156 | H201: -2.58312132e-05 | J201: -0.00101293671 | K201: -0.03366172764 | L201: 0.00895524828 | M201: 0.3126317619 | N201: 0.001889563208
... 1061 more rows

Sheet 10 y=0.1
A1: =IF('DF raw data'!M1="","",'DF raw data'!M1) -> Number of header lines | B1: =IF('DF raw data'!N1="","",'DF raw data'!N1) -> 54 | C1: =IF('DF raw data'!O1="","",'DF raw data'!O1) ->  | D1: =IF('DF raw data'!P1="","",'DF raw data'!P1) ->  | F1: T_coeff | G1: -0.001 | H1: /degC | J1: ='10 y=-0.2'!J1 -> IBy total | K1: ='10 y=-0.2'!K1 -> 6.566016602 | L1: ='10 y=-0.2'!L1 -> muTm | R1: ='10 y=-0.2'!R1 -> DF ref | S1: ='10 y=-0.2'!S1 -> 1
A2: =IF('DF raw data'!M2="","",'DF raw data'!M2) -> Measured by | B2: =IF('DF raw data'!N2="","",'DF raw data'!N2) -> Danfysik | C2: =IF('DF raw data'!O2="","",'DF raw data'!O2) ->  | D2: =IF('DF raw data'!P2="","",'DF raw data'!P2) ->  | F2: Tcorr | G2: 20 | H2: degC | J2: JBy total | K2: =K1262 -> -1.069312768 | L2: muTm^2 | M2: =M1262 -> 21.43683259
A3: =IF('DF raw data'!M3="","",'DF raw data'!M3) -> Operator | B3: =IF('DF raw data'!N3="","",'DF raw data'!N3) -> PMHA | C3: =IF('DF raw data'!O3="","",'DF raw data'!O3) ->  | D3: =IF('DF raw data'!P3="","",'DF raw data'!P3) ->  | F3: Step | G3: =A63-A62 -> 0.5 | H3: mm | J3: PI total | K3: =N1262 -> 10599.18009 | L3: T^2mm^3
A4: =IF('DF raw data'!M4="","",'DF raw data'!M4) -> Data-time | B4: =IF('DF raw data'!N4="","",'DF raw data'!N4) -> 26-09-2024, 10:01:29 | C4: =IF('DF raw data'!O4="","",'DF raw data'!O4) ->  | D4: =IF('DF raw data'!P4="","",'DF raw data'!P4) -> 
A5: =IF('DF raw data'!M5="","",'DF raw data'!M5) -> Project | B5: =IF('DF raw data'!N5="","",'DF raw data'!N5) -> 504314 | C5: =IF('DF raw data'!O5="","",'DF raw data'!O5) ->  | D5: =IF('DF raw data'!P5="","",'DF raw data'!P5) -> 
A6: =IF('DF raw data'!M6="","",'DF raw data'!M6) -> Magnet type | B6: =IF('DF raw data'!N6="","",'DF raw data'!N6) -> Dipole | C6: =IF('DF raw data'!O6="","",'DF raw data'!O6) ->  | D6: =IF('DF raw data'!P6="","",'DF raw data'!P6) -> 
A7: =IF('DF raw data'!M7="","",'DF raw data'!M7) -> Magnet nr. | B7: =IF('DF raw data'!N7="","",'DF raw data'!N7) -> 2410102 | C7: =IF('DF raw data'!O7="","",'DF raw data'!O7) ->  | D7: =IF('DF raw data'!P7="","",'DF raw data'!P7) -> 
A8: =IF('DF raw data'!M8="","",'DF raw data'!M8) -> Meas. number | B8: =IF('DF raw data'!N8="","",'DF raw data'!N8) -> 701 | C8: =IF('DF raw data'!O8="","",'DF raw data'!O8) ->  | D8: =IF('DF raw data'!P8="","",'DF raw data'!P8) -> 
A9: =IF('DF raw data'!M9="","",'DF raw data'!M9) -> Add. info | B9: =IF('DF raw data'!N9="","",'DF raw data'!N9) -> Y-alignment scan 4) | C9: =IF('DF raw data'!O9="","",'DF raw data'!O9) ->  | D9: =IF('DF raw data'!P9="","",'DF raw data'!P9) -> 
A10: =IF('DF raw data'!M10="","",'DF raw data'!M10) -> Device | B10: =IF('DF raw data'!N10="","",'DF raw data'!N10) -> (HAL) HALL-PROBE | C10: =IF('DF raw data'!O10="","",'DF raw data'!O10) ->  | D10: =IF('DF raw data'!P10="","",'DF raw data'!P10) -> 
A11: =IF('DF raw data'!M11="","",'DF raw data'!M11) -> Goal | B11: =IF('DF raw data'!N11="","",'DF raw data'!N11) -> (AXI) AXis Integral (Line, EFB) | C11: =IF('DF raw data'!O11="","",'DF raw data'!O11) ->  | D11: =IF('DF raw data'!P11="","",'DF raw data'!P11) -> 
A12: =IF('DF raw data'!M12="","",'DF raw data'!M12) -> Power supply mode | B12: =IF('DF raw data'!N12="","",'DF raw data'!N12) -> (PM) Permanent Magnet (no MPS in use) | C12: =IF('DF raw data'!O12="","",'DF raw data'!O12) ->  | D12: =IF('DF raw data'!P12="","",'DF raw data'!P12) -> 
A13: =IF('DF raw data'!M13="","",'DF raw data'!M13) -> Data format | B13: =IF('DF raw data'!N13="","",'DF raw data'!N13) -> Raw data text file | C13: =IF('DF raw data'!O13="","",'DF raw data'!O13) ->  | D13: =IF('DF raw data'!P13="","",'DF raw data'!P13) -> 
A14: =IF('DF raw data'!M14="","",'DF raw data'!M14) -> Direction of the pos. x-axis | B14: =IF('DF raw data'!N14="","",'DF raw data'!N14) -> See test program | C14: =IF('DF raw data'!O14="","",'DF raw data'!O14) ->  | D14: =IF('DF raw data'!P14="","",'DF raw data'!P14) -> 
A15: =IF('DF raw data'!M15="","",'DF raw data'!M15) -> Direction of the pos. y-axis | B15: =IF('DF raw data'!N15="","",'DF raw data'!N15) -> Vertical up | C15: =IF('DF raw data'!O15="","",'DF raw data'!O15) ->  | D15: =IF('DF raw data'!P15="","",'DF raw data'!P15) -> 
A16: =IF('DF raw data'!M16="","",'DF raw data'!M16) -> Direction of the pos. z-axis | B16: =IF('DF raw data'!N16="","",'DF raw data'!N16) -> See test program | C16: =IF('DF raw data'!O16="","",'DF raw data'!O16) ->  | D16: =IF('DF raw data'!P16="","",'DF raw data'!P16) -> 
A17: =IF('DF raw data'!M17="","",'DF raw data'!M17) -> Mapper type | B17: =IF('DF raw data'!N17="","",'DF raw data'!N17) -> Precision Hall Mapper | C17: =IF('DF raw data'!O17="","",'DF raw data'!O17) ->  | D17: =IF('DF raw data'!P17="","",'DF raw data'!P17) -> 
A18: =IF('DF raw data'!M18="","",'DF raw data'!M18) -> Mapper Danfysik Reg. Number | B18: =IF('DF raw data'!N18="","",'DF raw data'!N18) -> 2033-D (mapper 1) | C18: =IF('DF raw data'!O18="","",'DF raw data'!O18) ->  | D18: =IF('DF raw data'!P18="","",'DF raw data'!P18) -> 
A19: =IF('DF raw data'!M19="","",'DF raw data'!M19) -> Measurement consept | B19: =IF('DF raw data'!N19="","",'DF raw data'!N19) -> Square line grid | C19: =IF('DF raw data'!O19="","",'DF raw data'!O19) ->  | D19: =IF('DF raw data'!P19="","",'DF raw data'!P19) -> 
A20: =IF('DF raw data'!M20="","",'DF raw data'!M20) -> Mode | B20: =IF('DF raw data'!N20="","",'DF raw data'!N20) -> On-the-fly measurement | C20: =IF('DF raw data'!O20="","",'DF raw data'!O20) ->  | D20: =IF('DF raw data'!P20="","",'DF raw data'!P20) -> 
A21: =IF('DF raw data'!M21="","",'DF raw data'!M21) ->  | B21: =IF('DF raw data'!N21="","",'DF raw data'!N21) ->  | C21: =IF('DF raw data'!O21="","",'DF raw data'!O21) ->  | D21: =IF('DF raw data'!P21="","",'DF raw data'!P21) -> 
A22: =IF('DF raw data'!M22="","",'DF raw data'!M22) -> Probe Name | B22: =IF('DF raw data'!N22="","",'DF raw data'!N22) -> ID12_By | C22: =IF('DF raw data'!O22="","",'DF raw data'!O22) ->  | D22: =IF('DF raw data'!P22="","",'DF raw data'!P22) -> 
A23: =IF('DF raw data'!M23="","",'DF raw data'!M23) -> Probe Type | B23: =IF('DF raw data'!N23="","",'DF raw data'!N23) -> DF_ID_3D_Bxyz | C23: =IF('DF raw data'!O23="","",'DF raw data'!O23) ->  | D23: =IF('DF raw data'!P23="","",'DF raw data'!P23) -> 
A24: =IF('DF raw data'!M24="","",'DF raw data'!M24) -> Probe Danfysik Reg. Number | B24: =IF('DF raw data'!N24="","",'DF raw data'!N24) -> 2277 | C24: =IF('DF raw data'!O24="","",'DF raw data'!O24) ->  | D24: =IF('DF raw data'!P24="","",'DF raw data'!P24) -> 
A25: =IF('DF raw data'!M25="","",'DF raw data'!M25) -> Probe Axis | B25: =IF('DF raw data'!N25="","",'DF raw data'!N25) -> By | C25: =IF('DF raw data'!O25="","",'DF raw data'!O25) ->  | D25: =IF('DF raw data'!P25="","",'DF raw data'!P25) -> 
A26: =IF('DF raw data'!M26="","",'DF raw data'!M26) -> Probe Current Supply | B26: =IF('DF raw data'!N26="","",'DF raw data'!N26) -> 1825-D | C26: =IF('DF raw data'!O26="","",'DF raw data'!O26) ->  | D26: =IF('DF raw data'!P26="","",'DF raw data'!P26) -> 
A27: =IF('DF raw data'!M27="","",'DF raw data'!M27) -> Probe Gain Correction | B27: =IF('DF raw data'!N27="","",'DF raw data'!N27) -> 0.99599 | C27: =IF('DF raw data'!O27="","",'DF raw data'!O27) ->  | D27: =IF('DF raw data'!P27="","",'DF raw data'!P27) -> 
A28: =IF('DF raw data'!M28="","",'DF raw data'!M28) -> Probe Offset Correction | B28: =IF('DF raw data'!N28="","",'DF raw data'!N28) -> 0.0027595 | C28: =IF('DF raw data'!O28="","",'DF raw data'!O28) ->  | D28: =IF('DF raw data'!P28="","",'DF raw data'!P28) -> 
A29: =IF('DF raw data'!M29="","",'DF raw data'!M29) -> DVM Number | B29: =IF('DF raw data'!N29="","",'DF raw data'!N29) -> 2 | C29: =IF('DF raw data'!O29="","",'DF raw data'!O29) ->  | D29: =IF('DF raw data'!P29="","",'DF raw data'!P29) -> 
A30: =IF('DF raw data'!M30="","",'DF raw data'!M30) -> DVM Type | B30: =IF('DF raw data'!N30="","",'DF raw data'!N30) -> K2701 | C30: =IF('DF raw data'!O30="","",'DF raw data'!O30) ->  | D30: =IF('DF raw data'!P30="","",'DF raw data'!P30) -> 
A31: =IF('DF raw data'!M31="","",'DF raw data'!M31) -> DVM Danfysik Reg. Number | B31: =IF('DF raw data'!N31="","",'DF raw data'!N31) -> 1743-D | C31: =IF('DF raw data'!O31="","",'DF raw data'!O31) ->  | D31: =IF('DF raw data'!P31="","",'DF raw data'!P31) -> 
A32: =IF('DF raw data'!M32="","",'DF raw data'!M32) -> Probe Name | B32: =IF('DF raw data'!N32="","",'DF raw data'!N32) -> ID12_Bx | C32: =IF('DF raw data'!O32="","",'DF raw data'!O32) ->  | D32: =IF('DF raw data'!P32="","",'DF raw data'!P32) -> 
A33: =IF('DF raw data'!M33="","",'DF raw data'!M33) -> Probe Type | B33: =IF('DF raw data'!N33="","",'DF raw data'!N33) -> DF_ID_3D_Bxyz | C33: =IF('DF raw data'!O33="","",'DF raw data'!O33) ->  | D33: =IF('DF raw data'!P33="","",'DF raw data'!P33) -> 
A34: =IF('DF raw data'!M34="","",'DF raw data'!M34) -> Probe Danfysik Reg. Number | B34: =IF('DF raw data'!N34="","",'DF raw data'!N34) -> 2277 | C34: =IF('DF raw data'!O34="","",'DF raw data'!O34) ->  | D34: =IF('DF raw data'!P34="","",'DF raw data'!P34) -> 
A35: =IF('DF raw data'!M35="","",'DF raw data'!M35) -> Probe Axis | B35: =IF('DF raw data'!N35="","",'DF raw data'!N35) -> Bx | C35: =IF('DF raw data'!O35="","",'DF raw data'!O35) ->  | D35: =IF('DF raw data'!P35="","",'DF raw data'!P35) -> 
A36: =IF('DF raw data'!M36="","",'DF raw data'!M36) -> Probe Current Supply | B36: =IF('DF raw data'!N36="","",'DF raw data'!N36) -> 1825-D | C36: =IF('DF raw data'!O36="","",'DF raw data'!O36) ->  | D36: =IF('DF raw data'!P36="","",'DF raw data'!P36) -> 
A37: =IF('DF raw data'!M37="","",'DF raw data'!M37) -> Probe Gain Correction | B37: =IF('DF raw data'!N37="","",'DF raw data'!N37) -> 1 | C37: =IF('DF raw data'!O37="","",'DF raw data'!O37) ->  | D37: =IF('DF raw data'!P37="","",'DF raw data'!P37) -> 
A38: =IF('DF raw data'!M38="","",'DF raw data'!M38) -> Probe Offset Correction | B38: =IF('DF raw data'!N38="","",'DF raw data'!N38) -> -0.17537 | C38: =IF('DF raw data'!O38="","",'DF raw data'!O38) ->  | D38: =IF('DF raw data'!P38="","",'DF raw data'!P38) -> 
A39: =IF('DF raw data'!M39="","",'DF raw data'!M39) -> DVM Number | B39: =IF('DF raw data'!N39="","",'DF raw data'!N39) -> 3 | C39: =IF('DF raw data'!O39="","",'DF raw data'!O39) ->  | D39: =IF('DF raw data'!P39="","",'DF raw data'!P39) -> 
A40: =IF('DF raw data'!M40="","",'DF raw data'!M40) -> DVM Type | B40: =IF('DF raw data'!N40="","",'DF raw data'!N40) -> K2701 | C40: =IF('DF raw data'!O40="","",'DF raw data'!O40) ->  | D40: =IF('DF raw data'!P40="","",'DF raw data'!P40) -> 
A41: =IF('DF raw data'!M41="","",'DF raw data'!M41) -> DVM Danfysik Reg. Number | B41: =IF('DF raw data'!N41="","",'DF raw data'!N41) -> 1744-D | C41: =IF('DF raw data'!O41="","",'DF raw data'!O41) ->  | D41: =IF('DF raw data'!P41="","",'DF raw data'!P41) -> 
A42: =IF('DF raw data'!M42="","",'DF raw data'!M42) -> Probe Name | B42: =IF('DF raw data'!N42="","",'DF raw data'!N42) -> ID12_Bz | C42: =IF('DF raw data'!O42="","",'DF raw data'!O42) ->  | D42: =IF('DF raw data'!P42="","",'DF raw data'!P42) -> 
A43: =IF('DF raw data'!M43="","",'DF raw data'!M43) -> Probe Type | B43: =IF('DF raw data'!N43="","",'DF raw data'!N43) -> DF_ID_3D_Bxyz | C43: =IF('DF raw data'!O43="","",'DF raw data'!O43) ->  | D43: =IF('DF raw data'!P43="","",'DF raw data'!P43) -> 
A44: =IF('DF raw data'!M44="","",'DF raw data'!M44) -> Probe Danfysik Reg. Number | B44: =IF('DF raw data'!N44="","",'DF raw data'!N44) -> 2277 | C44: =IF('DF raw data'!O44="","",'DF raw data'!O44) ->  | D44: =IF('DF raw data'!P44="","",'DF raw data'!P44) -> 
A45: =IF('DF raw data'!M45="","",'DF raw data'!M45) -> Probe Axis | B45: =IF('DF raw data'!N45="","",'DF raw data'!N45) -> Bz | C45: =IF('DF raw data'!O45="","",'DF raw data'!O45) ->  | D45: =IF('DF raw data'!P45="","",'DF raw data'!P45) -> 
A46: =IF('DF raw data'!M46="","",'DF raw data'!M46) -> Probe Current Supply | B46: =IF('DF raw data'!N46="","",'DF raw data'!N46) -> 1825-D | C46: =IF('DF raw data'!O46="","",'DF raw data'!O46) ->  | D46: =IF('DF raw data'!P46="","",'DF raw data'!P46) -> 
A47: =IF('DF raw data'!M47="","",'DF raw data'!M47) -> Probe Gain Correction | B47: =IF('DF raw data'!N47="","",'DF raw data'!N47) -> 1 | C47: =IF('DF raw data'!O47="","",'DF raw data'!O47) ->  | D47: =IF('DF raw data'!P47="","",'DF raw data'!P47) -> 
A48: =IF('DF raw data'!M53="","",'DF raw data'!M53) -> PS-Gap: | B48: =IF('DF raw data'!N53="","",'DF raw data'!N53) -> 10 | C48: =IF('DF raw data'!O53="","",'DF raw data'!O53) ->  | D48: =IF('DF raw data'!P53="","",'DF raw data'!P53) -> 
A49: =IF('DF raw data'!M54="","",'DF raw data'!M54) -> PS-Temperature: | B49: =IF('DF raw data'!N54="","",'DF raw data'!N54) -> 24 | C49: =IF('DF raw data'!O54="","",'DF raw data'!O54) ->  | D49: =IF('DF raw data'!P54="","",'DF raw data'!P54) -> 
A50: =IF('DF raw data'!M55="","",'DF raw data'!M55) -> PS-Encoder: | B50: =IF('DF raw data'!N55="","",'DF raw data'!N55) -> 19.7631 | C50: =IF('DF raw data'!O55="","",'DF raw data'!O55) ->  | D50: =IF('DF raw data'!P55="","",'DF raw data'!P55) -> 
A51: =IF('DF raw data'!M56="","",'DF raw data'!M56) ->  | B51: =IF('DF raw data'!N56="","",'DF raw data'!N56) ->  | C51: =IF('DF raw data'!O56="","",'DF raw data'!O56) ->  | D51: =IF('DF raw data'!P56="","",'DF raw data'!P56) -> 
A52: =IF('DF raw data'!M57="","",'DF raw data'!M57) -> Monitor-Index | B52: =IF('DF raw data'!N57="","",'DF raw data'!N57) -> [1,1,4] | C52: =IF('DF raw data'!O57="","",'DF raw data'!O57) ->  | D52: =IF('DF raw data'!P57="","",'DF raw data'!P57) -> 
A53: =IF('DF raw data'!M58="","",'DF raw data'!M58) ->  | B53: =IF('DF raw data'!N58="","",'DF raw data'!N58) ->  | C53: =IF('DF raw data'!O58="","",'DF raw data'!O58) ->  | D53: =IF('DF raw data'!P58="","",'DF raw data'!P58) -> 
A54: =IF('DF raw data'!M59="","",'DF raw data'!M59) -> Time [s] | B54: =IF('DF raw data'!N59="","",'DF raw data'!N59) -> Y [mm] | C54: =IF('DF raw data'!O59="","",'DF raw data'!O59) -> X [mm] | D54: =IF('DF raw data'!P59="","",'DF raw data'!P59) -> Nominal current [A]
A55: =IF('DF raw data'!M60="","",'DF raw data'!M60) ->  | B55: =IF('DF raw data'!N60="","",'DF raw data'!N60) ->  | C55: =IF('DF raw data'!O60="","",'DF raw data'!O60) ->  | D55: =IF('DF raw data'!P60="","",'DF raw data'!P60) -> 
A56: =IF('DF raw data'!M61="","",'DF raw data'!M61) -> 207.8 | B56: =IF('DF raw data'!N61="","",'DF raw data'!N61) -> 31.75 | C56: =IF('DF raw data'!O61="","",'DF raw data'!O61) -> 302.55 | D56: =IF('DF raw data'!P61="","",'DF raw data'!P61) -> 0
A57: =IF('DF raw data'!M62="","",'DF raw data'!M62) ->  | B57: =IF('DF raw data'!N62="","",'DF raw data'!N62) ->  | C57: =IF('DF raw data'!O62="","",'DF raw data'!O62) ->  | D57: =IF('DF raw data'!P62="","",'DF raw data'!P62) -> 
A58: =IF('DF raw data'!M63="","",'DF raw data'!M63) -> Measurement-Index | B58: =IF('DF raw data'!N63="","",'DF raw data'!N63) -> [1,1,1201,2] | C58: =IF('DF raw data'!O63="","",'DF raw data'!O63) ->  | D58: =IF('DF raw data'!P63="","",'DF raw data'!P63) -> 
A59: =IF('DF raw data'!M64="","",'DF raw data'!M64) ->  | B59: =IF('DF raw data'!N64="","",'DF raw data'!N64) ->  | C59: =IF('DF raw data'!O64="","",'DF raw data'!O64) ->  | D59: =IF('DF raw data'!P64="","",'DF raw data'!P64) -> 
A60: =IF('DF raw data'!M65="","",'DF raw data'!M65) -> Z [mm] | B60: By [T] | C60: Bx [T] | D60: Bz [T] | F60: By_corr | G60: Bx_corr | H60: Bz_corr | J60: Iy | K60: Jy | L60: Ix | M60: Jx | N60: PI
A62: =IF('DF raw data'!M67="","",'DF raw data'!M67) -> -300 | B62: =IF('DF raw data'!N67="","",'DF raw data'!N67) -> 1.14714e-07 | C62: =IF('DF raw data'!O67="","",'DF raw data'!O67) -> 0.000172691 | D62: =IF('DF raw data'!P67="","",'DF raw data'!P67) -> -2.49748e-05 | F62: =(1-$G$1*($B$49))*B62 -> 1.17467136e-07 | G62: =(1-$G$1*($B$49-$G$2))*C62 -> 0.000173381764 | H62: =(1-$G$1*($B$49-$G$2))*D62 -> -2.50746992e-05 | J62: =F62*$G$3 -> 5.8733568e-08 | K62: =J62*$G$3 -> 2.9366784e-08 | L62: =G62*$G$3 -> 8.6690882e-05 | M62: =L62*$G$3 -> 4.3345441e-05 | N62: =(J62^2+L62^2)*$G$3 -> 3.757656236e-09
A63: =IF('DF raw data'!M68="","",'DF raw data'!M68) -> -299.5 | B63: =IF('DF raw data'!N68="","",'DF raw data'!N68) -> -8.59647e-06 | C63: =IF('DF raw data'!O68="","",'DF raw data'!O68) -> 0.000181522 | D63: =IF('DF raw data'!P68="","",'DF raw data'!P68) -> -2.44166e-05 | F63: =(1-$G$1*($B$49-$G$2))*B63 -> -8.63085588e-06 | G63: =(1-$G$1*($B$49-$G$2))*C63 -> 0.000182248088 | H63: -2.45142664e-05 | J63: =F63*$G$3+J62 -> -4.256694372e-06 | K63: =J63*$G$3+K62 -> -2.098980402e-06 | L63: =G63*$G$3+L62 -> 0.000177814926 | M63: =L63*$G$3+M62 -> 0.000132252904 | N63: =(J63^2+L63^2)*$G$3+N62 -> 1.957578991e-08
A64: =IF('DF raw data'!M69="","",'DF raw data'!M69) -> -299 | B64: =IF('DF raw data'!N69="","",'DF raw data'!N69) -> -1.45538e-05 | C64: =IF('DF raw data'!O69="","",'DF raw data'!O69) -> 0.000180023 | D64: =IF('DF raw data'!P69="","",'DF raw data'!P69) -> -2.31518e-05 | F64: =(1-$G$1*($B$49-$G$2))*B64 -> -1.46120152e-05 | G64: 0.000180743092 | H64: -2.32444072e-05 | J64: =F64*$G$3+J63 -> -1.156270197e-05 | K64: =J64*$G$3+K63 -> -7.880331388e-06 | L64: =G64*$G$3+L63 -> 0.000268186472 | M64: =L64*$G$3+M63 -> 0.00026634614 | N64: =(J64^2+L64^2)*$G$3+N63 -> 5.560462983e-08
A65: =IF('DF raw data'!M70="","",'DF raw data'!M70) -> -298.5 | B65: =IF('DF raw data'!N70="","",'DF raw data'!N70) -> -9.62202e-06 | C65: =IF('DF raw data'!O70="","",'DF raw data'!O70) -> 0.000171184 | D65: =IF('DF raw data'!P70="","",'DF raw data'!P70) -> -2.19526e-05 | F65: -9.66050808e-06 | G65: 0.000171868736 | H65: -2.20404104e-05 | J65: -1.639295601e-05 | K65: -1.607680939e-05 | L65: 0.00035412084 | M65: 0.00044340656 | N65: 1.18439779e-07
A66: =IF('DF raw data'!M71="","",'DF raw data'!M71) -> -298 | B66: =IF('DF raw data'!N71="","",'DF raw data'!N71) -> -9.23883e-06 | C66: =IF('DF raw data'!O71="","",'DF raw data'!O71) -> 0.000172417 | D66: =IF('DF raw data'!P71="","",'DF raw data'!P71) -> -2.14931e-05 | F66: -9.27578532e-06 | G66: 0.000173106668 | H66: -2.15790724e-05 | J66: -2.103084867e-05 | K66: -2.659223373e-05 | L66: 0.000440674174 | M66: 0.000663743647 | N66: 2.157577911e-07
A67: =IF('DF raw data'!M72="","",'DF raw data'!M72) -> -297.5 | B67: =IF('DF raw data'!N72="","",'DF raw data'!N72) -> 4.08368e-06 | C67: =IF('DF raw data'!O72="","",'DF raw data'!O72) -> 0.00017546 | D67: =IF('DF raw data'!P72="","",'DF raw data'!P72) -> -2.21127e-05 | F67: 4.10001472e-06 | G67: 0.00017616184 | H67: -2.22011508e-05 | J67: -1.898084131e-05 | K67: -3.608265439e-05 | L67: 0.000528755094 | M67: 0.000928121194 | N67: 3.55728902e-07
A68: =IF('DF raw data'!M73="","",'DF raw data'!M73) -> -297 | B68: =IF('DF raw data'!N73="","",'DF raw data'!N73) -> -3.72955e-06 | C68: =IF('DF raw data'!O73="","",'DF raw data'!O73) -> 0.00017626 | D68: =IF('DF raw data'!P73="","",'DF raw data'!P73) -> -2.31225e-05 | F68: -3.7444682e-06 | G68: 0.00017696504 | H68: -2.321499e-05 | J68: -2.085307541e-05 | K68: -4.650919209e-05 | L68: 0.000617237614 | M68: 0.001236740001 | N68: 5.464374634e-07
A69: =IF('DF raw data'!M74="","",'DF raw data'!M74) -> -296.5 | B69: =IF('DF raw data'!N74="","",'DF raw data'!N74) -> -1.16699e-06 | C69: =IF('DF raw data'!O74="","",'DF raw data'!O74) -> 0.000183654 | D69: =IF('DF raw data'!P74="","",'DF raw data'!P74) -> -2.3644e-05 | F69: -1.17165796e-06 | G69: 0.000184388616 | H69: -2.3738576e-05 | J69: -2.143890439e-05 | K69: -5.722864429e-05 | L69: 0.000709431922 | M69: 0.001591455962 | N69: 7.983141027e-07
A70: =IF('DF raw data'!M75="","",'DF raw data'!M75) -> -296 | B70: =IF('DF raw data'!N75="","",'DF raw data'!N75) -> -1.41054e-05 | C70: =IF('DF raw data'!O75="","",'DF raw data'!O75) -> 0.000191325 | D70: =IF('DF raw data'!P75="","",'DF raw data'!P75) -> -2.34058e-05 | F70: -1.41618216e-05 | G70: 0.0001920903 | H70: -2.34994232e-05 | J70: -2.851981519e-05 | K70: -7.148855188e-05 | L70: 0.000805477072 | M70: 0.001994194498 | N70: 1.123117449e-06
A71: =IF('DF raw data'!M76="","",'DF raw data'!M76) -> -295.5 | B71: =IF('DF raw data'!N76="","",'DF raw data'!N76) -> -4.88197e-06 | C71: =IF('DF raw data'!O76="","",'DF raw data'!O76) -> 0.000177976 | D71: =IF('DF raw data'!P76="","",'DF raw data'!P76) -> -2.31756e-05 | F71: -4.90149788e-06 | G71: 0.000178687904 | H71: -2.32683024e-05 | J71: -3.097056413e-05 | K71: -8.697383395e-05 | L71: 0.000894821024 | M71: 0.00244160501 | N71: 1.52394937e-06
A72: =IF('DF raw data'!M77="","",'DF raw data'!M77) -> -295 | B72: =IF('DF raw data'!N77="","",'DF raw data'!N77) -> -1.3529e-05 | C72: =IF('DF raw data'!O77="","",'DF raw data'!O77) -> 0.000170451 | D72: =IF('DF raw data'!P77="","",'DF raw data'!P77) -> -2.31531e-05 | F72: -1.3583116e-05 | G72: 0.000171132804 | H72: -2.32457124e-05 | J72: -3.776212213e-05 | K72: -0.000105854895 | L72: 0.000980387426 | M72: 0.002931798723 | N72: 2.005242111e-06
A73: =IF('DF raw data'!M78="","",'DF raw data'!M78) -> -294.5 | B73: =IF('DF raw data'!N78="","",'DF raw data'!N78) -> -1.0518e-05 | C73: =IF('DF raw data'!O78="","",'DF raw data'!O78) -> 0.000172471 | D73: =IF('DF raw data'!P78="","",'DF raw data'!P78) -> -2.30807e-05 | F73: -1.0560072e-05 | G73: 0.000173160884 | H73: -2.31730228e-05 | J73: -4.304215813e-05 | K73: -0.0001273759741 | L73: 0.001066967868 | M73: 0.003465282657 | N73: 2.575378641e-06
A74: =IF('DF raw data'!M79="","",'DF raw data'!M79) -> -294 | B74: =IF('DF raw data'!N79="","",'DF raw data'!N79) -> -1.58351e-05 | C74: =IF('DF raw data'!O79="","",'DF raw data'!O79) -> 0.000180521 | D74: =IF('DF raw data'!P79="","",'DF raw data'!P79) -> -2.26942e-05 | F74: -1.58984404e-05 | G74: 0.000181243084 | H74: -2.27849768e-05 | J74: -5.099137833e-05 | K74: -0.0001528716632 | L74: 0.00115758941 | M74: 0.004044077362 | N74: 3.246685322e-06
A75: =IF('DF raw data'!M80="","",'DF raw data'!M80) -> -293.5 | B75: =IF('DF raw data'!N80="","",'DF raw data'!N80) -> -1.31444e-05 | C75: =IF('DF raw data'!O80="","",'DF raw data'!O80) -> 0.000183425 | D75: =IF('DF raw data'!P80="","",'DF raw data'!P80) -> -2.23321e-05 | F75: -1.31969776e-05 | G75: 0.0001841587 | H75: -2.24214284e-05 | J75: -5.758986713e-05 | K75: -0.0001816665968 | L75: 0.00124966876 | M75: 0.004668911742 | N75: 4.029179623e-06
A76: =IF('DF raw data'!M81="","",'DF raw data'!M81) -> -293 | B76: =IF('DF raw data'!N81="","",'DF raw data'!N81) -> -8.46984e-06 | C76: =IF('DF raw data'!O81="","",'DF raw data'!O81) -> 0.000180665 | D76: =IF('DF raw data'!P81="","",'DF raw data'!P81) -> -2.20716e-05 | F76: -8.50371936e-06 | G76: 0.00018138766 | H76: -2.21598864e-05 | J76: -6.184172681e-05 | K76: -0.0002125874602 | L76: 0.00134036259 | M76: 0.005339093037 | N76: 4.929377759e-06
A77: =IF('DF raw data'!M82="","",'DF raw data'!M82) -> -292.5 | B77: =IF('DF raw data'!N82="","",'DF raw data'!N82) -> -1.41694e-05 | C77: =IF('DF raw data'!O82="","",'DF raw data'!O82) -> 0.000182349 | D77: =IF('DF raw data'!P82="","",'DF raw data'!P82) -> -2.1749e-05 | F77: -1.42260776e-05 | G77: 0.000183078396 | H77: -2.1835996e-05 | J77: -6.895476561e-05 | K77: -0.000247064843 | L77: 0.001431901788 | M77: 0.006055043931 | N77: 5.956926504e-06
A78: =IF('DF raw data'!M83="","",'DF raw data'!M83) -> -292 | B78: =IF('DF raw data'!N83="","",'DF raw data'!N83) -> -1.10427e-06 | C78: =IF('DF raw data'!O83="","",'DF raw data'!O83) -> 0.000180108 | D78: =IF('DF raw data'!P83="","",'DF raw data'!P83) -> -2.19148e-05 | F78: -1.10868708e-06 | G78: 0.000180828432 | H78: -2.20024592e-05 | J78: -6.950910915e-05 | K78: -0.0002818193976 | L78: 0.001522316004 | M78: 0.006816201933 | N78: 7.11806527e-06
A79: =IF('DF raw data'!M84="","",'DF raw data'!M84) -> -291.5 | B79: =IF('DF raw data'!N84="","",'DF raw data'!N84) -> -2.32287e-06 | C79: =IF('DF raw data'!O84="","",'DF raw data'!O84) -> 0.000167835 | D79: =IF('DF raw data'!P84="","",'DF raw data'!P84) -> -1.88214e-05 | F79: -2.33216148e-06 | G79: 0.00016850634 | H79: -1.88966856e-05 | J79: -7.067518989e-05 | K79: -0.0003171569925 | L79: 0.001606569174 | M79: 0.00761948652 | N79: 8.411095017e-06
A80: =IF('DF raw data'!M85="","",'DF raw data'!M85) -> -291 | B80: =IF('DF raw data'!N85="","",'DF raw data'!N85) -> -3.66022e-06 | C80: =IF('DF raw data'!O85="","",'DF raw data'!O85) -> 0.000160736 | D80: =IF('DF raw data'!P85="","",'DF raw data'!P85) -> -3.09947e-05 | F80: -3.67486088e-06 | G80: 0.000161378944 | H80: -3.11186788e-05 | J80: -7.251262033e-05 | K80: -0.0003534133027 | L80: 0.001687258646 | M80: 0.008463115843 | N80: 9.837144926e-06
A81: =IF('DF raw data'!M86="","",'DF raw data'!M86) -> -290.5 | B81: =IF('DF raw data'!N86="","",'DF raw data'!N86) -> -1.17368e-05 | C81: =IF('DF raw data'!O86="","",'DF raw data'!O86) -> 0.000176381 | D81: =IF('DF raw data'!P86="","",'DF raw data'!P86) -> -2.02145e-05 | F81: -1.17837472e-05 | G81: 0.000177086524 | H81: -2.0295358e-05 | J81: -7.840449393e-05 | K81: -0.0003926155497 | L81: 0.001775801908 | M81: 0.009351016797 | N81: 1.141695477e-05
A82: =IF('DF raw data'!M87="","",'DF raw data'!M87) -> -290 | B82: =IF('DF raw data'!N87="","",'DF raw data'!N87) -> 4.33767e-06 | C82: =IF('DF raw data'!O87="","",'DF raw data'!O87) -> 0.000180219 | D82: =IF('DF raw data'!P87="","",'DF raw data'!P87) -> -1.82796e-05 | F82: 4.35502068e-06 | G82: 0.000180939876 | H82: -1.83527184e-05 | J82: -7.622698359e-05 | K82: -0.0004307290415 | L82: 0.001866271846 | M82: 0.01028415272 | N82: 1.316134535e-05
A83: =IF('DF raw data'!M88="","",'DF raw data'!M88) -> -289.5 | B83: =IF('DF raw data'!N88="","",'DF raw data'!N88) -> -8.27404e-06 | C83: =IF('DF raw data'!O88="","",'DF raw data'!O88) -> 0.000173399 | D83: =IF('DF raw data'!P88="","",'DF raw data'!P88) -> -2.6754e-05 | F83: -8.30713616e-06 | G83: 0.000174092596 | H83: -2.6861016e-05 | J83: -8.038055167e-05 | K83: -0.0004709193173 | L83: 0.001953318144 | M83: 0.01126081179 | N83: 1.507230175e-05
A84: =IF('DF raw data'!M89="","",'DF raw data'!M89) -> -289 | B84: =IF('DF raw data'!N89="","",'DF raw data'!N89) -> -1.11e-05 | C84: =IF('DF raw data'!O89="","",'DF raw data'!O89) -> 0.000171916 | D84: =IF('DF raw data'!P89="","",'DF raw data'!P89) -> -1.56643e-05 | F84: -1.11444e-05 | G84: 0.000172603664 | H84: -1.57269572e-05 | J84: -8.595275167e-05 | K84: -0.0005138956931 | L84: 0.002039619976 | M84: 0.01228062178 | N84: 1.715602051e-05
A85: =IF('DF raw data'!M90="","",'DF raw data'!M90) -> -288.5 | B85: =IF('DF raw data'!N90="","",'DF raw data'!N90) -> -1.41103e-05 | C85: =IF('DF raw data'!O90="","",'DF raw data'!O90) -> 0.000177791 | D85: =IF('DF raw data'!P90="","",'DF raw data'!P90) -> -1.43665e-05 | F85: -1.41667412e-05 | G85: 0.000178502164 | H85: -1.4423966e-05 | J85: -9.303612227e-05 | K85: -0.0005604137543 | L85: 0.002128871058 | M85: 0.01334505731 | N85: 1.942639436e-05
A86: =IF('DF raw data'!M91="","",'DF raw data'!M91) -> -288 | B86: =IF('DF raw data'!N91="","",'DF raw data'!N91) -> -8.72607e-06 | C86: =IF('DF raw data'!O91="","",'DF raw data'!O91) -> 0.000178149 | D86: =IF('DF raw data'!P91="","",'DF raw data'!P91) -> -2.20189e-05 | F86: -8.76097428e-06 | G86: 0.000178861596 | H86: -2.21069756e-05 | J86: -9.741660941e-05 | K86: -0.000609122059 | L86: 0.002218301856 | M86: 0.01445420824 | N86: 2.189157092e-05
A87: =IF('DF raw data'!M92="","",'DF raw data'!M92) -> -287.5 | B87: =IF('DF raw data'!N92="","",'DF raw data'!N92) -> -3.92346e-06 | C87: =IF('DF raw data'!O92="","",'DF raw data'!O92) -> 0.000178299 | D87: =IF('DF raw data'!P92="","",'DF raw data'!P92) -> -1.97552e-05 | F87: -3.93915384e-06 | G87: 0.000179012196 | H87: -1.98342208e-05 | J87: -9.938618633e-05 | K87: -0.0006588151522 | L87: 0.002307807954 | M87: 0.01560811221 | N87: 2.45594985e-05
A88: =IF('DF raw data'!M93="","",'DF raw data'!M93) -> -287 | B88: =IF('DF raw data'!N93="","",'DF raw data'!N93) -> -7.70772e-06 | C88: =IF('DF raw data'!O93="","",'DF raw data'!O93) -> 0.000170608 | D88: =IF('DF raw data'!P93="","",'DF raw data'!P93) -> -1.17034e-05 | F88: -7.73855088e-06 | G88: 0.000171290432 | H88: -1.17502136e-05 | J88: -0.0001032554618 | K88: -0.000710442883 | L88: 0.00239345317 | M88: 0.0168048388 | N88: 2.742913839e-05
A89: =IF('DF raw data'!M94="","",'DF raw data'!M94) -> -286.5 | B89: =IF('DF raw data'!N94="","",'DF raw data'!N94) -> -5.01834e-06 | C89: =IF('DF raw data'!O94="","",'DF raw data'!O94) -> 0.000167182 | D89: =IF('DF raw data'!P94="","",'DF raw data'!P94) -> -1.04531e-05 | F89: -5.03841336e-06 | G89: 0.000167850728 | H89: -1.04949124e-05 | J89: -0.0001057746685 | K89: -0.0007633302173 | L89: 0.002477378534 | M89: 0.01804352807 | N89: 3.050343473e-05
A90: =IF('DF raw data'!M95="","",'DF raw data'!M95) -> -286 | B90: =IF('DF raw data'!N95="","",'DF raw data'!N95) -> 7.42058e-07 | C90: =IF('DF raw data'!O95="","",'DF raw data'!O95) -> 0.000168726 | D90: =IF('DF raw data'!P95="","",'DF raw data'!P95) -> -4.75918e-06 | F90: 7.45026232e-07 | G90: 0.000169400904 | H90: -4.77821672e-06 | J90: -0.0001054021553 | K90: -0.0008160312949 | L90: 0.002562078986 | M90: 0.01932456756 | N90: 3.37911139e-05
A91: =IF('DF raw data'!M96="","",'DF raw data'!M96) -> -285.5 | B91: =IF('DF raw data'!N96="","",'DF raw data'!N96) -> -3.41878e-06 | C91: =IF('DF raw data'!O96="","",'DF raw data'!O96) -> 0.000171768 | D91: =IF('DF raw data'!P96="","",'DF raw data'!P96) -> -7.97559e-06 | F91: -3.43245512e-06 | G91: 0.000172455072 | H91: -8.00749236e-06 | J91: -0.0001071183829 | K91: -0.0008695904864 | L91: 0.002648306522 | M91: 0.02064872082 | N91: 3.730361479e-05
A92: =IF('DF raw data'!M97="","",'DF raw data'!M97) -> -285 | B92: =IF('DF raw data'!N97="","",'DF raw data'!N97) -> -8.41072e-06 | C92: =IF('DF raw data'!O97="","",'DF raw data'!O97) -> 0.000173837 | D92: =IF('DF raw data'!P97="","",'DF raw data'!P97) -> -1.42081e-05 | F92: -8.44436288e-06 | G92: 0.000174532348 | H92: -1.42649324e-05 | J92: -0.0001113405643 | K92: -0.0009252607686 | L92: 0.002735572696 | M92: 0.02201650717 | N92: 4.105149214e-05
A93: =IF('DF raw data'!M98="","",'DF raw data'!M98) -> -284.5 | B93: =IF('DF raw data'!N98="","",'DF raw data'!N98) -> -4.9522e-06 | C93: =IF('DF raw data'!O98="","",'DF raw data'!O98) -> 0.000174471 | D93: =IF('DF raw data'!P98="","",'DF raw data'!P98) -> -1.35091e-05 | F93: -4.9720088e-06 | G93: 0.000175168884 | H93: -1.35631364e-05 | J93: -0.0001138265687 | K93: -0.0009821740529 | L93: 0.002823157138 | M93: 0.02342808574 | N93: 4.50430785e-05
A94: =IF('DF raw data'!M99="","",'DF raw data'!M99) -> -284 | B94: =IF('DF raw data'!N99="","",'DF raw data'!N99) -> -1.27635e-05 | C94: =IF('DF raw data'!O99="","",'DF raw data'!O99) -> 0.000169567 | D94: =IF('DF raw data'!P99="","",'DF raw data'!P99) -> -1.81775e-05 | F94: -1.2814554e-05 | G94: 0.000170245268 | H94: -1.825021e-05 | J94: -0.0001202338457 | K94: -0.001042290976 | L94: 0.002908279772 | M94: 0.02488222562 | N94: 4.92793522e-05
A95: =IF('DF raw data'!M100="","",'DF raw data'!M100) -> -283.5 | B95: =IF('DF raw data'!N100="","",'DF raw data'!N100) -> -1.35312e-05 | C95: =IF('DF raw data'!O100="","",'DF raw data'!O100) -> 0.00017285 | D95: =IF('DF raw data'!P100="","",'DF raw data'!P100) -> -1.8511e-05 | F95: -1.35853248e-05 | G95: 0.0001735414 | H95: -1.8585044e-05 | J95: -0.0001270265081 | K95: -0.00110580423 | L95: 0.002995050472 | M95: 0.02637975086 | N95: 5.377258373e-05
A96: =IF('DF raw data'!M101="","",'DF raw data'!M101) -> -283 | B96: =IF('DF raw data'!N101="","",'DF raw data'!N101) -> 4.27501e-06 | C96: =IF('DF raw data'!O101="","",'DF raw data'!O101) -> 0.000181504 | D96: =IF('DF raw data'!P101="","",'DF raw data'!P101) -> -2.0271e-05 | F96: 4.29211004e-06 | G96: 0.000182230016 | H96: -2.0352084e-05 | J96: -0.0001248804531 | K96: -0.001168244456 | L96: 0.00308616548 | M96: 0.0279228336 | N96: 5.854258998e-05
A97: =IF('DF raw data'!M102="","",'DF raw data'!M102) -> -282.5 | B97: =IF('DF raw data'!N102="","",'DF raw data'!N102) -> -9.23584e-06 | C97: =IF('DF raw data'!O102="","",'DF raw data'!O102) -> 0.000183314 | D97: =IF('DF raw data'!P102="","",'DF raw data'!P102) -> -2.52543e-05 | F97: -9.27278336e-06 | G97: 0.000184047256 | H97: -2.53553172e-05 | J97: -0.0001295168448 | K97: -0.001233002879 | L97: 0.003178189108 | M97: 0.02951192815 | N97: 6.360142029e-05
A98: =IF('DF raw data'!M103="","",'DF raw data'!M103) -> -282 | B98: =IF('DF raw data'!N103="","",'DF raw data'!N103) -> -1.34084e-05 | C98: =IF('DF raw data'!O103="","",'DF raw data'!O103) -> 0.000182145 | D98: =IF('DF raw data'!P103="","",'DF raw data'!P103) -> -1.13743e-05 | F98: -1.34620336e-05 | G98: 0.00018287358 | H98: -1.14197972e-05 | J98: -0.0001362478616 | K98: -0.00130112681 | L98: 0.003269625898 | M98: 0.0311467411 | N98: 6.895592879e-05
A99: =IF('DF raw data'!M104="","",'DF raw data'!M104) -> -281.5 | B99: =IF('DF raw data'!N104="","",'DF raw data'!N104) -> 1.5212e-06 | C99: =IF('DF raw data'!O104="","",'DF raw data'!O104) -> 0.000166953 | D99: =IF('DF raw data'!P104="","",'DF raw data'!P104) -> -2.12186e-05 | F99: 1.5272848e-06 | G99: 0.000167620812 | H99: -2.13034744e-05 | J99: -0.0001354842192 | K99: -0.001368868919 | L99: 0.003353436304 | M99: 0.03282345925 | N99: 7.45878743e-05
A100: =IF('DF raw data'!M105="","",'DF raw data'!M105) -> -281 | B100: =IF('DF raw data'!N105="","",'DF raw data'!N105) -> -9.09986e-06 | C100: =IF('DF raw data'!O105="","",'DF raw data'!O105) -> 0.000164387 | D100: =IF('DF raw data'!P105="","",'DF raw data'!P105) -> -3.8132e-05 | F100: -9.13625944e-06 | G100: 0.000165044548 | H100: -3.8284528e-05 | J100: -0.0001400523489 | K100: -0.001438895094 | L100: 0.003435958578 | M100: 0.03454143854 | N100: 8.05005873e-05
A101: =IF('DF raw data'!M106="","",'DF raw data'!M106) -> -280.5 | B101: =IF('DF raw data'!N106="","",'DF raw data'!N106) -> -1.07701e-05 | C101: =IF('DF raw data'!O106="","",'DF raw data'!O106) -> 0.000176859 | D101: =IF('DF raw data'!P106="","",'DF raw data'!P106) -> -2.95019e-05 | F101: -1.08131804e-05 | G101: 0.000177566436 | H101: -2.96199076e-05 | J101: -0.0001454589391 | K101: -0.001511624563 | L101: 0.003524741796 | M101: 0.03630380944 | N101: 8.672306882e-05
A102: =IF('DF raw data'!M107="","",'DF raw data'!M107) -> -280 | B102: =IF('DF raw data'!N107="","",'DF raw data'!N107) -> -1.44949e-05 | C102: =IF('DF raw data'!O107="","",'DF raw data'!O107) -> 0.00018422 | D102: =IF('DF raw data'!P107="","",'DF raw data'!P107) -> -1.52239e-05 | F102: -1.45528796e-05 | G102: 0.00018495688 | H102: -1.52847956e-05 | J102: -0.0001527353789 | K102: -0.001587992253 | L102: 0.003617220236 | M102: 0.03811241956 | N102: 9.327687398e-05
A103: =IF('DF raw data'!M108="","",'DF raw data'!M108) -> -279.5 | B103: =IF('DF raw data'!N108="","",'DF raw data'!N108) -> -1.50004e-05 | C103: =IF('DF raw data'!O108="","",'DF raw data'!O108) -> 0.000176285 | D103: =IF('DF raw data'!P108="","",'DF raw data'!P108) -> -2.44722e-05 | F103: -1.50604016e-05 | G103: 0.00017699014 | H103: -2.45700888e-05 | J103: -0.0001602655797 | K103: -0.001668125043 | L103: 0.003705715306 | M103: 0.03996527721 | N103: 0.0001001558795
A104: =IF('DF raw data'!M109="","",'DF raw data'!M109) -> -279 | B104: =IF('DF raw data'!N109="","",'DF raw data'!N109) -> -1.5836e-05 | C104: =IF('DF raw data'!O109="","",'DF raw data'!O109) -> 0.000178445 | D104: =IF('DF raw data'!P109="","",'DF raw data'!P109) -> -2.13058e-05 | F104: -1.5899344e-05 | G104: 0.00017915878 | H104: -2.13910232e-05 | J104: -0.0001682152517 | K104: -0.001752232668 | L104: 0.003795294696 | M104: 0.04186292456 | N104: 0.0001073721586
A105: =IF('DF raw data'!M110="","",'DF raw data'!M110) -> -278.5 | B105: =IF('DF raw data'!N110="","",'DF raw data'!N110) -> -6.62119e-06 | C105: =IF('DF raw data'!O110="","",'DF raw data'!O110) -> 0.000190139 | D105: =IF('DF raw data'!P110="","",'DF raw data'!P110) -> -7.8583e-06 | F105: -6.64767476e-06 | G105: 0.000190899556 | H105: -7.8897332e-06 | J105: -0.0001715390891 | K105: -0.001838002213 | L105: 0.003890744474 | M105: 0.0438082968 | N105: 0.0001149558177
A106: =IF('DF raw data'!M111="","",'DF raw data'!M111) -> -278 | B106: =IF('DF raw data'!N111="","",'DF raw data'!N111) -> -1.66591e-05 | C106: =IF('DF raw data'!O111="","",'DF raw data'!O111) -> 0.000184168 | D106: =IF('DF raw data'!P111="","",'DF raw data'!P111) -> -3.58713e-05 | F106: -1.67257364e-05 | G106: 0.000184904672 | H106: -3.60147852e-05 | J106: -0.0001799019573 | K106: -0.001927953192 | L106: 0.00398319681 | M106: 0.0457998952 | N106: 0.0001229049285
A107: =IF('DF raw data'!M112="","",'DF raw data'!M112) -> -277.5 | B107: =IF('DF raw data'!N112="","",'DF raw data'!N112) -> -1.38511e-05 | C107: =IF('DF raw data'!O112="","",'DF raw data'!O112) -> 0.000176976 | D107: =IF('DF raw data'!P112="","",'DF raw data'!P112) -> -1.90075e-05 | F107: -1.39065044e-05 | G107: 0.000177683904 | H107: -1.908353e-05 | J107: -0.0001868552095 | K107: -0.002021380796 | L107: 0.004072038762 | M107: 0.04783591458 | N107: 0.0001312131357
A108: =IF('DF raw data'!M113="","",'DF raw data'!M113) -> -277 | B108: =IF('DF raw data'!N113="","",'DF raw data'!N113) -> -4.56028e-06 | C108: =IF('DF raw data'!O113="","",'DF raw data'!O113) -> 0.000176446 | D108: =IF('DF raw data'!P113="","",'DF raw data'!P113) -> -2.57673e-05 | F108: -4.57852112e-06 | G108: 0.000177151784 | H108: -2.58703692e-05 | J108: -0.0001891444701 | K108: -0.002115953031 | L108: 0.004160614654 | M108: 0.04991622191 | N108: 0.0001398863807
A109: =IF('DF raw data'!M114="","",'DF raw data'!M114) -> -276.5 | B109: =IF('DF raw data'!N114="","",'DF raw data'!N114) -> -1.98053e-05 | C109: =IF('DF raw data'!O114="","",'DF raw data'!O114) -> 0.000176316 | D109: =IF('DF raw data'!P114="","",'DF raw data'!P114) -> -2.21902e-05 | F109: -1.98845212e-05 | G109: 0.000177021264 | H109: -2.22789608e-05 | J109: -0.0001990867307 | K109: -0.002215496397 | L109: 0.004249125286 | M109: 0.05204078455 | N109: 0.0001489337313
A110: =IF('DF raw data'!M115="","",'DF raw data'!M115) -> -276 | B110: =IF('DF raw data'!N115="","",'DF raw data'!N115) -> -3.02726e-06 | C110: =IF('DF raw data'!O115="","",'DF raw data'!O115) -> 0.000178722 | D110: =IF('DF raw data'!P115="","",'DF raw data'!P115) -> -1.94696e-05 | F110: -3.03936904e-06 | G110: 0.000179436888 | H110: -1.95474784e-05 | J110: -0.0002006064152 | K110: -0.002315799604 | L110: 0.00433884373 | M110: 0.05421020642 | N110: 0.0001583666352
A111: =IF('DF raw data'!M116="","",'DF raw data'!M116) -> -275.5 | B111: =IF('DF raw data'!N116="","",'DF raw data'!N116) -> -1.43144e-07 | C111: =IF('DF raw data'!O116="","",'DF raw data'!O116) -> 0.000174203 | D111: =IF('DF raw data'!P116="","",'DF raw data'!P116) -> -2.23796e-05 | F111: -1.43716576e-07 | G111: 0.000174899812 | H111: -2.24691184e-05 | J111: -0.0002006782735 | K111: -0.002416138741 | L111: 0.004426293636 | M111: 0.05642335324 | N111: 0.0001681828088
A112: =IF('DF raw data'!M117="","",'DF raw data'!M117) -> -275 | B112: =IF('DF raw data'!N117="","",'DF raw data'!N117) -> -7.63716e-06 | C112: =IF('DF raw data'!O117="","",'DF raw data'!O117) -> 0.000169431 | D112: =IF('DF raw data'!P117="","",'DF raw data'!P117) -> -2.20827e-05 | F112: -7.66770864e-06 | G112: 0.000170108724 | H112: -2.21710308e-05 | J112: -0.0002045121278 | K112: -0.002518394805 | L112: 0.004511347998 | M112: 0.05867902724 | N112: 0.0001783798518
A113: =IF('DF raw data'!M118="","",'DF raw data'!M118) -> -274.5 | B113: =IF('DF raw data'!N118="","",'DF raw data'!N118) -> -1.55101e-05 | C113: =IF('DF raw data'!O118="","",'DF raw data'!O118) -> 0.000169222 | D113: =IF('DF raw data'!P118="","",'DF raw data'!P118) -> -2.83406e-05 | F113: -1.55721404e-05 | G113: 0.000169898888 | H113: -2.84539624e-05 | J113: -0.000212298198 | K113: -0.002624543904 | L113: 0.004596297442 | M113: 0.06097717596 | N113: 0.0001889653621
A114: =IF('DF raw data'!M119="","",'DF raw data'!M119) -> -274 | B114: =IF('DF raw data'!N119="","",'DF raw data'!N119) -> -2.17349e-05 | C114: =IF('DF raw data'!O119="","",'DF raw data'!O119) -> 0.000176647 | D114: =IF('DF raw data'!P119="","",'DF raw data'!P119) -> -1.16407e-05 | F114: -2.18218396e-05 | G114: 0.000177353588 | H114: -1.16872628e-05 | J114: -0.0002232091178 | K114: -0.002736148463 | L114: 0.004684974236 | M114: 0.06331966307 | N114: 0.0001999647651
A115: =IF('DF raw data'!M120="","",'DF raw data'!M120) -> -273.5 | B115: =IF('DF raw data'!N120="","",'DF raw data'!N120) -> -7.12044e-06 | C115: =IF('DF raw data'!O120="","",'DF raw data'!O120) -> 0.000180344 | D115: =IF('DF raw data'!P120="","",'DF raw data'!P120) -> -2.80264e-05 | F115: -7.14892176e-06 | G115: 0.000181065376 | H115: -2.81385056e-05 | J115: -0.0002267835787 | K115: -0.002849540252 | L115: 0.004775506924 | M115: 0.06570741654 | N115: 0.0002113932137
A116: =IF('DF raw data'!M121="","",'DF raw data'!M121) -> -273 | B116: =IF('DF raw data'!N121="","",'DF raw data'!N121) -> -5.77918e-06 | C116: =IF('DF raw data'!O121="","",'DF raw data'!O121) -> 0.000182818 | D116: =IF('DF raw data'!P121="","",'DF raw data'!P121) -> -2.28387e-05 | F116: -5.80229672e-06 | G116: 0.000183549272 | H116: -2.29300548e-05 | J116: -0.000229684727 | K116: -0.002964382616 | L116: 0.00486728156 | M116: 0.06814105732 | N116: 0.0002232648061
A117: =IF('DF raw data'!M122="","",'DF raw data'!M122) -> -272.5 | B117: =IF('DF raw data'!N122="","",'DF raw data'!N122) -> -1.91049e-05 | C117: =IF('DF raw data'!O122="","",'DF raw data'!O122) -> 0.000171835 | D117: =IF('DF raw data'!P122="","",'DF raw data'!P122) -> -1.56872e-05 | F117: -1.91813196e-05 | G117: 0.00017252234 | H117: -1.57499488e-05 | J117: -0.0002392753868 | K117: -0.003084020309 | L117: 0.00495354273 | M117: 0.07061782868 | N117: 0.0002355622252
A118: =IF('DF raw data'!M123="","",'DF raw data'!M123) -> -272 | B118: =IF('DF raw data'!N123="","",'DF raw data'!N123) -> -1.6159e-05 | C118: =IF('DF raw data'!O123="","",'DF raw data'!O123) -> 0.000164449 | D118: =IF('DF raw data'!P123="","",'DF raw data'!P123) -> -1.69671e-05 | F118: -1.6223636e-05 | G118: 0.000165106796 | H118: -1.70349684e-05 | J118: -0.0002473872048 | K118: -0.003207713911 | L118: 0.005036096128 | M118: 0.07313587674 | N118: 0.0002482739576
A119: =IF('DF raw data'!M124="","",'DF raw data'!M124) -> -271.5 | B119: =IF('DF raw data'!N124="","",'DF raw data'!N124) -> -4.17798e-06 | C119: =IF('DF raw data'!O124="","",'DF raw data'!O124) -> 0.000166918 | D119: =IF('DF raw data'!P124="","",'DF raw data'!P124) -> -2.22906e-05 | F119: -4.19469192e-06 | G119: 0.000167585672 | H119: -2.23797624e-05 | J119: -0.0002494845508 | K119: -0.003332456187 | L119: 0.005119888964 | M119: 0.07569582123 | N119: 0.0002614117103
A120: =IF('DF raw data'!M125="","",'DF raw data'!M125) -> -271 | B120: =IF('DF raw data'!N125="","",'DF raw data'!N125) -> -6.15757e-06 | C120: =IF('DF raw data'!O125="","",'DF raw data'!O125) -> 0.000168107 | D120: =IF('DF raw data'!P125="","",'DF raw data'!P125) -> -3.19213e-05 | F120: -6.18220028e-06 | G120: 0.000168779428 | H120: -3.20489852e-05 | J120: -0.0002525756509 | K120: -0.003458744012 | L120: 0.005204278678 | M120: 0.07829796057 | N120: 0.0002749858658
A121: =IF('DF raw data'!M126="","",'DF raw data'!M126) -> -270.5 | B121: =IF('DF raw data'!N126="","",'DF raw data'!N126) -> -1.46849e-05 | C121: =IF('DF raw data'!O126="","",'DF raw data'!O126) -> 0.000174946 | D121: =IF('DF raw data'!P126="","",'DF raw data'!P126) -> -1.68382e-05 | F121: -1.47436396e-05 | G121: 0.000175645784 | H121: -1.69055528e-05 | J121: -0.0002599474707 | K121: -0.003588717748 | L121: 0.00529210157 | M121: 0.08094401135 | N121: 0.0002890228217
A122: =IF('DF raw data'!M127="","",'DF raw data'!M127) -> -270 | B122: =IF('DF raw data'!N127="","",'DF raw data'!N127) -> -1.65403e-05 | C122: =IF('DF raw data'!O127="","",'DF raw data'!O127) -> 0.000177916 | D122: =IF('DF raw data'!P127="","",'DF raw data'!P127) -> -2.15687e-05 | F122: -1.66064612e-05 | G122: 0.000178627664 | H122: -2.16549748e-05 | J122: -0.0002682507013 | K122: -0.003722843098 | L122: 0.005381415402 | M122: 0.08363471905 | N122: 0.0003035386168
A123: =IF('DF raw data'!M128="","",'DF raw data'!M128) -> -269.5 | B123: =IF('DF raw data'!N128="","",'DF raw data'!N128) -> -1.35949e-05 | C123: =IF('DF raw data'!O128="","",'DF raw data'!O128) -> 0.000174623 | D123: =IF('DF raw data'!P128="","",'DF raw data'!P128) -> -1.90995e-05 | F123: -1.36492796e-05 | G123: 0.000175321492 | H123: -1.9175898e-05 | J123: -0.0002750753411 | K123: -0.003860380769 | L123: 0.005469076148 | M123: 0.08636925713 | N123: 0.000318531847
A124: =IF('DF raw data'!M129="","",'DF raw data'!M129) -> -269 | B124: =IF('DF raw data'!N129="","",'DF raw data'!N129) -> -1.27563e-05 | C124: =IF('DF raw data'!O129="","",'DF raw data'!O129) -> 0.000175414 | D124: =IF('DF raw data'!P129="","",'DF raw data'!P129) -> -2.93877e-05 | F124: -1.28073252e-05 | G124: 0.000176115656 | H124: -2.95052508e-05 | J124: -0.0002814790037 | K124: -0.004001120271 | L124: 0.005557133976 | M124: 0.08914782411 | N124: 0.0003340123312
A125: =IF('DF raw data'!M130="","",'DF raw data'!M130) -> -268.5 | B125: =IF('DF raw data'!N130="","",'DF raw data'!N130) -> -1.04492e-05 | C125: =IF('DF raw data'!O130="","",'DF raw data'!O130) -> 0.000176867 | D125: =IF('DF raw data'!P130="","",'DF raw data'!P130) -> -3.05782e-05 | F125: -1.04909968e-05 | G125: 0.000177574468 | H125: -3.07005128e-05 | J125: -0.0002867245021 | K125: -0.004144482522 | L125: 0.00564592121 | M125: 0.09197078472 | N125: 0.0003499916498
A126: =IF('DF raw data'!M131="","",'DF raw data'!M131) -> -268 | B126: =IF('DF raw data'!N131="","",'DF raw data'!N131) -> 1.79371e-07 | C126: =IF('DF raw data'!O131="","",'DF raw data'!O131) -> 0.000182254 | D126: =IF('DF raw data'!P131="","",'DF raw data'!P131) -> -2.57147e-05 | F126: 1.80088484e-07 | G126: 0.000182983016 | H126: -2.58175588e-05 | J126: -0.0002866344579 | K126: -0.004287799751 | L126: 0.005737412718 | M126: 0.09483949108 | N126: 0.0003664916818
A127: =IF('DF raw data'!M132="","",'DF raw data'!M132) -> -267.5 | B127: =IF('DF raw data'!N132="","",'DF raw data'!N132) -> -1.30169e-05 | C127: =IF('DF raw data'!O132="","",'DF raw data'!O132) -> 0.000184683 | D127: =IF('DF raw data'!P132="","",'DF raw data'!P132) -> -2.14133e-05 | F127: -1.30689676e-05 | G127: 0.000185421732 | H127: -2.14989532e-05 | J127: -0.0002931689417 | K127: -0.004434384222 | L127: 0.005830123584 | M127: 0.09775455287 | N127: 0.0003835298263
A128: =IF('DF raw data'!M133="","",'DF raw data'!M133) -> -267 | B128: =IF('DF raw data'!N133="","",'DF raw data'!N133) -> -2.70738e-06 | C128: =IF('DF raw data'!O133="","",'DF raw data'!O133) -> 0.000178134 | D128: =IF('DF raw data'!P133="","",'DF raw data'!P133) -> -1.87019e-05 | F128: =(1-$G$1*($B$49-$G$2))*B128 -> -2.71820952e-06 | G128: 0.000178846536 | H128: -1.87767076e-05 | J128: =F128*$G$3+J127 -> -0.0002945280464 | K128: =J128*$G$3+K127 -> -0.004581648245 | L128: =G128*$G$3+L127 -> 0.005919546852 | M128: =L128*$G$3+M127 -> 0.1007143263 | N128: =(J128^2+L128^2)*$G$3+N127 -> 0.0004010937172
A129: =IF('DF raw data'!M134="","",'DF raw data'!M134) -> -266.5 | B129: =IF('DF raw data'!N134="","",'DF raw data'!N134) -> -1.01957e-05 | C129: =IF('DF raw data'!O134="","",'DF raw data'!O134) -> 0.000171189 | D129: =IF('DF raw data'!P134="","",'DF raw data'!P134) -> -2.65906e-05 | F129: -1.02364828e-05 | G129: 0.000171873756 | H129: -2.66969624e-05 | J129: -0.0002996462878 | K129: -0.004731471389 | L129: 0.00600548373 | M129: 0.1037170682 | N129: 0.0004191715285
A130: =IF('DF raw data'!M135="","",'DF raw data'!M135) -> -266 | B130: =IF('DF raw data'!N135="","",'DF raw data'!N135) -> 4.47189e-08 | C130: =IF('DF raw data'!O135="","",'DF raw data'!O135) -> 0.000178776 | D130: =IF('DF raw data'!P135="","",'DF raw data'!P135) -> -1.55995e-05 | F130: 4.48977756e-08 | G130: 0.000179491104 | H130: -1.5661898e-05 | J130: -0.000299623839 | K130: -0.004881283308 | L130: 0.006095229282 | M130: 0.1067646828 | N130: 0.0004377923258
A131: =IF('DF raw data'!M136="","",'DF raw data'!M136) -> -265.5 | B131: =IF('DF raw data'!N136="","",'DF raw data'!N136) -> -1.82649e-05 | C131: =IF('DF raw data'!O136="","",'DF raw data'!O136) -> 0.000175893 | D131: =IF('DF raw data'!P136="","",'DF raw data'!P136) -> -2.69936e-05 | F131: -1.83379596e-05 | G131: 0.000176596572 | H131: -2.71015744e-05 | J131: -0.0003087928188 | K131: -0.005035679718 | L131: 0.006183527568 | M131: 0.1098564466 | N131: 0.0004569580089
A132: =IF('DF raw data'!M137="","",'DF raw data'!M137) -> -265 | B132: =IF('DF raw data'!N137="","",'DF raw data'!N137) -> -4.60487e-07 | C132: =IF('DF raw data'!O137="","",'DF raw data'!O137) -> 0.000178333 | D132: =IF('DF raw data'!P137="","",'DF raw data'!P137) -> -2.66469e-05 | F132: -4.62328948e-07 | G132: 0.000179046332 | H132: -2.67534876e-05 | J132: -0.0003090239832 | K132: -0.005190191709 | L132: 0.006273050734 | M132: 0.112992972 | N132: 0.0004766813395
A133: =IF('DF raw data'!M138="","",'DF raw data'!M138) -> -264.5 | B133: =IF('DF raw data'!N138="","",'DF raw data'!N138) -> -6.16925e-06 | C133: =IF('DF raw data'!O138="","",'DF raw data'!O138) -> 0.000173644 | D133: =IF('DF raw data'!P138="","",'DF raw data'!P138) -> -1.32443e-05 | F133: -6.193927e-06 | G133: 0.000174338576 | H133: -1.32972772e-05 | J133: -0.0003121209467 | K133: -0.005346252183 | L133: 0.006360220022 | M133: 0.116173082 | N133: 0.0004969562486
A134: =IF('DF raw data'!M139="","",'DF raw data'!M139) -> -264 | B134: =IF('DF raw data'!N139="","",'DF raw data'!N139) -> 3.06023e-07 | C134: =IF('DF raw data'!O139="","",'DF raw data'!O139) -> 0.000174752 | D134: =IF('DF raw data'!P139="","",'DF raw data'!P139) -> -2.3491e-05 | F134: 3.07247092e-07 | G134: 0.000175451008 | H134: -2.3584964e-05 | J134: -0.0003119673232 | K134: -0.005502235844 | L134: 0.006447945526 | M134: 0.1193970547 | N134: 0.0005177929112
A135: =IF('DF raw data'!M140="","",'DF raw data'!M140) -> -263.5 | B135: =IF('DF raw data'!N140="","",'DF raw data'!N140) -> -1.01358e-05 | C135: =IF('DF raw data'!O140="","",'DF raw data'!O140) -> 0.000176529 | D135: =IF('DF raw data'!P140="","",'DF raw data'!P140) -> -1.98835e-05 | F135: -1.01763432e-05 | G135: 0.000177235116 | H135: -1.9963034e-05 | J135: -0.0003170554948 | K135: -0.005660763592 | L135: 0.006536563084 | M135: 0.1226653363 | N135: 0.0005392065018
A136: =IF('DF raw data'!M141="","",'DF raw data'!M141) -> -263 | B136: =IF('DF raw data'!N141="","",'DF raw data'!N141) -> -1.99473e-06 | C136: =IF('DF raw data'!O141="","",'DF raw data'!O141) -> 0.000175047 | D136: =IF('DF raw data'!P141="","",'DF raw data'!P141) -> -3.14829e-05 | F136: -2.00270892e-06 | G136: 0.000175747188 | H136: -3.16088316e-05 | J136: -0.0003180568492 | K136: -0.005819792016 | L136: 0.006624436678 | M136: 0.1259775546 | N136: 0.0005611986625
A137: =IF('DF raw data'!M142="","",'DF raw data'!M142) -> -262.5 | B137: =IF('DF raw data'!N142="","",'DF raw data'!N142) -> -1.07165e-05 | C137: =IF('DF raw data'!O142="","",'DF raw data'!O142) -> 0.00016564 | D137: =IF('DF raw data'!P142="","",'DF raw data'!P142) -> -1.33725e-05 | F137: -1.0759366e-05 | G137: 0.00016630256 | H137: -1.342599e-05 | J137: -0.0003234365322 | K137: -0.005981510282 | L137: 0.006707587958 | M137: 0.1293313486 | N137: 0.0005837468362
A138: =IF('DF raw data'!M143="","",'DF raw data'!M143) -> -262 | B138: =IF('DF raw data'!N143="","",'DF raw data'!N143) -> -2.77287e-06 | C138: =IF('DF raw data'!O143="","",'DF raw data'!O143) -> 0.000168898 | D138: =IF('DF raw data'!P143="","",'DF raw data'!P143) -> -1.67385e-05 | F138: -2.78396148e-06 | G138: 0.000169573592 | H138: -1.6805454e-05 | J138: -0.000324828513 | K138: -0.006143924539 | L138: 0.006792374754 | M138: 0.132727536 | N138: 0.0006068677704
A139: =IF('DF raw data'!M144="","",'DF raw data'!M144) -> -261.5 | B139: =IF('DF raw data'!N144="","",'DF raw data'!N144) -> -1.3859e-05 | C139: =IF('DF raw data'!O144="","",'DF raw data'!O144) -> 0.000169476 | D139: =IF('DF raw data'!P144="","",'DF raw data'!P144) -> -6.65988e-06 | F139: -1.3914436e-05 | G139: 0.000170153904 | H139: -6.68651952e-06 | J139: -0.000331785731 | K139: -0.006309817404 | L139: 0.006877451706 | M139: 0.1361662618 | N139: 0.0006305724822
A140: =IF('DF raw data'!M145="","",'DF raw data'!M145) -> -261 | B140: =IF('DF raw data'!N145="","",'DF raw data'!N145) -> -5.33138e-06 | C140: =IF('DF raw data'!O145="","",'DF raw data'!O145) -> 0.000177305 | D140: =IF('DF raw data'!P145="","",'DF raw data'!P145) -> -2.1932e-05 | F140: -5.35270552e-06 | G140: 0.00017801422 | H140: -2.2019728e-05 | J140: -0.0003344620837 | K140: -0.006477048446 | L140: 0.006966458816 | M140: 0.1396494912 | N140: 0.0006548941889
A141: =IF('DF raw data'!M146="","",'DF raw data'!M146) -> -260.5 | B141: =IF('DF raw data'!N146="","",'DF raw data'!N146) -> -7.63617e-06 | C141: =IF('DF raw data'!O146="","",'DF raw data'!O146) -> 0.000174355 | D141: =IF('DF raw data'!P146="","",'DF raw data'!P146) -> -2.2685e-05 | F141: -7.66671468e-06 | G141: 0.00017505242 | H141: -2.277574e-05 | J141: -0.0003382954411 | K141: -0.006646196167 | L141: 0.007053985026 | M141: 0.1431764837 | N141: 0.0006798307632
A142: =IF('DF raw data'!M147="","",'DF raw data'!M147) -> -260 | B142: =IF('DF raw data'!N147="","",'DF raw data'!N147) -> -8.02484e-06 | C142: =IF('DF raw data'!O147="","",'DF raw data'!O147) -> 0.000170428 | D142: =IF('DF raw data'!P147="","",'DF raw data'!P147) -> -1.69598e-05 | F142: -8.05693936e-06 | G142: 0.000171109712 | H142: -1.70276392e-05 | J142: -0.0003423239108 | K142: -0.006817358122 | L142: 0.007139539882 | M142: 0.1467462537 | N142: 0.0007053758709
A143: =IF('DF raw data'!M148="","",'DF raw data'!M148) -> -259.5 | B143: =IF('DF raw data'!N148="","",'DF raw data'!N148) -> -1.007e-05 | C143: =IF('DF raw data'!O148="","",'DF raw data'!O148) -> 0.000164904 | D143: =IF('DF raw data'!P148="","",'DF raw data'!P148) -> -2.22631e-05 | F143: -1.011028e-05 | G143: 0.000165563616 | H143: -2.23521524e-05 | J143: -0.0003473790508 | K143: -0.006991047647 | L143: 0.00722232169 | M143: 0.1503574145 | N143: 0.0007315171723
A144: =IF('DF raw data'!M149="","",'DF raw data'!M149) -> -259 | B144: =IF('DF raw data'!N149="","",'DF raw data'!N149) -> -5.26396e-07 | C144: =IF('DF raw data'!O149="","",'DF raw data'!O149) -> 0.000173122 | D144: =IF('DF raw data'!P149="","",'DF raw data'!P149) -> -2.39872e-05 | F144: -5.28501584e-07 | G144: 0.000173814488 | H144: -2.40831488e-05 | J144: -0.0003476433016 | K144: -0.007164869298 | L144: 0.007309228934 | M144: 0.154012029 | N144: 0.000758290014
A145: =IF('DF raw data'!M150="","",'DF raw data'!M150) -> -258.5 | B145: =IF('DF raw data'!N150="","",'DF raw data'!N150) -> -2.00937e-06 | C145: =IF('DF raw data'!O150="","",'DF raw data'!O150) -> 0.000169249 | D145: =IF('DF raw data'!P150="","",'DF raw data'!P150) -> -8.6549e-06 | F145: -2.01740748e-06 | G145: 0.000169925996 | H145: -8.6895196e-06 | J145: -0.0003486520053 | K145: -0.007339195301 | L145: 0.007394191932 | M145: 0.157709125 | N145: 0.0007856878303
A146: =IF('DF raw data'!M151="","",'DF raw data'!M151) -> -258 | B146: =IF('DF raw data'!N151="","",'DF raw data'!N151) -> -2.01257e-05 | C146: =IF('DF raw data'!O151="","",'DF raw data'!O151) -> 0.000171035 | D146: =IF('DF raw data'!P151="","",'DF raw data'!P151) -> -2.41008e-05 | F146: -2.02062028e-05 | G146: 0.00017171914 | H146: -2.41972032e-05 | J146: -0.0003587551067 | K146: -0.007518572854 | L146: 0.007480051502 | M146: 0.1614491507 | N146: 0.0008137277681
A147: =IF('DF raw data'!M152="","",'DF raw data'!M152) -> -257.5 | B147: =IF('DF raw data'!N152="","",'DF raw data'!N152) -> -1.83309e-05 | C147: =IF('DF raw data'!O152="","",'DF raw data'!O152) -> 0.000166462 | D147: =IF('DF raw data'!P152="","",'DF raw data'!P152) -> -2.39563e-05 | F147: -1.84042236e-05 | G147: 0.000167127848 | H147: -2.40521252e-05 | J147: -0.0003679572185 | K147: -0.007702551463 | L147: 0.007563615426 | M147: 0.1652309584 | N147: 0.0008423996036
